{"text_format":"1","workbook":"xlsx","n_sheets":6,"sheets":["mémo pour remplir le tableau","Données","tmp","Bilans","listes","Regroupements"],"not_rendered":{"charts":6,"images":0,"macros":1,"external_links":3,"defined_names":45,"comments":3,"pivot_tables":0},"unopened":[],"bounds":{"document_bytes":16777216,"sheet_cells":100000,"rows_first":2000,"rows_last":500,"rows_between":2000,"halvings":0,"cell_chars":16384,"cell_head_chars":4096},"cells_cut":0,"cells_raw":0,"read":"whole","date_system":"1900"}

{"sheet":"mémo pour remplir le tableau","index":0,"n_rows":24,"n_cols":2,"rows_kept":24,"cut":false,"hidden":false,"merged":[[0,0,0,1],[2,0,2,1],[10,0,10,1],[15,0,15,1],[20,0,20,1]]}
["MEMO POUR REMPLIR LE TABLEAU"]
[]
["Ajouter un événement"]
["*","Se positionner à la fin du tableau sur une nouvelle ligne"]
["*","Remplir obligatoirement les colonnes A à J"]
["*","Colonne K \"Commentaires\" optionnelle"]
["*","Données des colonnes L,M, N calculées de manière automatique, servant aux tableaux bilans : Ne pas y toucher"]
["*","Remplir la colonne F \"Enseignant référent\" en inscrivant d'abord le nom de l'enseignant, puis son prénom"]
["*","Cas des accueils organisés en binôme : Inscrire dans l'ordre que vous souhaitez les deux secteurs concernés. SAUF pour les accueils effectués par la médiathèque du Rize (RIZE MED) qui doivent toujours être inscrits en colonne B.\nEx : Accueil couplée médiathèque/médiation culturelle : En colonne B \"RIZE MED\", en colonne C \"RIZE VALO\""]
[]
["Je veux ajouter un nouvel accueil entre deux déjà existants, de manière chronologique"]
["*","Ne jamais insérer une nouvelle ligne, pour éviter des erreurs aux conséquences fatales (!)"]
["*","Se positionner à la fin du tableau, sur la première ligne non remplie et entrer les données"]
["*","Se positionner sur la cellule A1 \"Date venue\", cliquer sur la flèche en bas à droite de la cellule et sélectionner \"Trier du plus ancien au plus récent\" afin de positionner les accueils dans l'ordre chronologique"]
[]
["Mes événements ont disparu : vérifier qu'un filtre n'est pas actif"]
["*","Dans chaque cellule de la première ligne du tableau, si un filtre est actif, un petit entonnoir apparaît : "]
["*","Pour désactiver le filtre, cliquer sur cet entonnoir, puis à la fin du menu déroulant, activer la case \"sélectionner tout\", cliquez sur OK : tous les cellules réapparaissent"]
["*","Attention, plusieurs filtres peuvent être activés en même temps : il faut tous les désactiver en suivant la procédure ci-dessus"]
[]
["Tableaux bilans"]
["*","Nombre de classes accueillies : on ne compte pas le nombre de passages de classes dans les locaux de la bibliothèque mais le nombre de classes touchées par les actions de la bibliothèque. Ex : Une classe se rendant dans la bibliothèque tous les mois pendant un an sera comptée pour 1 et non pour 12"]
["*","Nombre d'enfants accueillis : Relatif au nombre de classes accueillies. Ex : 25 enfants ayant été accueillis sur un cycle de 3 séances compteront pour 25. (ne compte que si la colonne J indique \"Classe accueillie pour la 1ère fois\")"]
["*","Nombre d’accueils de classe effectués : On rend compte du nombre de passages de classes au sein de la bibliothèque. Ex : Une classe se rendant dans la bibliothèque tous les mois pendant un an sera comptée pour 12"]

{"sheet":"Données","index":1,"n_rows":151,"n_cols":22,"rows_kept":151,"cut":false,"hidden":false,"merged":[]}
["Date venue","Secteur organisateur","Secteur organisateur binôme","Etablissement scolaire","Niveau de classe","Enseignant référent (Nom Prénom)","Nombre enfants","In situ / hors les murs","Type de visite","Commentaires","Appréciation","Groupe niveau","Quartier","Etablissement accueillant","CléEtablissement","cptEtablissement","CléRéseau-Rize horsmed","cptréseau-rizehormed","CléRize","cptrize","cléTotal","cptTotal"]
["2017-10-18","RIZE MED",null,"Jean Jaurès (primaire)","gs","CENT",23,"In situ","Visite découverte",null,null,{"$f":"IF(COUNTIF(Maternelle,E2)=1,listes!$T$1,IF(COUNTIF(Elémentaire,E2)=1,listes!$U$1,IF(COUNTIF(Collège,E2)=1,listes!$V$1,IF(COUNTIF(Lycée,E2)=1,listes!$W$1,\"\"))))","v":"Maternelle"},{"$f":"VLOOKUP(T_sept_dec[[#This Row],[Etablissement scolaire]],Regroupements!$T:$U,2,FALSE)","v":"Ferrandière-Maisons Neuves"},{"$f":"IF(COUNTIF(FDL,B2)=1,\"FDL\",IF(COUNTIF(RIZE,B2)=1,\"RIZE\",IF(COUNTIF(MLIS,B2)=1,\"MLIS\",IF(COUNTIF(PACBUS,B2)=1,\"PAC-BUS\",IF(COUNTIF(Tonkin,B2)=1,\"TONKIN\",\"\")))))","v":"RIZE"},{"$f":"T_sept_dec[[#This Row],[Etablissement accueillant]]&\"-\"&T_sept_dec[[#This Row],[Enseignant référent (Nom Prénom)]]","v":"RIZE-CENT"},{"$f":"1/COUNTIF(T_sept_dec[CléEtablissement],T_sept_dec[[#This Row],[CléEtablissement]])","v":1},{"$f":"IF(COUNTIF(Réseau,T_sept_dec[[#This Row],[Secteur organisateur]]),\"Réseau_\"&T_sept_dec[[#This Row],[Enseignant référent (Nom Prénom)]], IF(COUNTIF(Rizehorsmed,T_sept_dec[[#This Row],[Secteur organisateur]]),\"Rizehorsmed_\"&T_sept_dec[[#This Row],[Enseignant référent (Nom Prénom)]], T_sept_dec[[#This Row],[Secteur organisateur]]&\"_\"&T_sept_dec[[#This Row],[Enseignant référent (Nom Prénom)]]))","v":"Réseau_CENT"},{"$f":"1/COUNTIF(T_sept_dec[CléRéseau-Rize horsmed],T_sept_dec[[#This Row],[CléRéseau-Rize horsmed]])","v":1},{"$f":"IF(COUNTIF(RIZE,T_sept_dec[[#This Row],[Secteur organisateur]]),\"Rize_\"&T_sept_dec[[#This Row],[Enseignant référent (Nom Prénom)]],\"\")","v":"Rize_CENT"},{"$f":"1/COUNTIF(T_sept_dec[CléRize],T_sept_dec[[#This Row],[CléRize]])","v":1},{"$f":"IF(COUNTIF(Total,T_sept_dec[[#This Row],[Secteur organisateur]]),\"Total_\"&T_sept_dec[[#This Row],[Enseignant référent (Nom Prénom)]],\"\")","v":"Total_CENT"},{"$f":"1/COUNTIF(T_sept_dec[cléTotal],T_sept_dec[[#This Row],[cléTotal]])","v":1}]
["2017-11-14","RIZE VALO",null,"Collège Jean Jaurès","6°","CENTDEUX",28,"Hors les murs","Exploration urbaine",null,null,{"$f":"IF(COUNTIF(Maternelle,E3)=1,listes!$T$1,IF(COUNTIF(Elémentaire,E3)=1,listes!$U$1,IF(COUNTIF(Collège,E3)=1,listes!$V$1,IF(COUNTIF(Lycée,E3)=1,listes!$W$1,\"\"))))","v":"Collège"},{"$f":"VLOOKUP(T_sept_dec[[#This Row],[Etablissement scolaire]],Regroupements!$T:$U,2,FALSE)","v":"Ferrandière-Maisons Neuves"},"RIZE",{"$f":"T_sept_dec[[#This Row],[Etablissement accueillant]]&\"-\"&T_sept_dec[[#This Row],[Enseignant référent (Nom Prénom)]]","v":"RIZE-CENTDEUX"},{"$f":"1/COUNTIF(T_sept_dec[CléEtablissement],T_sept_dec[[#This Row],[CléEtablissement]])","v":1},{"$f":"IF(COUNTIF(Réseau,T_sept_dec[[#This Row],[Secteur organisateur]]),\"Réseau_\"&T_sept_dec[[#This Row],[Enseignant référent (Nom Prénom)]], IF(COUNTIF(Rizehorsmed,T_sept_dec[[#This Row],[Secteur organisateur]]),\"Rizehorsmed_\"&T_sept_dec[[#This Row],[Enseignant référent (Nom Prénom)]], T_sept_dec[[#This Row],[Secteur organisateur]]&\"_\"&T_sept_dec[[#This Row],[Enseignant référent (Nom Prénom)]]))","v":"Rizehorsmed_CENTDEUX"},{"$f":"1/COUNTIF(T_sept_dec[CléRéseau-Rize horsmed],T_sept_dec[[#This Row],[CléRéseau-Rize horsmed]])","v":1},{"$f":"IF(COUNTIF(RIZE,T_sept_dec[[#This Row],[Secteur organisateur]]),\"Rize_\"&T_sept_dec[[#This Row],[Enseignant référent (Nom Prénom)]],\"\")","v":"Rize_CENTDEUX"},{"$f":"1/COUNTIF(T_sept_dec[CléRize],T_sept_dec[[#This Row],[CléRize]])","v":1},{"$f":"IF(COUNTIF(Total,T_sept_dec[[#This Row],[Secteur organisateur]]),\"Total_\"&T_sept_dec[[#This Row],[Enseignant référent (Nom Prénom)]],\"\")","v":"Total_CENTDEUX"},{"$f":"1/COUNTIF(T_sept_dec[cléTotal],T_sept_dec[[#This Row],[cléTotal]])","v":1}]
["2017-11-22","EMM",null,"Jean Zay","cm2","CENTUN",25,"In situ","Coder avec Scratch",null,null,{"$f":"IF(COUNTIF(Maternelle,E4)=1,listes!$T$1,IF(COUNTIF(Elémentaire,E4)=1,listes!$U$1,IF(COUNTIF(Collège,E4)=1,listes!$V$1,IF(COUNTIF(Lycée,E4)=1,listes!$W$1,\"\"))))","v":"Elémentaire"},{"$f":"VLOOKUP(T_sept_dec[[#This Row],[Etablissement scolaire]],Regroupements!$T:$U,2,FALSE)","v":"Gratte-ciel-Dedieu-Charmettes"},"MLIS",{"$f":"T_sept_dec[[#This Row],[Etablissement accueillant]]&\"-\"&T_sept_dec[[#This Row],[Enseignant référent (Nom Prénom)]]","v":"MLIS-CENTUN"},{"$f":"1/COUNTIF(T_sept_dec[CléEtablissement],T_sept_dec[[#This Row],[CléEtablissement]])","v":1},{"$f":"IF(COUNTIF(Réseau,T_sept_dec[[#This Row],[Secteur organisateur]]),\"Réseau_\"&T_sept_dec[[#This Row],[Enseignant référent (Nom Prénom)]], IF(COUNTIF(Rizehorsmed,T_sept_dec[[#This Row],[Secteur organisateur]]),\"Rizehorsmed_\"&T_sept_dec[[#This Row],[Enseignant référent (Nom Prénom)]], T_sept_dec[[#This Row],[Secteur organisateur]]&\"_\"&T_sept_dec[[#This Row],[Enseignant référent (Nom Prénom)]]))","v":"Réseau_CENTUN"},{"$f":"1/COUNTIF(T_sept_dec[CléRéseau-Rize horsmed],T_sept_dec[[#This Row],[CléRéseau-Rize horsmed]])","v":1},{"$f":"IF(COUNTIF(RIZE,T_sept_dec[[#This Row],[Secteur organisateur]]),\"Rize_\"&T_sept_dec[[#This Row],[Enseignant référent (Nom Prénom)]],\"\")","v":""},{"$f":"1/COUNTIF(T_sept_dec[CléRize],T_sept_dec[[#This Row],[CléRize]])","v":9.8039215686274508E-3},{"$f":"IF(COUNTIF(Total,T_sept_dec[[#This Row],[Secteur organisateur]]),\"Total_\"&T_sept_dec[[#This Row],[Enseignant référent (Nom Prénom)]],\"\")","v":"Total_CENTUN"},{"$f":"1/COUNTIF(T_sept_dec[cléTotal],T_sept_dec[[#This Row],[cléTotal]])","v":1}]
["2017-12-06","RIZE MED",null,"Louis Pasteur","cp","CINQ",23,"In situ","Visite découverte",null,null,{"$f":"IF(COUNTIF(Maternelle,E5)=1,listes!$T$1,IF(COUNTIF(Elémentaire,E5)=1,listes!$U$1,IF(COUNTIF(Collège,E5)=1,listes!$V$1,IF(COUNTIF(Lycée,E5)=1,listes!$W$1,\"\"))))","v":"Elémentaire"},{"$f":"VLOOKUP(T_sept_dec[[#This Row],[Etablissement scolaire]],Regroupements!$T:$U,2,FALSE)","v":"Perralière-Grandclément"},"RIZE",{"$f":"T_sept_dec[[#This Row],[Etablissement accueillant]]&\"-\"&T_sept_dec[[#This Row],[Enseignant référent (Nom Prénom)]]","v":"RIZE-CINQ"},{"$f":"1/COUNTIF(T_sept_dec[CléEtablissement],T_sept_dec[[#This Row],[CléEtablissement]])","v":1},{"$f":"IF(COUNTIF(Réseau,T_sept_dec[[#This Row],[Secteur organisateur]]),\"Réseau_\"&T_sept_dec[[#This Row],[Enseignant référent (Nom Prénom)]], IF(COUNTIF(Rizehorsmed,T_sept_dec[[#This Row],[Secteur organisateur]]),\"Rizehorsmed_\"&T_sept_dec[[#This Row],[Enseignant référent (Nom Prénom)]], T_sept_dec[[#This Row],[Secteur organisateur]]&\"_\"&T_sept_dec[[#This Row],[Enseignant référent (Nom Prénom)]]))","v":"Réseau_CINQ"},{"$f":"1/COUNTIF(T_sept_dec[CléRéseau-Rize horsmed],T_sept_dec[[#This Row],[CléRéseau-Rize horsmed]])","v":1},{"$f":"IF(COUNTIF(RIZE,T_sept_dec[[#This Row],[Secteur organisateur]]),\"Rize_\"&T_sept_dec[[#This Row],[Enseignant référent (Nom Prénom)]],\"\")","v":"Rize_CINQ"},{"$f":"1/COUNTIF(T_sept_dec[CléRize],T_sept_dec[[#This Row],[CléRize]])","v":1},{"$f":"IF(COUNTIF(Total,T_sept_dec[[#This Row],[Secteur organisateur]]),\"Total_\"&T_sept_dec[[#This Row],[Enseignant référent (Nom Prénom)]],\"\")","v":"Total_CINQ"},{"$f":"1/COUNTIF(T_sept_dec[cléTotal],T_sept_dec[[#This Row],[cléTotal]])","v":1}]
["2017-11-17","RIZE VALO",null,"Edouard Herriot","cm1","CINQUANTE",22,"Hors les murs","Exploration Gratte-Ciel",null,null,{"$f":"IF(COUNTIF(Maternelle,E6)=1,listes!$T$1,IF(COUNTIF(Elémentaire,E6)=1,listes!$U$1,IF(COUNTIF(Collège,E6)=1,listes!$V$1,IF(COUNTIF(Lycée,E6)=1,listes!$W$1,\"\"))))","v":"Elémentaire"},{"$f":"VLOOKUP(T_sept_dec[[#This Row],[Etablissement scolaire]],Regroupements!$T:$U,2,FALSE)","v":"Gratte-ciel-Dedieu-Charmettes"},"RIZE",{"$f":"T_sept_dec[[#This Row],[Etablissement accueillant]]&\"-\"&T_sept_dec[[#This Row],[Enseignant référent (Nom Prénom)]]","v":"RIZE-CINQUANTE"},{"$f":"1/COUNTIF(T_sept_dec[CléEtablissement],T_sept_dec[[#This Row],[CléEtablissement]])","v":1},{"$f":"IF(COUNTIF(Réseau,T_sept_dec[[#This Row],[Secteur organisateur]]),\"Réseau_\"&T_sept_dec[[#This Row],[Enseignant référent (Nom Prénom)]], IF(COUNTIF(Rizehorsmed,T_sept_dec[[#This Row],[Secteur organisateur]]),\"Rizehorsmed_\"&T_sept_dec[[#This Row],[Enseignant référent (Nom Prénom)]], T_sept_dec[[#This Row],[Secteur organisateur]]&\"_\"&T_sept_dec[[#This Row],[Enseignant référent (Nom Prénom)]]))","v":"Rizehorsmed_CINQUANTE"},{"$f":"1/COUNTIF(T_sept_dec[CléRéseau-Rize horsmed],T_sept_dec[[#This Row],[CléRéseau-Rize horsmed]])","v":1},{"$f":"IF(COUNTIF(RIZE,T_sept_dec[[#This Row],[Secteur organisateur]]),\"Rize_\"&T_sept_dec[[#This Row],[Enseignant référent (Nom Prénom)]],\"\")","v":"Rize_CINQUANTE"},{"$f":"1/COUNTIF(T_sept_dec[CléRize],T_sept_dec[[#This Row],[CléRize]])","v":1},{"$f":"IF(COUNTIF(Total,T_sept_dec[[#This Row],[Secteur organisateur]]),\"Total_\"&T_sept_dec[[#This Row],[Enseignant référent (Nom Prénom)]],\"\")","v":"Total_CINQUANTE"},{"$f":"1/COUNTIF(T_sept_dec[cléTotal],T_sept_dec[[#This Row],[cléTotal]])","v":1}]
["2017-11-28","PAC-BUS",null,"Saint Exupéry","cp","CINQUANTECINQ",26,"Hors les murs","Visite découverte",null,null,{"$f":"IF(COUNTIF(Maternelle,E7)=1,listes!$T$1,IF(COUNTIF(Elémentaire,E7)=1,listes!$U$1,IF(COUNTIF(Collège,E7)=1,listes!$V$1,IF(COUNTIF(Lycée,E7)=1,listes!$W$1,\"\"))))","v":"Elémentaire"},{"$f":"VLOOKUP(T_sept_dec[[#This Row],[Etablissement scolaire]],Regroupements!$T:$U,2,FALSE)","v":"Saint Jean"},"PAC-BUS",{"$f":"T_sept_dec[[#This Row],[Etablissement accueillant]]&\"-\"&T_sept_dec[[#This Row],[Enseignant référent (Nom Prénom)]]","v":"PAC-BUS-CINQUANTECINQ"},{"$f":"1/COUNTIF(T_sept_dec[CléEtablissement],T_sept_dec[[#This Row],[CléEtablissement]])","v":1},{"$f":"IF(COUNTIF(Réseau,T_sept_dec[[#This Row],[Secteur organisateur]]),\"Réseau_\"&T_sept_dec[[#This Row],[Enseignant référent (Nom Prénom)]], IF(COUNTIF(Rizehorsmed,T_sept_dec[[#This Row],[Secteur organisateur]]),\"Rizehorsmed_\"&T_sept_dec[[#This Row],[Enseignant référent (Nom Prénom)]], T_sept_dec[[#This Row],[Secteur organisateur]]&\"_\"&T_sept_dec[[#This Row],[Enseignant référent (Nom Prénom)]]))","v":"Réseau_CINQUANTECINQ"},{"$f":"1/COUNTIF(T_sept_dec[CléRéseau-Rize horsmed],T_sept_dec[[#This Row],[CléRéseau-Rize horsmed]])","v":1},{"$f":"IF(COUNTIF(RIZE,T_sept_dec[[#This Row],[Secteur organisateur]]),\"Rize_\"&T_sept_dec[[#This Row],[Enseignant référent (Nom Prénom)]],\"\")","v":""},{"$f":"1/COUNTIF(T_sept_dec[CléRize],T_sept_dec[[#This Row],[CléRize]])","v":9.8039215686274508E-3},{"$f":"IF(COUNTIF(Total,T_sept_dec[[#This Row],[Secteur organisateur]]),\"Total_\"&T_sept_dec[[#This Row],[Enseignant référent (Nom Prénom)]],\"\")","v":"Total_CINQUANTECINQ"},{"$f":"1/COUNTIF(T_sept_dec[cléTotal],T_sept_dec[[#This Row],[cléTotal]])","v":1}]
["2017-10-20","EMM",null,"Jules Ferry","cm2","CINQUANTEDEUX",24,"In situ","Coder avec Scratch",null,null,{"$f":"IF(COUNTIF(Maternelle,E8)=1,listes!$T$1,IF(COUNTIF(Elémentaire,E8)=1,listes!$U$1,IF(COUNTIF(Collège,E8)=1,listes!$V$1,IF(COUNTIF(Lycée,E8)=1,listes!$W$1,\"\"))))","v":"Elémentaire"},{"$f":"VLOOKUP(T_sept_dec[[#This Row],[Etablissement scolaire]],Regroupements!$T:$U,2,FALSE)","v":"Cusset-Bonnevay"},"MLIS",{"$f":"T_sept_dec[[#This Row],[Etablissement accueillant]]&\"-\"&T_sept_dec[[#This Row],[Enseignant référent (Nom Prénom)]]","v":"MLIS-CINQUANTEDEUX"},{"$f":"1/COUNTIF(T_sept_dec[CléEtablissement],T_sept_dec[[#This Row],[CléEtablissement]])","v":1},{"$f":"IF(COUNTIF(Réseau,T_sept_dec[[#This Row],[Secteur organisateur]]),\"Réseau_\"&T_sept_dec[[#This Row],[Enseignant référent (Nom Prénom)]], IF(COUNTIF(Rizehorsmed,T_sept_dec[[#This Row],[Secteur organisateur]]),\"Rizehorsmed_\"&T_sept_dec[[#This Row],[Enseignant référent (Nom Prénom)]], T_sept_dec[[#This Row],[Secteur organisateur]]&\"_\"&T_sept_dec[[#This Row],[Enseignant référent (Nom Prénom)]]))","v":"Réseau_CINQUANTEDEUX"},{"$f":"1/COUNTIF(T_sept_dec[CléRéseau-Rize horsmed],T_sept_dec[[#This Row],[CléRéseau-Rize horsmed]])","v":1},{"$f":"IF(COUNTIF(RIZE,T_sept_dec[[#This Row],[Secteur organisateur]]),\"Rize_\"&T_sept_dec[[#This Row],[Enseignant référent (Nom Prénom)]],\"\")","v":""},{"$f":"1/COUNTIF(T_sept_dec[CléRize],T_sept_dec[[#This Row],[CléRize]])","v":9.8039215686274508E-3},{"$f":"IF(COUNTIF(Total,T_sept_dec[[#This Row],[Secteur organisateur]]),\"Total_\"&T_sept_dec[[#This Row],[Enseignant référent (Nom Prénom)]],\"\")","v":"Total_CINQUANTEDEUX"},{"$f":"1/COUNTIF(T_sept_dec[cléTotal],T_sept_dec[[#This Row],[cléTotal]])","v":1}]
["2017-11-28","ARTO",null,"Croix-Luizet","ce2","CINQUANTEETUN",28,"In situ","Et si on parlait d'art ?",null,null,{"$f":"IF(COUNTIF(Maternelle,E9)=1,listes!$T$1,IF(COUNTIF(Elémentaire,E9)=1,listes!$U$1,IF(COUNTIF(Collège,E9)=1,listes!$V$1,IF(COUNTIF(Lycée,E9)=1,listes!$W$1,\"\"))))","v":"Elémentaire"},{"$f":"VLOOKUP(T_sept_dec[[#This Row],[Etablissement scolaire]],Regroupements!$T:$U,2,FALSE)","v":"Buers-Croix-Luizet"},"MLIS",{"$f":"T_sept_dec[[#This Row],[Etablissement accueillant]]&\"-\"&T_sept_dec[[#This Row],[Enseignant référent (Nom Prénom)]]","v":"MLIS-CINQUANTEETUN"},{"$f":"1/COUNTIF(T_sept_dec[CléEtablissement],T_sept_dec[[#This Row],[CléEtablissement]])","v":1},{"$f":"IF(COUNTIF(Réseau,T_sept_dec[[#This Row],[Secteur organisateur]]),\"Réseau_\"&T_sept_dec[[#This Row],[Enseignant référent (Nom Prénom)]], IF(COUNTIF(Rizehorsmed,T_sept_dec[[#This Row],[Secteur organisateur]]),\"Rizehorsmed_\"&T_sept_dec[[#This Row],[Enseignant référent (Nom Prénom)]], T_sept_dec[[#This Row],[Secteur organisateur]]&\"_\"&T_sept_dec[[#This Row],[Enseignant référent (Nom Prénom)]]))","v":"Réseau_CINQUANTEETUN"},{"$f":"1/COUNTIF(T_sept_dec[CléRéseau-Rize horsmed],T_sept_dec[[#This Row],[CléRéseau-Rize horsmed]])","v":1},{"$f":"IF(COUNTIF(RIZE,T_sept_dec[[#This Row],[Secteur organisateur]]),\"Rize_\"&T_sept_dec[[#This Row],[Enseignant référent (Nom Prénom)]],\"\")","v":""},{"$f":"1/COUNTIF(T_sept_dec[CléRize],T_sept_dec[[#This Row],[CléRize]])","v":9.8039215686274508E-3},{"$f":"IF(COUNTIF(Total,T_sept_dec[[#This Row],[Secteur organisateur]]),\"Total_\"&T_sept_dec[[#This Row],[Enseignant référent (Nom Prénom)]],\"\")","v":"Total_CINQUANTEETUN"},{"$f":"1/COUNTIF(T_sept_dec[cléTotal],T_sept_dec[[#This Row],[cléTotal]])","v":1}]
["2017-12-12","MLIS J",null,"Jules Guesde","ULIS (école)","CINQUANTEHUIT",11,"In situ","Visite à la carte",null,null,{"$f":"IF(COUNTIF(Maternelle,E10)=1,listes!$T$1,IF(COUNTIF(Elémentaire,E10)=1,listes!$U$1,IF(COUNTIF(Collège,E10)=1,listes!$V$1,IF(COUNTIF(Lycée,E10)=1,listes!$W$1,\"\"))))","v":"Elémentaire"},{"$f":"VLOOKUP(T_sept_dec[[#This Row],[Etablissement scolaire]],Regroupements!$T:$U,2,FALSE)","v":"Cyprian-les-Brosses"},"MLIS",{"$f":"T_sept_dec[[#This Row],[Etablissement accueillant]]&\"-\"&T_sept_dec[[#This Row],[Enseignant référent (Nom Prénom)]]","v":"MLIS-CINQUANTEHUIT"},{"$f":"1/COUNTIF(T_sept_dec[CléEtablissement],T_sept_dec[[#This Row],[CléEtablissement]])","v":0.5},{"$f":"IF(COUNTIF(Réseau,T_sept_dec[[#This Row],[Secteur organisateur]]),\"Réseau_\"&T_sept_dec[[#This Row],[Enseignant référent (Nom Prénom)]], IF(COUNTIF(Rizehorsmed,T_sept_dec[[#This Row],[Secteur organisateur]]),\"Rizehorsmed_\"&T_sept_dec[[#This Row],[Enseignant référent (Nom Prénom)]], T_sept_dec[[#This Row],[Secteur organisateur]]&\"_\"&T_sept_dec[[#This Row],[Enseignant référent (Nom Prénom)]]))","v":"Réseau_CINQUANTEHUIT"},{"$f":"1/COUNTIF(T_sept_dec[CléRéseau-Rize horsmed],T_sept_dec[[#This Row],[CléRéseau-Rize horsmed]])","v":0.5},{"$f":"IF(COUNTIF(RIZE,T_sept_dec[[#This Row],[Secteur organisateur]]),\"Rize_\"&T_sept_dec[[#This Row],[Enseignant référent (Nom Prénom)]],\"\")","v":""},{"$f":"1/COUNTIF(T_sept_dec[CléRize],T_sept_dec[[#This Row],[CléRize]])","v":9.8039215686274508E-3},{"$f":"IF(COUNTIF(Total,T_sept_dec[[#This Row],[Secteur organisateur]]),\"Total_\"&T_sept_dec[[#This Row],[Enseignant référent (Nom Prénom)]],\"\")","v":"Total_CINQUANTEHUIT"},{"$f":"1/COUNTIF(T_sept_dec[cléTotal],T_sept_dec[[#This Row],[cléTotal]])","v":0.5}]
["2017-12-12","ARTO",null,"Jules Guesde","ULIS (école)","CINQUANTEHUIT",11,"In situ","Et si on parlait d'art ?",null,null,{"$f":"IF(COUNTIF(Maternelle,E11)=1,listes!$T$1,IF(COUNTIF(Elémentaire,E11)=1,listes!$U$1,IF(COUNTIF(Collège,E11)=1,listes!$V$1,IF(COUNTIF(Lycée,E11)=1,listes!$W$1,\"\"))))","v":"Elémentaire"},{"$f":"VLOOKUP(T_sept_dec[[#This Row],[Etablissement scolaire]],Regroupements!$T:$U,2,FALSE)","v":"Cyprian-les-Brosses"},"MLIS",{"$f":"T_sept_dec[[#This Row],[Etablissement accueillant]]&\"-\"&T_sept_dec[[#This Row],[Enseignant référent (Nom Prénom)]]","v":"MLIS-CINQUANTEHUIT"},{"$f":"1/COUNTIF(T_sept_dec[CléEtablissement],T_sept_dec[[#This Row],[CléEtablissement]])","v":0.5},{"$f":"IF(COUNTIF(Réseau,T_sept_dec[[#This Row],[Secteur organisateur]]),\"Réseau_\"&T_sept_dec[[#This Row],[Enseignant référent (Nom Prénom)]], IF(COUNTIF(Rizehorsmed,T_sept_dec[[#This Row],[Secteur organisateur]]),\"Rizehorsmed_\"&T_sept_dec[[#This Row],[Enseignant référent (Nom Prénom)]], T_sept_dec[[#This Row],[Secteur organisateur]]&\"_\"&T_sept_dec[[#This Row],[Enseignant référent (Nom Prénom)]]))","v":"Réseau_CINQUANTEHUIT"},{"$f":"1/COUNTIF(T_sept_dec[CléRéseau-Rize horsmed],T_sept_dec[[#This Row],[CléRéseau-Rize horsmed]])","v":0.5},{"$f":"IF(COUNTIF(RIZE,T_sept_dec[[#This Row],[Secteur organisateur]]),\"Rize_\"&T_sept_dec[[#This Row],[Enseignant référent (Nom Prénom)]],\"\")","v":""},{"$f":"1/COUNTIF(T_sept_dec[CléRize],T_sept_dec[[#This Row],[CléRize]])","v":9.8039215686274508E-3},{"$f":"IF(COUNTIF(Total,T_sept_dec[[#This Row],[Secteur organisateur]]),\"Total_\"&T_sept_dec[[#This Row],[Enseignant référent (Nom Prénom)]],\"\")","v":"Total_CINQUANTEHUIT"},{"$f":"1/COUNTIF(T_sept_dec[cléTotal],T_sept_dec[[#This Row],[cléTotal]])","v":0.5}]
["2017-09-22","RIZE MED",null,"Emile Zola","cm1","CINQUANTENEUF",25,"In situ","Visite couplée",null,null,{"$f":"IF(COUNTIF(Maternelle,E12)=1,listes!$T$1,IF(COUNTIF(Elémentaire,E12)=1,listes!$U$1,IF(COUNTIF(Collège,E12)=1,listes!$V$1,IF(COUNTIF(Lycée,E12)=1,listes!$W$1,\"\"))))","v":"Elémentaire"},{"$f":"VLOOKUP(T_sept_dec[[#This Row],[Etablissement scolaire]],Regroupements!$T:$U,2,FALSE)","v":"Gratte-ciel-Dedieu-Charmettes"},"RIZE",{"$f":"T_sept_dec[[#This Row],[Etablissement accueillant]]&\"-\"&T_sept_dec[[#This Row],[Enseignant référent (Nom Prénom)]]","v":"RIZE-CINQUANTENEUF"},{"$f":"1/COUNTIF(T_sept_dec[CléEtablissement],T_sept_dec[[#This Row],[CléEtablissement]])","v":1},{"$f":"IF(COUNTIF(Réseau,T_sept_dec[[#This Row],[Secteur organisateur]]),\"Réseau_\"&T_sept_dec[[#This Row],[Enseignant référent (Nom Prénom)]], IF(COUNTIF(Rizehorsmed,T_sept_dec[[#This Row],[Secteur organisateur]]),\"Rizehorsmed_\"&T_sept_dec[[#This Row],[Enseignant référent (Nom Prénom)]], T_sept_dec[[#This Row],[Secteur organisateur]]&\"_\"&T_sept_dec[[#This Row],[Enseignant référent (Nom Prénom)]]))","v":"Réseau_CINQUANTENEUF"},{"$f":"1/COUNTIF(T_sept_dec[CléRéseau-Rize horsmed],T_sept_dec[[#This Row],[CléRéseau-Rize horsmed]])","v":1},{"$f":"IF(COUNTIF(RIZE,T_sept_dec[[#This Row],[Secteur organisateur]]),\"Rize_\"&T_sept_dec[[#This Row],[Enseignant référent (Nom Prénom)]],\"\")","v":"Rize_CINQUANTENEUF"},{"$f":"1/COUNTIF(T_sept_dec[CléRize],T_sept_dec[[#This Row],[CléRize]])","v":1},{"$f":"IF(COUNTIF(Total,T_sept_dec[[#This Row],[Secteur organisateur]]),\"Total_\"&T_sept_dec[[#This Row],[Enseignant référent (Nom Prénom)]],\"\")","v":"Total_CINQUANTENEUF"},{"$f":"1/COUNTIF(T_sept_dec[cléTotal],T_sept_dec[[#This Row],[cléTotal]])","v":1}]
["2017-11-15","EMM",null,"Jean Zay","cm2","CINQUANTEQUATRE",21,"In situ","Coder avec Scratch",null,null,{"$f":"IF(COUNTIF(Maternelle,E13)=1,listes!$T$1,IF(COUNTIF(Elémentaire,E13)=1,listes!$U$1,IF(COUNTIF(Collège,E13)=1,listes!$V$1,IF(COUNTIF(Lycée,E13)=1,listes!$W$1,\"\"))))","v":"Elémentaire"},{"$f":"VLOOKUP(T_sept_dec[[#This Row],[Etablissement scolaire]],Regroupements!$T:$U,2,FALSE)","v":"Gratte-ciel-Dedieu-Charmettes"},"MLIS",{"$f":"T_sept_dec[[#This Row],[Etablissement accueillant]]&\"-\"&T_sept_dec[[#This Row],[Enseignant référent (Nom Prénom)]]","v":"MLIS-CINQUANTEQUATRE"},{"$f":"1/COUNTIF(T_sept_dec[CléEtablissement],T_sept_dec[[#This Row],[CléEtablissement]])","v":1},{"$f":"IF(COUNTIF(Réseau,T_sept_dec[[#This Row],[Secteur organisateur]]),\"Réseau_\"&T_sept_dec[[#This Row],[Enseignant référent (Nom Prénom)]], IF(COUNTIF(Rizehorsmed,T_sept_dec[[#This Row],[Secteur organisateur]]),\"Rizehorsmed_\"&T_sept_dec[[#This Row],[Enseignant référent (Nom Prénom)]], T_sept_dec[[#This Row],[Secteur organisateur]]&\"_\"&T_sept_dec[[#This Row],[Enseignant référent (Nom Prénom)]]))","v":"Réseau_CINQUANTEQUATRE"},{"$f":"1/COUNTIF(T_sept_dec[CléRéseau-Rize horsmed],T_sept_dec[[#This Row],[CléRéseau-Rize horsmed]])","v":1},{"$f":"IF(COUNTIF(RIZE,T_sept_dec[[#This Row],[Secteur organisateur]]),\"Rize_\"&T_sept_dec[[#This Row],[Enseignant référent (Nom Prénom)]],\"\")","v":""},{"$f":"1/COUNTIF(T_sept_dec[CléRize],T_sept_dec[[#This Row],[CléRize]])","v":9.8039215686274508E-3},{"$f":"IF(COUNTIF(Total,T_sept_dec[[#This Row],[Secteur organisateur]]),\"Total_\"&T_sept_dec[[#This Row],[Enseignant référent (Nom Prénom)]],\"\")","v":"Total_CINQUANTEQUATRE"},{"$f":"1/COUNTIF(T_sept_dec[cléTotal],T_sept_dec[[#This Row],[cléTotal]])","v":1}]
["2017-11-30","RIZE VALO",null,"Edouard Herriot","cm1","CINQUANTESEPT",27,"Hors les murs","Exploration Gratte-Ciel",null,null,{"$f":"IF(COUNTIF(Maternelle,E14)=1,listes!$T$1,IF(COUNTIF(Elémentaire,E14)=1,listes!$U$1,IF(COUNTIF(Collège,E14)=1,listes!$V$1,IF(COUNTIF(Lycée,E14)=1,listes!$W$1,\"\"))))","v":"Elémentaire"},{"$f":"VLOOKUP(T_sept_dec[[#This Row],[Etablissement scolaire]],Regroupements!$T:$U,2,FALSE)","v":"Gratte-ciel-Dedieu-Charmettes"},"RIZE",{"$f":"T_sept_dec[[#This Row],[Etablissement accueillant]]&\"-\"&T_sept_dec[[#This Row],[Enseignant référent (Nom Prénom)]]","v":"RIZE-CINQUANTESEPT"},{"$f":"1/COUNTIF(T_sept_dec[CléEtablissement],T_sept_dec[[#This Row],[CléEtablissement]])","v":1},{"$f":"IF(COUNTIF(Réseau,T_sept_dec[[#This Row],[Secteur organisateur]]),\"Réseau_\"&T_sept_dec[[#This Row],[Enseignant référent (Nom Prénom)]], IF(COUNTIF(Rizehorsmed,T_sept_dec[[#This Row],[Secteur organisateur]]),\"Rizehorsmed_\"&T_sept_dec[[#This Row],[Enseignant référent (Nom Prénom)]], T_sept_dec[[#This Row],[Secteur organisateur]]&\"_\"&T_sept_dec[[#This Row],[Enseignant référent (Nom Prénom)]]))","v":"Rizehorsmed_CINQUANTESEPT"},{"$f":"1/COUNTIF(T_sept_dec[CléRéseau-Rize horsmed],T_sept_dec[[#This Row],[CléRéseau-Rize horsmed]])","v":1},{"$f":"IF(COUNTIF(RIZE,T_sept_dec[[#This Row],[Secteur organisateur]]),\"Rize_\"&T_sept_dec[[#This Row],[Enseignant référent (Nom Prénom)]],\"\")","v":"Rize_CINQUANTESEPT"},{"$f":"1/COUNTIF(T_sept_dec[CléRize],T_sept_dec[[#This Row],[CléRize]])","v":1},{"$f":"IF(COUNTIF(Total,T_sept_dec[[#This Row],[Secteur organisateur]]),\"Total_\"&T_sept_dec[[#This Row],[Enseignant référent (Nom Prénom)]],\"\")","v":"Total_CINQUANTESEPT"},{"$f":"1/COUNTIF(T_sept_dec[cléTotal],T_sept_dec[[#This Row],[cléTotal]])","v":1}]
["2017-10-13","RIZE VALO",null,"Albert Camus","cm1/cm2","CINQUANTESIX",23,"In situ","Ateliers",null,null,{"$f":"IF(COUNTIF(Maternelle,E15)=1,listes!$T$1,IF(COUNTIF(Elémentaire,E15)=1,listes!$U$1,IF(COUNTIF(Collège,E15)=1,listes!$V$1,IF(COUNTIF(Lycée,E15)=1,listes!$W$1,\"\"))))","v":"Elémentaire"},{"$f":"VLOOKUP(T_sept_dec[[#This Row],[Etablissement scolaire]],Regroupements!$T:$U,2,FALSE)","v":"Cyprian-les-Brosses"},"RIZE",{"$f":"T_sept_dec[[#This Row],[Etablissement accueillant]]&\"-\"&T_sept_dec[[#This Row],[Enseignant référent (Nom Prénom)]]","v":"RIZE-CINQUANTESIX"},{"$f":"1/COUNTIF(T_sept_dec[CléEtablissement],T_sept_dec[[#This Row],[CléEtablissement]])","v":1},{"$f":"IF(COUNTIF(Réseau,T_sept_dec[[#This Row],[Secteur organisateur]]),\"Réseau_\"&T_sept_dec[[#This Row],[Enseignant référent (Nom Prénom)]], IF(COUNTIF(Rizehorsmed,T_sept_dec[[#This Row],[Secteur organisateur]]),\"Rizehorsmed_\"&T_sept_dec[[#This Row],[Enseignant référent (Nom Prénom)]], T_sept_dec[[#This Row],[Secteur organisateur]]&\"_\"&T_sept_dec[[#This Row],[Enseignant référent (Nom Prénom)]]))","v":"Rizehorsmed_CINQUANTESIX"},{"$f":"1/COUNTIF(T_sept_dec[CléRéseau-Rize horsmed],T_sept_dec[[#This Row],[CléRéseau-Rize horsmed]])","v":1},{"$f":"IF(COUNTIF(RIZE,T_sept_dec[[#This Row],[Secteur organisateur]]),\"Rize_\"&T_sept_dec[[#This Row],[Enseignant référent (Nom Prénom)]],\"\")","v":"Rize_CINQUANTESIX"},{"$f":"1/COUNTIF(T_sept_dec[CléRize],T_sept_dec[[#This Row],[CléRize]])","v":1},{"$f":"IF(COUNTIF(Total,T_sept_dec[[#This Row],[Secteur organisateur]]),\"Total_\"&T_sept_dec[[#This Row],[Enseignant référent (Nom Prénom)]],\"\")","v":"Total_CINQUANTESIX"},{"$f":"1/COUNTIF(T_sept_dec[cléTotal],T_sept_dec[[#This Row],[cléTotal]])","v":1}]
["2017-11-24","FDL",null,"Jules Guesde","cm1/cm2","CINQUANTETROIS",24,"In situ","Projet FDL",null,null,{"$f":"IF(COUNTIF(Maternelle,E16)=1,listes!$T$1,IF(COUNTIF(Elémentaire,E16)=1,listes!$U$1,IF(COUNTIF(Collège,E16)=1,listes!$V$1,IF(COUNTIF(Lycée,E16)=1,listes!$W$1,\"\"))))","v":"Elémentaire"},{"$f":"VLOOKUP(T_sept_dec[[#This Row],[Etablissement scolaire]],Regroupements!$T:$U,2,FALSE)","v":"Cyprian-les-Brosses"},"FDL",{"$f":"T_sept_dec[[#This Row],[Etablissement accueillant]]&\"-\"&T_sept_dec[[#This Row],[Enseignant référent (Nom Prénom)]]","v":"FDL-CINQUANTETROIS"},{"$f":"1/COUNTIF(T_sept_dec[CléEtablissement],T_sept_dec[[#This Row],[CléEtablissement]])","v":1},{"$f":"IF(COUNTIF(Réseau,T_sept_dec[[#This Row],[Secteur organisateur]]),\"Réseau_\"&T_sept_dec[[#This Row],[Enseignant référent (Nom Prénom)]], IF(COUNTIF(Rizehorsmed,T_sept_dec[[#This Row],[Secteur organisateur]]),\"Rizehorsmed_\"&T_sept_dec[[#This Row],[Enseignant référent (Nom Prénom)]], T_sept_dec[[#This Row],[Secteur organisateur]]&\"_\"&T_sept_dec[[#This Row],[Enseignant référent (Nom Prénom)]]))","v":"FDL_CINQUANTETROIS"},{"$f":"1/COUNTIF(T_sept_dec[CléRéseau-Rize horsmed],T_sept_dec[[#This Row],[CléRéseau-Rize horsmed]])","v":1},{"$f":"IF(COUNTIF(RIZE,T_sept_dec[[#This Row],[Secteur organisateur]]),\"Rize_\"&T_sept_dec[[#This Row],[Enseignant référent (Nom Prénom)]],\"\")","v":""},{"$f":"1/COUNTIF(T_sept_dec[CléRize],T_sept_dec[[#This Row],[CléRize]])","v":9.8039215686274508E-3},{"$f":"IF(COUNTIF(Total,T_sept_dec[[#This Row],[Secteur organisateur]]),\"Total_\"&T_sept_dec[[#This Row],[Enseignant référent (Nom Prénom)]],\"\")","v":"Total_CINQUANTETROIS"},{"$f":"1/COUNTIF(T_sept_dec[cléTotal],T_sept_dec[[#This Row],[cléTotal]])","v":1}]
["2017-12-05","MLIS J",null,"Collège des Gratte-Ciel (Môrice Leroux)","6°","DEUX",25,"In situ","Visite découverte",null,null,{"$f":"IF(COUNTIF(Maternelle,E17)=1,listes!$T$1,IF(COUNTIF(Elémentaire,E17)=1,listes!$U$1,IF(COUNTIF(Collège,E17)=1,listes!$V$1,IF(COUNTIF(Lycée,E17)=1,listes!$W$1,\"\"))))","v":"Collège"},{"$f":"VLOOKUP(T_sept_dec[[#This Row],[Etablissement scolaire]],Regroupements!$T:$U,2,FALSE)","v":"Gratte-ciel-Dedieu-Charmettes"},"MLIS",{"$f":"T_sept_dec[[#This Row],[Etablissement accueillant]]&\"-\"&T_sept_dec[[#This Row],[Enseignant référent (Nom Prénom)]]","v":"MLIS-DEUX"},{"$f":"1/COUNTIF(T_sept_dec[CléEtablissement],T_sept_dec[[#This Row],[CléEtablissement]])","v":0.5},{"$f":"IF(COUNTIF(Réseau,T_sept_dec[[#This Row],[Secteur organisateur]]),\"Réseau_\"&T_sept_dec[[#This Row],[Enseignant référent (Nom Prénom)]], IF(COUNTIF(Rizehorsmed,T_sept_dec[[#This Row],[Secteur organisateur]]),\"Rizehorsmed_\"&T_sept_dec[[#This Row],[Enseignant référent (Nom Prénom)]], T_sept_dec[[#This Row],[Secteur organisateur]]&\"_\"&T_sept_dec[[#This Row],[Enseignant référent (Nom Prénom)]]))","v":"Réseau_DEUX"},{"$f":"1/COUNTIF(T_sept_dec[CléRéseau-Rize horsmed],T_sept_dec[[#This Row],[CléRéseau-Rize horsmed]])","v":0.5},{"$f":"IF(COUNTIF(RIZE,T_sept_dec[[#This Row],[Secteur organisateur]]),\"Rize_\"&T_sept_dec[[#This Row],[Enseignant référent (Nom Prénom)]],\"\")","v":""},{"$f":"1/COUNTIF(T_sept_dec[CléRize],T_sept_dec[[#This Row],[CléRize]])","v":9.8039215686274508E-3},{"$f":"IF(COUNTIF(Total,T_sept_dec[[#This Row],[Secteur organisateur]]),\"Total_\"&T_sept_dec[[#This Row],[Enseignant référent (Nom Prénom)]],\"\")","v":"Total_DEUX"},{"$f":"1/COUNTIF(T_sept_dec[cléTotal],T_sept_dec[[#This Row],[cléTotal]])","v":0.5}]
["2017-12-20","MLIS J",null,"Collège des Gratte-Ciel (Môrice Leroux)","6°","DEUX",22,"In situ","Visite découverte",null,null,{"$f":"IF(COUNTIF(Maternelle,E18)=1,listes!$T$1,IF(COUNTIF(Elémentaire,E18)=1,listes!$U$1,IF(COUNTIF(Collège,E18)=1,listes!$V$1,IF(COUNTIF(Lycée,E18)=1,listes!$W$1,\"\"))))","v":"Collège"},{"$f":"VLOOKUP(T_sept_dec[[#This Row],[Etablissement scolaire]],Regroupements!$T:$U,2,FALSE)","v":"Gratte-ciel-Dedieu-Charmettes"},"MLIS",{"$f":"T_sept_dec[[#This Row],[Etablissement accueillant]]&\"-\"&T_sept_dec[[#This Row],[Enseignant référent (Nom Prénom)]]","v":"MLIS-DEUX"},{"$f":"1/COUNTIF(T_sept_dec[CléEtablissement],T_sept_dec[[#This Row],[CléEtablissement]])","v":0.5},{"$f":"IF(COUNTIF(Réseau,T_sept_dec[[#This Row],[Secteur organisateur]]),\"Réseau_\"&T_sept_dec[[#This Row],[Enseignant référent (Nom Prénom)]], IF(COUNTIF(Rizehorsmed,T_sept_dec[[#This Row],[Secteur organisateur]]),\"Rizehorsmed_\"&T_sept_dec[[#This Row],[Enseignant référent (Nom Prénom)]], T_sept_dec[[#This Row],[Secteur organisateur]]&\"_\"&T_sept_dec[[#This Row],[Enseignant référent (Nom Prénom)]]))","v":"Réseau_DEUX"},{"$f":"1/COUNTIF(T_sept_dec[CléRéseau-Rize horsmed],T_sept_dec[[#This Row],[CléRéseau-Rize horsmed]])","v":0.5},{"$f":"IF(COUNTIF(RIZE,T_sept_dec[[#This Row],[Secteur organisateur]]),\"Rize_\"&T_sept_dec[[#This Row],[Enseignant référent (Nom Prénom)]],\"\")","v":""},{"$f":"1/COUNTIF(T_sept_dec[CléRize],T_sept_dec[[#This Row],[CléRize]])","v":9.8039215686274508E-3},{"$f":"IF(COUNTIF(Total,T_sept_dec[[#This Row],[Secteur organisateur]]),\"Total_\"&T_sept_dec[[#This Row],[Enseignant référent (Nom Prénom)]],\"\")","v":"Total_DEUX"},{"$f":"1/COUNTIF(T_sept_dec[cléTotal],T_sept_dec[[#This Row],[cléTotal]])","v":0.5}]
["2017-12-12","PAC-BUS",null,"Jules Guesde","cp","DIX",26,"Hors les murs","Visite découverte",null,null,{"$f":"IF(COUNTIF(Maternelle,E19)=1,listes!$T$1,IF(COUNTIF(Elémentaire,E19)=1,listes!$U$1,IF(COUNTIF(Collège,E19)=1,listes!$V$1,IF(COUNTIF(Lycée,E19)=1,listes!$W$1,\"\"))))","v":"Elémentaire"},{"$f":"VLOOKUP(T_sept_dec[[#This Row],[Etablissement scolaire]],Regroupements!$T:$U,2,FALSE)","v":"Cyprian-les-Brosses"},"PAC-BUS",{"$f":"T_sept_dec[[#This Row],[Etablissement accueillant]]&\"-\"&T_sept_dec[[#This Row],[Enseignant référent (Nom Prénom)]]","v":"PAC-BUS-DIX"},{"$f":"1/COUNTIF(T_sept_dec[CléEtablissement],T_sept_dec[[#This Row],[CléEtablissement]])","v":1},{"$f":"IF(COUNTIF(Réseau,T_sept_dec[[#This Row],[Secteur organisateur]]),\"Réseau_\"&T_sept_dec[[#This Row],[Enseignant référent (Nom Prénom)]], IF(COUNTIF(Rizehorsmed,T_sept_dec[[#This Row],[Secteur organisateur]]),\"Rizehorsmed_\"&T_sept_dec[[#This Row],[Enseignant référent (Nom Prénom)]], T_sept_dec[[#This Row],[Secteur organisateur]]&\"_\"&T_sept_dec[[#This Row],[Enseignant référent (Nom Prénom)]]))","v":"Réseau_DIX"},{"$f":"1/COUNTIF(T_sept_dec[CléRéseau-Rize horsmed],T_sept_dec[[#This Row],[CléRéseau-Rize horsmed]])","v":1},{"$f":"IF(COUNTIF(RIZE,T_sept_dec[[#This Row],[Secteur organisateur]]),\"Rize_\"&T_sept_dec[[#This Row],[Enseignant référent (Nom Prénom)]],\"\")","v":""},{"$f":"1/COUNTIF(T_sept_dec[CléRize],T_sept_dec[[#This Row],[CléRize]])","v":9.8039215686274508E-3},{"$f":"IF(COUNTIF(Total,T_sept_dec[[#This Row],[Secteur organisateur]]),\"Total_\"&T_sept_dec[[#This Row],[Enseignant référent (Nom Prénom)]],\"\")","v":"Total_DIX"},{"$f":"1/COUNTIF(T_sept_dec[cléTotal],T_sept_dec[[#This Row],[cléTotal]])","v":1}]
["2017-12-07","MLIS J",null,"Jules Guesde","ce1/ce2","DIXHUIT",25,"In situ","Visite à la carte",null,null,{"$f":"IF(COUNTIF(Maternelle,E20)=1,listes!$T$1,IF(COUNTIF(Elémentaire,E20)=1,listes!$U$1,IF(COUNTIF(Collège,E20)=1,listes!$V$1,IF(COUNTIF(Lycée,E20)=1,listes!$W$1,\"\"))))","v":"Elémentaire"},{"$f":"VLOOKUP(T_sept_dec[[#This Row],[Etablissement scolaire]],Regroupements!$T:$U,2,FALSE)","v":"Cyprian-les-Brosses"},"MLIS",{"$f":"T_sept_dec[[#This Row],[Etablissement accueillant]]&\"-\"&T_sept_dec[[#This Row],[Enseignant référent (Nom Prénom)]]","v":"MLIS-DIXHUIT"},{"$f":"1/COUNTIF(T_sept_dec[CléEtablissement],T_sept_dec[[#This Row],[CléEtablissement]])","v":0.5},{"$f":"IF(COUNTIF(Réseau,T_sept_dec[[#This Row],[Secteur organisateur]]),\"Réseau_\"&T_sept_dec[[#This Row],[Enseignant référent (Nom Prénom)]], IF(COUNTIF(Rizehorsmed,T_sept_dec[[#This Row],[Secteur organisateur]]),\"Rizehorsmed_\"&T_sept_dec[[#This Row],[Enseignant référent (Nom Prénom)]], T_sept_dec[[#This Row],[Secteur organisateur]]&\"_\"&T_sept_dec[[#This Row],[Enseignant référent (Nom Prénom)]]))","v":"Réseau_DIXHUIT"},{"$f":"1/COUNTIF(T_sept_dec[CléRéseau-Rize horsmed],T_sept_dec[[#This Row],[CléRéseau-Rize horsmed]])","v":0.5},{"$f":"IF(COUNTIF(RIZE,T_sept_dec[[#This Row],[Secteur organisateur]]),\"Rize_\"&T_sept_dec[[#This Row],[Enseignant référent (Nom Prénom)]],\"\")","v":""},{"$f":"1/COUNTIF(T_sept_dec[CléRize],T_sept_dec[[#This Row],[CléRize]])","v":9.8039215686274508E-3},{"$f":"IF(COUNTIF(Total,T_sept_dec[[#This Row],[Secteur organisateur]]),\"Total_\"&T_sept_dec[[#This Row],[Enseignant référent (Nom Prénom)]],\"\")","v":"Total_DIXHUIT"},{"$f":"1/COUNTIF(T_sept_dec[cléTotal],T_sept_dec[[#This Row],[cléTotal]])","v":0.16666666666666666}]
["2017-12-07","ARTO",null,"Jules Guesde","ce1/ce2","DIXHUIT",24,"In situ","Et si on parlait d'art ?",null,null,{"$f":"IF(COUNTIF(Maternelle,E21)=1,listes!$T$1,IF(COUNTIF(Elémentaire,E21)=1,listes!$U$1,IF(COUNTIF(Collège,E21)=1,listes!$V$1,IF(COUNTIF(Lycée,E21)=1,listes!$W$1,\"\"))))","v":"Elémentaire"},{"$f":"VLOOKUP(T_sept_dec[[#This Row],[Etablissement scolaire]],Regroupements!$T:$U,2,FALSE)","v":"Cyprian-les-Brosses"},"MLIS",{"$f":"T_sept_dec[[#This Row],[Etablissement accueillant]]&\"-\"&T_sept_dec[[#This Row],[Enseignant référent (Nom Prénom)]]","v":"MLIS-DIXHUIT"},{"$f":"1/COUNTIF(T_sept_dec[CléEtablissement],T_sept_dec[[#This Row],[CléEtablissement]])","v":0.5},{"$f":"IF(COUNTIF(Réseau,T_sept_dec[[#This Row],[Secteur organisateur]]),\"Réseau_\"&T_sept_dec[[#This Row],[Enseignant référent (Nom Prénom)]], IF(COUNTIF(Rizehorsmed,T_sept_dec[[#This Row],[Secteur organisateur]]),\"Rizehorsmed_\"&T_sept_dec[[#This Row],[Enseignant référent (Nom Prénom)]], T_sept_dec[[#This Row],[Secteur organisateur]]&\"_\"&T_sept_dec[[#This Row],[Enseignant référent (Nom Prénom)]]))","v":"Réseau_DIXHUIT"},{"$f":"1/COUNTIF(T_sept_dec[CléRéseau-Rize horsmed],T_sept_dec[[#This Row],[CléRéseau-Rize horsmed]])","v":0.5},{"$f":"IF(COUNTIF(RIZE,T_sept_dec[[#This Row],[Secteur organisateur]]),\"Rize_\"&T_sept_dec[[#This Row],[Enseignant référent (Nom Prénom)]],\"\")","v":""},{"$f":"1/COUNTIF(T_sept_dec[CléRize],T_sept_dec[[#This Row],[CléRize]])","v":9.8039215686274508E-3},{"$f":"IF(COUNTIF(Total,T_sept_dec[[#This Row],[Secteur organisateur]]),\"Total_\"&T_sept_dec[[#This Row],[Enseignant référent (Nom Prénom)]],\"\")","v":"Total_DIXHUIT"},{"$f":"1/COUNTIF(T_sept_dec[cléTotal],T_sept_dec[[#This Row],[cléTotal]])","v":0.16666666666666666}]
["2017-11-20","FDL",null,"Jules Guesde","ce1/ce2","DIXHUIT",24,"In situ","Projet FDL",null,null,{"$f":"IF(COUNTIF(Maternelle,E22)=1,listes!$T$1,IF(COUNTIF(Elémentaire,E22)=1,listes!$U$1,IF(COUNTIF(Collège,E22)=1,listes!$V$1,IF(COUNTIF(Lycée,E22)=1,listes!$W$1,\"\"))))","v":"Elémentaire"},{"$f":"VLOOKUP(T_sept_dec[[#This Row],[Etablissement scolaire]],Regroupements!$T:$U,2,FALSE)","v":"Cyprian-les-Brosses"},"FDL",{"$f":"T_sept_dec[[#This Row],[Etablissement accueillant]]&\"-\"&T_sept_dec[[#This Row],[Enseignant référent (Nom Prénom)]]","v":"FDL-DIXHUIT"},{"$f":"1/COUNTIF(T_sept_dec[CléEtablissement],T_sept_dec[[#This Row],[CléEtablissement]])","v":0.25},{"$f":"IF(COUNTIF(Réseau,T_sept_dec[[#This Row],[Secteur organisateur]]),\"Réseau_\"&T_sept_dec[[#This Row],[Enseignant référent (Nom Prénom)]], IF(COUNTIF(Rizehorsmed,T_sept_dec[[#This Row],[Secteur organisateur]]),\"Rizehorsmed_\"&T_sept_dec[[#This Row],[Enseignant référent (Nom Prénom)]], T_sept_dec[[#This Row],[Secteur organisateur]]&\"_\"&T_sept_dec[[#This Row],[Enseignant référent (Nom Prénom)]]))","v":"FDL_DIXHUIT"},{"$f":"1/COUNTIF(T_sept_dec[CléRéseau-Rize horsmed],T_sept_dec[[#This Row],[CléRéseau-Rize horsmed]])","v":0.25},{"$f":"IF(COUNTIF(RIZE,T_sept_dec[[#This Row],[Secteur organisateur]]),\"Rize_\"&T_sept_dec[[#This Row],[Enseignant référent (Nom Prénom)]],\"\")","v":""},{"$f":"1/COUNTIF(T_sept_dec[CléRize],T_sept_dec[[#This Row],[CléRize]])","v":9.8039215686274508E-3},{"$f":"IF(COUNTIF(Total,T_sept_dec[[#This Row],[Secteur organisateur]]),\"Total_\"&T_sept_dec[[#This Row],[Enseignant référent (Nom Prénom)]],\"\")","v":"Total_DIXHUIT"},{"$f":"1/COUNTIF(T_sept_dec[cléTotal],T_sept_dec[[#This Row],[cléTotal]])","v":0.16666666666666666}]
["2017-11-21","FDL",null,"Jules Guesde","ce1/ce2","DIXHUIT",24,"In situ","Projet FDL",null,null,{"$f":"IF(COUNTIF(Maternelle,E23)=1,listes!$T$1,IF(COUNTIF(Elémentaire,E23)=1,listes!$U$1,IF(COUNTIF(Collège,E23)=1,listes!$V$1,IF(COUNTIF(Lycée,E23)=1,listes!$W$1,\"\"))))","v":"Elémentaire"},{"$f":"VLOOKUP(T_sept_dec[[#This Row],[Etablissement scolaire]],Regroupements!$T:$U,2,FALSE)","v":"Cyprian-les-Brosses"},"FDL",{"$f":"T_sept_dec[[#This Row],[Etablissement accueillant]]&\"-\"&T_sept_dec[[#This Row],[Enseignant référent (Nom Prénom)]]","v":"FDL-DIXHUIT"},{"$f":"1/COUNTIF(T_sept_dec[CléEtablissement],T_sept_dec[[#This Row],[CléEtablissement]])","v":0.25},{"$f":"IF(COUNTIF(Réseau,T_sept_dec[[#This Row],[Secteur organisateur]]),\"Réseau_\"&T_sept_dec[[#This Row],[Enseignant référent (Nom Prénom)]], IF(COUNTIF(Rizehorsmed,T_sept_dec[[#This Row],[Secteur organisateur]]),\"Rizehorsmed_\"&T_sept_dec[[#This Row],[Enseignant référent (Nom Prénom)]], T_sept_dec[[#This Row],[Secteur organisateur]]&\"_\"&T_sept_dec[[#This Row],[Enseignant référent (Nom Prénom)]]))","v":"FDL_DIXHUIT"},{"$f":"1/COUNTIF(T_sept_dec[CléRéseau-Rize horsmed],T_sept_dec[[#This Row],[CléRéseau-Rize horsmed]])","v":0.25},{"$f":"IF(COUNTIF(RIZE,T_sept_dec[[#This Row],[Secteur organisateur]]),\"Rize_\"&T_sept_dec[[#This Row],[Enseignant référent (Nom Prénom)]],\"\")","v":""},{"$f":"1/COUNTIF(T_sept_dec[CléRize],T_sept_dec[[#This Row],[CléRize]])","v":9.8039215686274508E-3},{"$f":"IF(COUNTIF(Total,T_sept_dec[[#This Row],[Secteur organisateur]]),\"Total_\"&T_sept_dec[[#This Row],[Enseignant référent (Nom Prénom)]],\"\")","v":"Total_DIXHUIT"},{"$f":"1/COUNTIF(T_sept_dec[cléTotal],T_sept_dec[[#This Row],[cléTotal]])","v":0.16666666666666666}]
["2017-11-22","FDL",null,"Jules Guesde","ce1/ce2","DIXHUIT",24,"In situ","Projet FDL",null,null,{"$f":"IF(COUNTIF(Maternelle,E24)=1,listes!$T$1,IF(COUNTIF(Elémentaire,E24)=1,listes!$U$1,IF(COUNTIF(Collège,E24)=1,listes!$V$1,IF(COUNTIF(Lycée,E24)=1,listes!$W$1,\"\"))))","v":"Elémentaire"},{"$f":"VLOOKUP(T_sept_dec[[#This Row],[Etablissement scolaire]],Regroupements!$T:$U,2,FALSE)","v":"Cyprian-les-Brosses"},"FDL",{"$f":"T_sept_dec[[#This Row],[Etablissement accueillant]]&\"-\"&T_sept_dec[[#This Row],[Enseignant référent (Nom Prénom)]]","v":"FDL-DIXHUIT"},{"$f":"1/COUNTIF(T_sept_dec[CléEtablissement],T_sept_dec[[#This Row],[CléEtablissement]])","v":0.25},{"$f":"IF(COUNTIF(Réseau,T_sept_dec[[#This Row],[Secteur organisateur]]),\"Réseau_\"&T_sept_dec[[#This Row],[Enseignant référent (Nom Prénom)]], IF(COUNTIF(Rizehorsmed,T_sept_dec[[#This Row],[Secteur organisateur]]),\"Rizehorsmed_\"&T_sept_dec[[#This Row],[Enseignant référent (Nom Prénom)]], T_sept_dec[[#This Row],[Secteur organisateur]]&\"_\"&T_sept_dec[[#This Row],[Enseignant référent (Nom Prénom)]]))","v":"FDL_DIXHUIT"},{"$f":"1/COUNTIF(T_sept_dec[CléRéseau-Rize horsmed],T_sept_dec[[#This Row],[CléRéseau-Rize horsmed]])","v":0.25},{"$f":"IF(COUNTIF(RIZE,T_sept_dec[[#This Row],[Secteur organisateur]]),\"Rize_\"&T_sept_dec[[#This Row],[Enseignant référent (Nom Prénom)]],\"\")","v":""},{"$f":"1/COUNTIF(T_sept_dec[CléRize],T_sept_dec[[#This Row],[CléRize]])","v":9.8039215686274508E-3},{"$f":"IF(COUNTIF(Total,T_sept_dec[[#This Row],[Secteur organisateur]]),\"Total_\"&T_sept_dec[[#This Row],[Enseignant référent (Nom Prénom)]],\"\")","v":"Total_DIXHUIT"},{"$f":"1/COUNTIF(T_sept_dec[cléTotal],T_sept_dec[[#This Row],[cléTotal]])","v":0.16666666666666666}]
["2017-11-23","FDL",null,"Jules Guesde","ce1/ce2","DIXHUIT",24,"In situ","Projet FDL",null,null,{"$f":"IF(COUNTIF(Maternelle,E25)=1,listes!$T$1,IF(COUNTIF(Elémentaire,E25)=1,listes!$U$1,IF(COUNTIF(Collège,E25)=1,listes!$V$1,IF(COUNTIF(Lycée,E25)=1,listes!$W$1,\"\"))))","v":"Elémentaire"},{"$f":"VLOOKUP(T_sept_dec[[#This Row],[Etablissement scolaire]],Regroupements!$T:$U,2,FALSE)","v":"Cyprian-les-Brosses"},"FDL",{"$f":"T_sept_dec[[#This Row],[Etablissement accueillant]]&\"-\"&T_sept_dec[[#This Row],[Enseignant référent (Nom Prénom)]]","v":"FDL-DIXHUIT"},{"$f":"1/COUNTIF(T_sept_dec[CléEtablissement],T_sept_dec[[#This Row],[CléEtablissement]])","v":0.25},{"$f":"IF(COUNTIF(Réseau,T_sept_dec[[#This Row],[Secteur organisateur]]),\"Réseau_\"&T_sept_dec[[#This Row],[Enseignant référent (Nom Prénom)]], IF(COUNTIF(Rizehorsmed,T_sept_dec[[#This Row],[Secteur organisateur]]),\"Rizehorsmed_\"&T_sept_dec[[#This Row],[Enseignant référent (Nom Prénom)]], T_sept_dec[[#This Row],[Secteur organisateur]]&\"_\"&T_sept_dec[[#This Row],[Enseignant référent (Nom Prénom)]]))","v":"FDL_DIXHUIT"},{"$f":"1/COUNTIF(T_sept_dec[CléRéseau-Rize horsmed],T_sept_dec[[#This Row],[CléRéseau-Rize horsmed]])","v":0.25},{"$f":"IF(COUNTIF(RIZE,T_sept_dec[[#This Row],[Secteur organisateur]]),\"Rize_\"&T_sept_dec[[#This Row],[Enseignant référent (Nom Prénom)]],\"\")","v":""},{"$f":"1/COUNTIF(T_sept_dec[CléRize],T_sept_dec[[#This Row],[CléRize]])","v":9.8039215686274508E-3},{"$f":"IF(COUNTIF(Total,T_sept_dec[[#This Row],[Secteur organisateur]]),\"Total_\"&T_sept_dec[[#This Row],[Enseignant référent (Nom Prénom)]],\"\")","v":"Total_DIXHUIT"},{"$f":"1/COUNTIF(T_sept_dec[cléTotal],T_sept_dec[[#This Row],[cléTotal]])","v":0.16666666666666666}]
["2017-12-05","MTK",null,"Lakanal","cp","DIXNEUF",26,"In situ","Visite découverte",null,null,{"$f":"IF(COUNTIF(Maternelle,E26)=1,listes!$T$1,IF(COUNTIF(Elémentaire,E26)=1,listes!$U$1,IF(COUNTIF(Collège,E26)=1,listes!$V$1,IF(COUNTIF(Lycée,E26)=1,listes!$W$1,\"\"))))","v":"Elémentaire"},{"$f":"VLOOKUP(T_sept_dec[[#This Row],[Etablissement scolaire]],Regroupements!$T:$U,2,FALSE)","v":"Charpennes-Tonkin"},"TONKIN",{"$f":"T_sept_dec[[#This Row],[Etablissement accueillant]]&\"-\"&T_sept_dec[[#This Row],[Enseignant référent (Nom Prénom)]]","v":"TONKIN-DIXNEUF"},{"$f":"1/COUNTIF(T_sept_dec[CléEtablissement],T_sept_dec[[#This Row],[CléEtablissement]])","v":1},{"$f":"IF(COUNTIF(Réseau,T_sept_dec[[#This Row],[Secteur organisateur]]),\"Réseau_\"&T_sept_dec[[#This Row],[Enseignant référent (Nom Prénom)]], IF(COUNTIF(Rizehorsmed,T_sept_dec[[#This Row],[Secteur organisateur]]),\"Rizehorsmed_\"&T_sept_dec[[#This Row],[Enseignant référent (Nom Prénom)]], T_sept_dec[[#This Row],[Secteur organisateur]]&\"_\"&T_sept_dec[[#This Row],[Enseignant référent (Nom Prénom)]]))","v":"Réseau_DIXNEUF"},{"$f":"1/COUNTIF(T_sept_dec[CléRéseau-Rize horsmed],T_sept_dec[[#This Row],[CléRéseau-Rize horsmed]])","v":1},{"$f":"IF(COUNTIF(RIZE,T_sept_dec[[#This Row],[Secteur organisateur]]),\"Rize_\"&T_sept_dec[[#This Row],[Enseignant référent (Nom Prénom)]],\"\")","v":""},{"$f":"1/COUNTIF(T_sept_dec[CléRize],T_sept_dec[[#This Row],[CléRize]])","v":9.8039215686274508E-3},{"$f":"IF(COUNTIF(Total,T_sept_dec[[#This Row],[Secteur organisateur]]),\"Total_\"&T_sept_dec[[#This Row],[Enseignant référent (Nom Prénom)]],\"\")","v":"Total_DIXNEUF"},{"$f":"1/COUNTIF(T_sept_dec[cléTotal],T_sept_dec[[#This Row],[cléTotal]])","v":1}]
["2017-11-28","MTK",null,"Tonkin/Nigritelle","cp","DIXSEPT",26,"In situ","Première lecture",null,null,{"$f":"IF(COUNTIF(Maternelle,E27)=1,listes!$T$1,IF(COUNTIF(Elémentaire,E27)=1,listes!$U$1,IF(COUNTIF(Collège,E27)=1,listes!$V$1,IF(COUNTIF(Lycée,E27)=1,listes!$W$1,\"\"))))","v":"Elémentaire"},{"$f":"VLOOKUP(T_sept_dec[[#This Row],[Etablissement scolaire]],Regroupements!$T:$U,2,FALSE)","v":"Charpennes-Tonkin"},"TONKIN",{"$f":"T_sept_dec[[#This Row],[Etablissement accueillant]]&\"-\"&T_sept_dec[[#This Row],[Enseignant référent (Nom Prénom)]]","v":"TONKIN-DIXSEPT"},{"$f":"1/COUNTIF(T_sept_dec[CléEtablissement],T_sept_dec[[#This Row],[CléEtablissement]])","v":1},{"$f":"IF(COUNTIF(Réseau,T_sept_dec[[#This Row],[Secteur organisateur]]),\"Réseau_\"&T_sept_dec[[#This Row],[Enseignant référent (Nom Prénom)]], IF(COUNTIF(Rizehorsmed,T_sept_dec[[#This Row],[Secteur organisateur]]),\"Rizehorsmed_\"&T_sept_dec[[#This Row],[Enseignant référent (Nom Prénom)]], T_sept_dec[[#This Row],[Secteur organisateur]]&\"_\"&T_sept_dec[[#This Row],[Enseignant référent (Nom Prénom)]]))","v":"Réseau_DIXSEPT"},{"$f":"1/COUNTIF(T_sept_dec[CléRéseau-Rize horsmed],T_sept_dec[[#This Row],[CléRéseau-Rize horsmed]])","v":1},{"$f":"IF(COUNTIF(RIZE,T_sept_dec[[#This Row],[Secteur organisateur]]),\"Rize_\"&T_sept_dec[[#This Row],[Enseignant référent (Nom Prénom)]],\"\")","v":""},{"$f":"1/COUNTIF(T_sept_dec[CléRize],T_sept_dec[[#This Row],[CléRize]])","v":9.8039215686274508E-3},{"$f":"IF(COUNTIF(Total,T_sept_dec[[#This Row],[Secteur organisateur]]),\"Total_\"&T_sept_dec[[#This Row],[Enseignant référent (Nom Prénom)]],\"\")","v":"Total_DIXSEPT"},{"$f":"1/COUNTIF(T_sept_dec[cléTotal],T_sept_dec[[#This Row],[cléTotal]])","v":1}]
["2017-11-28","PAC-BUS",null,"Saint Exupéry","cp","DOUZE",26,"Hors les murs","Visite découverte",null,null,{"$f":"IF(COUNTIF(Maternelle,E28)=1,listes!$T$1,IF(COUNTIF(Elémentaire,E28)=1,listes!$U$1,IF(COUNTIF(Collège,E28)=1,listes!$V$1,IF(COUNTIF(Lycée,E28)=1,listes!$W$1,\"\"))))","v":"Elémentaire"},{"$f":"VLOOKUP(T_sept_dec[[#This Row],[Etablissement scolaire]],Regroupements!$T:$U,2,FALSE)","v":"Saint Jean"},"PAC-BUS",{"$f":"T_sept_dec[[#This Row],[Etablissement accueillant]]&\"-\"&T_sept_dec[[#This Row],[Enseignant référent (Nom Prénom)]]","v":"PAC-BUS-DOUZE"},{"$f":"1/COUNTIF(T_sept_dec[CléEtablissement],T_sept_dec[[#This Row],[CléEtablissement]])","v":1},{"$f":"IF(COUNTIF(Réseau,T_sept_dec[[#This Row],[Secteur organisateur]]),\"Réseau_\"&T_sept_dec[[#This Row],[Enseignant référent (Nom Prénom)]], IF(COUNTIF(Rizehorsmed,T_sept_dec[[#This Row],[Secteur organisateur]]),\"Rizehorsmed_\"&T_sept_dec[[#This Row],[Enseignant référent (Nom Prénom)]], T_sept_dec[[#This Row],[Secteur organisateur]]&\"_\"&T_sept_dec[[#This Row],[Enseignant référent (Nom Prénom)]]))","v":"Réseau_DOUZE"},{"$f":"1/COUNTIF(T_sept_dec[CléRéseau-Rize horsmed],T_sept_dec[[#This Row],[CléRéseau-Rize horsmed]])","v":1},{"$f":"IF(COUNTIF(RIZE,T_sept_dec[[#This Row],[Secteur organisateur]]),\"Rize_\"&T_sept_dec[[#This Row],[Enseignant référent (Nom Prénom)]],\"\")","v":""},{"$f":"1/COUNTIF(T_sept_dec[CléRize],T_sept_dec[[#This Row],[CléRize]])","v":9.8039215686274508E-3},{"$f":"IF(COUNTIF(Total,T_sept_dec[[#This Row],[Secteur organisateur]]),\"Total_\"&T_sept_dec[[#This Row],[Enseignant référent (Nom Prénom)]],\"\")","v":"Total_DOUZE"},{"$f":"1/COUNTIF(T_sept_dec[cléTotal],T_sept_dec[[#This Row],[cléTotal]])","v":1}]
["2017-09-28","MLIS J",null,"Château-Gaillard","cp","HUIT",25,"In situ","Visite découverte",null,null,{"$f":"IF(COUNTIF(Maternelle,E29)=1,listes!$T$1,IF(COUNTIF(Elémentaire,E29)=1,listes!$U$1,IF(COUNTIF(Collège,E29)=1,listes!$V$1,IF(COUNTIF(Lycée,E29)=1,listes!$W$1,\"\"))))","v":"Elémentaire"},{"$f":"VLOOKUP(T_sept_dec[[#This Row],[Etablissement scolaire]],Regroupements!$T:$U,2,FALSE)","v":"Buers-Croix-Luizet"},"MLIS",{"$f":"T_sept_dec[[#This Row],[Etablissement accueillant]]&\"-\"&T_sept_dec[[#This Row],[Enseignant référent (Nom Prénom)]]","v":"MLIS-HUIT"},{"$f":"1/COUNTIF(T_sept_dec[CléEtablissement],T_sept_dec[[#This Row],[CléEtablissement]])","v":1},{"$f":"IF(COUNTIF(Réseau,T_sept_dec[[#This Row],[Secteur organisateur]]),\"Réseau_\"&T_sept_dec[[#This Row],[Enseignant référent (Nom Prénom)]], IF(COUNTIF(Rizehorsmed,T_sept_dec[[#This Row],[Secteur organisateur]]),\"Rizehorsmed_\"&T_sept_dec[[#This Row],[Enseignant référent (Nom Prénom)]], T_sept_dec[[#This Row],[Secteur organisateur]]&\"_\"&T_sept_dec[[#This Row],[Enseignant référent (Nom Prénom)]]))","v":"Réseau_HUIT"},{"$f":"1/COUNTIF(T_sept_dec[CléRéseau-Rize horsmed],T_sept_dec[[#This Row],[CléRéseau-Rize horsmed]])","v":1},{"$f":"IF(COUNTIF(RIZE,T_sept_dec[[#This Row],[Secteur organisateur]]),\"Rize_\"&T_sept_dec[[#This Row],[Enseignant référent (Nom Prénom)]],\"\")","v":""},{"$f":"1/COUNTIF(T_sept_dec[CléRize],T_sept_dec[[#This Row],[CléRize]])","v":9.8039215686274508E-3},{"$f":"IF(COUNTIF(Total,T_sept_dec[[#This Row],[Secteur organisateur]]),\"Total_\"&T_sept_dec[[#This Row],[Enseignant référent (Nom Prénom)]],\"\")","v":"Total_HUIT"},{"$f":"1/COUNTIF(T_sept_dec[cléTotal],T_sept_dec[[#This Row],[cléTotal]])","v":1}]
["2017-11-16","MLIS J",null,"Ecole juive de Lyon (privé)","cp","NEUF",20,"In situ","La maison des livres",null,null,{"$f":"IF(COUNTIF(Maternelle,E30)=1,listes!$T$1,IF(COUNTIF(Elémentaire,E30)=1,listes!$U$1,IF(COUNTIF(Collège,E30)=1,listes!$V$1,IF(COUNTIF(Lycée,E30)=1,listes!$W$1,\"\"))))","v":"Elémentaire"},{"$f":"VLOOKUP(T_sept_dec[[#This Row],[Etablissement scolaire]],Regroupements!$T:$U,2,FALSE)","v":"Gratte-ciel-Dedieu-Charmettes"},"MLIS",{"$f":"T_sept_dec[[#This Row],[Etablissement accueillant]]&\"-\"&T_sept_dec[[#This Row],[Enseignant référent (Nom Prénom)]]","v":"MLIS-NEUF"},{"$f":"1/COUNTIF(T_sept_dec[CléEtablissement],T_sept_dec[[#This Row],[CléEtablissement]])","v":1},{"$f":"IF(COUNTIF(Réseau,T_sept_dec[[#This Row],[Secteur organisateur]]),\"Réseau_\"&T_sept_dec[[#This Row],[Enseignant référent (Nom Prénom)]], IF(COUNTIF(Rizehorsmed,T_sept_dec[[#This Row],[Secteur organisateur]]),\"Rizehorsmed_\"&T_sept_dec[[#This Row],[Enseignant référent (Nom Prénom)]], T_sept_dec[[#This Row],[Secteur organisateur]]&\"_\"&T_sept_dec[[#This Row],[Enseignant référent (Nom Prénom)]]))","v":"Réseau_NEUF"},{"$f":"1/COUNTIF(T_sept_dec[CléRéseau-Rize horsmed],T_sept_dec[[#This Row],[CléRéseau-Rize horsmed]])","v":1},{"$f":"IF(COUNTIF(RIZE,T_sept_dec[[#This Row],[Secteur organisateur]]),\"Rize_\"&T_sept_dec[[#This Row],[Enseignant référent (Nom Prénom)]],\"\")","v":""},{"$f":"1/COUNTIF(T_sept_dec[CléRize],T_sept_dec[[#This Row],[CléRize]])","v":9.8039215686274508E-3},{"$f":"IF(COUNTIF(Total,T_sept_dec[[#This Row],[Secteur organisateur]]),\"Total_\"&T_sept_dec[[#This Row],[Enseignant référent (Nom Prénom)]],\"\")","v":"Total_NEUF"},{"$f":"1/COUNTIF(T_sept_dec[cléTotal],T_sept_dec[[#This Row],[cléTotal]])","v":1}]
["2017-11-09","MTK",null,"Louis Armand","cm1","ONZE",30,"In situ","De la littérature au cinéma",null,null,{"$f":"IF(COUNTIF(Maternelle,E31)=1,listes!$T$1,IF(COUNTIF(Elémentaire,E31)=1,listes!$U$1,IF(COUNTIF(Collège,E31)=1,listes!$V$1,IF(COUNTIF(Lycée,E31)=1,listes!$W$1,\"\"))))","v":"Elémentaire"},{"$f":"VLOOKUP(T_sept_dec[[#This Row],[Etablissement scolaire]],Regroupements!$T:$U,2,FALSE)","v":"Charpennes-Tonkin"},"TONKIN",{"$f":"T_sept_dec[[#This Row],[Etablissement accueillant]]&\"-\"&T_sept_dec[[#This Row],[Enseignant référent (Nom Prénom)]]","v":"TONKIN-ONZE"},{"$f":"1/COUNTIF(T_sept_dec[CléEtablissement],T_sept_dec[[#This Row],[CléEtablissement]])","v":1},{"$f":"IF(COUNTIF(Réseau,T_sept_dec[[#This Row],[Secteur organisateur]]),\"Réseau_\"&T_sept_dec[[#This Row],[Enseignant référent (Nom Prénom)]], IF(COUNTIF(Rizehorsmed,T_sept_dec[[#This Row],[Secteur organisateur]]),\"Rizehorsmed_\"&T_sept_dec[[#This Row],[Enseignant référent (Nom Prénom)]], T_sept_dec[[#This Row],[Secteur organisateur]]&\"_\"&T_sept_dec[[#This Row],[Enseignant référent (Nom Prénom)]]))","v":"Réseau_ONZE"},{"$f":"1/COUNTIF(T_sept_dec[CléRéseau-Rize horsmed],T_sept_dec[[#This Row],[CléRéseau-Rize horsmed]])","v":1},{"$f":"IF(COUNTIF(RIZE,T_sept_dec[[#This Row],[Secteur organisateur]]),\"Rize_\"&T_sept_dec[[#This Row],[Enseignant référent (Nom Prénom)]],\"\")","v":""},{"$f":"1/COUNTIF(T_sept_dec[CléRize],T_sept_dec[[#This Row],[CléRize]])","v":9.8039215686274508E-3},{"$f":"IF(COUNTIF(Total,T_sept_dec[[#This Row],[Secteur organisateur]]),\"Total_\"&T_sept_dec[[#This Row],[Enseignant référent (Nom Prénom)]],\"\")","v":"Total_ONZE"},{"$f":"1/COUNTIF(T_sept_dec[cléTotal],T_sept_dec[[#This Row],[cléTotal]])","v":1}]
["2017-11-30","RIZE VALO",null,"Edouard Herriot","cm1","QUANRANTEDEUX",26,"Hors les murs","Exploration Gratte-Ciel",null,null,{"$f":"IF(COUNTIF(Maternelle,E32)=1,listes!$T$1,IF(COUNTIF(Elémentaire,E32)=1,listes!$U$1,IF(COUNTIF(Collège,E32)=1,listes!$V$1,IF(COUNTIF(Lycée,E32)=1,listes!$W$1,\"\"))))","v":"Elémentaire"},{"$f":"VLOOKUP(T_sept_dec[[#This Row],[Etablissement scolaire]],Regroupements!$T:$U,2,FALSE)","v":"Gratte-ciel-Dedieu-Charmettes"},"RIZE",{"$f":"T_sept_dec[[#This Row],[Etablissement accueillant]]&\"-\"&T_sept_dec[[#This Row],[Enseignant référent (Nom Prénom)]]","v":"RIZE-QUANRANTEDEUX"},{"$f":"1/COUNTIF(T_sept_dec[CléEtablissement],T_sept_dec[[#This Row],[CléEtablissement]])","v":1},{"$f":"IF(COUNTIF(Réseau,T_sept_dec[[#This Row],[Secteur organisateur]]),\"Réseau_\"&T_sept_dec[[#This Row],[Enseignant référent (Nom Prénom)]], IF(COUNTIF(Rizehorsmed,T_sept_dec[[#This Row],[Secteur organisateur]]),\"Rizehorsmed_\"&T_sept_dec[[#This Row],[Enseignant référent (Nom Prénom)]], T_sept_dec[[#This Row],[Secteur organisateur]]&\"_\"&T_sept_dec[[#This Row],[Enseignant référent (Nom Prénom)]]))","v":"Rizehorsmed_QUANRANTEDEUX"},{"$f":"1/COUNTIF(T_sept_dec[CléRéseau-Rize horsmed],T_sept_dec[[#This Row],[CléRéseau-Rize horsmed]])","v":1},{"$f":"IF(COUNTIF(RIZE,T_sept_dec[[#This Row],[Secteur organisateur]]),\"Rize_\"&T_sept_dec[[#This Row],[Enseignant référent (Nom Prénom)]],\"\")","v":"Rize_QUANRANTEDEUX"},{"$f":"1/COUNTIF(T_sept_dec[CléRize],T_sept_dec[[#This Row],[CléRize]])","v":1},{"$f":"IF(COUNTIF(Total,T_sept_dec[[#This Row],[Secteur organisateur]]),\"Total_\"&T_sept_dec[[#This Row],[Enseignant référent (Nom Prénom)]],\"\")","v":"Total_QUANRANTEDEUX"},{"$f":"1/COUNTIF(T_sept_dec[cléTotal],T_sept_dec[[#This Row],[cléTotal]])","v":1}]
["2017-12-21","ARTO",null,"Albert Camus","cm1/cm2","QUARANTE",26,"In situ","Et si on parlait d'art ?",null,null,{"$f":"IF(COUNTIF(Maternelle,E33)=1,listes!$T$1,IF(COUNTIF(Elémentaire,E33)=1,listes!$U$1,IF(COUNTIF(Collège,E33)=1,listes!$V$1,IF(COUNTIF(Lycée,E33)=1,listes!$W$1,\"\"))))","v":"Elémentaire"},{"$f":"VLOOKUP(T_sept_dec[[#This Row],[Etablissement scolaire]],Regroupements!$T:$U,2,FALSE)","v":"Cyprian-les-Brosses"},"MLIS",{"$f":"T_sept_dec[[#This Row],[Etablissement accueillant]]&\"-\"&T_sept_dec[[#This Row],[Enseignant référent (Nom Prénom)]]","v":"MLIS-QUARANTE"},{"$f":"1/COUNTIF(T_sept_dec[CléEtablissement],T_sept_dec[[#This Row],[CléEtablissement]])","v":1},{"$f":"IF(COUNTIF(Réseau,T_sept_dec[[#This Row],[Secteur organisateur]]),\"Réseau_\"&T_sept_dec[[#This Row],[Enseignant référent (Nom Prénom)]], IF(COUNTIF(Rizehorsmed,T_sept_dec[[#This Row],[Secteur organisateur]]),\"Rizehorsmed_\"&T_sept_dec[[#This Row],[Enseignant référent (Nom Prénom)]], T_sept_dec[[#This Row],[Secteur organisateur]]&\"_\"&T_sept_dec[[#This Row],[Enseignant référent (Nom Prénom)]]))","v":"Réseau_QUARANTE"},{"$f":"1/COUNTIF(T_sept_dec[CléRéseau-Rize horsmed],T_sept_dec[[#This Row],[CléRéseau-Rize horsmed]])","v":1},{"$f":"IF(COUNTIF(RIZE,T_sept_dec[[#This Row],[Secteur organisateur]]),\"Rize_\"&T_sept_dec[[#This Row],[Enseignant référent (Nom Prénom)]],\"\")","v":""},{"$f":"1/COUNTIF(T_sept_dec[CléRize],T_sept_dec[[#This Row],[CléRize]])","v":9.8039215686274508E-3},{"$f":"IF(COUNTIF(Total,T_sept_dec[[#This Row],[Secteur organisateur]]),\"Total_\"&T_sept_dec[[#This Row],[Enseignant référent (Nom Prénom)]],\"\")","v":"Total_QUARANTE"},{"$f":"1/COUNTIF(T_sept_dec[cléTotal],T_sept_dec[[#This Row],[cléTotal]])","v":1}]
["2017-11-24","EMM",null,"Berthelot","cm2","QUARANTEETUN",23,"In situ","Recherche multimédias",null,null,{"$f":"IF(COUNTIF(Maternelle,E34)=1,listes!$T$1,IF(COUNTIF(Elémentaire,E34)=1,listes!$U$1,IF(COUNTIF(Collège,E34)=1,listes!$V$1,IF(COUNTIF(Lycée,E34)=1,listes!$W$1,\"\"))))","v":"Elémentaire"},{"$f":"VLOOKUP(T_sept_dec[[#This Row],[Etablissement scolaire]],Regroupements!$T:$U,2,FALSE)","v":"Perralière-Grandclément"},{"$f":"IF(COUNTIF(FDL,B34)=1,\"FDL\",IF(COUNTIF(RIZE,B34)=1,\"RIZE\",IF(COUNTIF(MLIS,B34)=1,\"MLIS\",IF(COUNTIF(PACBUS,B34)=1,\"PAC-BUS\",IF(COUNTIF(Tonkin,B34)=1,\"TONKIN\",\"\")))))","v":"MLIS"},{"$f":"T_sept_dec[[#This Row],[Etablissement accueillant]]&\"-\"&T_sept_dec[[#This Row],[Enseignant référent (Nom Prénom)]]","v":"MLIS-QUARANTEETUN"},{"$f":"1/COUNTIF(T_sept_dec[CléEtablissement],T_sept_dec[[#This Row],[CléEtablissement]])","v":1},{"$f":"IF(COUNTIF(Réseau,T_sept_dec[[#This Row],[Secteur organisateur]]),\"Réseau_\"&T_sept_dec[[#This Row],[Enseignant référent (Nom Prénom)]], IF(COUNTIF(Rizehorsmed,T_sept_dec[[#This Row],[Secteur organisateur]]),\"Rizehorsmed_\"&T_sept_dec[[#This Row],[Enseignant référent (Nom Prénom)]], T_sept_dec[[#This Row],[Secteur organisateur]]&\"_\"&T_sept_dec[[#This Row],[Enseignant référent (Nom Prénom)]]))","v":"Réseau_QUARANTEETUN"},{"$f":"1/COUNTIF(T_sept_dec[CléRéseau-Rize horsmed],T_sept_dec[[#This Row],[CléRéseau-Rize horsmed]])","v":1},{"$f":"IF(COUNTIF(RIZE,T_sept_dec[[#This Row],[Secteur organisateur]]),\"Rize_\"&T_sept_dec[[#This Row],[Enseignant référent (Nom Prénom)]],\"\")","v":""},{"$f":"1/COUNTIF(T_sept_dec[CléRize],T_sept_dec[[#This Row],[CléRize]])","v":9.8039215686274508E-3},{"$f":"IF(COUNTIF(Total,T_sept_dec[[#This Row],[Secteur organisateur]]),\"Total_\"&T_sept_dec[[#This Row],[Enseignant référent (Nom Prénom)]],\"\")","v":"Total_QUARANTEETUN"},{"$f":"1/COUNTIF(T_sept_dec[cléTotal],T_sept_dec[[#This Row],[cléTotal]])","v":1}]
["2017-10-11","RIZE MED",null,"Jean Jaurès (primaire)","ps","QUARENTECINQ",22,"In situ","Visite médiathèque",null,null,{"$f":"IF(COUNTIF(Maternelle,E35)=1,listes!$T$1,IF(COUNTIF(Elémentaire,E35)=1,listes!$U$1,IF(COUNTIF(Collège,E35)=1,listes!$V$1,IF(COUNTIF(Lycée,E35)=1,listes!$W$1,\"\"))))","v":"Maternelle"},{"$f":"VLOOKUP(T_sept_dec[[#This Row],[Etablissement scolaire]],Regroupements!$T:$U,2,FALSE)","v":"Ferrandière-Maisons Neuves"},"RIZE",{"$f":"T_sept_dec[[#This Row],[Etablissement accueillant]]&\"-\"&T_sept_dec[[#This Row],[Enseignant référent (Nom Prénom)]]","v":"RIZE-QUARENTECINQ"},{"$f":"1/COUNTIF(T_sept_dec[CléEtablissement],T_sept_dec[[#This Row],[CléEtablissement]])","v":1},{"$f":"IF(COUNTIF(Réseau,T_sept_dec[[#This Row],[Secteur organisateur]]),\"Réseau_\"&T_sept_dec[[#This Row],[Enseignant référent (Nom Prénom)]], IF(COUNTIF(Rizehorsmed,T_sept_dec[[#This Row],[Secteur organisateur]]),\"Rizehorsmed_\"&T_sept_dec[[#This Row],[Enseignant référent (Nom Prénom)]], T_sept_dec[[#This Row],[Secteur organisateur]]&\"_\"&T_sept_dec[[#This Row],[Enseignant référent (Nom Prénom)]]))","v":"Réseau_QUARENTECINQ"},{"$f":"1/COUNTIF(T_sept_dec[CléRéseau-Rize horsmed],T_sept_dec[[#This Row],[CléRéseau-Rize horsmed]])","v":1},{"$f":"IF(COUNTIF(RIZE,T_sept_dec[[#This Row],[Secteur organisateur]]),\"Rize_\"&T_sept_dec[[#This Row],[Enseignant référent (Nom Prénom)]],\"\")","v":"Rize_QUARENTECINQ"},{"$f":"1/COUNTIF(T_sept_dec[CléRize],T_sept_dec[[#This Row],[CléRize]])","v":1},{"$f":"IF(COUNTIF(Total,T_sept_dec[[#This Row],[Secteur organisateur]]),\"Total_\"&T_sept_dec[[#This Row],[Enseignant référent (Nom Prénom)]],\"\")","v":"Total_QUARENTECINQ"},{"$f":"1/COUNTIF(T_sept_dec[cléTotal],T_sept_dec[[#This Row],[cléTotal]])","v":1}]
["2017-11-16","MTK",null,"Saint Exupéry","cm1/cm2","QUARENTEHUIT",23,"In situ","De la littérature au cinéma",null,null,{"$f":"IF(COUNTIF(Maternelle,E36)=1,listes!$T$1,IF(COUNTIF(Elémentaire,E36)=1,listes!$U$1,IF(COUNTIF(Collège,E36)=1,listes!$V$1,IF(COUNTIF(Lycée,E36)=1,listes!$W$1,\"\"))))","v":"Elémentaire"},{"$f":"VLOOKUP(T_sept_dec[[#This Row],[Etablissement scolaire]],Regroupements!$T:$U,2,FALSE)","v":"Saint Jean"},"TONKIN",{"$f":"T_sept_dec[[#This Row],[Etablissement accueillant]]&\"-\"&T_sept_dec[[#This Row],[Enseignant référent (Nom Prénom)]]","v":"TONKIN-QUARENTEHUIT"},{"$f":"1/COUNTIF(T_sept_dec[CléEtablissement],T_sept_dec[[#This Row],[CléEtablissement]])","v":1},{"$f":"IF(COUNTIF(Réseau,T_sept_dec[[#This Row],[Secteur organisateur]]),\"Réseau_\"&T_sept_dec[[#This Row],[Enseignant référent (Nom Prénom)]], IF(COUNTIF(Rizehorsmed,T_sept_dec[[#This Row],[Secteur organisateur]]),\"Rizehorsmed_\"&T_sept_dec[[#This Row],[Enseignant référent (Nom Prénom)]], T_sept_dec[[#This Row],[Secteur organisateur]]&\"_\"&T_sept_dec[[#This Row],[Enseignant référent (Nom Prénom)]]))","v":"Réseau_QUARENTEHUIT"},{"$f":"1/COUNTIF(T_sept_dec[CléRéseau-Rize horsmed],T_sept_dec[[#This Row],[CléRéseau-Rize horsmed]])","v":0.5},{"$f":"IF(COUNTIF(RIZE,T_sept_dec[[#This Row],[Secteur organisateur]]),\"Rize_\"&T_sept_dec[[#This Row],[Enseignant référent (Nom Prénom)]],\"\")","v":""},{"$f":"1/COUNTIF(T_sept_dec[CléRize],T_sept_dec[[#This Row],[CléRize]])","v":9.8039215686274508E-3},{"$f":"IF(COUNTIF(Total,T_sept_dec[[#This Row],[Secteur organisateur]]),\"Total_\"&T_sept_dec[[#This Row],[Enseignant référent (Nom Prénom)]],\"\")","v":"Total_QUARENTEHUIT"},{"$f":"1/COUNTIF(T_sept_dec[cléTotal],T_sept_dec[[#This Row],[cléTotal]])","v":0.5}]
["2017-11-17","EMM",null,"Saint Exupéry","cm1/cm2","QUARENTEHUIT",25,"In situ","Stop motion",null,null,{"$f":"IF(COUNTIF(Maternelle,E37)=1,listes!$T$1,IF(COUNTIF(Elémentaire,E37)=1,listes!$U$1,IF(COUNTIF(Collège,E37)=1,listes!$V$1,IF(COUNTIF(Lycée,E37)=1,listes!$W$1,\"\"))))","v":"Elémentaire"},{"$f":"VLOOKUP(T_sept_dec[[#This Row],[Etablissement scolaire]],Regroupements!$T:$U,2,FALSE)","v":"Saint Jean"},"MLIS",{"$f":"T_sept_dec[[#This Row],[Etablissement accueillant]]&\"-\"&T_sept_dec[[#This Row],[Enseignant référent (Nom Prénom)]]","v":"MLIS-QUARENTEHUIT"},{"$f":"1/COUNTIF(T_sept_dec[CléEtablissement],T_sept_dec[[#This Row],[CléEtablissement]])","v":1},{"$f":"IF(COUNTIF(Réseau,T_sept_dec[[#This Row],[Secteur organisateur]]),\"Réseau_\"&T_sept_dec[[#This Row],[Enseignant référent (Nom Prénom)]], IF(COUNTIF(Rizehorsmed,T_sept_dec[[#This Row],[Secteur organisateur]]),\"Rizehorsmed_\"&T_sept_dec[[#This Row],[Enseignant référent (Nom Prénom)]], T_sept_dec[[#This Row],[Secteur organisateur]]&\"_\"&T_sept_dec[[#This Row],[Enseignant référent (Nom Prénom)]]))","v":"Réseau_QUARENTEHUIT"},{"$f":"1/COUNTIF(T_sept_dec[CléRéseau-Rize horsmed],T_sept_dec[[#This Row],[CléRéseau-Rize horsmed]])","v":0.5},{"$f":"IF(COUNTIF(RIZE,T_sept_dec[[#This Row],[Secteur organisateur]]),\"Rize_\"&T_sept_dec[[#This Row],[Enseignant référent (Nom Prénom)]],\"\")","v":""},{"$f":"1/COUNTIF(T_sept_dec[CléRize],T_sept_dec[[#This Row],[CléRize]])","v":9.8039215686274508E-3},{"$f":"IF(COUNTIF(Total,T_sept_dec[[#This Row],[Secteur organisateur]]),\"Total_\"&T_sept_dec[[#This Row],[Enseignant référent (Nom Prénom)]],\"\")","v":"Total_QUARENTEHUIT"},{"$f":"1/COUNTIF(T_sept_dec[cléTotal],T_sept_dec[[#This Row],[cléTotal]])","v":0.5}]
["2017-09-20","RIZE MED",null,"Emile Zola","cm1","QUARENTENEUF",24,"In situ","Visite couplée",null,null,{"$f":"IF(COUNTIF(Maternelle,E38)=1,listes!$T$1,IF(COUNTIF(Elémentaire,E38)=1,listes!$U$1,IF(COUNTIF(Collège,E38)=1,listes!$V$1,IF(COUNTIF(Lycée,E38)=1,listes!$W$1,\"\"))))","v":"Elémentaire"},{"$f":"VLOOKUP(T_sept_dec[[#This Row],[Etablissement scolaire]],Regroupements!$T:$U,2,FALSE)","v":"Gratte-ciel-Dedieu-Charmettes"},"RIZE",{"$f":"T_sept_dec[[#This Row],[Etablissement accueillant]]&\"-\"&T_sept_dec[[#This Row],[Enseignant référent (Nom Prénom)]]","v":"RIZE-QUARENTENEUF"},{"$f":"1/COUNTIF(T_sept_dec[CléEtablissement],T_sept_dec[[#This Row],[CléEtablissement]])","v":1},{"$f":"IF(COUNTIF(Réseau,T_sept_dec[[#This Row],[Secteur organisateur]]),\"Réseau_\"&T_sept_dec[[#This Row],[Enseignant référent (Nom Prénom)]], IF(COUNTIF(Rizehorsmed,T_sept_dec[[#This Row],[Secteur organisateur]]),\"Rizehorsmed_\"&T_sept_dec[[#This Row],[Enseignant référent (Nom Prénom)]], T_sept_dec[[#This Row],[Secteur organisateur]]&\"_\"&T_sept_dec[[#This Row],[Enseignant référent (Nom Prénom)]]))","v":"Réseau_QUARENTENEUF"},{"$f":"1/COUNTIF(T_sept_dec[CléRéseau-Rize horsmed],T_sept_dec[[#This Row],[CléRéseau-Rize horsmed]])","v":1},{"$f":"IF(COUNTIF(RIZE,T_sept_dec[[#This Row],[Secteur organisateur]]),\"Rize_\"&T_sept_dec[[#This Row],[Enseignant référent (Nom Prénom)]],\"\")","v":"Rize_QUARENTENEUF"},{"$f":"1/COUNTIF(T_sept_dec[CléRize],T_sept_dec[[#This Row],[CléRize]])","v":1},{"$f":"IF(COUNTIF(Total,T_sept_dec[[#This Row],[Secteur organisateur]]),\"Total_\"&T_sept_dec[[#This Row],[Enseignant référent (Nom Prénom)]],\"\")","v":"Total_QUARENTENEUF"},{"$f":"1/COUNTIF(T_sept_dec[cléTotal],T_sept_dec[[#This Row],[cléTotal]])","v":1}]
["2017-11-09","ARTO",null,"Croix-Luizet","ce2","QUARENTEQUATRE",27,"In situ","Et si on parlait d'art ?",null,null,{"$f":"IF(COUNTIF(Maternelle,E39)=1,listes!$T$1,IF(COUNTIF(Elémentaire,E39)=1,listes!$U$1,IF(COUNTIF(Collège,E39)=1,listes!$V$1,IF(COUNTIF(Lycée,E39)=1,listes!$W$1,\"\"))))","v":"Elémentaire"},{"$f":"VLOOKUP(T_sept_dec[[#This Row],[Etablissement scolaire]],Regroupements!$T:$U,2,FALSE)","v":"Buers-Croix-Luizet"},"MLIS",{"$f":"T_sept_dec[[#This Row],[Etablissement accueillant]]&\"-\"&T_sept_dec[[#This Row],[Enseignant référent (Nom Prénom)]]","v":"MLIS-QUARENTEQUATRE"},{"$f":"1/COUNTIF(T_sept_dec[CléEtablissement],T_sept_dec[[#This Row],[CléEtablissement]])","v":1},{"$f":"IF(COUNTIF(Réseau,T_sept_dec[[#This Row],[Secteur organisateur]]),\"Réseau_\"&T_sept_dec[[#This Row],[Enseignant référent (Nom Prénom)]], IF(COUNTIF(Rizehorsmed,T_sept_dec[[#This Row],[Secteur organisateur]]),\"Rizehorsmed_\"&T_sept_dec[[#This Row],[Enseignant référent (Nom Prénom)]], T_sept_dec[[#This Row],[Secteur organisateur]]&\"_\"&T_sept_dec[[#This Row],[Enseignant référent (Nom Prénom)]]))","v":"Réseau_QUARENTEQUATRE"},{"$f":"1/COUNTIF(T_sept_dec[CléRéseau-Rize horsmed],T_sept_dec[[#This Row],[CléRéseau-Rize horsmed]])","v":1},{"$f":"IF(COUNTIF(RIZE,T_sept_dec[[#This Row],[Secteur organisateur]]),\"Rize_\"&T_sept_dec[[#This Row],[Enseignant référent (Nom Prénom)]],\"\")","v":""},{"$f":"1/COUNTIF(T_sept_dec[CléRize],T_sept_dec[[#This Row],[CléRize]])","v":9.8039215686274508E-3},{"$f":"IF(COUNTIF(Total,T_sept_dec[[#This Row],[Secteur organisateur]]),\"Total_\"&T_sept_dec[[#This Row],[Enseignant référent (Nom Prénom)]],\"\")","v":"Total_QUARENTEQUATRE"},{"$f":"1/COUNTIF(T_sept_dec[cléTotal],T_sept_dec[[#This Row],[cléTotal]])","v":1}]
["2017-10-20","MLIS J",null,"Albert Camus","ce2","QUARENTESEPT",24,"In situ","Conte",null,null,{"$f":"IF(COUNTIF(Maternelle,E40)=1,listes!$T$1,IF(COUNTIF(Elémentaire,E40)=1,listes!$U$1,IF(COUNTIF(Collège,E40)=1,listes!$V$1,IF(COUNTIF(Lycée,E40)=1,listes!$W$1,\"\"))))","v":"Elémentaire"},{"$f":"VLOOKUP(T_sept_dec[[#This Row],[Etablissement scolaire]],Regroupements!$T:$U,2,FALSE)","v":"Cyprian-les-Brosses"},"MLIS",{"$f":"T_sept_dec[[#This Row],[Etablissement accueillant]]&\"-\"&T_sept_dec[[#This Row],[Enseignant référent (Nom Prénom)]]","v":"MLIS-QUARENTESEPT"},{"$f":"1/COUNTIF(T_sept_dec[CléEtablissement],T_sept_dec[[#This Row],[CléEtablissement]])","v":1},{"$f":"IF(COUNTIF(Réseau,T_sept_dec[[#This Row],[Secteur organisateur]]),\"Réseau_\"&T_sept_dec[[#This Row],[Enseignant référent (Nom Prénom)]], IF(COUNTIF(Rizehorsmed,T_sept_dec[[#This Row],[Secteur organisateur]]),\"Rizehorsmed_\"&T_sept_dec[[#This Row],[Enseignant référent (Nom Prénom)]], T_sept_dec[[#This Row],[Secteur organisateur]]&\"_\"&T_sept_dec[[#This Row],[Enseignant référent (Nom Prénom)]]))","v":"Réseau_QUARENTESEPT"},{"$f":"1/COUNTIF(T_sept_dec[CléRéseau-Rize horsmed],T_sept_dec[[#This Row],[CléRéseau-Rize horsmed]])","v":1},{"$f":"IF(COUNTIF(RIZE,T_sept_dec[[#This Row],[Secteur organisateur]]),\"Rize_\"&T_sept_dec[[#This Row],[Enseignant référent (Nom Prénom)]],\"\")","v":""},{"$f":"1/COUNTIF(T_sept_dec[CléRize],T_sept_dec[[#This Row],[CléRize]])","v":9.8039215686274508E-3},{"$f":"IF(COUNTIF(Total,T_sept_dec[[#This Row],[Secteur organisateur]]),\"Total_\"&T_sept_dec[[#This Row],[Enseignant référent (Nom Prénom)]],\"\")","v":"Total_QUARENTESEPT"},{"$f":"1/COUNTIF(T_sept_dec[cléTotal],T_sept_dec[[#This Row],[cléTotal]])","v":1}]
["2017-09-15","RIZE MED",null,"Emile Zola","cm1","QUARENTESIX",24,"In situ","Visite couplée",null,null,{"$f":"IF(COUNTIF(Maternelle,E41)=1,listes!$T$1,IF(COUNTIF(Elémentaire,E41)=1,listes!$U$1,IF(COUNTIF(Collège,E41)=1,listes!$V$1,IF(COUNTIF(Lycée,E41)=1,listes!$W$1,\"\"))))","v":"Elémentaire"},{"$f":"VLOOKUP(T_sept_dec[[#This Row],[Etablissement scolaire]],Regroupements!$T:$U,2,FALSE)","v":"Gratte-ciel-Dedieu-Charmettes"},"RIZE",{"$f":"T_sept_dec[[#This Row],[Etablissement accueillant]]&\"-\"&T_sept_dec[[#This Row],[Enseignant référent (Nom Prénom)]]","v":"RIZE-QUARENTESIX"},{"$f":"1/COUNTIF(T_sept_dec[CléEtablissement],T_sept_dec[[#This Row],[CléEtablissement]])","v":1},{"$f":"IF(COUNTIF(Réseau,T_sept_dec[[#This Row],[Secteur organisateur]]),\"Réseau_\"&T_sept_dec[[#This Row],[Enseignant référent (Nom Prénom)]], IF(COUNTIF(Rizehorsmed,T_sept_dec[[#This Row],[Secteur organisateur]]),\"Rizehorsmed_\"&T_sept_dec[[#This Row],[Enseignant référent (Nom Prénom)]], T_sept_dec[[#This Row],[Secteur organisateur]]&\"_\"&T_sept_dec[[#This Row],[Enseignant référent (Nom Prénom)]]))","v":"Réseau_QUARENTESIX"},{"$f":"1/COUNTIF(T_sept_dec[CléRéseau-Rize horsmed],T_sept_dec[[#This Row],[CléRéseau-Rize horsmed]])","v":1},{"$f":"IF(COUNTIF(RIZE,T_sept_dec[[#This Row],[Secteur organisateur]]),\"Rize_\"&T_sept_dec[[#This Row],[Enseignant référent (Nom Prénom)]],\"\")","v":"Rize_QUARENTESIX"},{"$f":"1/COUNTIF(T_sept_dec[CléRize],T_sept_dec[[#This Row],[CléRize]])","v":1},{"$f":"IF(COUNTIF(Total,T_sept_dec[[#This Row],[Secteur organisateur]]),\"Total_\"&T_sept_dec[[#This Row],[Enseignant référent (Nom Prénom)]],\"\")","v":"Total_QUARENTESIX"},{"$f":"1/COUNTIF(T_sept_dec[cléTotal],T_sept_dec[[#This Row],[cléTotal]])","v":1}]
["2017-12-14","ARTO",null,"Jules Guesde","ce1/ce2","QUARENTETROIS",25,"In situ","Et si on parlait d'art ?",null,null,{"$f":"IF(COUNTIF(Maternelle,E42)=1,listes!$T$1,IF(COUNTIF(Elémentaire,E42)=1,listes!$U$1,IF(COUNTIF(Collège,E42)=1,listes!$V$1,IF(COUNTIF(Lycée,E42)=1,listes!$W$1,\"\"))))","v":"Elémentaire"},{"$f":"VLOOKUP(T_sept_dec[[#This Row],[Etablissement scolaire]],Regroupements!$T:$U,2,FALSE)","v":"Cyprian-les-Brosses"},"MLIS",{"$f":"T_sept_dec[[#This Row],[Etablissement accueillant]]&\"-\"&T_sept_dec[[#This Row],[Enseignant référent (Nom Prénom)]]","v":"MLIS-QUARENTETROIS"},{"$f":"1/COUNTIF(T_sept_dec[CléEtablissement],T_sept_dec[[#This Row],[CléEtablissement]])","v":0.5},{"$f":"IF(COUNTIF(Réseau,T_sept_dec[[#This Row],[Secteur organisateur]]),\"Réseau_\"&T_sept_dec[[#This Row],[Enseignant référent (Nom Prénom)]], IF(COUNTIF(Rizehorsmed,T_sept_dec[[#This Row],[Secteur organisateur]]),\"Rizehorsmed_\"&T_sept_dec[[#This Row],[Enseignant référent (Nom Prénom)]], T_sept_dec[[#This Row],[Secteur organisateur]]&\"_\"&T_sept_dec[[#This Row],[Enseignant référent (Nom Prénom)]]))","v":"Réseau_QUARENTETROIS"},{"$f":"1/COUNTIF(T_sept_dec[CléRéseau-Rize horsmed],T_sept_dec[[#This Row],[CléRéseau-Rize horsmed]])","v":0.5},{"$f":"IF(COUNTIF(RIZE,T_sept_dec[[#This Row],[Secteur organisateur]]),\"Rize_\"&T_sept_dec[[#This Row],[Enseignant référent (Nom Prénom)]],\"\")","v":""},{"$f":"1/COUNTIF(T_sept_dec[CléRize],T_sept_dec[[#This Row],[CléRize]])","v":9.8039215686274508E-3},{"$f":"IF(COUNTIF(Total,T_sept_dec[[#This Row],[Secteur organisateur]]),\"Total_\"&T_sept_dec[[#This Row],[Enseignant référent (Nom Prénom)]],\"\")","v":"Total_QUARENTETROIS"},{"$f":"1/COUNTIF(T_sept_dec[cléTotal],T_sept_dec[[#This Row],[cléTotal]])","v":0.5}]
["2017-12-14","MLIS J",null,"Jules Guesde","ce1/ce2","QUARENTETROIS",25,"In situ","Visite à la carte",null,null,{"$f":"IF(COUNTIF(Maternelle,E43)=1,listes!$T$1,IF(COUNTIF(Elémentaire,E43)=1,listes!$U$1,IF(COUNTIF(Collège,E43)=1,listes!$V$1,IF(COUNTIF(Lycée,E43)=1,listes!$W$1,\"\"))))","v":"Elémentaire"},{"$f":"VLOOKUP(T_sept_dec[[#This Row],[Etablissement scolaire]],Regroupements!$T:$U,2,FALSE)","v":"Cyprian-les-Brosses"},"MLIS",{"$f":"T_sept_dec[[#This Row],[Etablissement accueillant]]&\"-\"&T_sept_dec[[#This Row],[Enseignant référent (Nom Prénom)]]","v":"MLIS-QUARENTETROIS"},{"$f":"1/COUNTIF(T_sept_dec[CléEtablissement],T_sept_dec[[#This Row],[CléEtablissement]])","v":0.5},{"$f":"IF(COUNTIF(Réseau,T_sept_dec[[#This Row],[Secteur organisateur]]),\"Réseau_\"&T_sept_dec[[#This Row],[Enseignant référent (Nom Prénom)]], IF(COUNTIF(Rizehorsmed,T_sept_dec[[#This Row],[Secteur organisateur]]),\"Rizehorsmed_\"&T_sept_dec[[#This Row],[Enseignant référent (Nom Prénom)]], T_sept_dec[[#This Row],[Secteur organisateur]]&\"_\"&T_sept_dec[[#This Row],[Enseignant référent (Nom Prénom)]]))","v":"Réseau_QUARENTETROIS"},{"$f":"1/COUNTIF(T_sept_dec[CléRéseau-Rize horsmed],T_sept_dec[[#This Row],[CléRéseau-Rize horsmed]])","v":0.5},{"$f":"IF(COUNTIF(RIZE,T_sept_dec[[#This Row],[Secteur organisateur]]),\"Rize_\"&T_sept_dec[[#This Row],[Enseignant référent (Nom Prénom)]],\"\")","v":""},{"$f":"1/COUNTIF(T_sept_dec[CléRize],T_sept_dec[[#This Row],[CléRize]])","v":9.8039215686274508E-3},{"$f":"IF(COUNTIF(Total,T_sept_dec[[#This Row],[Secteur organisateur]]),\"Total_\"&T_sept_dec[[#This Row],[Enseignant référent (Nom Prénom)]],\"\")","v":"Total_QUARENTETROIS"},{"$f":"1/COUNTIF(T_sept_dec[cléTotal],T_sept_dec[[#This Row],[cléTotal]])","v":0.5}]
["2017-10-10","RIZE VALO",null,"Anatole France","cm1","QUATORZE",25,"Hors les murs","Exploration Gratte-Ciel",null,null,{"$f":"IF(COUNTIF(Maternelle,E44)=1,listes!$T$1,IF(COUNTIF(Elémentaire,E44)=1,listes!$U$1,IF(COUNTIF(Collège,E44)=1,listes!$V$1,IF(COUNTIF(Lycée,E44)=1,listes!$W$1,\"\"))))","v":"Elémentaire"},{"$f":"VLOOKUP(T_sept_dec[[#This Row],[Etablissement scolaire]],Regroupements!$T:$U,2,FALSE)","v":"Gratte-ciel-Dedieu-Charmettes"},"RIZE",{"$f":"T_sept_dec[[#This Row],[Etablissement accueillant]]&\"-\"&T_sept_dec[[#This Row],[Enseignant référent (Nom Prénom)]]","v":"RIZE-QUATORZE"},{"$f":"1/COUNTIF(T_sept_dec[CléEtablissement],T_sept_dec[[#This Row],[CléEtablissement]])","v":1},{"$f":"IF(COUNTIF(Réseau,T_sept_dec[[#This Row],[Secteur organisateur]]),\"Réseau_\"&T_sept_dec[[#This Row],[Enseignant référent (Nom Prénom)]], IF(COUNTIF(Rizehorsmed,T_sept_dec[[#This Row],[Secteur organisateur]]),\"Rizehorsmed_\"&T_sept_dec[[#This Row],[Enseignant référent (Nom Prénom)]], T_sept_dec[[#This Row],[Secteur organisateur]]&\"_\"&T_sept_dec[[#This Row],[Enseignant référent (Nom Prénom)]]))","v":"Rizehorsmed_QUATORZE"},{"$f":"1/COUNTIF(T_sept_dec[CléRéseau-Rize horsmed],T_sept_dec[[#This Row],[CléRéseau-Rize horsmed]])","v":1},{"$f":"IF(COUNTIF(RIZE,T_sept_dec[[#This Row],[Secteur organisateur]]),\"Rize_\"&T_sept_dec[[#This Row],[Enseignant référent (Nom Prénom)]],\"\")","v":"Rize_QUATORZE"},{"$f":"1/COUNTIF(T_sept_dec[CléRize],T_sept_dec[[#This Row],[CléRize]])","v":1},{"$f":"IF(COUNTIF(Total,T_sept_dec[[#This Row],[Secteur organisateur]]),\"Total_\"&T_sept_dec[[#This Row],[Enseignant référent (Nom Prénom)]],\"\")","v":"Total_QUATORZE"},{"$f":"1/COUNTIF(T_sept_dec[cléTotal],T_sept_dec[[#This Row],[cléTotal]])","v":1}]
["2017-12-06","MLIS J",null,"René Pellet (déficients visuels)","ce1/ce2","CENTTROIS",8,"In situ","Conte",null,null,{"$f":"IF(COUNTIF(Maternelle,E45)=1,listes!$T$1,IF(COUNTIF(Elémentaire,E45)=1,listes!$U$1,IF(COUNTIF(Collège,E45)=1,listes!$V$1,IF(COUNTIF(Lycée,E45)=1,listes!$W$1,\"\"))))","v":"Elémentaire"},{"$f":"VLOOKUP(T_sept_dec[[#This Row],[Etablissement scolaire]],Regroupements!$T:$U,2,FALSE)","v":"Perralière-Grandclément"},"MLIS",{"$f":"T_sept_dec[[#This Row],[Etablissement accueillant]]&\"-\"&T_sept_dec[[#This Row],[Enseignant référent (Nom Prénom)]]","v":"MLIS-CENTTROIS"},{"$f":"1/COUNTIF(T_sept_dec[CléEtablissement],T_sept_dec[[#This Row],[CléEtablissement]])","v":1},{"$f":"IF(COUNTIF(Réseau,T_sept_dec[[#This Row],[Secteur organisateur]]),\"Réseau_\"&T_sept_dec[[#This Row],[Enseignant référent (Nom Prénom)]], IF(COUNTIF(Rizehorsmed,T_sept_dec[[#This Row],[Secteur organisateur]]),\"Rizehorsmed_\"&T_sept_dec[[#This Row],[Enseignant référent (Nom Prénom)]], T_sept_dec[[#This Row],[Secteur organisateur]]&\"_\"&T_sept_dec[[#This Row],[Enseignant référent (Nom Prénom)]]))","v":"Réseau_CENTTROIS"},{"$f":"1/COUNTIF(T_sept_dec[CléRéseau-Rize horsmed],T_sept_dec[[#This Row],[CléRéseau-Rize horsmed]])","v":1},{"$f":"IF(COUNTIF(RIZE,T_sept_dec[[#This Row],[Secteur organisateur]]),\"Rize_\"&T_sept_dec[[#This Row],[Enseignant référent (Nom Prénom)]],\"\")","v":""},{"$f":"1/COUNTIF(T_sept_dec[CléRize],T_sept_dec[[#This Row],[CléRize]])","v":9.8039215686274508E-3},{"$f":"IF(COUNTIF(Total,T_sept_dec[[#This Row],[Secteur organisateur]]),\"Total_\"&T_sept_dec[[#This Row],[Enseignant référent (Nom Prénom)]],\"\")","v":"Total_CENTTROIS"},{"$f":"1/COUNTIF(T_sept_dec[cléTotal],T_sept_dec[[#This Row],[cléTotal]])","v":1}]
["2017-12-15","RIZE MED",null,"René Pellet (déficients visuels)","cp/ce1","QUATRE",5,"In situ","Visite thématique",null,null,{"$f":"IF(COUNTIF(Maternelle,E46)=1,listes!$T$1,IF(COUNTIF(Elémentaire,E46)=1,listes!$U$1,IF(COUNTIF(Collège,E46)=1,listes!$V$1,IF(COUNTIF(Lycée,E46)=1,listes!$W$1,\"\"))))","v":"Elémentaire"},{"$f":"VLOOKUP(T_sept_dec[[#This Row],[Etablissement scolaire]],Regroupements!$T:$U,2,FALSE)","v":"Perralière-Grandclément"},"RIZE",{"$f":"T_sept_dec[[#This Row],[Etablissement accueillant]]&\"-\"&T_sept_dec[[#This Row],[Enseignant référent (Nom Prénom)]]","v":"RIZE-QUATRE"},{"$f":"1/COUNTIF(T_sept_dec[CléEtablissement],T_sept_dec[[#This Row],[CléEtablissement]])","v":1},{"$f":"IF(COUNTIF(Réseau,T_sept_dec[[#This Row],[Secteur organisateur]]),\"Réseau_\"&T_sept_dec[[#This Row],[Enseignant référent (Nom Prénom)]], IF(COUNTIF(Rizehorsmed,T_sept_dec[[#This Row],[Secteur organisateur]]),\"Rizehorsmed_\"&T_sept_dec[[#This Row],[Enseignant référent (Nom Prénom)]], T_sept_dec[[#This Row],[Secteur organisateur]]&\"_\"&T_sept_dec[[#This Row],[Enseignant référent (Nom Prénom)]]))","v":"Réseau_QUATRE"},{"$f":"1/COUNTIF(T_sept_dec[CléRéseau-Rize horsmed],T_sept_dec[[#This Row],[CléRéseau-Rize horsmed]])","v":1},{"$f":"IF(COUNTIF(RIZE,T_sept_dec[[#This Row],[Secteur organisateur]]),\"Rize_\"&T_sept_dec[[#This Row],[Enseignant référent (Nom Prénom)]],\"\")","v":"Rize_QUATRE"},{"$f":"1/COUNTIF(T_sept_dec[CléRize],T_sept_dec[[#This Row],[CléRize]])","v":1},{"$f":"IF(COUNTIF(Total,T_sept_dec[[#This Row],[Secteur organisateur]]),\"Total_\"&T_sept_dec[[#This Row],[Enseignant référent (Nom Prénom)]],\"\")","v":"Total_QUATRE"},{"$f":"1/COUNTIF(T_sept_dec[cléTotal],T_sept_dec[[#This Row],[cléTotal]])","v":1}]
["2017-11-20","RIZE VALO",null,"Lycée Frédéric Faÿs","Tle","QUATREVINGT",15,"Hors les murs","Exploration Gratte-Ciel",null,null,{"$f":"IF(COUNTIF(Maternelle,E47)=1,listes!$T$1,IF(COUNTIF(Elémentaire,E47)=1,listes!$U$1,IF(COUNTIF(Collège,E47)=1,listes!$V$1,IF(COUNTIF(Lycée,E47)=1,listes!$W$1,\"\"))))","v":"Lycée"},{"$f":"VLOOKUP(T_sept_dec[[#This Row],[Etablissement scolaire]],Regroupements!$T:$U,2,FALSE)","v":"Cusset-Bonnevay"},"RIZE",{"$f":"T_sept_dec[[#This Row],[Etablissement accueillant]]&\"-\"&T_sept_dec[[#This Row],[Enseignant référent (Nom Prénom)]]","v":"RIZE-QUATREVINGT"},{"$f":"1/COUNTIF(T_sept_dec[CléEtablissement],T_sept_dec[[#This Row],[CléEtablissement]])","v":1},{"$f":"IF(COUNTIF(Réseau,T_sept_dec[[#This Row],[Secteur organisateur]]),\"Réseau_\"&T_sept_dec[[#This Row],[Enseignant référent (Nom Prénom)]], IF(COUNTIF(Rizehorsmed,T_sept_dec[[#This Row],[Secteur organisateur]]),\"Rizehorsmed_\"&T_sept_dec[[#This Row],[Enseignant référent (Nom Prénom)]], T_sept_dec[[#This Row],[Secteur organisateur]]&\"_\"&T_sept_dec[[#This Row],[Enseignant référent (Nom Prénom)]]))","v":"Rizehorsmed_QUATREVINGT"},{"$f":"1/COUNTIF(T_sept_dec[CléRéseau-Rize horsmed],T_sept_dec[[#This Row],[CléRéseau-Rize horsmed]])","v":1},{"$f":"IF(COUNTIF(RIZE,T_sept_dec[[#This Row],[Secteur organisateur]]),\"Rize_\"&T_sept_dec[[#This Row],[Enseignant référent (Nom Prénom)]],\"\")","v":"Rize_QUATREVINGT"},{"$f":"1/COUNTIF(T_sept_dec[CléRize],T_sept_dec[[#This Row],[CléRize]])","v":1},{"$f":"IF(COUNTIF(Total,T_sept_dec[[#This Row],[Secteur organisateur]]),\"Total_\"&T_sept_dec[[#This Row],[Enseignant référent (Nom Prénom)]],\"\")","v":"Total_QUATREVINGT"},{"$f":"1/COUNTIF(T_sept_dec[cléTotal],T_sept_dec[[#This Row],[cléTotal]])","v":1}]
["2017-10-19","MLIS J",null,"Albert Camus","ce2","QUATREVINGTCINQ",23,"In situ","Conte",null,null,{"$f":"IF(COUNTIF(Maternelle,E48)=1,listes!$T$1,IF(COUNTIF(Elémentaire,E48)=1,listes!$U$1,IF(COUNTIF(Collège,E48)=1,listes!$V$1,IF(COUNTIF(Lycée,E48)=1,listes!$W$1,\"\"))))","v":"Elémentaire"},{"$f":"VLOOKUP(T_sept_dec[[#This Row],[Etablissement scolaire]],Regroupements!$T:$U,2,FALSE)","v":"Cyprian-les-Brosses"},"MLIS",{"$f":"T_sept_dec[[#This Row],[Etablissement accueillant]]&\"-\"&T_sept_dec[[#This Row],[Enseignant référent (Nom Prénom)]]","v":"MLIS-QUATREVINGTCINQ"},{"$f":"1/COUNTIF(T_sept_dec[CléEtablissement],T_sept_dec[[#This Row],[CléEtablissement]])","v":1},{"$f":"IF(COUNTIF(Réseau,T_sept_dec[[#This Row],[Secteur organisateur]]),\"Réseau_\"&T_sept_dec[[#This Row],[Enseignant référent (Nom Prénom)]], IF(COUNTIF(Rizehorsmed,T_sept_dec[[#This Row],[Secteur organisateur]]),\"Rizehorsmed_\"&T_sept_dec[[#This Row],[Enseignant référent (Nom Prénom)]], T_sept_dec[[#This Row],[Secteur organisateur]]&\"_\"&T_sept_dec[[#This Row],[Enseignant référent (Nom Prénom)]]))","v":"Réseau_QUATREVINGTCINQ"},{"$f":"1/COUNTIF(T_sept_dec[CléRéseau-Rize horsmed],T_sept_dec[[#This Row],[CléRéseau-Rize horsmed]])","v":1},{"$f":"IF(COUNTIF(RIZE,T_sept_dec[[#This Row],[Secteur organisateur]]),\"Rize_\"&T_sept_dec[[#This Row],[Enseignant référent (Nom Prénom)]],\"\")","v":""},{"$f":"1/COUNTIF(T_sept_dec[CléRize],T_sept_dec[[#This Row],[CléRize]])","v":9.8039215686274508E-3},{"$f":"IF(COUNTIF(Total,T_sept_dec[[#This Row],[Secteur organisateur]]),\"Total_\"&T_sept_dec[[#This Row],[Enseignant référent (Nom Prénom)]],\"\")","v":"Total_QUATREVINGTCINQ"},{"$f":"1/COUNTIF(T_sept_dec[cléTotal],T_sept_dec[[#This Row],[cléTotal]])","v":1}]
["2017-09-27","MLIS J",null,"Jean Zay","cp","QUATREVINGTDEUX",25,"In situ","Visite découverte",null,null,{"$f":"IF(COUNTIF(Maternelle,E49)=1,listes!$T$1,IF(COUNTIF(Elémentaire,E49)=1,listes!$U$1,IF(COUNTIF(Collège,E49)=1,listes!$V$1,IF(COUNTIF(Lycée,E49)=1,listes!$W$1,\"\"))))","v":"Elémentaire"},{"$f":"VLOOKUP(T_sept_dec[[#This Row],[Etablissement scolaire]],Regroupements!$T:$U,2,FALSE)","v":"Gratte-ciel-Dedieu-Charmettes"},"MLIS",{"$f":"T_sept_dec[[#This Row],[Etablissement accueillant]]&\"-\"&T_sept_dec[[#This Row],[Enseignant référent (Nom Prénom)]]","v":"MLIS-QUATREVINGTDEUX"},{"$f":"1/COUNTIF(T_sept_dec[CléEtablissement],T_sept_dec[[#This Row],[CléEtablissement]])","v":1},{"$f":"IF(COUNTIF(Réseau,T_sept_dec[[#This Row],[Secteur organisateur]]),\"Réseau_\"&T_sept_dec[[#This Row],[Enseignant référent (Nom Prénom)]], IF(COUNTIF(Rizehorsmed,T_sept_dec[[#This Row],[Secteur organisateur]]),\"Rizehorsmed_\"&T_sept_dec[[#This Row],[Enseignant référent (Nom Prénom)]], T_sept_dec[[#This Row],[Secteur organisateur]]&\"_\"&T_sept_dec[[#This Row],[Enseignant référent (Nom Prénom)]]))","v":"Réseau_QUATREVINGTDEUX"},{"$f":"1/COUNTIF(T_sept_dec[CléRéseau-Rize horsmed],T_sept_dec[[#This Row],[CléRéseau-Rize horsmed]])","v":1},{"$f":"IF(COUNTIF(RIZE,T_sept_dec[[#This Row],[Secteur organisateur]]),\"Rize_\"&T_sept_dec[[#This Row],[Enseignant référent (Nom Prénom)]],\"\")","v":""},{"$f":"1/COUNTIF(T_sept_dec[CléRize],T_sept_dec[[#This Row],[CléRize]])","v":9.8039215686274508E-3},{"$f":"IF(COUNTIF(Total,T_sept_dec[[#This Row],[Secteur organisateur]]),\"Total_\"&T_sept_dec[[#This Row],[Enseignant référent (Nom Prénom)]],\"\")","v":"Total_QUATREVINGTDEUX"},{"$f":"1/COUNTIF(T_sept_dec[cléTotal],T_sept_dec[[#This Row],[cléTotal]])","v":1}]
["2017-12-05","MTK",null,"Lakanal","cp","QUATREVINGTDIX",24,"In situ","Visite découverte",null,null,{"$f":"IF(COUNTIF(Maternelle,E50)=1,listes!$T$1,IF(COUNTIF(Elémentaire,E50)=1,listes!$U$1,IF(COUNTIF(Collège,E50)=1,listes!$V$1,IF(COUNTIF(Lycée,E50)=1,listes!$W$1,\"\"))))","v":"Elémentaire"},{"$f":"VLOOKUP(T_sept_dec[[#This Row],[Etablissement scolaire]],Regroupements!$T:$U,2,FALSE)","v":"Charpennes-Tonkin"},"TONKIN",{"$f":"T_sept_dec[[#This Row],[Etablissement accueillant]]&\"-\"&T_sept_dec[[#This Row],[Enseignant référent (Nom Prénom)]]","v":"TONKIN-QUATREVINGTDIX"},{"$f":"1/COUNTIF(T_sept_dec[CléEtablissement],T_sept_dec[[#This Row],[CléEtablissement]])","v":1},{"$f":"IF(COUNTIF(Réseau,T_sept_dec[[#This Row],[Secteur organisateur]]),\"Réseau_\"&T_sept_dec[[#This Row],[Enseignant référent (Nom Prénom)]], IF(COUNTIF(Rizehorsmed,T_sept_dec[[#This Row],[Secteur organisateur]]),\"Rizehorsmed_\"&T_sept_dec[[#This Row],[Enseignant référent (Nom Prénom)]], T_sept_dec[[#This Row],[Secteur organisateur]]&\"_\"&T_sept_dec[[#This Row],[Enseignant référent (Nom Prénom)]]))","v":"Réseau_QUATREVINGTDIX"},{"$f":"1/COUNTIF(T_sept_dec[CléRéseau-Rize horsmed],T_sept_dec[[#This Row],[CléRéseau-Rize horsmed]])","v":1},{"$f":"IF(COUNTIF(RIZE,T_sept_dec[[#This Row],[Secteur organisateur]]),\"Rize_\"&T_sept_dec[[#This Row],[Enseignant référent (Nom Prénom)]],\"\")","v":""},{"$f":"1/COUNTIF(T_sept_dec[CléRize],T_sept_dec[[#This Row],[CléRize]])","v":9.8039215686274508E-3},{"$f":"IF(COUNTIF(Total,T_sept_dec[[#This Row],[Secteur organisateur]]),\"Total_\"&T_sept_dec[[#This Row],[Enseignant référent (Nom Prénom)]],\"\")","v":"Total_QUATREVINGTDIX"},{"$f":"1/COUNTIF(T_sept_dec[cléTotal],T_sept_dec[[#This Row],[cléTotal]])","v":1}]
["2017-10-06","MLIS J",null,"Collège des Iris","autres (collège)","QUATREVINGTDIXHUIT",20,"In situ","Visite à la carte",null,null,{"$f":"IF(COUNTIF(Maternelle,E51)=1,listes!$T$1,IF(COUNTIF(Elémentaire,E51)=1,listes!$U$1,IF(COUNTIF(Collège,E51)=1,listes!$V$1,IF(COUNTIF(Lycée,E51)=1,listes!$W$1,\"\"))))","v":"Collège"},{"$f":"VLOOKUP(T_sept_dec[[#This Row],[Etablissement scolaire]],Regroupements!$T:$U,2,FALSE)","v":"Cusset-Bonnevay"},"MLIS",{"$f":"T_sept_dec[[#This Row],[Etablissement accueillant]]&\"-\"&T_sept_dec[[#This Row],[Enseignant référent (Nom Prénom)]]","v":"MLIS-QUATREVINGTDIXHUIT"},{"$f":"1/COUNTIF(T_sept_dec[CléEtablissement],T_sept_dec[[#This Row],[CléEtablissement]])","v":0.5},{"$f":"IF(COUNTIF(Réseau,T_sept_dec[[#This Row],[Secteur organisateur]]),\"Réseau_\"&T_sept_dec[[#This Row],[Enseignant référent (Nom Prénom)]], IF(COUNTIF(Rizehorsmed,T_sept_dec[[#This Row],[Secteur organisateur]]),\"Rizehorsmed_\"&T_sept_dec[[#This Row],[Enseignant référent (Nom Prénom)]], T_sept_dec[[#This Row],[Secteur organisateur]]&\"_\"&T_sept_dec[[#This Row],[Enseignant référent (Nom Prénom)]]))","v":"Réseau_QUATREVINGTDIXHUIT"},{"$f":"1/COUNTIF(T_sept_dec[CléRéseau-Rize horsmed],T_sept_dec[[#This Row],[CléRéseau-Rize horsmed]])","v":0.5},{"$f":"IF(COUNTIF(RIZE,T_sept_dec[[#This Row],[Secteur organisateur]]),\"Rize_\"&T_sept_dec[[#This Row],[Enseignant référent (Nom Prénom)]],\"\")","v":""},{"$f":"1/COUNTIF(T_sept_dec[CléRize],T_sept_dec[[#This Row],[CléRize]])","v":9.8039215686274508E-3},{"$f":"IF(COUNTIF(Total,T_sept_dec[[#This Row],[Secteur organisateur]]),\"Total_\"&T_sept_dec[[#This Row],[Enseignant référent (Nom Prénom)]],\"\")","v":"Total_QUATREVINGTDIXHUIT"},{"$f":"1/COUNTIF(T_sept_dec[cléTotal],T_sept_dec[[#This Row],[cléTotal]])","v":0.5}]
["2017-12-22","EMM",null,"Collège des Iris","autres (collège)","QUATREVINGTDIXHUIT",20,"In situ","Recherche multimédias",null,null,{"$f":"IF(COUNTIF(Maternelle,E52)=1,listes!$T$1,IF(COUNTIF(Elémentaire,E52)=1,listes!$U$1,IF(COUNTIF(Collège,E52)=1,listes!$V$1,IF(COUNTIF(Lycée,E52)=1,listes!$W$1,\"\"))))","v":"Collège"},{"$f":"VLOOKUP(T_sept_dec[[#This Row],[Etablissement scolaire]],Regroupements!$T:$U,2,FALSE)","v":"Cusset-Bonnevay"},"MLIS",{"$f":"T_sept_dec[[#This Row],[Etablissement accueillant]]&\"-\"&T_sept_dec[[#This Row],[Enseignant référent (Nom Prénom)]]","v":"MLIS-QUATREVINGTDIXHUIT"},{"$f":"1/COUNTIF(T_sept_dec[CléEtablissement],T_sept_dec[[#This Row],[CléEtablissement]])","v":0.5},{"$f":"IF(COUNTIF(Réseau,T_sept_dec[[#This Row],[Secteur organisateur]]),\"Réseau_\"&T_sept_dec[[#This Row],[Enseignant référent (Nom Prénom)]], IF(COUNTIF(Rizehorsmed,T_sept_dec[[#This Row],[Secteur organisateur]]),\"Rizehorsmed_\"&T_sept_dec[[#This Row],[Enseignant référent (Nom Prénom)]], T_sept_dec[[#This Row],[Secteur organisateur]]&\"_\"&T_sept_dec[[#This Row],[Enseignant référent (Nom Prénom)]]))","v":"Réseau_QUATREVINGTDIXHUIT"},{"$f":"1/COUNTIF(T_sept_dec[CléRéseau-Rize horsmed],T_sept_dec[[#This Row],[CléRéseau-Rize horsmed]])","v":0.5},{"$f":"IF(COUNTIF(RIZE,T_sept_dec[[#This Row],[Secteur organisateur]]),\"Rize_\"&T_sept_dec[[#This Row],[Enseignant référent (Nom Prénom)]],\"\")","v":""},{"$f":"1/COUNTIF(T_sept_dec[CléRize],T_sept_dec[[#This Row],[CléRize]])","v":9.8039215686274508E-3},{"$f":"IF(COUNTIF(Total,T_sept_dec[[#This Row],[Secteur organisateur]]),\"Total_\"&T_sept_dec[[#This Row],[Enseignant référent (Nom Prénom)]],\"\")","v":"Total_QUATREVINGTDIXHUIT"},{"$f":"1/COUNTIF(T_sept_dec[cléTotal],T_sept_dec[[#This Row],[cléTotal]])","v":0.5}]
["2017-10-09","MLIS A",null,"Lycée Magenta","autres (lycée)","QUATREVINGTDIXNEUF",30,"In situ","Visite médiathèque",null,null,{"$f":"IF(COUNTIF(Maternelle,E53)=1,listes!$T$1,IF(COUNTIF(Elémentaire,E53)=1,listes!$U$1,IF(COUNTIF(Collège,E53)=1,listes!$V$1,IF(COUNTIF(Lycée,E53)=1,listes!$W$1,\"\"))))","v":"Lycée"},{"$f":"VLOOKUP(T_sept_dec[[#This Row],[Etablissement scolaire]],Regroupements!$T:$U,2,FALSE)","v":"Gratte-ciel-Dedieu-Charmettes"},"MLIS",{"$f":"T_sept_dec[[#This Row],[Etablissement accueillant]]&\"-\"&T_sept_dec[[#This Row],[Enseignant référent (Nom Prénom)]]","v":"MLIS-QUATREVINGTDIXNEUF"},{"$f":"1/COUNTIF(T_sept_dec[CléEtablissement],T_sept_dec[[#This Row],[CléEtablissement]])","v":1},{"$f":"IF(COUNTIF(Réseau,T_sept_dec[[#This Row],[Secteur organisateur]]),\"Réseau_\"&T_sept_dec[[#This Row],[Enseignant référent (Nom Prénom)]], IF(COUNTIF(Rizehorsmed,T_sept_dec[[#This Row],[Secteur organisateur]]),\"Rizehorsmed_\"&T_sept_dec[[#This Row],[Enseignant référent (Nom Prénom)]], T_sept_dec[[#This Row],[Secteur organisateur]]&\"_\"&T_sept_dec[[#This Row],[Enseignant référent (Nom Prénom)]]))","v":"Réseau_QUATREVINGTDIXNEUF"},{"$f":"1/COUNTIF(T_sept_dec[CléRéseau-Rize horsmed],T_sept_dec[[#This Row],[CléRéseau-Rize horsmed]])","v":1},{"$f":"IF(COUNTIF(RIZE,T_sept_dec[[#This Row],[Secteur organisateur]]),\"Rize_\"&T_sept_dec[[#This Row],[Enseignant référent (Nom Prénom)]],\"\")","v":""},{"$f":"1/COUNTIF(T_sept_dec[CléRize],T_sept_dec[[#This Row],[CléRize]])","v":9.8039215686274508E-3},{"$f":"IF(COUNTIF(Total,T_sept_dec[[#This Row],[Secteur organisateur]]),\"Total_\"&T_sept_dec[[#This Row],[Enseignant référent (Nom Prénom)]],\"\")","v":"Total_QUATREVINGTDIXNEUF"},{"$f":"1/COUNTIF(T_sept_dec[cléTotal],T_sept_dec[[#This Row],[cléTotal]])","v":1}]
["2017-09-13","RIZE MED",null,"Jean Jaurès (primaire)","cm1","QUATREVINGTDIXSEPT",27,"In situ","Visite thématique",null,null,{"$f":"IF(COUNTIF(Maternelle,E54)=1,listes!$T$1,IF(COUNTIF(Elémentaire,E54)=1,listes!$U$1,IF(COUNTIF(Collège,E54)=1,listes!$V$1,IF(COUNTIF(Lycée,E54)=1,listes!$W$1,\"\"))))","v":"Elémentaire"},{"$f":"VLOOKUP(T_sept_dec[[#This Row],[Etablissement scolaire]],Regroupements!$T:$U,2,FALSE)","v":"Ferrandière-Maisons Neuves"},"RIZE",{"$f":"T_sept_dec[[#This Row],[Etablissement accueillant]]&\"-\"&T_sept_dec[[#This Row],[Enseignant référent (Nom Prénom)]]","v":"RIZE-QUATREVINGTDIXSEPT"},{"$f":"1/COUNTIF(T_sept_dec[CléEtablissement],T_sept_dec[[#This Row],[CléEtablissement]])","v":0.5},{"$f":"IF(COUNTIF(Réseau,T_sept_dec[[#This Row],[Secteur organisateur]]),\"Réseau_\"&T_sept_dec[[#This Row],[Enseignant référent (Nom Prénom)]], IF(COUNTIF(Rizehorsmed,T_sept_dec[[#This Row],[Secteur organisateur]]),\"Rizehorsmed_\"&T_sept_dec[[#This Row],[Enseignant référent (Nom Prénom)]], T_sept_dec[[#This Row],[Secteur organisateur]]&\"_\"&T_sept_dec[[#This Row],[Enseignant référent (Nom Prénom)]]))","v":"Réseau_QUATREVINGTDIXSEPT"},{"$f":"1/COUNTIF(T_sept_dec[CléRéseau-Rize horsmed],T_sept_dec[[#This Row],[CléRéseau-Rize horsmed]])","v":0.5},{"$f":"IF(COUNTIF(RIZE,T_sept_dec[[#This Row],[Secteur organisateur]]),\"Rize_\"&T_sept_dec[[#This Row],[Enseignant référent (Nom Prénom)]],\"\")","v":"Rize_QUATREVINGTDIXSEPT"},{"$f":"1/COUNTIF(T_sept_dec[CléRize],T_sept_dec[[#This Row],[CléRize]])","v":0.5},{"$f":"IF(COUNTIF(Total,T_sept_dec[[#This Row],[Secteur organisateur]]),\"Total_\"&T_sept_dec[[#This Row],[Enseignant référent (Nom Prénom)]],\"\")","v":"Total_QUATREVINGTDIXSEPT"},{"$f":"1/COUNTIF(T_sept_dec[cléTotal],T_sept_dec[[#This Row],[cléTotal]])","v":0.5}]
["2017-11-29","RIZE MED",null,"Jean Jaurès (primaire)","cm1","QUATREVINGTDIXSEPT",27,"in situ","Visite thématique",null,null,{"$f":"IF(COUNTIF(Maternelle,E55)=1,listes!$T$1,IF(COUNTIF(Elémentaire,E55)=1,listes!$U$1,IF(COUNTIF(Collège,E55)=1,listes!$V$1,IF(COUNTIF(Lycée,E55)=1,listes!$W$1,\"\"))))","v":"Elémentaire"},{"$f":"VLOOKUP(T_sept_dec[[#This Row],[Etablissement scolaire]],Regroupements!$T:$U,2,FALSE)","v":"Ferrandière-Maisons Neuves"},"RIZE",{"$f":"T_sept_dec[[#This Row],[Etablissement accueillant]]&\"-\"&T_sept_dec[[#This Row],[Enseignant référent (Nom Prénom)]]","v":"RIZE-QUATREVINGTDIXSEPT"},{"$f":"1/COUNTIF(T_sept_dec[CléEtablissement],T_sept_dec[[#This Row],[CléEtablissement]])","v":0.5},{"$f":"IF(COUNTIF(Réseau,T_sept_dec[[#This Row],[Secteur organisateur]]),\"Réseau_\"&T_sept_dec[[#This Row],[Enseignant référent (Nom Prénom)]], IF(COUNTIF(Rizehorsmed,T_sept_dec[[#This Row],[Secteur organisateur]]),\"Rizehorsmed_\"&T_sept_dec[[#This Row],[Enseignant référent (Nom Prénom)]], T_sept_dec[[#This Row],[Secteur organisateur]]&\"_\"&T_sept_dec[[#This Row],[Enseignant référent (Nom Prénom)]]))","v":"Réseau_QUATREVINGTDIXSEPT"},{"$f":"1/COUNTIF(T_sept_dec[CléRéseau-Rize horsmed],T_sept_dec[[#This Row],[CléRéseau-Rize horsmed]])","v":0.5},{"$f":"IF(COUNTIF(RIZE,T_sept_dec[[#This Row],[Secteur organisateur]]),\"Rize_\"&T_sept_dec[[#This Row],[Enseignant référent (Nom Prénom)]],\"\")","v":"Rize_QUATREVINGTDIXSEPT"},{"$f":"1/COUNTIF(T_sept_dec[CléRize],T_sept_dec[[#This Row],[CléRize]])","v":0.5},{"$f":"IF(COUNTIF(Total,T_sept_dec[[#This Row],[Secteur organisateur]]),\"Total_\"&T_sept_dec[[#This Row],[Enseignant référent (Nom Prénom)]],\"\")","v":"Total_QUATREVINGTDIXSEPT"},{"$f":"1/COUNTIF(T_sept_dec[cléTotal],T_sept_dec[[#This Row],[cléTotal]])","v":0.5}]
["2017-10-09","RIZE VALO",null,"Emile Zola","ce1","QUATREVINGTDOUZE",25,"Hors les murs","Exploration sensorielle",null,null,{"$f":"IF(COUNTIF(Maternelle,E56)=1,listes!$T$1,IF(COUNTIF(Elémentaire,E56)=1,listes!$U$1,IF(COUNTIF(Collège,E56)=1,listes!$V$1,IF(COUNTIF(Lycée,E56)=1,listes!$W$1,\"\"))))","v":"Elémentaire"},{"$f":"VLOOKUP(T_sept_dec[[#This Row],[Etablissement scolaire]],Regroupements!$T:$U,2,FALSE)","v":"Gratte-ciel-Dedieu-Charmettes"},"RIZE",{"$f":"T_sept_dec[[#This Row],[Etablissement accueillant]]&\"-\"&T_sept_dec[[#This Row],[Enseignant référent (Nom Prénom)]]","v":"RIZE-QUATREVINGTDOUZE"},{"$f":"1/COUNTIF(T_sept_dec[CléEtablissement],T_sept_dec[[#This Row],[CléEtablissement]])","v":1},{"$f":"IF(COUNTIF(Réseau,T_sept_dec[[#This Row],[Secteur organisateur]]),\"Réseau_\"&T_sept_dec[[#This Row],[Enseignant référent (Nom Prénom)]], IF(COUNTIF(Rizehorsmed,T_sept_dec[[#This Row],[Secteur organisateur]]),\"Rizehorsmed_\"&T_sept_dec[[#This Row],[Enseignant référent (Nom Prénom)]], T_sept_dec[[#This Row],[Secteur organisateur]]&\"_\"&T_sept_dec[[#This Row],[Enseignant référent (Nom Prénom)]]))","v":"Rizehorsmed_QUATREVINGTDOUZE"},{"$f":"1/COUNTIF(T_sept_dec[CléRéseau-Rize horsmed],T_sept_dec[[#This Row],[CléRéseau-Rize horsmed]])","v":1},{"$f":"IF(COUNTIF(RIZE,T_sept_dec[[#This Row],[Secteur organisateur]]),\"Rize_\"&T_sept_dec[[#This Row],[Enseignant référent (Nom Prénom)]],\"\")","v":"Rize_QUATREVINGTDOUZE"},{"$f":"1/COUNTIF(T_sept_dec[CléRize],T_sept_dec[[#This Row],[CléRize]])","v":1},{"$f":"IF(COUNTIF(Total,T_sept_dec[[#This Row],[Secteur organisateur]]),\"Total_\"&T_sept_dec[[#This Row],[Enseignant référent (Nom Prénom)]],\"\")","v":"Total_QUATREVINGTDOUZE"},{"$f":"1/COUNTIF(T_sept_dec[cléTotal],T_sept_dec[[#This Row],[cléTotal]])","v":1}]
["2017-11-30","ARTO",null,"Jules Guesde","ce1/ce2","QUATREVINGTHUIT",26,"In situ","Et si on parlait d'art ?",null,null,{"$f":"IF(COUNTIF(Maternelle,E57)=1,listes!$T$1,IF(COUNTIF(Elémentaire,E57)=1,listes!$U$1,IF(COUNTIF(Collège,E57)=1,listes!$V$1,IF(COUNTIF(Lycée,E57)=1,listes!$W$1,\"\"))))","v":"Elémentaire"},{"$f":"VLOOKUP(T_sept_dec[[#This Row],[Etablissement scolaire]],Regroupements!$T:$U,2,FALSE)","v":"Cyprian-les-Brosses"},"MLIS",{"$f":"T_sept_dec[[#This Row],[Etablissement accueillant]]&\"-\"&T_sept_dec[[#This Row],[Enseignant référent (Nom Prénom)]]","v":"MLIS-QUATREVINGTHUIT"},{"$f":"1/COUNTIF(T_sept_dec[CléEtablissement],T_sept_dec[[#This Row],[CléEtablissement]])","v":0.5},{"$f":"IF(COUNTIF(Réseau,T_sept_dec[[#This Row],[Secteur organisateur]]),\"Réseau_\"&T_sept_dec[[#This Row],[Enseignant référent (Nom Prénom)]], IF(COUNTIF(Rizehorsmed,T_sept_dec[[#This Row],[Secteur organisateur]]),\"Rizehorsmed_\"&T_sept_dec[[#This Row],[Enseignant référent (Nom Prénom)]], T_sept_dec[[#This Row],[Secteur organisateur]]&\"_\"&T_sept_dec[[#This Row],[Enseignant référent (Nom Prénom)]]))","v":"Réseau_QUATREVINGTHUIT"},{"$f":"1/COUNTIF(T_sept_dec[CléRéseau-Rize horsmed],T_sept_dec[[#This Row],[CléRéseau-Rize horsmed]])","v":0.5},{"$f":"IF(COUNTIF(RIZE,T_sept_dec[[#This Row],[Secteur organisateur]]),\"Rize_\"&T_sept_dec[[#This Row],[Enseignant référent (Nom Prénom)]],\"\")","v":""},{"$f":"1/COUNTIF(T_sept_dec[CléRize],T_sept_dec[[#This Row],[CléRize]])","v":9.8039215686274508E-3},{"$f":"IF(COUNTIF(Total,T_sept_dec[[#This Row],[Secteur organisateur]]),\"Total_\"&T_sept_dec[[#This Row],[Enseignant référent (Nom Prénom)]],\"\")","v":"Total_QUATREVINGTHUIT"},{"$f":"1/COUNTIF(T_sept_dec[cléTotal],T_sept_dec[[#This Row],[cléTotal]])","v":0.5}]
["2017-11-30","MLIS J",null,"Jules Guesde","ce1/ce2","QUATREVINGTHUIT",26,"In situ","Visite à la carte",null,null,{"$f":"IF(COUNTIF(Maternelle,E58)=1,listes!$T$1,IF(COUNTIF(Elémentaire,E58)=1,listes!$U$1,IF(COUNTIF(Collège,E58)=1,listes!$V$1,IF(COUNTIF(Lycée,E58)=1,listes!$W$1,\"\"))))","v":"Elémentaire"},{"$f":"VLOOKUP(T_sept_dec[[#This Row],[Etablissement scolaire]],Regroupements!$T:$U,2,FALSE)","v":"Cyprian-les-Brosses"},"MLIS",{"$f":"T_sept_dec[[#This Row],[Etablissement accueillant]]&\"-\"&T_sept_dec[[#This Row],[Enseignant référent (Nom Prénom)]]","v":"MLIS-QUATREVINGTHUIT"},{"$f":"1/COUNTIF(T_sept_dec[CléEtablissement],T_sept_dec[[#This Row],[CléEtablissement]])","v":0.5},{"$f":"IF(COUNTIF(Réseau,T_sept_dec[[#This Row],[Secteur organisateur]]),\"Réseau_\"&T_sept_dec[[#This Row],[Enseignant référent (Nom Prénom)]], IF(COUNTIF(Rizehorsmed,T_sept_dec[[#This Row],[Secteur organisateur]]),\"Rizehorsmed_\"&T_sept_dec[[#This Row],[Enseignant référent (Nom Prénom)]], T_sept_dec[[#This Row],[Secteur organisateur]]&\"_\"&T_sept_dec[[#This Row],[Enseignant référent (Nom Prénom)]]))","v":"Réseau_QUATREVINGTHUIT"},{"$f":"1/COUNTIF(T_sept_dec[CléRéseau-Rize horsmed],T_sept_dec[[#This Row],[CléRéseau-Rize horsmed]])","v":0.5},{"$f":"IF(COUNTIF(RIZE,T_sept_dec[[#This Row],[Secteur organisateur]]),\"Rize_\"&T_sept_dec[[#This Row],[Enseignant référent (Nom Prénom)]],\"\")","v":""},{"$f":"1/COUNTIF(T_sept_dec[CléRize],T_sept_dec[[#This Row],[CléRize]])","v":9.8039215686274508E-3},{"$f":"IF(COUNTIF(Total,T_sept_dec[[#This Row],[Secteur organisateur]]),\"Total_\"&T_sept_dec[[#This Row],[Enseignant référent (Nom Prénom)]],\"\")","v":"Total_QUATREVINGTHUIT"},{"$f":"1/COUNTIF(T_sept_dec[cléTotal],T_sept_dec[[#This Row],[cléTotal]])","v":0.5}]
["2017-12-21","MTK",null,"Ecole juive de Lyon (privé)","ce1","QUATREVINGTNEUF",29,"In situ","Visite thématique",null,null,{"$f":"IF(COUNTIF(Maternelle,E59)=1,listes!$T$1,IF(COUNTIF(Elémentaire,E59)=1,listes!$U$1,IF(COUNTIF(Collège,E59)=1,listes!$V$1,IF(COUNTIF(Lycée,E59)=1,listes!$W$1,\"\"))))","v":"Elémentaire"},{"$f":"VLOOKUP(T_sept_dec[[#This Row],[Etablissement scolaire]],Regroupements!$T:$U,2,FALSE)","v":"Gratte-ciel-Dedieu-Charmettes"},"TONKIN",{"$f":"T_sept_dec[[#This Row],[Etablissement accueillant]]&\"-\"&T_sept_dec[[#This Row],[Enseignant référent (Nom Prénom)]]","v":"TONKIN-QUATREVINGTNEUF"},{"$f":"1/COUNTIF(T_sept_dec[CléEtablissement],T_sept_dec[[#This Row],[CléEtablissement]])","v":1},{"$f":"IF(COUNTIF(Réseau,T_sept_dec[[#This Row],[Secteur organisateur]]),\"Réseau_\"&T_sept_dec[[#This Row],[Enseignant référent (Nom Prénom)]], IF(COUNTIF(Rizehorsmed,T_sept_dec[[#This Row],[Secteur organisateur]]),\"Rizehorsmed_\"&T_sept_dec[[#This Row],[Enseignant référent (Nom Prénom)]], T_sept_dec[[#This Row],[Secteur organisateur]]&\"_\"&T_sept_dec[[#This Row],[Enseignant référent (Nom Prénom)]]))","v":"Réseau_QUATREVINGTNEUF"},{"$f":"1/COUNTIF(T_sept_dec[CléRéseau-Rize horsmed],T_sept_dec[[#This Row],[CléRéseau-Rize horsmed]])","v":1},{"$f":"IF(COUNTIF(RIZE,T_sept_dec[[#This Row],[Secteur organisateur]]),\"Rize_\"&T_sept_dec[[#This Row],[Enseignant référent (Nom Prénom)]],\"\")","v":""},{"$f":"1/COUNTIF(T_sept_dec[CléRize],T_sept_dec[[#This Row],[CléRize]])","v":9.8039215686274508E-3},{"$f":"IF(COUNTIF(Total,T_sept_dec[[#This Row],[Secteur organisateur]]),\"Total_\"&T_sept_dec[[#This Row],[Enseignant référent (Nom Prénom)]],\"\")","v":"Total_QUATREVINGTNEUF"},{"$f":"1/COUNTIF(T_sept_dec[cléTotal],T_sept_dec[[#This Row],[cléTotal]])","v":1}]
["2017-10-18","EMM",null,"Jules Ferry","cm2","QUATREVINGTONZE",24,"In situ","Coder avec Scratch",null,null,{"$f":"IF(COUNTIF(Maternelle,E60)=1,listes!$T$1,IF(COUNTIF(Elémentaire,E60)=1,listes!$U$1,IF(COUNTIF(Collège,E60)=1,listes!$V$1,IF(COUNTIF(Lycée,E60)=1,listes!$W$1,\"\"))))","v":"Elémentaire"},{"$f":"VLOOKUP(T_sept_dec[[#This Row],[Etablissement scolaire]],Regroupements!$T:$U,2,FALSE)","v":"Cusset-Bonnevay"},"MLIS",{"$f":"T_sept_dec[[#This Row],[Etablissement accueillant]]&\"-\"&T_sept_dec[[#This Row],[Enseignant référent (Nom Prénom)]]","v":"MLIS-QUATREVINGTONZE"},{"$f":"1/COUNTIF(T_sept_dec[CléEtablissement],T_sept_dec[[#This Row],[CléEtablissement]])","v":1},{"$f":"IF(COUNTIF(Réseau,T_sept_dec[[#This Row],[Secteur organisateur]]),\"Réseau_\"&T_sept_dec[[#This Row],[Enseignant référent (Nom Prénom)]], IF(COUNTIF(Rizehorsmed,T_sept_dec[[#This Row],[Secteur organisateur]]),\"Rizehorsmed_\"&T_sept_dec[[#This Row],[Enseignant référent (Nom Prénom)]], T_sept_dec[[#This Row],[Secteur organisateur]]&\"_\"&T_sept_dec[[#This Row],[Enseignant référent (Nom Prénom)]]))","v":"Réseau_QUATREVINGTONZE"},{"$f":"1/COUNTIF(T_sept_dec[CléRéseau-Rize horsmed],T_sept_dec[[#This Row],[CléRéseau-Rize horsmed]])","v":1},{"$f":"IF(COUNTIF(RIZE,T_sept_dec[[#This Row],[Secteur organisateur]]),\"Rize_\"&T_sept_dec[[#This Row],[Enseignant référent (Nom Prénom)]],\"\")","v":""},{"$f":"1/COUNTIF(T_sept_dec[CléRize],T_sept_dec[[#This Row],[CléRize]])","v":9.8039215686274508E-3},{"$f":"IF(COUNTIF(Total,T_sept_dec[[#This Row],[Secteur organisateur]]),\"Total_\"&T_sept_dec[[#This Row],[Enseignant référent (Nom Prénom)]],\"\")","v":"Total_QUATREVINGTONZE"},{"$f":"1/COUNTIF(T_sept_dec[cléTotal],T_sept_dec[[#This Row],[cléTotal]])","v":1}]
["2017-10-20","FDL",null,"Jules Guesde","ce1/ce2","QUATREVINGTQUATORZE",24,"In situ","Projet FDL",null,null,{"$f":"IF(COUNTIF(Maternelle,E61)=1,listes!$T$1,IF(COUNTIF(Elémentaire,E61)=1,listes!$U$1,IF(COUNTIF(Collège,E61)=1,listes!$V$1,IF(COUNTIF(Lycée,E61)=1,listes!$W$1,\"\"))))","v":"Elémentaire"},{"$f":"VLOOKUP(T_sept_dec[[#This Row],[Etablissement scolaire]],Regroupements!$T:$U,2,FALSE)","v":"Cyprian-les-Brosses"},"FDL",{"$f":"T_sept_dec[[#This Row],[Etablissement accueillant]]&\"-\"&T_sept_dec[[#This Row],[Enseignant référent (Nom Prénom)]]","v":"FDL-QUATREVINGTQUATORZE"},{"$f":"1/COUNTIF(T_sept_dec[CléEtablissement],T_sept_dec[[#This Row],[CléEtablissement]])","v":1},{"$f":"IF(COUNTIF(Réseau,T_sept_dec[[#This Row],[Secteur organisateur]]),\"Réseau_\"&T_sept_dec[[#This Row],[Enseignant référent (Nom Prénom)]], IF(COUNTIF(Rizehorsmed,T_sept_dec[[#This Row],[Secteur organisateur]]),\"Rizehorsmed_\"&T_sept_dec[[#This Row],[Enseignant référent (Nom Prénom)]], T_sept_dec[[#This Row],[Secteur organisateur]]&\"_\"&T_sept_dec[[#This Row],[Enseignant référent (Nom Prénom)]]))","v":"FDL_QUATREVINGTQUATORZE"},{"$f":"1/COUNTIF(T_sept_dec[CléRéseau-Rize horsmed],T_sept_dec[[#This Row],[CléRéseau-Rize horsmed]])","v":1},{"$f":"IF(COUNTIF(RIZE,T_sept_dec[[#This Row],[Secteur organisateur]]),\"Rize_\"&T_sept_dec[[#This Row],[Enseignant référent (Nom Prénom)]],\"\")","v":""},{"$f":"1/COUNTIF(T_sept_dec[CléRize],T_sept_dec[[#This Row],[CléRize]])","v":9.8039215686274508E-3},{"$f":"IF(COUNTIF(Total,T_sept_dec[[#This Row],[Secteur organisateur]]),\"Total_\"&T_sept_dec[[#This Row],[Enseignant référent (Nom Prénom)]],\"\")","v":"Total_QUATREVINGTQUATORZE"},{"$f":"1/COUNTIF(T_sept_dec[cléTotal],T_sept_dec[[#This Row],[cléTotal]])","v":0.33333333333333331}]
["2017-12-19","ARTO",null,"Jules Guesde","ce1/ce2","QUATREVINGTQUATORZE",25,"In situ","Et si on parlait d'art ?",null,null,{"$f":"IF(COUNTIF(Maternelle,E62)=1,listes!$T$1,IF(COUNTIF(Elémentaire,E62)=1,listes!$U$1,IF(COUNTIF(Collège,E62)=1,listes!$V$1,IF(COUNTIF(Lycée,E62)=1,listes!$W$1,\"\"))))","v":"Elémentaire"},{"$f":"VLOOKUP(T_sept_dec[[#This Row],[Etablissement scolaire]],Regroupements!$T:$U,2,FALSE)","v":"Cyprian-les-Brosses"},"MLIS",{"$f":"T_sept_dec[[#This Row],[Etablissement accueillant]]&\"-\"&T_sept_dec[[#This Row],[Enseignant référent (Nom Prénom)]]","v":"MLIS-QUATREVINGTQUATORZE"},{"$f":"1/COUNTIF(T_sept_dec[CléEtablissement],T_sept_dec[[#This Row],[CléEtablissement]])","v":0.5},{"$f":"IF(COUNTIF(Réseau,T_sept_dec[[#This Row],[Secteur organisateur]]),\"Réseau_\"&T_sept_dec[[#This Row],[Enseignant référent (Nom Prénom)]], IF(COUNTIF(Rizehorsmed,T_sept_dec[[#This Row],[Secteur organisateur]]),\"Rizehorsmed_\"&T_sept_dec[[#This Row],[Enseignant référent (Nom Prénom)]], T_sept_dec[[#This Row],[Secteur organisateur]]&\"_\"&T_sept_dec[[#This Row],[Enseignant référent (Nom Prénom)]]))","v":"Réseau_QUATREVINGTQUATORZE"},{"$f":"1/COUNTIF(T_sept_dec[CléRéseau-Rize horsmed],T_sept_dec[[#This Row],[CléRéseau-Rize horsmed]])","v":0.5},{"$f":"IF(COUNTIF(RIZE,T_sept_dec[[#This Row],[Secteur organisateur]]),\"Rize_\"&T_sept_dec[[#This Row],[Enseignant référent (Nom Prénom)]],\"\")","v":""},{"$f":"1/COUNTIF(T_sept_dec[CléRize],T_sept_dec[[#This Row],[CléRize]])","v":9.8039215686274508E-3},{"$f":"IF(COUNTIF(Total,T_sept_dec[[#This Row],[Secteur organisateur]]),\"Total_\"&T_sept_dec[[#This Row],[Enseignant référent (Nom Prénom)]],\"\")","v":"Total_QUATREVINGTQUATORZE"},{"$f":"1/COUNTIF(T_sept_dec[cléTotal],T_sept_dec[[#This Row],[cléTotal]])","v":0.33333333333333331}]
["2017-12-19","MLIS J",null,"Jules Guesde","ce1/ce2","QUATREVINGTQUATORZE",24,"In situ","Visite à la carte",null,null,{"$f":"IF(COUNTIF(Maternelle,E63)=1,listes!$T$1,IF(COUNTIF(Elémentaire,E63)=1,listes!$U$1,IF(COUNTIF(Collège,E63)=1,listes!$V$1,IF(COUNTIF(Lycée,E63)=1,listes!$W$1,\"\"))))","v":"Elémentaire"},{"$f":"VLOOKUP(T_sept_dec[[#This Row],[Etablissement scolaire]],Regroupements!$T:$U,2,FALSE)","v":"Cyprian-les-Brosses"},"MLIS",{"$f":"T_sept_dec[[#This Row],[Etablissement accueillant]]&\"-\"&T_sept_dec[[#This Row],[Enseignant référent (Nom Prénom)]]","v":"MLIS-QUATREVINGTQUATORZE"},{"$f":"1/COUNTIF(T_sept_dec[CléEtablissement],T_sept_dec[[#This Row],[CléEtablissement]])","v":0.5},{"$f":"IF(COUNTIF(Réseau,T_sept_dec[[#This Row],[Secteur organisateur]]),\"Réseau_\"&T_sept_dec[[#This Row],[Enseignant référent (Nom Prénom)]], IF(COUNTIF(Rizehorsmed,T_sept_dec[[#This Row],[Secteur organisateur]]),\"Rizehorsmed_\"&T_sept_dec[[#This Row],[Enseignant référent (Nom Prénom)]], T_sept_dec[[#This Row],[Secteur organisateur]]&\"_\"&T_sept_dec[[#This Row],[Enseignant référent (Nom Prénom)]]))","v":"Réseau_QUATREVINGTQUATORZE"},{"$f":"1/COUNTIF(T_sept_dec[CléRéseau-Rize horsmed],T_sept_dec[[#This Row],[CléRéseau-Rize horsmed]])","v":0.5},{"$f":"IF(COUNTIF(RIZE,T_sept_dec[[#This Row],[Secteur organisateur]]),\"Rize_\"&T_sept_dec[[#This Row],[Enseignant référent (Nom Prénom)]],\"\")","v":""},{"$f":"1/COUNTIF(T_sept_dec[CléRize],T_sept_dec[[#This Row],[CléRize]])","v":9.8039215686274508E-3},{"$f":"IF(COUNTIF(Total,T_sept_dec[[#This Row],[Secteur organisateur]]),\"Total_\"&T_sept_dec[[#This Row],[Enseignant référent (Nom Prénom)]],\"\")","v":"Total_QUATREVINGTQUATORZE"},{"$f":"1/COUNTIF(T_sept_dec[cléTotal],T_sept_dec[[#This Row],[cléTotal]])","v":0.33333333333333331}]
["2017-10-16","FDL",null,"Jules Guesde","cm1/cm2","QUATREVINGTQUATRE",23,"In situ","Projet FDL",null,null,{"$f":"IF(COUNTIF(Maternelle,E64)=1,listes!$T$1,IF(COUNTIF(Elémentaire,E64)=1,listes!$U$1,IF(COUNTIF(Collège,E64)=1,listes!$V$1,IF(COUNTIF(Lycée,E64)=1,listes!$W$1,\"\"))))","v":"Elémentaire"},{"$f":"VLOOKUP(T_sept_dec[[#This Row],[Etablissement scolaire]],Regroupements!$T:$U,2,FALSE)","v":"Cyprian-les-Brosses"},"FDL",{"$f":"T_sept_dec[[#This Row],[Etablissement accueillant]]&\"-\"&T_sept_dec[[#This Row],[Enseignant référent (Nom Prénom)]]","v":"FDL-QUATREVINGTQUATRE"},{"$f":"1/COUNTIF(T_sept_dec[CléEtablissement],T_sept_dec[[#This Row],[CléEtablissement]])","v":1},{"$f":"IF(COUNTIF(Réseau,T_sept_dec[[#This Row],[Secteur organisateur]]),\"Réseau_\"&T_sept_dec[[#This Row],[Enseignant référent (Nom Prénom)]], IF(COUNTIF(Rizehorsmed,T_sept_dec[[#This Row],[Secteur organisateur]]),\"Rizehorsmed_\"&T_sept_dec[[#This Row],[Enseignant référent (Nom Prénom)]], T_sept_dec[[#This Row],[Secteur organisateur]]&\"_\"&T_sept_dec[[#This Row],[Enseignant référent (Nom Prénom)]]))","v":"FDL_QUATREVINGTQUATRE"},{"$f":"1/COUNTIF(T_sept_dec[CléRéseau-Rize horsmed],T_sept_dec[[#This Row],[CléRéseau-Rize horsmed]])","v":1},{"$f":"IF(COUNTIF(RIZE,T_sept_dec[[#This Row],[Secteur organisateur]]),\"Rize_\"&T_sept_dec[[#This Row],[Enseignant référent (Nom Prénom)]],\"\")","v":""},{"$f":"1/COUNTIF(T_sept_dec[CléRize],T_sept_dec[[#This Row],[CléRize]])","v":9.8039215686274508E-3},{"$f":"IF(COUNTIF(Total,T_sept_dec[[#This Row],[Secteur organisateur]]),\"Total_\"&T_sept_dec[[#This Row],[Enseignant référent (Nom Prénom)]],\"\")","v":"Total_QUATREVINGTQUATRE"},{"$f":"1/COUNTIF(T_sept_dec[cléTotal],T_sept_dec[[#This Row],[cléTotal]])","v":1}]
["2017-11-08","EMM",null,"Jean Zay","cm2","QUATREVINGTQUINZE",25,"In situ","Coder avec Scratch",null,null,{"$f":"IF(COUNTIF(Maternelle,E65)=1,listes!$T$1,IF(COUNTIF(Elémentaire,E65)=1,listes!$U$1,IF(COUNTIF(Collège,E65)=1,listes!$V$1,IF(COUNTIF(Lycée,E65)=1,listes!$W$1,\"\"))))","v":"Elémentaire"},{"$f":"VLOOKUP(T_sept_dec[[#This Row],[Etablissement scolaire]],Regroupements!$T:$U,2,FALSE)","v":"Gratte-ciel-Dedieu-Charmettes"},"MLIS",{"$f":"T_sept_dec[[#This Row],[Etablissement accueillant]]&\"-\"&T_sept_dec[[#This Row],[Enseignant référent (Nom Prénom)]]","v":"MLIS-QUATREVINGTQUINZE"},{"$f":"1/COUNTIF(T_sept_dec[CléEtablissement],T_sept_dec[[#This Row],[CléEtablissement]])","v":1},{"$f":"IF(COUNTIF(Réseau,T_sept_dec[[#This Row],[Secteur organisateur]]),\"Réseau_\"&T_sept_dec[[#This Row],[Enseignant référent (Nom Prénom)]], IF(COUNTIF(Rizehorsmed,T_sept_dec[[#This Row],[Secteur organisateur]]),\"Rizehorsmed_\"&T_sept_dec[[#This Row],[Enseignant référent (Nom Prénom)]], T_sept_dec[[#This Row],[Secteur organisateur]]&\"_\"&T_sept_dec[[#This Row],[Enseignant référent (Nom Prénom)]]))","v":"Réseau_QUATREVINGTQUINZE"},{"$f":"1/COUNTIF(T_sept_dec[CléRéseau-Rize horsmed],T_sept_dec[[#This Row],[CléRéseau-Rize horsmed]])","v":1},{"$f":"IF(COUNTIF(RIZE,T_sept_dec[[#This Row],[Secteur organisateur]]),\"Rize_\"&T_sept_dec[[#This Row],[Enseignant référent (Nom Prénom)]],\"\")","v":""},{"$f":"1/COUNTIF(T_sept_dec[CléRize],T_sept_dec[[#This Row],[CléRize]])","v":9.8039215686274508E-3},{"$f":"IF(COUNTIF(Total,T_sept_dec[[#This Row],[Secteur organisateur]]),\"Total_\"&T_sept_dec[[#This Row],[Enseignant référent (Nom Prénom)]],\"\")","v":"Total_QUATREVINGTQUINZE"},{"$f":"1/COUNTIF(T_sept_dec[cléTotal],T_sept_dec[[#This Row],[cléTotal]])","v":1}]
["2017-10-16","FDL",null,"Jules Guesde","cp","QUATREVINGTSEIZE",24,"In situ","Projet FDL",null,null,{"$f":"IF(COUNTIF(Maternelle,E66)=1,listes!$T$1,IF(COUNTIF(Elémentaire,E66)=1,listes!$U$1,IF(COUNTIF(Collège,E66)=1,listes!$V$1,IF(COUNTIF(Lycée,E66)=1,listes!$W$1,\"\"))))","v":"Elémentaire"},{"$f":"VLOOKUP(T_sept_dec[[#This Row],[Etablissement scolaire]],Regroupements!$T:$U,2,FALSE)","v":"Cyprian-les-Brosses"},{"$f":"IF(COUNTIF(FDL,B66)=1,\"FDL\",IF(COUNTIF(RIZE,B66)=1,\"RIZE\",IF(COUNTIF(MLIS,B66)=1,\"MLIS\",IF(COUNTIF(PACBUS,B66)=1,\"PAC-BUS\",IF(COUNTIF(Tonkin,B66)=1,\"TONKIN\",\"\")))))","v":"FDL"},{"$f":"T_sept_dec[[#This Row],[Etablissement accueillant]]&\"-\"&T_sept_dec[[#This Row],[Enseignant référent (Nom Prénom)]]","v":"FDL-QUATREVINGTSEIZE"},{"$f":"1/COUNTIF(T_sept_dec[CléEtablissement],T_sept_dec[[#This Row],[CléEtablissement]])","v":0.25},{"$f":"IF(COUNTIF(Réseau,T_sept_dec[[#This Row],[Secteur organisateur]]),\"Réseau_\"&T_sept_dec[[#This Row],[Enseignant référent (Nom Prénom)]], IF(COUNTIF(Rizehorsmed,T_sept_dec[[#This Row],[Secteur organisateur]]),\"Rizehorsmed_\"&T_sept_dec[[#This Row],[Enseignant référent (Nom Prénom)]], T_sept_dec[[#This Row],[Secteur organisateur]]&\"_\"&T_sept_dec[[#This Row],[Enseignant référent (Nom Prénom)]]))","v":"FDL_QUATREVINGTSEIZE"},{"$f":"1/COUNTIF(T_sept_dec[CléRéseau-Rize horsmed],T_sept_dec[[#This Row],[CléRéseau-Rize horsmed]])","v":0.25},{"$f":"IF(COUNTIF(RIZE,T_sept_dec[[#This Row],[Secteur organisateur]]),\"Rize_\"&T_sept_dec[[#This Row],[Enseignant référent (Nom Prénom)]],\"\")","v":""},{"$f":"1/COUNTIF(T_sept_dec[CléRize],T_sept_dec[[#This Row],[CléRize]])","v":9.8039215686274508E-3},{"$f":"IF(COUNTIF(Total,T_sept_dec[[#This Row],[Secteur organisateur]]),\"Total_\"&T_sept_dec[[#This Row],[Enseignant référent (Nom Prénom)]],\"\")","v":"Total_QUATREVINGTSEIZE"},{"$f":"1/COUNTIF(T_sept_dec[cléTotal],T_sept_dec[[#This Row],[cléTotal]])","v":0.25}]
["2017-10-17","FDL",null,"Jules Guesde","cp","QUATREVINGTSEIZE",24,"In situ","Projet FDL",null,null,{"$f":"IF(COUNTIF(Maternelle,E67)=1,listes!$T$1,IF(COUNTIF(Elémentaire,E67)=1,listes!$U$1,IF(COUNTIF(Collège,E67)=1,listes!$V$1,IF(COUNTIF(Lycée,E67)=1,listes!$W$1,\"\"))))","v":"Elémentaire"},{"$f":"VLOOKUP(T_sept_dec[[#This Row],[Etablissement scolaire]],Regroupements!$T:$U,2,FALSE)","v":"Cyprian-les-Brosses"},"FDL",{"$f":"T_sept_dec[[#This Row],[Etablissement accueillant]]&\"-\"&T_sept_dec[[#This Row],[Enseignant référent (Nom Prénom)]]","v":"FDL-QUATREVINGTSEIZE"},{"$f":"1/COUNTIF(T_sept_dec[CléEtablissement],T_sept_dec[[#This Row],[CléEtablissement]])","v":0.25},{"$f":"IF(COUNTIF(Réseau,T_sept_dec[[#This Row],[Secteur organisateur]]),\"Réseau_\"&T_sept_dec[[#This Row],[Enseignant référent (Nom Prénom)]], IF(COUNTIF(Rizehorsmed,T_sept_dec[[#This Row],[Secteur organisateur]]),\"Rizehorsmed_\"&T_sept_dec[[#This Row],[Enseignant référent (Nom Prénom)]], T_sept_dec[[#This Row],[Secteur organisateur]]&\"_\"&T_sept_dec[[#This Row],[Enseignant référent (Nom Prénom)]]))","v":"FDL_QUATREVINGTSEIZE"},{"$f":"1/COUNTIF(T_sept_dec[CléRéseau-Rize horsmed],T_sept_dec[[#This Row],[CléRéseau-Rize horsmed]])","v":0.25},{"$f":"IF(COUNTIF(RIZE,T_sept_dec[[#This Row],[Secteur organisateur]]),\"Rize_\"&T_sept_dec[[#This Row],[Enseignant référent (Nom Prénom)]],\"\")","v":""},{"$f":"1/COUNTIF(T_sept_dec[CléRize],T_sept_dec[[#This Row],[CléRize]])","v":9.8039215686274508E-3},{"$f":"IF(COUNTIF(Total,T_sept_dec[[#This Row],[Secteur organisateur]]),\"Total_\"&T_sept_dec[[#This Row],[Enseignant référent (Nom Prénom)]],\"\")","v":"Total_QUATREVINGTSEIZE"},{"$f":"1/COUNTIF(T_sept_dec[cléTotal],T_sept_dec[[#This Row],[cléTotal]])","v":0.25}]
["2017-10-18","FDL",null,"Jules Guesde","cp","QUATREVINGTSEIZE",24,"In situ","Projet FDL",null,null,{"$f":"IF(COUNTIF(Maternelle,E68)=1,listes!$T$1,IF(COUNTIF(Elémentaire,E68)=1,listes!$U$1,IF(COUNTIF(Collège,E68)=1,listes!$V$1,IF(COUNTIF(Lycée,E68)=1,listes!$W$1,\"\"))))","v":"Elémentaire"},{"$f":"VLOOKUP(T_sept_dec[[#This Row],[Etablissement scolaire]],Regroupements!$T:$U,2,FALSE)","v":"Cyprian-les-Brosses"},"FDL",{"$f":"T_sept_dec[[#This Row],[Etablissement accueillant]]&\"-\"&T_sept_dec[[#This Row],[Enseignant référent (Nom Prénom)]]","v":"FDL-QUATREVINGTSEIZE"},{"$f":"1/COUNTIF(T_sept_dec[CléEtablissement],T_sept_dec[[#This Row],[CléEtablissement]])","v":0.25},{"$f":"IF(COUNTIF(Réseau,T_sept_dec[[#This Row],[Secteur organisateur]]),\"Réseau_\"&T_sept_dec[[#This Row],[Enseignant référent (Nom Prénom)]], IF(COUNTIF(Rizehorsmed,T_sept_dec[[#This Row],[Secteur organisateur]]),\"Rizehorsmed_\"&T_sept_dec[[#This Row],[Enseignant référent (Nom Prénom)]], T_sept_dec[[#This Row],[Secteur organisateur]]&\"_\"&T_sept_dec[[#This Row],[Enseignant référent (Nom Prénom)]]))","v":"FDL_QUATREVINGTSEIZE"},{"$f":"1/COUNTIF(T_sept_dec[CléRéseau-Rize horsmed],T_sept_dec[[#This Row],[CléRéseau-Rize horsmed]])","v":0.25},{"$f":"IF(COUNTIF(RIZE,T_sept_dec[[#This Row],[Secteur organisateur]]),\"Rize_\"&T_sept_dec[[#This Row],[Enseignant référent (Nom Prénom)]],\"\")","v":""},{"$f":"1/COUNTIF(T_sept_dec[CléRize],T_sept_dec[[#This Row],[CléRize]])","v":9.8039215686274508E-3},{"$f":"IF(COUNTIF(Total,T_sept_dec[[#This Row],[Secteur organisateur]]),\"Total_\"&T_sept_dec[[#This Row],[Enseignant référent (Nom Prénom)]],\"\")","v":"Total_QUATREVINGTSEIZE"},{"$f":"1/COUNTIF(T_sept_dec[cléTotal],T_sept_dec[[#This Row],[cléTotal]])","v":0.25}]
["2017-10-19","FDL",null,"Jules Guesde","cp","QUATREVINGTSEIZE",24,"In situ","Projet FDL",null,null,{"$f":"IF(COUNTIF(Maternelle,E69)=1,listes!$T$1,IF(COUNTIF(Elémentaire,E69)=1,listes!$U$1,IF(COUNTIF(Collège,E69)=1,listes!$V$1,IF(COUNTIF(Lycée,E69)=1,listes!$W$1,\"\"))))","v":"Elémentaire"},{"$f":"VLOOKUP(T_sept_dec[[#This Row],[Etablissement scolaire]],Regroupements!$T:$U,2,FALSE)","v":"Cyprian-les-Brosses"},"FDL",{"$f":"T_sept_dec[[#This Row],[Etablissement accueillant]]&\"-\"&T_sept_dec[[#This Row],[Enseignant référent (Nom Prénom)]]","v":"FDL-QUATREVINGTSEIZE"},{"$f":"1/COUNTIF(T_sept_dec[CléEtablissement],T_sept_dec[[#This Row],[CléEtablissement]])","v":0.25},{"$f":"IF(COUNTIF(Réseau,T_sept_dec[[#This Row],[Secteur organisateur]]),\"Réseau_\"&T_sept_dec[[#This Row],[Enseignant référent (Nom Prénom)]], IF(COUNTIF(Rizehorsmed,T_sept_dec[[#This Row],[Secteur organisateur]]),\"Rizehorsmed_\"&T_sept_dec[[#This Row],[Enseignant référent (Nom Prénom)]], T_sept_dec[[#This Row],[Secteur organisateur]]&\"_\"&T_sept_dec[[#This Row],[Enseignant référent (Nom Prénom)]]))","v":"FDL_QUATREVINGTSEIZE"},{"$f":"1/COUNTIF(T_sept_dec[CléRéseau-Rize horsmed],T_sept_dec[[#This Row],[CléRéseau-Rize horsmed]])","v":0.25},{"$f":"IF(COUNTIF(RIZE,T_sept_dec[[#This Row],[Secteur organisateur]]),\"Rize_\"&T_sept_dec[[#This Row],[Enseignant référent (Nom Prénom)]],\"\")","v":""},{"$f":"1/COUNTIF(T_sept_dec[CléRize],T_sept_dec[[#This Row],[CléRize]])","v":9.8039215686274508E-3},{"$f":"IF(COUNTIF(Total,T_sept_dec[[#This Row],[Secteur organisateur]]),\"Total_\"&T_sept_dec[[#This Row],[Enseignant référent (Nom Prénom)]],\"\")","v":"Total_QUATREVINGTSEIZE"},{"$f":"1/COUNTIF(T_sept_dec[cléTotal],T_sept_dec[[#This Row],[cléTotal]])","v":0.25}]
["2017-11-24","MTK",null,"Lakanal","cp/ce1","QUATREVINGTSEPT",24,"In situ","Visite à la carte",null,null,{"$f":"IF(COUNTIF(Maternelle,E70)=1,listes!$T$1,IF(COUNTIF(Elémentaire,E70)=1,listes!$U$1,IF(COUNTIF(Collège,E70)=1,listes!$V$1,IF(COUNTIF(Lycée,E70)=1,listes!$W$1,\"\"))))","v":"Elémentaire"},{"$f":"VLOOKUP(T_sept_dec[[#This Row],[Etablissement scolaire]],Regroupements!$T:$U,2,FALSE)","v":"Charpennes-Tonkin"},"TONKIN",{"$f":"T_sept_dec[[#This Row],[Etablissement accueillant]]&\"-\"&T_sept_dec[[#This Row],[Enseignant référent (Nom Prénom)]]","v":"TONKIN-QUATREVINGTSEPT"},{"$f":"1/COUNTIF(T_sept_dec[CléEtablissement],T_sept_dec[[#This Row],[CléEtablissement]])","v":1},{"$f":"IF(COUNTIF(Réseau,T_sept_dec[[#This Row],[Secteur organisateur]]),\"Réseau_\"&T_sept_dec[[#This Row],[Enseignant référent (Nom Prénom)]], IF(COUNTIF(Rizehorsmed,T_sept_dec[[#This Row],[Secteur organisateur]]),\"Rizehorsmed_\"&T_sept_dec[[#This Row],[Enseignant référent (Nom Prénom)]], T_sept_dec[[#This Row],[Secteur organisateur]]&\"_\"&T_sept_dec[[#This Row],[Enseignant référent (Nom Prénom)]]))","v":"Réseau_QUATREVINGTSEPT"},{"$f":"1/COUNTIF(T_sept_dec[CléRéseau-Rize horsmed],T_sept_dec[[#This Row],[CléRéseau-Rize horsmed]])","v":1},{"$f":"IF(COUNTIF(RIZE,T_sept_dec[[#This Row],[Secteur organisateur]]),\"Rize_\"&T_sept_dec[[#This Row],[Enseignant référent (Nom Prénom)]],\"\")","v":""},{"$f":"1/COUNTIF(T_sept_dec[CléRize],T_sept_dec[[#This Row],[CléRize]])","v":9.8039215686274508E-3},{"$f":"IF(COUNTIF(Total,T_sept_dec[[#This Row],[Secteur organisateur]]),\"Total_\"&T_sept_dec[[#This Row],[Enseignant référent (Nom Prénom)]],\"\")","v":"Total_QUATREVINGTSEPT"},{"$f":"1/COUNTIF(T_sept_dec[cléTotal],T_sept_dec[[#This Row],[cléTotal]])","v":1}]
["2017-11-10","EMM",null,"Louis Armand","cm1/cm2","QUATREVINGTSIX",30,"In situ","Stop motion",null,null,{"$f":"IF(COUNTIF(Maternelle,E71)=1,listes!$T$1,IF(COUNTIF(Elémentaire,E71)=1,listes!$U$1,IF(COUNTIF(Collège,E71)=1,listes!$V$1,IF(COUNTIF(Lycée,E71)=1,listes!$W$1,\"\"))))","v":"Elémentaire"},{"$f":"VLOOKUP(T_sept_dec[[#This Row],[Etablissement scolaire]],Regroupements!$T:$U,2,FALSE)","v":"Charpennes-Tonkin"},"MLIS",{"$f":"T_sept_dec[[#This Row],[Etablissement accueillant]]&\"-\"&T_sept_dec[[#This Row],[Enseignant référent (Nom Prénom)]]","v":"MLIS-QUATREVINGTSIX"},{"$f":"1/COUNTIF(T_sept_dec[CléEtablissement],T_sept_dec[[#This Row],[CléEtablissement]])","v":1},{"$f":"IF(COUNTIF(Réseau,T_sept_dec[[#This Row],[Secteur organisateur]]),\"Réseau_\"&T_sept_dec[[#This Row],[Enseignant référent (Nom Prénom)]], IF(COUNTIF(Rizehorsmed,T_sept_dec[[#This Row],[Secteur organisateur]]),\"Rizehorsmed_\"&T_sept_dec[[#This Row],[Enseignant référent (Nom Prénom)]], T_sept_dec[[#This Row],[Secteur organisateur]]&\"_\"&T_sept_dec[[#This Row],[Enseignant référent (Nom Prénom)]]))","v":"Réseau_QUATREVINGTSIX"},{"$f":"1/COUNTIF(T_sept_dec[CléRéseau-Rize horsmed],T_sept_dec[[#This Row],[CléRéseau-Rize horsmed]])","v":1},{"$f":"IF(COUNTIF(RIZE,T_sept_dec[[#This Row],[Secteur organisateur]]),\"Rize_\"&T_sept_dec[[#This Row],[Enseignant référent (Nom Prénom)]],\"\")","v":""},{"$f":"1/COUNTIF(T_sept_dec[CléRize],T_sept_dec[[#This Row],[CléRize]])","v":9.8039215686274508E-3},{"$f":"IF(COUNTIF(Total,T_sept_dec[[#This Row],[Secteur organisateur]]),\"Total_\"&T_sept_dec[[#This Row],[Enseignant référent (Nom Prénom)]],\"\")","v":"Total_QUATREVINGTSIX"},{"$f":"1/COUNTIF(T_sept_dec[cléTotal],T_sept_dec[[#This Row],[cléTotal]])","v":1}]
["2017-11-24","ARTO",null,"Rosa Parks","cp","QUATREVINGTTREIZE",26,"In situ","Il était une fois l'art contemporain",null,null,{"$f":"IF(COUNTIF(Maternelle,E72)=1,listes!$T$1,IF(COUNTIF(Elémentaire,E72)=1,listes!$U$1,IF(COUNTIF(Collège,E72)=1,listes!$V$1,IF(COUNTIF(Lycée,E72)=1,listes!$W$1,\"\"))))","v":"Elémentaire"},{"$f":"VLOOKUP(T_sept_dec[[#This Row],[Etablissement scolaire]],Regroupements!$T:$U,2,FALSE)","v":"Gratte-ciel-Dedieu-Charmettes"},"MLIS",{"$f":"T_sept_dec[[#This Row],[Etablissement accueillant]]&\"-\"&T_sept_dec[[#This Row],[Enseignant référent (Nom Prénom)]]","v":"MLIS-QUATREVINGTTREIZE"},{"$f":"1/COUNTIF(T_sept_dec[CléEtablissement],T_sept_dec[[#This Row],[CléEtablissement]])","v":1},{"$f":"IF(COUNTIF(Réseau,T_sept_dec[[#This Row],[Secteur organisateur]]),\"Réseau_\"&T_sept_dec[[#This Row],[Enseignant référent (Nom Prénom)]], IF(COUNTIF(Rizehorsmed,T_sept_dec[[#This Row],[Secteur organisateur]]),\"Rizehorsmed_\"&T_sept_dec[[#This Row],[Enseignant référent (Nom Prénom)]], T_sept_dec[[#This Row],[Secteur organisateur]]&\"_\"&T_sept_dec[[#This Row],[Enseignant référent (Nom Prénom)]]))","v":"Réseau_QUATREVINGTTREIZE"},{"$f":"1/COUNTIF(T_sept_dec[CléRéseau-Rize horsmed],T_sept_dec[[#This Row],[CléRéseau-Rize horsmed]])","v":1},{"$f":"IF(COUNTIF(RIZE,T_sept_dec[[#This Row],[Secteur organisateur]]),\"Rize_\"&T_sept_dec[[#This Row],[Enseignant référent (Nom Prénom)]],\"\")","v":""},{"$f":"1/COUNTIF(T_sept_dec[CléRize],T_sept_dec[[#This Row],[CléRize]])","v":9.8039215686274508E-3},{"$f":"IF(COUNTIF(Total,T_sept_dec[[#This Row],[Secteur organisateur]]),\"Total_\"&T_sept_dec[[#This Row],[Enseignant référent (Nom Prénom)]],\"\")","v":"Total_QUATREVINGTTREIZE"},{"$f":"1/COUNTIF(T_sept_dec[cléTotal],T_sept_dec[[#This Row],[cléTotal]])","v":1}]
["2017-11-29","MLIS J",null,"Lazare Goujon","ULIS (école)","QUATREVINGTTROIS",12,"In situ","Visite à la carte",null,null,{"$f":"IF(COUNTIF(Maternelle,E73)=1,listes!$T$1,IF(COUNTIF(Elémentaire,E73)=1,listes!$U$1,IF(COUNTIF(Collège,E73)=1,listes!$V$1,IF(COUNTIF(Lycée,E73)=1,listes!$W$1,\"\"))))","v":"Elémentaire"},{"$f":"VLOOKUP(T_sept_dec[[#This Row],[Etablissement scolaire]],Regroupements!$T:$U,2,FALSE)","v":"Cusset-Bonnevay"},"MLIS",{"$f":"T_sept_dec[[#This Row],[Etablissement accueillant]]&\"-\"&T_sept_dec[[#This Row],[Enseignant référent (Nom Prénom)]]","v":"MLIS-QUATREVINGTTROIS"},{"$f":"1/COUNTIF(T_sept_dec[CléEtablissement],T_sept_dec[[#This Row],[CléEtablissement]])","v":1},{"$f":"IF(COUNTIF(Réseau,T_sept_dec[[#This Row],[Secteur organisateur]]),\"Réseau_\"&T_sept_dec[[#This Row],[Enseignant référent (Nom Prénom)]], IF(COUNTIF(Rizehorsmed,T_sept_dec[[#This Row],[Secteur organisateur]]),\"Rizehorsmed_\"&T_sept_dec[[#This Row],[Enseignant référent (Nom Prénom)]], T_sept_dec[[#This Row],[Secteur organisateur]]&\"_\"&T_sept_dec[[#This Row],[Enseignant référent (Nom Prénom)]]))","v":"Réseau_QUATREVINGTTROIS"},{"$f":"1/COUNTIF(T_sept_dec[CléRéseau-Rize horsmed],T_sept_dec[[#This Row],[CléRéseau-Rize horsmed]])","v":1},{"$f":"IF(COUNTIF(RIZE,T_sept_dec[[#This Row],[Secteur organisateur]]),\"Rize_\"&T_sept_dec[[#This Row],[Enseignant référent (Nom Prénom)]],\"\")","v":""},{"$f":"1/COUNTIF(T_sept_dec[CléRize],T_sept_dec[[#This Row],[CléRize]])","v":9.8039215686274508E-3},{"$f":"IF(COUNTIF(Total,T_sept_dec[[#This Row],[Secteur organisateur]]),\"Total_\"&T_sept_dec[[#This Row],[Enseignant référent (Nom Prénom)]],\"\")","v":"Total_QUATREVINGTTROIS"},{"$f":"1/COUNTIF(T_sept_dec[cléTotal],T_sept_dec[[#This Row],[cléTotal]])","v":1}]
["2017-11-14","PAC-BUS",null,"Jules Guesde","cp","QUATREVINGTUN",24,"Hors les murs","Visite découverte",null,null,{"$f":"IF(COUNTIF(Maternelle,E74)=1,listes!$T$1,IF(COUNTIF(Elémentaire,E74)=1,listes!$U$1,IF(COUNTIF(Collège,E74)=1,listes!$V$1,IF(COUNTIF(Lycée,E74)=1,listes!$W$1,\"\"))))","v":"Elémentaire"},{"$f":"VLOOKUP(T_sept_dec[[#This Row],[Etablissement scolaire]],Regroupements!$T:$U,2,FALSE)","v":"Cyprian-les-Brosses"},"PAC-BUS",{"$f":"T_sept_dec[[#This Row],[Etablissement accueillant]]&\"-\"&T_sept_dec[[#This Row],[Enseignant référent (Nom Prénom)]]","v":"PAC-BUS-QUATREVINGTUN"},{"$f":"1/COUNTIF(T_sept_dec[CléEtablissement],T_sept_dec[[#This Row],[CléEtablissement]])","v":1},{"$f":"IF(COUNTIF(Réseau,T_sept_dec[[#This Row],[Secteur organisateur]]),\"Réseau_\"&T_sept_dec[[#This Row],[Enseignant référent (Nom Prénom)]], IF(COUNTIF(Rizehorsmed,T_sept_dec[[#This Row],[Secteur organisateur]]),\"Rizehorsmed_\"&T_sept_dec[[#This Row],[Enseignant référent (Nom Prénom)]], T_sept_dec[[#This Row],[Secteur organisateur]]&\"_\"&T_sept_dec[[#This Row],[Enseignant référent (Nom Prénom)]]))","v":"Réseau_QUATREVINGTUN"},{"$f":"1/COUNTIF(T_sept_dec[CléRéseau-Rize horsmed],T_sept_dec[[#This Row],[CléRéseau-Rize horsmed]])","v":1},{"$f":"IF(COUNTIF(RIZE,T_sept_dec[[#This Row],[Secteur organisateur]]),\"Rize_\"&T_sept_dec[[#This Row],[Enseignant référent (Nom Prénom)]],\"\")","v":""},{"$f":"1/COUNTIF(T_sept_dec[CléRize],T_sept_dec[[#This Row],[CléRize]])","v":9.8039215686274508E-3},{"$f":"IF(COUNTIF(Total,T_sept_dec[[#This Row],[Secteur organisateur]]),\"Total_\"&T_sept_dec[[#This Row],[Enseignant référent (Nom Prénom)]],\"\")","v":"Total_QUATREVINGTUN"},{"$f":"1/COUNTIF(T_sept_dec[cléTotal],T_sept_dec[[#This Row],[cléTotal]])","v":1}]
["2017-12-12","MTK",null,"Ecole juive de Lyon (privé)","cp","QUINZE",18,"In situ","Visite thématique",null,null,{"$f":"IF(COUNTIF(Maternelle,E75)=1,listes!$T$1,IF(COUNTIF(Elémentaire,E75)=1,listes!$U$1,IF(COUNTIF(Collège,E75)=1,listes!$V$1,IF(COUNTIF(Lycée,E75)=1,listes!$W$1,\"\"))))","v":"Elémentaire"},{"$f":"VLOOKUP(T_sept_dec[[#This Row],[Etablissement scolaire]],Regroupements!$T:$U,2,FALSE)","v":"Gratte-ciel-Dedieu-Charmettes"},"TONKIN",{"$f":"T_sept_dec[[#This Row],[Etablissement accueillant]]&\"-\"&T_sept_dec[[#This Row],[Enseignant référent (Nom Prénom)]]","v":"TONKIN-QUINZE"},{"$f":"1/COUNTIF(T_sept_dec[CléEtablissement],T_sept_dec[[#This Row],[CléEtablissement]])","v":1},{"$f":"IF(COUNTIF(Réseau,T_sept_dec[[#This Row],[Secteur organisateur]]),\"Réseau_\"&T_sept_dec[[#This Row],[Enseignant référent (Nom Prénom)]], IF(COUNTIF(Rizehorsmed,T_sept_dec[[#This Row],[Secteur organisateur]]),\"Rizehorsmed_\"&T_sept_dec[[#This Row],[Enseignant référent (Nom Prénom)]], T_sept_dec[[#This Row],[Secteur organisateur]]&\"_\"&T_sept_dec[[#This Row],[Enseignant référent (Nom Prénom)]]))","v":"Réseau_QUINZE"},{"$f":"1/COUNTIF(T_sept_dec[CléRéseau-Rize horsmed],T_sept_dec[[#This Row],[CléRéseau-Rize horsmed]])","v":1},{"$f":"IF(COUNTIF(RIZE,T_sept_dec[[#This Row],[Secteur organisateur]]),\"Rize_\"&T_sept_dec[[#This Row],[Enseignant référent (Nom Prénom)]],\"\")","v":""},{"$f":"1/COUNTIF(T_sept_dec[CléRize],T_sept_dec[[#This Row],[CléRize]])","v":9.8039215686274508E-3},{"$f":"IF(COUNTIF(Total,T_sept_dec[[#This Row],[Secteur organisateur]]),\"Total_\"&T_sept_dec[[#This Row],[Enseignant référent (Nom Prénom)]],\"\")","v":"Total_QUINZE"},{"$f":"1/COUNTIF(T_sept_dec[cléTotal],T_sept_dec[[#This Row],[cléTotal]])","v":1}]
["2017-12-08","MLIS J",null,"Jean Zay","cp","SEIZE",24,"In situ","Visite découverte",null,null,{"$f":"IF(COUNTIF(Maternelle,E76)=1,listes!$T$1,IF(COUNTIF(Elémentaire,E76)=1,listes!$U$1,IF(COUNTIF(Collège,E76)=1,listes!$V$1,IF(COUNTIF(Lycée,E76)=1,listes!$W$1,\"\"))))","v":"Elémentaire"},{"$f":"VLOOKUP(T_sept_dec[[#This Row],[Etablissement scolaire]],Regroupements!$T:$U,2,FALSE)","v":"Gratte-ciel-Dedieu-Charmettes"},"MLIS",{"$f":"T_sept_dec[[#This Row],[Etablissement accueillant]]&\"-\"&T_sept_dec[[#This Row],[Enseignant référent (Nom Prénom)]]","v":"MLIS-SEIZE"},{"$f":"1/COUNTIF(T_sept_dec[CléEtablissement],T_sept_dec[[#This Row],[CléEtablissement]])","v":1},{"$f":"IF(COUNTIF(Réseau,T_sept_dec[[#This Row],[Secteur organisateur]]),\"Réseau_\"&T_sept_dec[[#This Row],[Enseignant référent (Nom Prénom)]], IF(COUNTIF(Rizehorsmed,T_sept_dec[[#This Row],[Secteur organisateur]]),\"Rizehorsmed_\"&T_sept_dec[[#This Row],[Enseignant référent (Nom Prénom)]], T_sept_dec[[#This Row],[Secteur organisateur]]&\"_\"&T_sept_dec[[#This Row],[Enseignant référent (Nom Prénom)]]))","v":"Réseau_SEIZE"},{"$f":"1/COUNTIF(T_sept_dec[CléRéseau-Rize horsmed],T_sept_dec[[#This Row],[CléRéseau-Rize horsmed]])","v":1},{"$f":"IF(COUNTIF(RIZE,T_sept_dec[[#This Row],[Secteur organisateur]]),\"Rize_\"&T_sept_dec[[#This Row],[Enseignant référent (Nom Prénom)]],\"\")","v":""},{"$f":"1/COUNTIF(T_sept_dec[CléRize],T_sept_dec[[#This Row],[CléRize]])","v":9.8039215686274508E-3},{"$f":"IF(COUNTIF(Total,T_sept_dec[[#This Row],[Secteur organisateur]]),\"Total_\"&T_sept_dec[[#This Row],[Enseignant référent (Nom Prénom)]],\"\")","v":"Total_SEIZE"},{"$f":"1/COUNTIF(T_sept_dec[cléTotal],T_sept_dec[[#This Row],[cléTotal]])","v":1}]
["2017-09-22","RIZE MED",null,"Lycée Marie Curie","1° pro","SEPT",28,"In situ","Album",null,null,{"$f":"IF(COUNTIF(Maternelle,E77)=1,listes!$T$1,IF(COUNTIF(Elémentaire,E77)=1,listes!$U$1,IF(COUNTIF(Collège,E77)=1,listes!$V$1,IF(COUNTIF(Lycée,E77)=1,listes!$W$1,\"\"))))","v":"Lycée"},{"$f":"VLOOKUP(T_sept_dec[[#This Row],[Etablissement scolaire]],Regroupements!$T:$U,2,FALSE)","v":"Perralière-Grandclément"},"RIZE",{"$f":"T_sept_dec[[#This Row],[Etablissement accueillant]]&\"-\"&T_sept_dec[[#This Row],[Enseignant référent (Nom Prénom)]]","v":"RIZE-SEPT"},{"$f":"1/COUNTIF(T_sept_dec[CléEtablissement],T_sept_dec[[#This Row],[CléEtablissement]])","v":0.33333333333333331},{"$f":"IF(COUNTIF(Réseau,T_sept_dec[[#This Row],[Secteur organisateur]]),\"Réseau_\"&T_sept_dec[[#This Row],[Enseignant référent (Nom Prénom)]], IF(COUNTIF(Rizehorsmed,T_sept_dec[[#This Row],[Secteur organisateur]]),\"Rizehorsmed_\"&T_sept_dec[[#This Row],[Enseignant référent (Nom Prénom)]], T_sept_dec[[#This Row],[Secteur organisateur]]&\"_\"&T_sept_dec[[#This Row],[Enseignant référent (Nom Prénom)]]))","v":"Réseau_SEPT"},{"$f":"1/COUNTIF(T_sept_dec[CléRéseau-Rize horsmed],T_sept_dec[[#This Row],[CléRéseau-Rize horsmed]])","v":0.33333333333333331},{"$f":"IF(COUNTIF(RIZE,T_sept_dec[[#This Row],[Secteur organisateur]]),\"Rize_\"&T_sept_dec[[#This Row],[Enseignant référent (Nom Prénom)]],\"\")","v":"Rize_SEPT"},{"$f":"1/COUNTIF(T_sept_dec[CléRize],T_sept_dec[[#This Row],[CléRize]])","v":0.33333333333333331},{"$f":"IF(COUNTIF(Total,T_sept_dec[[#This Row],[Secteur organisateur]]),\"Total_\"&T_sept_dec[[#This Row],[Enseignant référent (Nom Prénom)]],\"\")","v":"Total_SEPT"},{"$f":"1/COUNTIF(T_sept_dec[cléTotal],T_sept_dec[[#This Row],[cléTotal]])","v":0.33333333333333331}]
["2017-11-06","RIZE MED",null,"Lycée Marie Curie","1° pro","SEPT",15,"In situ","Ateliers",null,null,{"$f":"IF(COUNTIF(Maternelle,E78)=1,listes!$T$1,IF(COUNTIF(Elémentaire,E78)=1,listes!$U$1,IF(COUNTIF(Collège,E78)=1,listes!$V$1,IF(COUNTIF(Lycée,E78)=1,listes!$W$1,\"\"))))","v":"Lycée"},{"$f":"VLOOKUP(T_sept_dec[[#This Row],[Etablissement scolaire]],Regroupements!$T:$U,2,FALSE)","v":"Perralière-Grandclément"},"RIZE",{"$f":"T_sept_dec[[#This Row],[Etablissement accueillant]]&\"-\"&T_sept_dec[[#This Row],[Enseignant référent (Nom Prénom)]]","v":"RIZE-SEPT"},{"$f":"1/COUNTIF(T_sept_dec[CléEtablissement],T_sept_dec[[#This Row],[CléEtablissement]])","v":0.33333333333333331},{"$f":"IF(COUNTIF(Réseau,T_sept_dec[[#This Row],[Secteur organisateur]]),\"Réseau_\"&T_sept_dec[[#This Row],[Enseignant référent (Nom Prénom)]], IF(COUNTIF(Rizehorsmed,T_sept_dec[[#This Row],[Secteur organisateur]]),\"Rizehorsmed_\"&T_sept_dec[[#This Row],[Enseignant référent (Nom Prénom)]], T_sept_dec[[#This Row],[Secteur organisateur]]&\"_\"&T_sept_dec[[#This Row],[Enseignant référent (Nom Prénom)]]))","v":"Réseau_SEPT"},{"$f":"1/COUNTIF(T_sept_dec[CléRéseau-Rize horsmed],T_sept_dec[[#This Row],[CléRéseau-Rize horsmed]])","v":0.33333333333333331},{"$f":"IF(COUNTIF(RIZE,T_sept_dec[[#This Row],[Secteur organisateur]]),\"Rize_\"&T_sept_dec[[#This Row],[Enseignant référent (Nom Prénom)]],\"\")","v":"Rize_SEPT"},{"$f":"1/COUNTIF(T_sept_dec[CléRize],T_sept_dec[[#This Row],[CléRize]])","v":0.33333333333333331},{"$f":"IF(COUNTIF(Total,T_sept_dec[[#This Row],[Secteur organisateur]]),\"Total_\"&T_sept_dec[[#This Row],[Enseignant référent (Nom Prénom)]],\"\")","v":"Total_SEPT"},{"$f":"1/COUNTIF(T_sept_dec[cléTotal],T_sept_dec[[#This Row],[cléTotal]])","v":0.33333333333333331}]
["2017-11-06","RIZE MED",null,"Lycée Marie Curie","1° pro","SEPT",15,"In situ","Ateliers",null,null,{"$f":"IF(COUNTIF(Maternelle,E79)=1,listes!$T$1,IF(COUNTIF(Elémentaire,E79)=1,listes!$U$1,IF(COUNTIF(Collège,E79)=1,listes!$V$1,IF(COUNTIF(Lycée,E79)=1,listes!$W$1,\"\"))))","v":"Lycée"},{"$f":"VLOOKUP(T_sept_dec[[#This Row],[Etablissement scolaire]],Regroupements!$T:$U,2,FALSE)","v":"Perralière-Grandclément"},"RIZE",{"$f":"T_sept_dec[[#This Row],[Etablissement accueillant]]&\"-\"&T_sept_dec[[#This Row],[Enseignant référent (Nom Prénom)]]","v":"RIZE-SEPT"},{"$f":"1/COUNTIF(T_sept_dec[CléEtablissement],T_sept_dec[[#This Row],[CléEtablissement]])","v":0.33333333333333331},{"$f":"IF(COUNTIF(Réseau,T_sept_dec[[#This Row],[Secteur organisateur]]),\"Réseau_\"&T_sept_dec[[#This Row],[Enseignant référent (Nom Prénom)]], IF(COUNTIF(Rizehorsmed,T_sept_dec[[#This Row],[Secteur organisateur]]),\"Rizehorsmed_\"&T_sept_dec[[#This Row],[Enseignant référent (Nom Prénom)]], T_sept_dec[[#This Row],[Secteur organisateur]]&\"_\"&T_sept_dec[[#This Row],[Enseignant référent (Nom Prénom)]]))","v":"Réseau_SEPT"},{"$f":"1/COUNTIF(T_sept_dec[CléRéseau-Rize horsmed],T_sept_dec[[#This Row],[CléRéseau-Rize horsmed]])","v":0.33333333333333331},{"$f":"IF(COUNTIF(RIZE,T_sept_dec[[#This Row],[Secteur organisateur]]),\"Rize_\"&T_sept_dec[[#This Row],[Enseignant référent (Nom Prénom)]],\"\")","v":"Rize_SEPT"},{"$f":"1/COUNTIF(T_sept_dec[CléRize],T_sept_dec[[#This Row],[CléRize]])","v":0.33333333333333331},{"$f":"IF(COUNTIF(Total,T_sept_dec[[#This Row],[Secteur organisateur]]),\"Total_\"&T_sept_dec[[#This Row],[Enseignant référent (Nom Prénom)]],\"\")","v":"Total_SEPT"},{"$f":"1/COUNTIF(T_sept_dec[cléTotal],T_sept_dec[[#This Row],[cléTotal]])","v":0.33333333333333331}]
["2017-10-12","RIZE MED",null,"Collège Louis Jouvet","6°","SIX",21,"In situ","Recherche documentaire",null,null,{"$f":"IF(COUNTIF(Maternelle,E80)=1,listes!$T$1,IF(COUNTIF(Elémentaire,E80)=1,listes!$U$1,IF(COUNTIF(Collège,E80)=1,listes!$V$1,IF(COUNTIF(Lycée,E80)=1,listes!$W$1,\"\"))))","v":"Collège"},{"$f":"VLOOKUP(T_sept_dec[[#This Row],[Etablissement scolaire]],Regroupements!$T:$U,2,FALSE)","v":"Ferrandière-Maisons Neuves"},"RIZE",{"$f":"T_sept_dec[[#This Row],[Etablissement accueillant]]&\"-\"&T_sept_dec[[#This Row],[Enseignant référent (Nom Prénom)]]","v":"RIZE-SIX"},{"$f":"1/COUNTIF(T_sept_dec[CléEtablissement],T_sept_dec[[#This Row],[CléEtablissement]])","v":0.14285714285714285},{"$f":"IF(COUNTIF(Réseau,T_sept_dec[[#This Row],[Secteur organisateur]]),\"Réseau_\"&T_sept_dec[[#This Row],[Enseignant référent (Nom Prénom)]], IF(COUNTIF(Rizehorsmed,T_sept_dec[[#This Row],[Secteur organisateur]]),\"Rizehorsmed_\"&T_sept_dec[[#This Row],[Enseignant référent (Nom Prénom)]], T_sept_dec[[#This Row],[Secteur organisateur]]&\"_\"&T_sept_dec[[#This Row],[Enseignant référent (Nom Prénom)]]))","v":"Réseau_SIX"},{"$f":"1/COUNTIF(T_sept_dec[CléRéseau-Rize horsmed],T_sept_dec[[#This Row],[CléRéseau-Rize horsmed]])","v":0.14285714285714285},{"$f":"IF(COUNTIF(RIZE,T_sept_dec[[#This Row],[Secteur organisateur]]),\"Rize_\"&T_sept_dec[[#This Row],[Enseignant référent (Nom Prénom)]],\"\")","v":"Rize_SIX"},{"$f":"1/COUNTIF(T_sept_dec[CléRize],T_sept_dec[[#This Row],[CléRize]])","v":0.14285714285714285},{"$f":"IF(COUNTIF(Total,T_sept_dec[[#This Row],[Secteur organisateur]]),\"Total_\"&T_sept_dec[[#This Row],[Enseignant référent (Nom Prénom)]],\"\")","v":"Total_SIX"},{"$f":"1/COUNTIF(T_sept_dec[cléTotal],T_sept_dec[[#This Row],[cléTotal]])","v":0.14285714285714285}]
["2017-10-13","RIZE MED",null,"Collège Louis Jouvet","6°","SIX",24,"In situ","Recherche documentaire",null,null,{"$f":"IF(COUNTIF(Maternelle,E81)=1,listes!$T$1,IF(COUNTIF(Elémentaire,E81)=1,listes!$U$1,IF(COUNTIF(Collège,E81)=1,listes!$V$1,IF(COUNTIF(Lycée,E81)=1,listes!$W$1,\"\"))))","v":"Collège"},{"$f":"VLOOKUP(T_sept_dec[[#This Row],[Etablissement scolaire]],Regroupements!$T:$U,2,FALSE)","v":"Ferrandière-Maisons Neuves"},"RIZE",{"$f":"T_sept_dec[[#This Row],[Etablissement accueillant]]&\"-\"&T_sept_dec[[#This Row],[Enseignant référent (Nom Prénom)]]","v":"RIZE-SIX"},{"$f":"1/COUNTIF(T_sept_dec[CléEtablissement],T_sept_dec[[#This Row],[CléEtablissement]])","v":0.14285714285714285},{"$f":"IF(COUNTIF(Réseau,T_sept_dec[[#This Row],[Secteur organisateur]]),\"Réseau_\"&T_sept_dec[[#This Row],[Enseignant référent (Nom Prénom)]], IF(COUNTIF(Rizehorsmed,T_sept_dec[[#This Row],[Secteur organisateur]]),\"Rizehorsmed_\"&T_sept_dec[[#This Row],[Enseignant référent (Nom Prénom)]], T_sept_dec[[#This Row],[Secteur organisateur]]&\"_\"&T_sept_dec[[#This Row],[Enseignant référent (Nom Prénom)]]))","v":"Réseau_SIX"},{"$f":"1/COUNTIF(T_sept_dec[CléRéseau-Rize horsmed],T_sept_dec[[#This Row],[CléRéseau-Rize horsmed]])","v":0.14285714285714285},{"$f":"IF(COUNTIF(RIZE,T_sept_dec[[#This Row],[Secteur organisateur]]),\"Rize_\"&T_sept_dec[[#This Row],[Enseignant référent (Nom Prénom)]],\"\")","v":"Rize_SIX"},{"$f":"1/COUNTIF(T_sept_dec[CléRize],T_sept_dec[[#This Row],[CléRize]])","v":0.14285714285714285},{"$f":"IF(COUNTIF(Total,T_sept_dec[[#This Row],[Secteur organisateur]]),\"Total_\"&T_sept_dec[[#This Row],[Enseignant référent (Nom Prénom)]],\"\")","v":"Total_SIX"},{"$f":"1/COUNTIF(T_sept_dec[cléTotal],T_sept_dec[[#This Row],[cléTotal]])","v":0.14285714285714285}]
["2017-11-14","RIZE MED",null,"Collège Louis Jouvet","6°","SIX",25,"In situ","Recherche documentaire",null,null,{"$f":"IF(COUNTIF(Maternelle,E82)=1,listes!$T$1,IF(COUNTIF(Elémentaire,E82)=1,listes!$U$1,IF(COUNTIF(Collège,E82)=1,listes!$V$1,IF(COUNTIF(Lycée,E82)=1,listes!$W$1,\"\"))))","v":"Collège"},{"$f":"VLOOKUP(T_sept_dec[[#This Row],[Etablissement scolaire]],Regroupements!$T:$U,2,FALSE)","v":"Ferrandière-Maisons Neuves"},"RIZE",{"$f":"T_sept_dec[[#This Row],[Etablissement accueillant]]&\"-\"&T_sept_dec[[#This Row],[Enseignant référent (Nom Prénom)]]","v":"RIZE-SIX"},{"$f":"1/COUNTIF(T_sept_dec[CléEtablissement],T_sept_dec[[#This Row],[CléEtablissement]])","v":0.14285714285714285},{"$f":"IF(COUNTIF(Réseau,T_sept_dec[[#This Row],[Secteur organisateur]]),\"Réseau_\"&T_sept_dec[[#This Row],[Enseignant référent (Nom Prénom)]], IF(COUNTIF(Rizehorsmed,T_sept_dec[[#This Row],[Secteur organisateur]]),\"Rizehorsmed_\"&T_sept_dec[[#This Row],[Enseignant référent (Nom Prénom)]], T_sept_dec[[#This Row],[Secteur organisateur]]&\"_\"&T_sept_dec[[#This Row],[Enseignant référent (Nom Prénom)]]))","v":"Réseau_SIX"},{"$f":"1/COUNTIF(T_sept_dec[CléRéseau-Rize horsmed],T_sept_dec[[#This Row],[CléRéseau-Rize horsmed]])","v":0.14285714285714285},{"$f":"IF(COUNTIF(RIZE,T_sept_dec[[#This Row],[Secteur organisateur]]),\"Rize_\"&T_sept_dec[[#This Row],[Enseignant référent (Nom Prénom)]],\"\")","v":"Rize_SIX"},{"$f":"1/COUNTIF(T_sept_dec[CléRize],T_sept_dec[[#This Row],[CléRize]])","v":0.14285714285714285},{"$f":"IF(COUNTIF(Total,T_sept_dec[[#This Row],[Secteur organisateur]]),\"Total_\"&T_sept_dec[[#This Row],[Enseignant référent (Nom Prénom)]],\"\")","v":"Total_SIX"},{"$f":"1/COUNTIF(T_sept_dec[cléTotal],T_sept_dec[[#This Row],[cléTotal]])","v":0.14285714285714285}]
["2017-11-17","RIZE MED",null,"Collège Louis Jouvet","6°","SIX",26,"In situ","Recherche documentaire",null,null,{"$f":"IF(COUNTIF(Maternelle,E83)=1,listes!$T$1,IF(COUNTIF(Elémentaire,E83)=1,listes!$U$1,IF(COUNTIF(Collège,E83)=1,listes!$V$1,IF(COUNTIF(Lycée,E83)=1,listes!$W$1,\"\"))))","v":"Collège"},{"$f":"VLOOKUP(T_sept_dec[[#This Row],[Etablissement scolaire]],Regroupements!$T:$U,2,FALSE)","v":"Ferrandière-Maisons Neuves"},"RIZE",{"$f":"T_sept_dec[[#This Row],[Etablissement accueillant]]&\"-\"&T_sept_dec[[#This Row],[Enseignant référent (Nom Prénom)]]","v":"RIZE-SIX"},{"$f":"1/COUNTIF(T_sept_dec[CléEtablissement],T_sept_dec[[#This Row],[CléEtablissement]])","v":0.14285714285714285},{"$f":"IF(COUNTIF(Réseau,T_sept_dec[[#This Row],[Secteur organisateur]]),\"Réseau_\"&T_sept_dec[[#This Row],[Enseignant référent (Nom Prénom)]], IF(COUNTIF(Rizehorsmed,T_sept_dec[[#This Row],[Secteur organisateur]]),\"Rizehorsmed_\"&T_sept_dec[[#This Row],[Enseignant référent (Nom Prénom)]], T_sept_dec[[#This Row],[Secteur organisateur]]&\"_\"&T_sept_dec[[#This Row],[Enseignant référent (Nom Prénom)]]))","v":"Réseau_SIX"},{"$f":"1/COUNTIF(T_sept_dec[CléRéseau-Rize horsmed],T_sept_dec[[#This Row],[CléRéseau-Rize horsmed]])","v":0.14285714285714285},{"$f":"IF(COUNTIF(RIZE,T_sept_dec[[#This Row],[Secteur organisateur]]),\"Rize_\"&T_sept_dec[[#This Row],[Enseignant référent (Nom Prénom)]],\"\")","v":"Rize_SIX"},{"$f":"1/COUNTIF(T_sept_dec[CléRize],T_sept_dec[[#This Row],[CléRize]])","v":0.14285714285714285},{"$f":"IF(COUNTIF(Total,T_sept_dec[[#This Row],[Secteur organisateur]]),\"Total_\"&T_sept_dec[[#This Row],[Enseignant référent (Nom Prénom)]],\"\")","v":"Total_SIX"},{"$f":"1/COUNTIF(T_sept_dec[cléTotal],T_sept_dec[[#This Row],[cléTotal]])","v":0.14285714285714285}]
["2017-11-21","RIZE MED",null,"Collège Louis Jouvet","6°","SIX",25,"In situ","Recherche documentaire",null,null,{"$f":"IF(COUNTIF(Maternelle,E84)=1,listes!$T$1,IF(COUNTIF(Elémentaire,E84)=1,listes!$U$1,IF(COUNTIF(Collège,E84)=1,listes!$V$1,IF(COUNTIF(Lycée,E84)=1,listes!$W$1,\"\"))))","v":"Collège"},{"$f":"VLOOKUP(T_sept_dec[[#This Row],[Etablissement scolaire]],Regroupements!$T:$U,2,FALSE)","v":"Ferrandière-Maisons Neuves"},"RIZE",{"$f":"T_sept_dec[[#This Row],[Etablissement accueillant]]&\"-\"&T_sept_dec[[#This Row],[Enseignant référent (Nom Prénom)]]","v":"RIZE-SIX"},{"$f":"1/COUNTIF(T_sept_dec[CléEtablissement],T_sept_dec[[#This Row],[CléEtablissement]])","v":0.14285714285714285},{"$f":"IF(COUNTIF(Réseau,T_sept_dec[[#This Row],[Secteur organisateur]]),\"Réseau_\"&T_sept_dec[[#This Row],[Enseignant référent (Nom Prénom)]], IF(COUNTIF(Rizehorsmed,T_sept_dec[[#This Row],[Secteur organisateur]]),\"Rizehorsmed_\"&T_sept_dec[[#This Row],[Enseignant référent (Nom Prénom)]], T_sept_dec[[#This Row],[Secteur organisateur]]&\"_\"&T_sept_dec[[#This Row],[Enseignant référent (Nom Prénom)]]))","v":"Réseau_SIX"},{"$f":"1/COUNTIF(T_sept_dec[CléRéseau-Rize horsmed],T_sept_dec[[#This Row],[CléRéseau-Rize horsmed]])","v":0.14285714285714285},{"$f":"IF(COUNTIF(RIZE,T_sept_dec[[#This Row],[Secteur organisateur]]),\"Rize_\"&T_sept_dec[[#This Row],[Enseignant référent (Nom Prénom)]],\"\")","v":"Rize_SIX"},{"$f":"1/COUNTIF(T_sept_dec[CléRize],T_sept_dec[[#This Row],[CléRize]])","v":0.14285714285714285},{"$f":"IF(COUNTIF(Total,T_sept_dec[[#This Row],[Secteur organisateur]]),\"Total_\"&T_sept_dec[[#This Row],[Enseignant référent (Nom Prénom)]],\"\")","v":"Total_SIX"},{"$f":"1/COUNTIF(T_sept_dec[cléTotal],T_sept_dec[[#This Row],[cléTotal]])","v":0.14285714285714285}]
["2017-11-28","RIZE MED",null,"Collège Louis Jouvet","6°","SIX",24,"In situ","Recherche documentaire",null,null,{"$f":"IF(COUNTIF(Maternelle,E85)=1,listes!$T$1,IF(COUNTIF(Elémentaire,E85)=1,listes!$U$1,IF(COUNTIF(Collège,E85)=1,listes!$V$1,IF(COUNTIF(Lycée,E85)=1,listes!$W$1,\"\"))))","v":"Collège"},{"$f":"VLOOKUP(T_sept_dec[[#This Row],[Etablissement scolaire]],Regroupements!$T:$U,2,FALSE)","v":"Ferrandière-Maisons Neuves"},"RIZE",{"$f":"T_sept_dec[[#This Row],[Etablissement accueillant]]&\"-\"&T_sept_dec[[#This Row],[Enseignant référent (Nom Prénom)]]","v":"RIZE-SIX"},{"$f":"1/COUNTIF(T_sept_dec[CléEtablissement],T_sept_dec[[#This Row],[CléEtablissement]])","v":0.14285714285714285},{"$f":"IF(COUNTIF(Réseau,T_sept_dec[[#This Row],[Secteur organisateur]]),\"Réseau_\"&T_sept_dec[[#This Row],[Enseignant référent (Nom Prénom)]], IF(COUNTIF(Rizehorsmed,T_sept_dec[[#This Row],[Secteur organisateur]]),\"Rizehorsmed_\"&T_sept_dec[[#This Row],[Enseignant référent (Nom Prénom)]], T_sept_dec[[#This Row],[Secteur organisateur]]&\"_\"&T_sept_dec[[#This Row],[Enseignant référent (Nom Prénom)]]))","v":"Réseau_SIX"},{"$f":"1/COUNTIF(T_sept_dec[CléRéseau-Rize horsmed],T_sept_dec[[#This Row],[CléRéseau-Rize horsmed]])","v":0.14285714285714285},{"$f":"IF(COUNTIF(RIZE,T_sept_dec[[#This Row],[Secteur organisateur]]),\"Rize_\"&T_sept_dec[[#This Row],[Enseignant référent (Nom Prénom)]],\"\")","v":"Rize_SIX"},{"$f":"1/COUNTIF(T_sept_dec[CléRize],T_sept_dec[[#This Row],[CléRize]])","v":0.14285714285714285},{"$f":"IF(COUNTIF(Total,T_sept_dec[[#This Row],[Secteur organisateur]]),\"Total_\"&T_sept_dec[[#This Row],[Enseignant référent (Nom Prénom)]],\"\")","v":"Total_SIX"},{"$f":"1/COUNTIF(T_sept_dec[cléTotal],T_sept_dec[[#This Row],[cléTotal]])","v":0.14285714285714285}]
["2017-12-01","RIZE MED",null,"Collège Louis Jouvet","6°","SIX",24,"In situ","Recherche documentaire",null,null,{"$f":"IF(COUNTIF(Maternelle,E86)=1,listes!$T$1,IF(COUNTIF(Elémentaire,E86)=1,listes!$U$1,IF(COUNTIF(Collège,E86)=1,listes!$V$1,IF(COUNTIF(Lycée,E86)=1,listes!$W$1,\"\"))))","v":"Collège"},{"$f":"VLOOKUP(T_sept_dec[[#This Row],[Etablissement scolaire]],Regroupements!$T:$U,2,FALSE)","v":"Ferrandière-Maisons Neuves"},"RIZE",{"$f":"T_sept_dec[[#This Row],[Etablissement accueillant]]&\"-\"&T_sept_dec[[#This Row],[Enseignant référent (Nom Prénom)]]","v":"RIZE-SIX"},{"$f":"1/COUNTIF(T_sept_dec[CléEtablissement],T_sept_dec[[#This Row],[CléEtablissement]])","v":0.14285714285714285},{"$f":"IF(COUNTIF(Réseau,T_sept_dec[[#This Row],[Secteur organisateur]]),\"Réseau_\"&T_sept_dec[[#This Row],[Enseignant référent (Nom Prénom)]], IF(COUNTIF(Rizehorsmed,T_sept_dec[[#This Row],[Secteur organisateur]]),\"Rizehorsmed_\"&T_sept_dec[[#This Row],[Enseignant référent (Nom Prénom)]], T_sept_dec[[#This Row],[Secteur organisateur]]&\"_\"&T_sept_dec[[#This Row],[Enseignant référent (Nom Prénom)]]))","v":"Réseau_SIX"},{"$f":"1/COUNTIF(T_sept_dec[CléRéseau-Rize horsmed],T_sept_dec[[#This Row],[CléRéseau-Rize horsmed]])","v":0.14285714285714285},{"$f":"IF(COUNTIF(RIZE,T_sept_dec[[#This Row],[Secteur organisateur]]),\"Rize_\"&T_sept_dec[[#This Row],[Enseignant référent (Nom Prénom)]],\"\")","v":"Rize_SIX"},{"$f":"1/COUNTIF(T_sept_dec[CléRize],T_sept_dec[[#This Row],[CléRize]])","v":0.14285714285714285},{"$f":"IF(COUNTIF(Total,T_sept_dec[[#This Row],[Secteur organisateur]]),\"Total_\"&T_sept_dec[[#This Row],[Enseignant référent (Nom Prénom)]],\"\")","v":"Total_SIX"},{"$f":"1/COUNTIF(T_sept_dec[cléTotal],T_sept_dec[[#This Row],[cléTotal]])","v":0.14285714285714285}]
["2017-10-03","MLIS J",null,"Ecole juive de Lyon (privé)","ce1","SOIXANTE",30,"In situ","Première lecture",null,null,{"$f":"IF(COUNTIF(Maternelle,E87)=1,listes!$T$1,IF(COUNTIF(Elémentaire,E87)=1,listes!$U$1,IF(COUNTIF(Collège,E87)=1,listes!$V$1,IF(COUNTIF(Lycée,E87)=1,listes!$W$1,\"\"))))","v":"Elémentaire"},{"$f":"VLOOKUP(T_sept_dec[[#This Row],[Etablissement scolaire]],Regroupements!$T:$U,2,FALSE)","v":"Gratte-ciel-Dedieu-Charmettes"},"MLIS",{"$f":"T_sept_dec[[#This Row],[Etablissement accueillant]]&\"-\"&T_sept_dec[[#This Row],[Enseignant référent (Nom Prénom)]]","v":"MLIS-SOIXANTE"},{"$f":"1/COUNTIF(T_sept_dec[CléEtablissement],T_sept_dec[[#This Row],[CléEtablissement]])","v":1},{"$f":"IF(COUNTIF(Réseau,T_sept_dec[[#This Row],[Secteur organisateur]]),\"Réseau_\"&T_sept_dec[[#This Row],[Enseignant référent (Nom Prénom)]], IF(COUNTIF(Rizehorsmed,T_sept_dec[[#This Row],[Secteur organisateur]]),\"Rizehorsmed_\"&T_sept_dec[[#This Row],[Enseignant référent (Nom Prénom)]], T_sept_dec[[#This Row],[Secteur organisateur]]&\"_\"&T_sept_dec[[#This Row],[Enseignant référent (Nom Prénom)]]))","v":"Réseau_SOIXANTE"},{"$f":"1/COUNTIF(T_sept_dec[CléRéseau-Rize horsmed],T_sept_dec[[#This Row],[CléRéseau-Rize horsmed]])","v":1},{"$f":"IF(COUNTIF(RIZE,T_sept_dec[[#This Row],[Secteur organisateur]]),\"Rize_\"&T_sept_dec[[#This Row],[Enseignant référent (Nom Prénom)]],\"\")","v":""},{"$f":"1/COUNTIF(T_sept_dec[CléRize],T_sept_dec[[#This Row],[CléRize]])","v":9.8039215686274508E-3},{"$f":"IF(COUNTIF(Total,T_sept_dec[[#This Row],[Secteur organisateur]]),\"Total_\"&T_sept_dec[[#This Row],[Enseignant référent (Nom Prénom)]],\"\")","v":"Total_SOIXANTE"},{"$f":"1/COUNTIF(T_sept_dec[cléTotal],T_sept_dec[[#This Row],[cléTotal]])","v":1}]
["2017-10-16","FDL",null,"Jules Guesde","ce2/cm1","SOIXANTECINQ",23,"In situ","Projet FDL",null,null,{"$f":"IF(COUNTIF(Maternelle,E88)=1,listes!$T$1,IF(COUNTIF(Elémentaire,E88)=1,listes!$U$1,IF(COUNTIF(Collège,E88)=1,listes!$V$1,IF(COUNTIF(Lycée,E88)=1,listes!$W$1,\"\"))))","v":"Elémentaire"},{"$f":"VLOOKUP(T_sept_dec[[#This Row],[Etablissement scolaire]],Regroupements!$T:$U,2,FALSE)","v":"Cyprian-les-Brosses"},"FDL",{"$f":"T_sept_dec[[#This Row],[Etablissement accueillant]]&\"-\"&T_sept_dec[[#This Row],[Enseignant référent (Nom Prénom)]]","v":"FDL-SOIXANTECINQ"},{"$f":"1/COUNTIF(T_sept_dec[CléEtablissement],T_sept_dec[[#This Row],[CléEtablissement]])","v":0.33333333333333331},{"$f":"IF(COUNTIF(Réseau,T_sept_dec[[#This Row],[Secteur organisateur]]),\"Réseau_\"&T_sept_dec[[#This Row],[Enseignant référent (Nom Prénom)]], IF(COUNTIF(Rizehorsmed,T_sept_dec[[#This Row],[Secteur organisateur]]),\"Rizehorsmed_\"&T_sept_dec[[#This Row],[Enseignant référent (Nom Prénom)]], T_sept_dec[[#This Row],[Secteur organisateur]]&\"_\"&T_sept_dec[[#This Row],[Enseignant référent (Nom Prénom)]]))","v":"FDL_SOIXANTECINQ"},{"$f":"1/COUNTIF(T_sept_dec[CléRéseau-Rize horsmed],T_sept_dec[[#This Row],[CléRéseau-Rize horsmed]])","v":0.33333333333333331},{"$f":"IF(COUNTIF(RIZE,T_sept_dec[[#This Row],[Secteur organisateur]]),\"Rize_\"&T_sept_dec[[#This Row],[Enseignant référent (Nom Prénom)]],\"\")","v":""},{"$f":"1/COUNTIF(T_sept_dec[CléRize],T_sept_dec[[#This Row],[CléRize]])","v":9.8039215686274508E-3},{"$f":"IF(COUNTIF(Total,T_sept_dec[[#This Row],[Secteur organisateur]]),\"Total_\"&T_sept_dec[[#This Row],[Enseignant référent (Nom Prénom)]],\"\")","v":"Total_SOIXANTECINQ"},{"$f":"1/COUNTIF(T_sept_dec[cléTotal],T_sept_dec[[#This Row],[cléTotal]])","v":0.33333333333333331}]
["2017-10-17","FDL",null,"Jules Guesde","ce2/cm1","SOIXANTECINQ",23,"In situ","Projet FDL",null,null,{"$f":"IF(COUNTIF(Maternelle,E89)=1,listes!$T$1,IF(COUNTIF(Elémentaire,E89)=1,listes!$U$1,IF(COUNTIF(Collège,E89)=1,listes!$V$1,IF(COUNTIF(Lycée,E89)=1,listes!$W$1,\"\"))))","v":"Elémentaire"},{"$f":"VLOOKUP(T_sept_dec[[#This Row],[Etablissement scolaire]],Regroupements!$T:$U,2,FALSE)","v":"Cyprian-les-Brosses"},"FDL",{"$f":"T_sept_dec[[#This Row],[Etablissement accueillant]]&\"-\"&T_sept_dec[[#This Row],[Enseignant référent (Nom Prénom)]]","v":"FDL-SOIXANTECINQ"},{"$f":"1/COUNTIF(T_sept_dec[CléEtablissement],T_sept_dec[[#This Row],[CléEtablissement]])","v":0.33333333333333331},{"$f":"IF(COUNTIF(Réseau,T_sept_dec[[#This Row],[Secteur organisateur]]),\"Réseau_\"&T_sept_dec[[#This Row],[Enseignant référent (Nom Prénom)]], IF(COUNTIF(Rizehorsmed,T_sept_dec[[#This Row],[Secteur organisateur]]),\"Rizehorsmed_\"&T_sept_dec[[#This Row],[Enseignant référent (Nom Prénom)]], T_sept_dec[[#This Row],[Secteur organisateur]]&\"_\"&T_sept_dec[[#This Row],[Enseignant référent (Nom Prénom)]]))","v":"FDL_SOIXANTECINQ"},{"$f":"1/COUNTIF(T_sept_dec[CléRéseau-Rize horsmed],T_sept_dec[[#This Row],[CléRéseau-Rize horsmed]])","v":0.33333333333333331},{"$f":"IF(COUNTIF(RIZE,T_sept_dec[[#This Row],[Secteur organisateur]]),\"Rize_\"&T_sept_dec[[#This Row],[Enseignant référent (Nom Prénom)]],\"\")","v":""},{"$f":"1/COUNTIF(T_sept_dec[CléRize],T_sept_dec[[#This Row],[CléRize]])","v":9.8039215686274508E-3},{"$f":"IF(COUNTIF(Total,T_sept_dec[[#This Row],[Secteur organisateur]]),\"Total_\"&T_sept_dec[[#This Row],[Enseignant référent (Nom Prénom)]],\"\")","v":"Total_SOIXANTECINQ"},{"$f":"1/COUNTIF(T_sept_dec[cléTotal],T_sept_dec[[#This Row],[cléTotal]])","v":0.33333333333333331}]
["2017-10-18","FDL",null,"Jules Guesde","ce2/cm1","SOIXANTECINQ",23,"In situ","Projet FDL",null,null,{"$f":"IF(COUNTIF(Maternelle,E90)=1,listes!$T$1,IF(COUNTIF(Elémentaire,E90)=1,listes!$U$1,IF(COUNTIF(Collège,E90)=1,listes!$V$1,IF(COUNTIF(Lycée,E90)=1,listes!$W$1,\"\"))))","v":"Elémentaire"},{"$f":"VLOOKUP(T_sept_dec[[#This Row],[Etablissement scolaire]],Regroupements!$T:$U,2,FALSE)","v":"Cyprian-les-Brosses"},"FDL",{"$f":"T_sept_dec[[#This Row],[Etablissement accueillant]]&\"-\"&T_sept_dec[[#This Row],[Enseignant référent (Nom Prénom)]]","v":"FDL-SOIXANTECINQ"},{"$f":"1/COUNTIF(T_sept_dec[CléEtablissement],T_sept_dec[[#This Row],[CléEtablissement]])","v":0.33333333333333331},{"$f":"IF(COUNTIF(Réseau,T_sept_dec[[#This Row],[Secteur organisateur]]),\"Réseau_\"&T_sept_dec[[#This Row],[Enseignant référent (Nom Prénom)]], IF(COUNTIF(Rizehorsmed,T_sept_dec[[#This Row],[Secteur organisateur]]),\"Rizehorsmed_\"&T_sept_dec[[#This Row],[Enseignant référent (Nom Prénom)]], T_sept_dec[[#This Row],[Secteur organisateur]]&\"_\"&T_sept_dec[[#This Row],[Enseignant référent (Nom Prénom)]]))","v":"FDL_SOIXANTECINQ"},{"$f":"1/COUNTIF(T_sept_dec[CléRéseau-Rize horsmed],T_sept_dec[[#This Row],[CléRéseau-Rize horsmed]])","v":0.33333333333333331},{"$f":"IF(COUNTIF(RIZE,T_sept_dec[[#This Row],[Secteur organisateur]]),\"Rize_\"&T_sept_dec[[#This Row],[Enseignant référent (Nom Prénom)]],\"\")","v":""},{"$f":"1/COUNTIF(T_sept_dec[CléRize],T_sept_dec[[#This Row],[CléRize]])","v":9.8039215686274508E-3},{"$f":"IF(COUNTIF(Total,T_sept_dec[[#This Row],[Secteur organisateur]]),\"Total_\"&T_sept_dec[[#This Row],[Enseignant référent (Nom Prénom)]],\"\")","v":"Total_SOIXANTECINQ"},{"$f":"1/COUNTIF(T_sept_dec[cléTotal],T_sept_dec[[#This Row],[cléTotal]])","v":0.33333333333333331}]
["2017-11-07","MTK",null,"Louis Armand","cm1","SOIXANTEDEUX",30,"In situ","De la littérature au cinéma",null,null,{"$f":"IF(COUNTIF(Maternelle,E91)=1,listes!$T$1,IF(COUNTIF(Elémentaire,E91)=1,listes!$U$1,IF(COUNTIF(Collège,E91)=1,listes!$V$1,IF(COUNTIF(Lycée,E91)=1,listes!$W$1,\"\"))))","v":"Elémentaire"},{"$f":"VLOOKUP(T_sept_dec[[#This Row],[Etablissement scolaire]],Regroupements!$T:$U,2,FALSE)","v":"Charpennes-Tonkin"},{"$f":"IF(COUNTIF(FDL,B91)=1,\"FDL\",IF(COUNTIF(RIZE,B91)=1,\"RIZE\",IF(COUNTIF(MLIS,B91)=1,\"MLIS\",IF(COUNTIF(PACBUS,B91)=1,\"PAC-BUS\",IF(COUNTIF(Tonkin,B91)=1,\"TONKIN\",\"\")))))","v":"TONKIN"},{"$f":"T_sept_dec[[#This Row],[Etablissement accueillant]]&\"-\"&T_sept_dec[[#This Row],[Enseignant référent (Nom Prénom)]]","v":"TONKIN-SOIXANTEDEUX"},{"$f":"1/COUNTIF(T_sept_dec[CléEtablissement],T_sept_dec[[#This Row],[CléEtablissement]])","v":1},{"$f":"IF(COUNTIF(Réseau,T_sept_dec[[#This Row],[Secteur organisateur]]),\"Réseau_\"&T_sept_dec[[#This Row],[Enseignant référent (Nom Prénom)]], IF(COUNTIF(Rizehorsmed,T_sept_dec[[#This Row],[Secteur organisateur]]),\"Rizehorsmed_\"&T_sept_dec[[#This Row],[Enseignant référent (Nom Prénom)]], T_sept_dec[[#This Row],[Secteur organisateur]]&\"_\"&T_sept_dec[[#This Row],[Enseignant référent (Nom Prénom)]]))","v":"Réseau_SOIXANTEDEUX"},{"$f":"1/COUNTIF(T_sept_dec[CléRéseau-Rize horsmed],T_sept_dec[[#This Row],[CléRéseau-Rize horsmed]])","v":0.5},{"$f":"IF(COUNTIF(RIZE,T_sept_dec[[#This Row],[Secteur organisateur]]),\"Rize_\"&T_sept_dec[[#This Row],[Enseignant référent (Nom Prénom)]],\"\")","v":""},{"$f":"1/COUNTIF(T_sept_dec[CléRize],T_sept_dec[[#This Row],[CléRize]])","v":9.8039215686274508E-3},{"$f":"IF(COUNTIF(Total,T_sept_dec[[#This Row],[Secteur organisateur]]),\"Total_\"&T_sept_dec[[#This Row],[Enseignant référent (Nom Prénom)]],\"\")","v":"Total_SOIXANTEDEUX"},{"$f":"1/COUNTIF(T_sept_dec[cléTotal],T_sept_dec[[#This Row],[cléTotal]])","v":0.5}]
["2017-11-09","EMM",null,"Louis Armand","cm1","SOIXANTEDEUX",29,"In situ","Stop motion",null,null,{"$f":"IF(COUNTIF(Maternelle,E92)=1,listes!$T$1,IF(COUNTIF(Elémentaire,E92)=1,listes!$U$1,IF(COUNTIF(Collège,E92)=1,listes!$V$1,IF(COUNTIF(Lycée,E92)=1,listes!$W$1,\"\"))))","v":"Elémentaire"},{"$f":"VLOOKUP(T_sept_dec[[#This Row],[Etablissement scolaire]],Regroupements!$T:$U,2,FALSE)","v":"Charpennes-Tonkin"},{"$f":"IF(COUNTIF(FDL,B92)=1,\"FDL\",IF(COUNTIF(RIZE,B92)=1,\"RIZE\",IF(COUNTIF(MLIS,B92)=1,\"MLIS\",IF(COUNTIF(PACBUS,B92)=1,\"PAC-BUS\",IF(COUNTIF(Tonkin,B92)=1,\"TONKIN\",\"\")))))","v":"MLIS"},{"$f":"T_sept_dec[[#This Row],[Etablissement accueillant]]&\"-\"&T_sept_dec[[#This Row],[Enseignant référent (Nom Prénom)]]","v":"MLIS-SOIXANTEDEUX"},{"$f":"1/COUNTIF(T_sept_dec[CléEtablissement],T_sept_dec[[#This Row],[CléEtablissement]])","v":1},{"$f":"IF(COUNTIF(Réseau,T_sept_dec[[#This Row],[Secteur organisateur]]),\"Réseau_\"&T_sept_dec[[#This Row],[Enseignant référent (Nom Prénom)]], IF(COUNTIF(Rizehorsmed,T_sept_dec[[#This Row],[Secteur organisateur]]),\"Rizehorsmed_\"&T_sept_dec[[#This Row],[Enseignant référent (Nom Prénom)]], T_sept_dec[[#This Row],[Secteur organisateur]]&\"_\"&T_sept_dec[[#This Row],[Enseignant référent (Nom Prénom)]]))","v":"Réseau_SOIXANTEDEUX"},{"$f":"1/COUNTIF(T_sept_dec[CléRéseau-Rize horsmed],T_sept_dec[[#This Row],[CléRéseau-Rize horsmed]])","v":0.5},{"$f":"IF(COUNTIF(RIZE,T_sept_dec[[#This Row],[Secteur organisateur]]),\"Rize_\"&T_sept_dec[[#This Row],[Enseignant référent (Nom Prénom)]],\"\")","v":""},{"$f":"1/COUNTIF(T_sept_dec[CléRize],T_sept_dec[[#This Row],[CléRize]])","v":9.8039215686274508E-3},{"$f":"IF(COUNTIF(Total,T_sept_dec[[#This Row],[Secteur organisateur]]),\"Total_\"&T_sept_dec[[#This Row],[Enseignant référent (Nom Prénom)]],\"\")","v":"Total_SOIXANTEDEUX"},{"$f":"1/COUNTIF(T_sept_dec[cléTotal],T_sept_dec[[#This Row],[cléTotal]])","v":0.5}]
["2017-12-19","MTK",null,"Tonkin/Nigritelle","ULIS (école)","SOIXANTEDIX",5,"In situ","Visite à la carte",null,null,{"$f":"IF(COUNTIF(Maternelle,E93)=1,listes!$T$1,IF(COUNTIF(Elémentaire,E93)=1,listes!$U$1,IF(COUNTIF(Collège,E93)=1,listes!$V$1,IF(COUNTIF(Lycée,E93)=1,listes!$W$1,\"\"))))","v":"Elémentaire"},{"$f":"VLOOKUP(T_sept_dec[[#This Row],[Etablissement scolaire]],Regroupements!$T:$U,2,FALSE)","v":"Charpennes-Tonkin"},"TONKIN",{"$f":"T_sept_dec[[#This Row],[Etablissement accueillant]]&\"-\"&T_sept_dec[[#This Row],[Enseignant référent (Nom Prénom)]]","v":"TONKIN-SOIXANTEDIX"},{"$f":"1/COUNTIF(T_sept_dec[CléEtablissement],T_sept_dec[[#This Row],[CléEtablissement]])","v":1},{"$f":"IF(COUNTIF(Réseau,T_sept_dec[[#This Row],[Secteur organisateur]]),\"Réseau_\"&T_sept_dec[[#This Row],[Enseignant référent (Nom Prénom)]], IF(COUNTIF(Rizehorsmed,T_sept_dec[[#This Row],[Secteur organisateur]]),\"Rizehorsmed_\"&T_sept_dec[[#This Row],[Enseignant référent (Nom Prénom)]], T_sept_dec[[#This Row],[Secteur organisateur]]&\"_\"&T_sept_dec[[#This Row],[Enseignant référent (Nom Prénom)]]))","v":"Réseau_SOIXANTEDIX"},{"$f":"1/COUNTIF(T_sept_dec[CléRéseau-Rize horsmed],T_sept_dec[[#This Row],[CléRéseau-Rize horsmed]])","v":1},{"$f":"IF(COUNTIF(RIZE,T_sept_dec[[#This Row],[Secteur organisateur]]),\"Rize_\"&T_sept_dec[[#This Row],[Enseignant référent (Nom Prénom)]],\"\")","v":""},{"$f":"1/COUNTIF(T_sept_dec[CléRize],T_sept_dec[[#This Row],[CléRize]])","v":9.8039215686274508E-3},{"$f":"IF(COUNTIF(Total,T_sept_dec[[#This Row],[Secteur organisateur]]),\"Total_\"&T_sept_dec[[#This Row],[Enseignant référent (Nom Prénom)]],\"\")","v":"Total_SOIXANTEDIX"},{"$f":"1/COUNTIF(T_sept_dec[cléTotal],T_sept_dec[[#This Row],[cléTotal]])","v":1}]
["2017-12-08","MTK",null,"Lakanal","cm1/cm2","SOIXANTEDIXHUIT",29,"In situ","Visite poésie",null,null,{"$f":"IF(COUNTIF(Maternelle,E94)=1,listes!$T$1,IF(COUNTIF(Elémentaire,E94)=1,listes!$U$1,IF(COUNTIF(Collège,E94)=1,listes!$V$1,IF(COUNTIF(Lycée,E94)=1,listes!$W$1,\"\"))))","v":"Elémentaire"},{"$f":"VLOOKUP(T_sept_dec[[#This Row],[Etablissement scolaire]],Regroupements!$T:$U,2,FALSE)","v":"Charpennes-Tonkin"},"TONKIN",{"$f":"T_sept_dec[[#This Row],[Etablissement accueillant]]&\"-\"&T_sept_dec[[#This Row],[Enseignant référent (Nom Prénom)]]","v":"TONKIN-SOIXANTEDIXHUIT"},{"$f":"1/COUNTIF(T_sept_dec[CléEtablissement],T_sept_dec[[#This Row],[CléEtablissement]])","v":1},{"$f":"IF(COUNTIF(Réseau,T_sept_dec[[#This Row],[Secteur organisateur]]),\"Réseau_\"&T_sept_dec[[#This Row],[Enseignant référent (Nom Prénom)]], IF(COUNTIF(Rizehorsmed,T_sept_dec[[#This Row],[Secteur organisateur]]),\"Rizehorsmed_\"&T_sept_dec[[#This Row],[Enseignant référent (Nom Prénom)]], T_sept_dec[[#This Row],[Secteur organisateur]]&\"_\"&T_sept_dec[[#This Row],[Enseignant référent (Nom Prénom)]]))","v":"Réseau_SOIXANTEDIXHUIT"},{"$f":"1/COUNTIF(T_sept_dec[CléRéseau-Rize horsmed],T_sept_dec[[#This Row],[CléRéseau-Rize horsmed]])","v":1},{"$f":"IF(COUNTIF(RIZE,T_sept_dec[[#This Row],[Secteur organisateur]]),\"Rize_\"&T_sept_dec[[#This Row],[Enseignant référent (Nom Prénom)]],\"\")","v":""},{"$f":"1/COUNTIF(T_sept_dec[CléRize],T_sept_dec[[#This Row],[CléRize]])","v":9.8039215686274508E-3},{"$f":"IF(COUNTIF(Total,T_sept_dec[[#This Row],[Secteur organisateur]]),\"Total_\"&T_sept_dec[[#This Row],[Enseignant référent (Nom Prénom)]],\"\")","v":"Total_SOIXANTEDIXHUIT"},{"$f":"1/COUNTIF(T_sept_dec[cléTotal],T_sept_dec[[#This Row],[cléTotal]])","v":1}]
["2017-11-08","RIZE MED",null,"Jean Jaurès (primaire)","gs","SOIXANTEDIXNEUF",24,"In situ","Visite découverte",null,null,{"$f":"IF(COUNTIF(Maternelle,E95)=1,listes!$T$1,IF(COUNTIF(Elémentaire,E95)=1,listes!$U$1,IF(COUNTIF(Collège,E95)=1,listes!$V$1,IF(COUNTIF(Lycée,E95)=1,listes!$W$1,\"\"))))","v":"Maternelle"},{"$f":"VLOOKUP(T_sept_dec[[#This Row],[Etablissement scolaire]],Regroupements!$T:$U,2,FALSE)","v":"Ferrandière-Maisons Neuves"},"RIZE",{"$f":"T_sept_dec[[#This Row],[Etablissement accueillant]]&\"-\"&T_sept_dec[[#This Row],[Enseignant référent (Nom Prénom)]]","v":"RIZE-SOIXANTEDIXNEUF"},{"$f":"1/COUNTIF(T_sept_dec[CléEtablissement],T_sept_dec[[#This Row],[CléEtablissement]])","v":1},{"$f":"IF(COUNTIF(Réseau,T_sept_dec[[#This Row],[Secteur organisateur]]),\"Réseau_\"&T_sept_dec[[#This Row],[Enseignant référent (Nom Prénom)]], IF(COUNTIF(Rizehorsmed,T_sept_dec[[#This Row],[Secteur organisateur]]),\"Rizehorsmed_\"&T_sept_dec[[#This Row],[Enseignant référent (Nom Prénom)]], T_sept_dec[[#This Row],[Secteur organisateur]]&\"_\"&T_sept_dec[[#This Row],[Enseignant référent (Nom Prénom)]]))","v":"Réseau_SOIXANTEDIXNEUF"},{"$f":"1/COUNTIF(T_sept_dec[CléRéseau-Rize horsmed],T_sept_dec[[#This Row],[CléRéseau-Rize horsmed]])","v":1},{"$f":"IF(COUNTIF(RIZE,T_sept_dec[[#This Row],[Secteur organisateur]]),\"Rize_\"&T_sept_dec[[#This Row],[Enseignant référent (Nom Prénom)]],\"\")","v":"Rize_SOIXANTEDIXNEUF"},{"$f":"1/COUNTIF(T_sept_dec[CléRize],T_sept_dec[[#This Row],[CléRize]])","v":1},{"$f":"IF(COUNTIF(Total,T_sept_dec[[#This Row],[Secteur organisateur]]),\"Total_\"&T_sept_dec[[#This Row],[Enseignant référent (Nom Prénom)]],\"\")","v":"Total_SOIXANTEDIXNEUF"},{"$f":"1/COUNTIF(T_sept_dec[cléTotal],T_sept_dec[[#This Row],[cléTotal]])","v":1}]
["2017-11-17","MLIS J",null,"Collège Jean Macé","6°","SOIXANTEDIXSEPT",27,"In situ","Conte",null,null,{"$f":"IF(COUNTIF(Maternelle,E96)=1,listes!$T$1,IF(COUNTIF(Elémentaire,E96)=1,listes!$U$1,IF(COUNTIF(Collège,E96)=1,listes!$V$1,IF(COUNTIF(Lycée,E96)=1,listes!$W$1,\"\"))))","v":"Collège"},{"$f":"VLOOKUP(T_sept_dec[[#This Row],[Etablissement scolaire]],Regroupements!$T:$U,2,FALSE)","v":"Buers-Croix-Luizet"},"MLIS",{"$f":"T_sept_dec[[#This Row],[Etablissement accueillant]]&\"-\"&T_sept_dec[[#This Row],[Enseignant référent (Nom Prénom)]]","v":"MLIS-SOIXANTEDIXSEPT"},{"$f":"1/COUNTIF(T_sept_dec[CléEtablissement],T_sept_dec[[#This Row],[CléEtablissement]])","v":0.33333333333333331},{"$f":"IF(COUNTIF(Réseau,T_sept_dec[[#This Row],[Secteur organisateur]]),\"Réseau_\"&T_sept_dec[[#This Row],[Enseignant référent (Nom Prénom)]], IF(COUNTIF(Rizehorsmed,T_sept_dec[[#This Row],[Secteur organisateur]]),\"Rizehorsmed_\"&T_sept_dec[[#This Row],[Enseignant référent (Nom Prénom)]], T_sept_dec[[#This Row],[Secteur organisateur]]&\"_\"&T_sept_dec[[#This Row],[Enseignant référent (Nom Prénom)]]))","v":"Réseau_SOIXANTEDIXSEPT"},{"$f":"1/COUNTIF(T_sept_dec[CléRéseau-Rize horsmed],T_sept_dec[[#This Row],[CléRéseau-Rize horsmed]])","v":0.33333333333333331},{"$f":"IF(COUNTIF(RIZE,T_sept_dec[[#This Row],[Secteur organisateur]]),\"Rize_\"&T_sept_dec[[#This Row],[Enseignant référent (Nom Prénom)]],\"\")","v":""},{"$f":"1/COUNTIF(T_sept_dec[CléRize],T_sept_dec[[#This Row],[CléRize]])","v":9.8039215686274508E-3},{"$f":"IF(COUNTIF(Total,T_sept_dec[[#This Row],[Secteur organisateur]]),\"Total_\"&T_sept_dec[[#This Row],[Enseignant référent (Nom Prénom)]],\"\")","v":"Total_SOIXANTEDIXSEPT"},{"$f":"1/COUNTIF(T_sept_dec[cléTotal],T_sept_dec[[#This Row],[cléTotal]])","v":0.33333333333333331}]
["2017-11-23","MLIS J",null,"Collège Jean Macé","6°","SOIXANTEDIXSEPT",29,"In situ","Conte",null,null,{"$f":"IF(COUNTIF(Maternelle,E97)=1,listes!$T$1,IF(COUNTIF(Elémentaire,E97)=1,listes!$U$1,IF(COUNTIF(Collège,E97)=1,listes!$V$1,IF(COUNTIF(Lycée,E97)=1,listes!$W$1,\"\"))))","v":"Collège"},{"$f":"VLOOKUP(T_sept_dec[[#This Row],[Etablissement scolaire]],Regroupements!$T:$U,2,FALSE)","v":"Buers-Croix-Luizet"},"MLIS",{"$f":"T_sept_dec[[#This Row],[Etablissement accueillant]]&\"-\"&T_sept_dec[[#This Row],[Enseignant référent (Nom Prénom)]]","v":"MLIS-SOIXANTEDIXSEPT"},{"$f":"1/COUNTIF(T_sept_dec[CléEtablissement],T_sept_dec[[#This Row],[CléEtablissement]])","v":0.33333333333333331},{"$f":"IF(COUNTIF(Réseau,T_sept_dec[[#This Row],[Secteur organisateur]]),\"Réseau_\"&T_sept_dec[[#This Row],[Enseignant référent (Nom Prénom)]], IF(COUNTIF(Rizehorsmed,T_sept_dec[[#This Row],[Secteur organisateur]]),\"Rizehorsmed_\"&T_sept_dec[[#This Row],[Enseignant référent (Nom Prénom)]], T_sept_dec[[#This Row],[Secteur organisateur]]&\"_\"&T_sept_dec[[#This Row],[Enseignant référent (Nom Prénom)]]))","v":"Réseau_SOIXANTEDIXSEPT"},{"$f":"1/COUNTIF(T_sept_dec[CléRéseau-Rize horsmed],T_sept_dec[[#This Row],[CléRéseau-Rize horsmed]])","v":0.33333333333333331},{"$f":"IF(COUNTIF(RIZE,T_sept_dec[[#This Row],[Secteur organisateur]]),\"Rize_\"&T_sept_dec[[#This Row],[Enseignant référent (Nom Prénom)]],\"\")","v":""},{"$f":"1/COUNTIF(T_sept_dec[CléRize],T_sept_dec[[#This Row],[CléRize]])","v":9.8039215686274508E-3},{"$f":"IF(COUNTIF(Total,T_sept_dec[[#This Row],[Secteur organisateur]]),\"Total_\"&T_sept_dec[[#This Row],[Enseignant référent (Nom Prénom)]],\"\")","v":"Total_SOIXANTEDIXSEPT"},{"$f":"1/COUNTIF(T_sept_dec[cléTotal],T_sept_dec[[#This Row],[cléTotal]])","v":0.33333333333333331}]
["2017-11-28","MLIS J",null,"Collège Jean Macé","6°","SOIXANTEDIXSEPT",25,"In situ","Visite découverte",null,null,{"$f":"IF(COUNTIF(Maternelle,E98)=1,listes!$T$1,IF(COUNTIF(Elémentaire,E98)=1,listes!$U$1,IF(COUNTIF(Collège,E98)=1,listes!$V$1,IF(COUNTIF(Lycée,E98)=1,listes!$W$1,\"\"))))","v":"Collège"},{"$f":"VLOOKUP(T_sept_dec[[#This Row],[Etablissement scolaire]],Regroupements!$T:$U,2,FALSE)","v":"Buers-Croix-Luizet"},{"$f":"IF(COUNTIF(FDL,B98)=1,\"FDL\",IF(COUNTIF(RIZE,B98)=1,\"RIZE\",IF(COUNTIF(MLIS,B98)=1,\"MLIS\",IF(COUNTIF(PACBUS,B98)=1,\"PAC-BUS\",IF(COUNTIF(Tonkin,B98)=1,\"TONKIN\",\"\")))))","v":"MLIS"},{"$f":"T_sept_dec[[#This Row],[Etablissement accueillant]]&\"-\"&T_sept_dec[[#This Row],[Enseignant référent (Nom Prénom)]]","v":"MLIS-SOIXANTEDIXSEPT"},{"$f":"1/COUNTIF(T_sept_dec[CléEtablissement],T_sept_dec[[#This Row],[CléEtablissement]])","v":0.33333333333333331},{"$f":"IF(COUNTIF(Réseau,T_sept_dec[[#This Row],[Secteur organisateur]]),\"Réseau_\"&T_sept_dec[[#This Row],[Enseignant référent (Nom Prénom)]], IF(COUNTIF(Rizehorsmed,T_sept_dec[[#This Row],[Secteur organisateur]]),\"Rizehorsmed_\"&T_sept_dec[[#This Row],[Enseignant référent (Nom Prénom)]], T_sept_dec[[#This Row],[Secteur organisateur]]&\"_\"&T_sept_dec[[#This Row],[Enseignant référent (Nom Prénom)]]))","v":"Réseau_SOIXANTEDIXSEPT"},{"$f":"1/COUNTIF(T_sept_dec[CléRéseau-Rize horsmed],T_sept_dec[[#This Row],[CléRéseau-Rize horsmed]])","v":0.33333333333333331},{"$f":"IF(COUNTIF(RIZE,T_sept_dec[[#This Row],[Secteur organisateur]]),\"Rize_\"&T_sept_dec[[#This Row],[Enseignant référent (Nom Prénom)]],\"\")","v":""},{"$f":"1/COUNTIF(T_sept_dec[CléRize],T_sept_dec[[#This Row],[CléRize]])","v":9.8039215686274508E-3},{"$f":"IF(COUNTIF(Total,T_sept_dec[[#This Row],[Secteur organisateur]]),\"Total_\"&T_sept_dec[[#This Row],[Enseignant référent (Nom Prénom)]],\"\")","v":"Total_SOIXANTEDIXSEPT"},{"$f":"1/COUNTIF(T_sept_dec[cléTotal],T_sept_dec[[#This Row],[cléTotal]])","v":0.33333333333333331}]
["2017-12-01","RIZE VALO",null,"Edouard Herriot","cm1","SOIXANTEDOUZE",27,"Hors les murs","Exploration Gratte-Ciel",null,null,{"$f":"IF(COUNTIF(Maternelle,E99)=1,listes!$T$1,IF(COUNTIF(Elémentaire,E99)=1,listes!$U$1,IF(COUNTIF(Collège,E99)=1,listes!$V$1,IF(COUNTIF(Lycée,E99)=1,listes!$W$1,\"\"))))","v":"Elémentaire"},{"$f":"VLOOKUP(T_sept_dec[[#This Row],[Etablissement scolaire]],Regroupements!$T:$U,2,FALSE)","v":"Gratte-ciel-Dedieu-Charmettes"},"RIZE",{"$f":"T_sept_dec[[#This Row],[Etablissement accueillant]]&\"-\"&T_sept_dec[[#This Row],[Enseignant référent (Nom Prénom)]]","v":"RIZE-SOIXANTEDOUZE"},{"$f":"1/COUNTIF(T_sept_dec[CléEtablissement],T_sept_dec[[#This Row],[CléEtablissement]])","v":1},{"$f":"IF(COUNTIF(Réseau,T_sept_dec[[#This Row],[Secteur organisateur]]),\"Réseau_\"&T_sept_dec[[#This Row],[Enseignant référent (Nom Prénom)]], IF(COUNTIF(Rizehorsmed,T_sept_dec[[#This Row],[Secteur organisateur]]),\"Rizehorsmed_\"&T_sept_dec[[#This Row],[Enseignant référent (Nom Prénom)]], T_sept_dec[[#This Row],[Secteur organisateur]]&\"_\"&T_sept_dec[[#This Row],[Enseignant référent (Nom Prénom)]]))","v":"Rizehorsmed_SOIXANTEDOUZE"},{"$f":"1/COUNTIF(T_sept_dec[CléRéseau-Rize horsmed],T_sept_dec[[#This Row],[CléRéseau-Rize horsmed]])","v":1},{"$f":"IF(COUNTIF(RIZE,T_sept_dec[[#This Row],[Secteur organisateur]]),\"Rize_\"&T_sept_dec[[#This Row],[Enseignant référent (Nom Prénom)]],\"\")","v":"Rize_SOIXANTEDOUZE"},{"$f":"1/COUNTIF(T_sept_dec[CléRize],T_sept_dec[[#This Row],[CléRize]])","v":1},{"$f":"IF(COUNTIF(Total,T_sept_dec[[#This Row],[Secteur organisateur]]),\"Total_\"&T_sept_dec[[#This Row],[Enseignant référent (Nom Prénom)]],\"\")","v":"Total_SOIXANTEDOUZE"},{"$f":"1/COUNTIF(T_sept_dec[cléTotal],T_sept_dec[[#This Row],[cléTotal]])","v":1}]
["2017-09-11","MLIS A",null,"Beth Menahem (privé)","autres (lycée)","SOIXANTEHUIT",11,"In situ","Visite découverte",null,null,{"$f":"IF(COUNTIF(Maternelle,E100)=1,listes!$T$1,IF(COUNTIF(Elémentaire,E100)=1,listes!$U$1,IF(COUNTIF(Collège,E100)=1,listes!$V$1,IF(COUNTIF(Lycée,E100)=1,listes!$W$1,\"\"))))","v":"Lycée"},{"$f":"VLOOKUP(T_sept_dec[[#This Row],[Etablissement scolaire]],Regroupements!$T:$U,2,FALSE)","v":"Cusset-Bonnevay"},"MLIS",{"$f":"T_sept_dec[[#This Row],[Etablissement accueillant]]&\"-\"&T_sept_dec[[#This Row],[Enseignant référent (Nom Prénom)]]","v":"MLIS-SOIXANTEHUIT"},{"$f":"1/COUNTIF(T_sept_dec[CléEtablissement],T_sept_dec[[#This Row],[CléEtablissement]])","v":1},{"$f":"IF(COUNTIF(Réseau,T_sept_dec[[#This Row],[Secteur organisateur]]),\"Réseau_\"&T_sept_dec[[#This Row],[Enseignant référent (Nom Prénom)]], IF(COUNTIF(Rizehorsmed,T_sept_dec[[#This Row],[Secteur organisateur]]),\"Rizehorsmed_\"&T_sept_dec[[#This Row],[Enseignant référent (Nom Prénom)]], T_sept_dec[[#This Row],[Secteur organisateur]]&\"_\"&T_sept_dec[[#This Row],[Enseignant référent (Nom Prénom)]]))","v":"Réseau_SOIXANTEHUIT"},{"$f":"1/COUNTIF(T_sept_dec[CléRéseau-Rize horsmed],T_sept_dec[[#This Row],[CléRéseau-Rize horsmed]])","v":1},{"$f":"IF(COUNTIF(RIZE,T_sept_dec[[#This Row],[Secteur organisateur]]),\"Rize_\"&T_sept_dec[[#This Row],[Enseignant référent (Nom Prénom)]],\"\")","v":""},{"$f":"1/COUNTIF(T_sept_dec[CléRize],T_sept_dec[[#This Row],[CléRize]])","v":9.8039215686274508E-3},{"$f":"IF(COUNTIF(Total,T_sept_dec[[#This Row],[Secteur organisateur]]),\"Total_\"&T_sept_dec[[#This Row],[Enseignant référent (Nom Prénom)]],\"\")","v":"Total_SOIXANTEHUIT"},{"$f":"1/COUNTIF(T_sept_dec[cléTotal],T_sept_dec[[#This Row],[cléTotal]])","v":1}]
["2017-10-11","MLIS J",null,"Château-Gaillard","ULIS (école)","SOIXANTENEUF",4,"In situ","Visite à la carte",null,null,{"$f":"IF(COUNTIF(Maternelle,E101)=1,listes!$T$1,IF(COUNTIF(Elémentaire,E101)=1,listes!$U$1,IF(COUNTIF(Collège,E101)=1,listes!$V$1,IF(COUNTIF(Lycée,E101)=1,listes!$W$1,\"\"))))","v":"Elémentaire"},{"$f":"VLOOKUP(T_sept_dec[[#This Row],[Etablissement scolaire]],Regroupements!$T:$U,2,FALSE)","v":"Buers-Croix-Luizet"},"MLIS",{"$f":"T_sept_dec[[#This Row],[Etablissement accueillant]]&\"-\"&T_sept_dec[[#This Row],[Enseignant référent (Nom Prénom)]]","v":"MLIS-SOIXANTENEUF"},{"$f":"1/COUNTIF(T_sept_dec[CléEtablissement],T_sept_dec[[#This Row],[CléEtablissement]])","v":1},{"$f":"IF(COUNTIF(Réseau,T_sept_dec[[#This Row],[Secteur organisateur]]),\"Réseau_\"&T_sept_dec[[#This Row],[Enseignant référent (Nom Prénom)]], IF(COUNTIF(Rizehorsmed,T_sept_dec[[#This Row],[Secteur organisateur]]),\"Rizehorsmed_\"&T_sept_dec[[#This Row],[Enseignant référent (Nom Prénom)]], T_sept_dec[[#This Row],[Secteur organisateur]]&\"_\"&T_sept_dec[[#This Row],[Enseignant référent (Nom Prénom)]]))","v":"Réseau_SOIXANTENEUF"},{"$f":"1/COUNTIF(T_sept_dec[CléRéseau-Rize horsmed],T_sept_dec[[#This Row],[CléRéseau-Rize horsmed]])","v":1},{"$f":"IF(COUNTIF(RIZE,T_sept_dec[[#This Row],[Secteur organisateur]]),\"Rize_\"&T_sept_dec[[#This Row],[Enseignant référent (Nom Prénom)]],\"\")","v":""},{"$f":"1/COUNTIF(T_sept_dec[CléRize],T_sept_dec[[#This Row],[CléRize]])","v":9.8039215686274508E-3},{"$f":"IF(COUNTIF(Total,T_sept_dec[[#This Row],[Secteur organisateur]]),\"Total_\"&T_sept_dec[[#This Row],[Enseignant référent (Nom Prénom)]],\"\")","v":"Total_SOIXANTENEUF"},{"$f":"1/COUNTIF(T_sept_dec[cléTotal],T_sept_dec[[#This Row],[cléTotal]])","v":1}]
["2017-09-22","MLIS J",null,"Jean Zay","gs","SOIXANTEONZE",31,"In situ","La maison des livres",null,null,{"$f":"IF(COUNTIF(Maternelle,E102)=1,listes!$T$1,IF(COUNTIF(Elémentaire,E102)=1,listes!$U$1,IF(COUNTIF(Collège,E102)=1,listes!$V$1,IF(COUNTIF(Lycée,E102)=1,listes!$W$1,\"\"))))","v":"Maternelle"},{"$f":"VLOOKUP(T_sept_dec[[#This Row],[Etablissement scolaire]],Regroupements!$T:$U,2,FALSE)","v":"Gratte-ciel-Dedieu-Charmettes"},"MLIS",{"$f":"T_sept_dec[[#This Row],[Etablissement accueillant]]&\"-\"&T_sept_dec[[#This Row],[Enseignant référent (Nom Prénom)]]","v":"MLIS-SOIXANTEONZE"},{"$f":"1/COUNTIF(T_sept_dec[CléEtablissement],T_sept_dec[[#This Row],[CléEtablissement]])","v":1},{"$f":"IF(COUNTIF(Réseau,T_sept_dec[[#This Row],[Secteur organisateur]]),\"Réseau_\"&T_sept_dec[[#This Row],[Enseignant référent (Nom Prénom)]], IF(COUNTIF(Rizehorsmed,T_sept_dec[[#This Row],[Secteur organisateur]]),\"Rizehorsmed_\"&T_sept_dec[[#This Row],[Enseignant référent (Nom Prénom)]], T_sept_dec[[#This Row],[Secteur organisateur]]&\"_\"&T_sept_dec[[#This Row],[Enseignant référent (Nom Prénom)]]))","v":"Réseau_SOIXANTEONZE"},{"$f":"1/COUNTIF(T_sept_dec[CléRéseau-Rize horsmed],T_sept_dec[[#This Row],[CléRéseau-Rize horsmed]])","v":1},{"$f":"IF(COUNTIF(RIZE,T_sept_dec[[#This Row],[Secteur organisateur]]),\"Rize_\"&T_sept_dec[[#This Row],[Enseignant référent (Nom Prénom)]],\"\")","v":""},{"$f":"1/COUNTIF(T_sept_dec[CléRize],T_sept_dec[[#This Row],[CléRize]])","v":9.8039215686274508E-3},{"$f":"IF(COUNTIF(Total,T_sept_dec[[#This Row],[Secteur organisateur]]),\"Total_\"&T_sept_dec[[#This Row],[Enseignant référent (Nom Prénom)]],\"\")","v":"Total_SOIXANTEONZE"},{"$f":"1/COUNTIF(T_sept_dec[cléTotal],T_sept_dec[[#This Row],[cléTotal]])","v":1}]
["2017-11-14","ARTO",null,"Jules Ferry","ce1/ce2","SOIXANTEQUATORZE",21,"In situ","Et si on parlait d'art ?",null,null,{"$f":"IF(COUNTIF(Maternelle,E103)=1,listes!$T$1,IF(COUNTIF(Elémentaire,E103)=1,listes!$U$1,IF(COUNTIF(Collège,E103)=1,listes!$V$1,IF(COUNTIF(Lycée,E103)=1,listes!$W$1,\"\"))))","v":"Elémentaire"},{"$f":"VLOOKUP(T_sept_dec[[#This Row],[Etablissement scolaire]],Regroupements!$T:$U,2,FALSE)","v":"Cusset-Bonnevay"},"MLIS",{"$f":"T_sept_dec[[#This Row],[Etablissement accueillant]]&\"-\"&T_sept_dec[[#This Row],[Enseignant référent (Nom Prénom)]]","v":"MLIS-SOIXANTEQUATORZE"},{"$f":"1/COUNTIF(T_sept_dec[CléEtablissement],T_sept_dec[[#This Row],[CléEtablissement]])","v":1},{"$f":"IF(COUNTIF(Réseau,T_sept_dec[[#This Row],[Secteur organisateur]]),\"Réseau_\"&T_sept_dec[[#This Row],[Enseignant référent (Nom Prénom)]], IF(COUNTIF(Rizehorsmed,T_sept_dec[[#This Row],[Secteur organisateur]]),\"Rizehorsmed_\"&T_sept_dec[[#This Row],[Enseignant référent (Nom Prénom)]], T_sept_dec[[#This Row],[Secteur organisateur]]&\"_\"&T_sept_dec[[#This Row],[Enseignant référent (Nom Prénom)]]))","v":"Réseau_SOIXANTEQUATORZE"},{"$f":"1/COUNTIF(T_sept_dec[CléRéseau-Rize horsmed],T_sept_dec[[#This Row],[CléRéseau-Rize horsmed]])","v":1},{"$f":"IF(COUNTIF(RIZE,T_sept_dec[[#This Row],[Secteur organisateur]]),\"Rize_\"&T_sept_dec[[#This Row],[Enseignant référent (Nom Prénom)]],\"\")","v":""},{"$f":"1/COUNTIF(T_sept_dec[CléRize],T_sept_dec[[#This Row],[CléRize]])","v":9.8039215686274508E-3},{"$f":"IF(COUNTIF(Total,T_sept_dec[[#This Row],[Secteur organisateur]]),\"Total_\"&T_sept_dec[[#This Row],[Enseignant référent (Nom Prénom)]],\"\")","v":"Total_SOIXANTEQUATORZE"},{"$f":"1/COUNTIF(T_sept_dec[cléTotal],T_sept_dec[[#This Row],[cléTotal]])","v":1}]
["2017-12-01","MTK",null,"Lakanal","ce2","SOIXANTEQUATRE",28,"In situ","Première lecture",null,null,{"$f":"IF(COUNTIF(Maternelle,E104)=1,listes!$T$1,IF(COUNTIF(Elémentaire,E104)=1,listes!$U$1,IF(COUNTIF(Collège,E104)=1,listes!$V$1,IF(COUNTIF(Lycée,E104)=1,listes!$W$1,\"\"))))","v":"Elémentaire"},{"$f":"VLOOKUP(T_sept_dec[[#This Row],[Etablissement scolaire]],Regroupements!$T:$U,2,FALSE)","v":"Charpennes-Tonkin"},"TONKIN",{"$f":"T_sept_dec[[#This Row],[Etablissement accueillant]]&\"-\"&T_sept_dec[[#This Row],[Enseignant référent (Nom Prénom)]]","v":"TONKIN-SOIXANTEQUATRE"},{"$f":"1/COUNTIF(T_sept_dec[CléEtablissement],T_sept_dec[[#This Row],[CléEtablissement]])","v":1},{"$f":"IF(COUNTIF(Réseau,T_sept_dec[[#This Row],[Secteur organisateur]]),\"Réseau_\"&T_sept_dec[[#This Row],[Enseignant référent (Nom Prénom)]], IF(COUNTIF(Rizehorsmed,T_sept_dec[[#This Row],[Secteur organisateur]]),\"Rizehorsmed_\"&T_sept_dec[[#This Row],[Enseignant référent (Nom Prénom)]], T_sept_dec[[#This Row],[Secteur organisateur]]&\"_\"&T_sept_dec[[#This Row],[Enseignant référent (Nom Prénom)]]))","v":"Réseau_SOIXANTEQUATRE"},{"$f":"1/COUNTIF(T_sept_dec[CléRéseau-Rize horsmed],T_sept_dec[[#This Row],[CléRéseau-Rize horsmed]])","v":1},{"$f":"IF(COUNTIF(RIZE,T_sept_dec[[#This Row],[Secteur organisateur]]),\"Rize_\"&T_sept_dec[[#This Row],[Enseignant référent (Nom Prénom)]],\"\")","v":""},{"$f":"1/COUNTIF(T_sept_dec[CléRize],T_sept_dec[[#This Row],[CléRize]])","v":9.8039215686274508E-3},{"$f":"IF(COUNTIF(Total,T_sept_dec[[#This Row],[Secteur organisateur]]),\"Total_\"&T_sept_dec[[#This Row],[Enseignant référent (Nom Prénom)]],\"\")","v":"Total_SOIXANTEQUATRE"},{"$f":"1/COUNTIF(T_sept_dec[cléTotal],T_sept_dec[[#This Row],[cléTotal]])","v":1}]
["2017-10-19","FDL",null,"Jules Guesde","cm1/cm2","SOIXANTEQUINZE",22,"In situ","Projet FDL",null,null,{"$f":"IF(COUNTIF(Maternelle,E105)=1,listes!$T$1,IF(COUNTIF(Elémentaire,E105)=1,listes!$U$1,IF(COUNTIF(Collège,E105)=1,listes!$V$1,IF(COUNTIF(Lycée,E105)=1,listes!$W$1,\"\"))))","v":"Elémentaire"},{"$f":"VLOOKUP(T_sept_dec[[#This Row],[Etablissement scolaire]],Regroupements!$T:$U,2,FALSE)","v":"Cyprian-les-Brosses"},"FDL",{"$f":"T_sept_dec[[#This Row],[Etablissement accueillant]]&\"-\"&T_sept_dec[[#This Row],[Enseignant référent (Nom Prénom)]]","v":"FDL-SOIXANTEQUINZE"},{"$f":"1/COUNTIF(T_sept_dec[CléEtablissement],T_sept_dec[[#This Row],[CléEtablissement]])","v":0.2},{"$f":"IF(COUNTIF(Réseau,T_sept_dec[[#This Row],[Secteur organisateur]]),\"Réseau_\"&T_sept_dec[[#This Row],[Enseignant référent (Nom Prénom)]], IF(COUNTIF(Rizehorsmed,T_sept_dec[[#This Row],[Secteur organisateur]]),\"Rizehorsmed_\"&T_sept_dec[[#This Row],[Enseignant référent (Nom Prénom)]], T_sept_dec[[#This Row],[Secteur organisateur]]&\"_\"&T_sept_dec[[#This Row],[Enseignant référent (Nom Prénom)]]))","v":"FDL_SOIXANTEQUINZE"},{"$f":"1/COUNTIF(T_sept_dec[CléRéseau-Rize horsmed],T_sept_dec[[#This Row],[CléRéseau-Rize horsmed]])","v":0.2},{"$f":"IF(COUNTIF(RIZE,T_sept_dec[[#This Row],[Secteur organisateur]]),\"Rize_\"&T_sept_dec[[#This Row],[Enseignant référent (Nom Prénom)]],\"\")","v":""},{"$f":"1/COUNTIF(T_sept_dec[CléRize],T_sept_dec[[#This Row],[CléRize]])","v":9.8039215686274508E-3},{"$f":"IF(COUNTIF(Total,T_sept_dec[[#This Row],[Secteur organisateur]]),\"Total_\"&T_sept_dec[[#This Row],[Enseignant référent (Nom Prénom)]],\"\")","v":"Total_SOIXANTEQUINZE"},{"$f":"1/COUNTIF(T_sept_dec[cléTotal],T_sept_dec[[#This Row],[cléTotal]])","v":0.2}]
["2017-11-20","FDL",null,"Jules Guesde","cm1/cm2","SOIXANTEQUINZE",22,"In situ","Projet FDL",null,null,{"$f":"IF(COUNTIF(Maternelle,E106)=1,listes!$T$1,IF(COUNTIF(Elémentaire,E106)=1,listes!$U$1,IF(COUNTIF(Collège,E106)=1,listes!$V$1,IF(COUNTIF(Lycée,E106)=1,listes!$W$1,\"\"))))","v":"Elémentaire"},{"$f":"VLOOKUP(T_sept_dec[[#This Row],[Etablissement scolaire]],Regroupements!$T:$U,2,FALSE)","v":"Cyprian-les-Brosses"},"FDL",{"$f":"T_sept_dec[[#This Row],[Etablissement accueillant]]&\"-\"&T_sept_dec[[#This Row],[Enseignant référent (Nom Prénom)]]","v":"FDL-SOIXANTEQUINZE"},{"$f":"1/COUNTIF(T_sept_dec[CléEtablissement],T_sept_dec[[#This Row],[CléEtablissement]])","v":0.2},{"$f":"IF(COUNTIF(Réseau,T_sept_dec[[#This Row],[Secteur organisateur]]),\"Réseau_\"&T_sept_dec[[#This Row],[Enseignant référent (Nom Prénom)]], IF(COUNTIF(Rizehorsmed,T_sept_dec[[#This Row],[Secteur organisateur]]),\"Rizehorsmed_\"&T_sept_dec[[#This Row],[Enseignant référent (Nom Prénom)]], T_sept_dec[[#This Row],[Secteur organisateur]]&\"_\"&T_sept_dec[[#This Row],[Enseignant référent (Nom Prénom)]]))","v":"FDL_SOIXANTEQUINZE"},{"$f":"1/COUNTIF(T_sept_dec[CléRéseau-Rize horsmed],T_sept_dec[[#This Row],[CléRéseau-Rize horsmed]])","v":0.2},{"$f":"IF(COUNTIF(RIZE,T_sept_dec[[#This Row],[Secteur organisateur]]),\"Rize_\"&T_sept_dec[[#This Row],[Enseignant référent (Nom Prénom)]],\"\")","v":""},{"$f":"1/COUNTIF(T_sept_dec[CléRize],T_sept_dec[[#This Row],[CléRize]])","v":9.8039215686274508E-3},{"$f":"IF(COUNTIF(Total,T_sept_dec[[#This Row],[Secteur organisateur]]),\"Total_\"&T_sept_dec[[#This Row],[Enseignant référent (Nom Prénom)]],\"\")","v":"Total_SOIXANTEQUINZE"},{"$f":"1/COUNTIF(T_sept_dec[cléTotal],T_sept_dec[[#This Row],[cléTotal]])","v":0.2}]
["2017-11-21","FDL",null,"Jules Guesde","cm1/cm2","SOIXANTEQUINZE",22,"In situ","Projet FDL",null,null,{"$f":"IF(COUNTIF(Maternelle,E107)=1,listes!$T$1,IF(COUNTIF(Elémentaire,E107)=1,listes!$U$1,IF(COUNTIF(Collège,E107)=1,listes!$V$1,IF(COUNTIF(Lycée,E107)=1,listes!$W$1,\"\"))))","v":"Elémentaire"},{"$f":"VLOOKUP(T_sept_dec[[#This Row],[Etablissement scolaire]],Regroupements!$T:$U,2,FALSE)","v":"Cyprian-les-Brosses"},"FDL",{"$f":"T_sept_dec[[#This Row],[Etablissement accueillant]]&\"-\"&T_sept_dec[[#This Row],[Enseignant référent (Nom Prénom)]]","v":"FDL-SOIXANTEQUINZE"},{"$f":"1/COUNTIF(T_sept_dec[CléEtablissement],T_sept_dec[[#This Row],[CléEtablissement]])","v":0.2},{"$f":"IF(COUNTIF(Réseau,T_sept_dec[[#This Row],[Secteur organisateur]]),\"Réseau_\"&T_sept_dec[[#This Row],[Enseignant référent (Nom Prénom)]], IF(COUNTIF(Rizehorsmed,T_sept_dec[[#This Row],[Secteur organisateur]]),\"Rizehorsmed_\"&T_sept_dec[[#This Row],[Enseignant référent (Nom Prénom)]], T_sept_dec[[#This Row],[Secteur organisateur]]&\"_\"&T_sept_dec[[#This Row],[Enseignant référent (Nom Prénom)]]))","v":"FDL_SOIXANTEQUINZE"},{"$f":"1/COUNTIF(T_sept_dec[CléRéseau-Rize horsmed],T_sept_dec[[#This Row],[CléRéseau-Rize horsmed]])","v":0.2},{"$f":"IF(COUNTIF(RIZE,T_sept_dec[[#This Row],[Secteur organisateur]]),\"Rize_\"&T_sept_dec[[#This Row],[Enseignant référent (Nom Prénom)]],\"\")","v":""},{"$f":"1/COUNTIF(T_sept_dec[CléRize],T_sept_dec[[#This Row],[CléRize]])","v":9.8039215686274508E-3},{"$f":"IF(COUNTIF(Total,T_sept_dec[[#This Row],[Secteur organisateur]]),\"Total_\"&T_sept_dec[[#This Row],[Enseignant référent (Nom Prénom)]],\"\")","v":"Total_SOIXANTEQUINZE"},{"$f":"1/COUNTIF(T_sept_dec[cléTotal],T_sept_dec[[#This Row],[cléTotal]])","v":0.2}]
["2017-11-22","FDL",null,"Jules Guesde","cm1/cm2","SOIXANTEQUINZE",22,"In situ","Projet FDL",null,null,{"$f":"IF(COUNTIF(Maternelle,E108)=1,listes!$T$1,IF(COUNTIF(Elémentaire,E108)=1,listes!$U$1,IF(COUNTIF(Collège,E108)=1,listes!$V$1,IF(COUNTIF(Lycée,E108)=1,listes!$W$1,\"\"))))","v":"Elémentaire"},{"$f":"VLOOKUP(T_sept_dec[[#This Row],[Etablissement scolaire]],Regroupements!$T:$U,2,FALSE)","v":"Cyprian-les-Brosses"},"FDL",{"$f":"T_sept_dec[[#This Row],[Etablissement accueillant]]&\"-\"&T_sept_dec[[#This Row],[Enseignant référent (Nom Prénom)]]","v":"FDL-SOIXANTEQUINZE"},{"$f":"1/COUNTIF(T_sept_dec[CléEtablissement],T_sept_dec[[#This Row],[CléEtablissement]])","v":0.2},{"$f":"IF(COUNTIF(Réseau,T_sept_dec[[#This Row],[Secteur organisateur]]),\"Réseau_\"&T_sept_dec[[#This Row],[Enseignant référent (Nom Prénom)]], IF(COUNTIF(Rizehorsmed,T_sept_dec[[#This Row],[Secteur organisateur]]),\"Rizehorsmed_\"&T_sept_dec[[#This Row],[Enseignant référent (Nom Prénom)]], T_sept_dec[[#This Row],[Secteur organisateur]]&\"_\"&T_sept_dec[[#This Row],[Enseignant référent (Nom Prénom)]]))","v":"FDL_SOIXANTEQUINZE"},{"$f":"1/COUNTIF(T_sept_dec[CléRéseau-Rize horsmed],T_sept_dec[[#This Row],[CléRéseau-Rize horsmed]])","v":0.2},{"$f":"IF(COUNTIF(RIZE,T_sept_dec[[#This Row],[Secteur organisateur]]),\"Rize_\"&T_sept_dec[[#This Row],[Enseignant référent (Nom Prénom)]],\"\")","v":""},{"$f":"1/COUNTIF(T_sept_dec[CléRize],T_sept_dec[[#This Row],[CléRize]])","v":9.8039215686274508E-3},{"$f":"IF(COUNTIF(Total,T_sept_dec[[#This Row],[Secteur organisateur]]),\"Total_\"&T_sept_dec[[#This Row],[Enseignant référent (Nom Prénom)]],\"\")","v":"Total_SOIXANTEQUINZE"},{"$f":"1/COUNTIF(T_sept_dec[cléTotal],T_sept_dec[[#This Row],[cléTotal]])","v":0.2}]
["2017-11-23","FDL",null,"Jules Guesde","cm1/cm2","SOIXANTEQUINZE",22,"In situ","Projet FDL",null,null,{"$f":"IF(COUNTIF(Maternelle,E109)=1,listes!$T$1,IF(COUNTIF(Elémentaire,E109)=1,listes!$U$1,IF(COUNTIF(Collège,E109)=1,listes!$V$1,IF(COUNTIF(Lycée,E109)=1,listes!$W$1,\"\"))))","v":"Elémentaire"},{"$f":"VLOOKUP(T_sept_dec[[#This Row],[Etablissement scolaire]],Regroupements!$T:$U,2,FALSE)","v":"Cyprian-les-Brosses"},"FDL",{"$f":"T_sept_dec[[#This Row],[Etablissement accueillant]]&\"-\"&T_sept_dec[[#This Row],[Enseignant référent (Nom Prénom)]]","v":"FDL-SOIXANTEQUINZE"},{"$f":"1/COUNTIF(T_sept_dec[CléEtablissement],T_sept_dec[[#This Row],[CléEtablissement]])","v":0.2},{"$f":"IF(COUNTIF(Réseau,T_sept_dec[[#This Row],[Secteur organisateur]]),\"Réseau_\"&T_sept_dec[[#This Row],[Enseignant référent (Nom Prénom)]], IF(COUNTIF(Rizehorsmed,T_sept_dec[[#This Row],[Secteur organisateur]]),\"Rizehorsmed_\"&T_sept_dec[[#This Row],[Enseignant référent (Nom Prénom)]], T_sept_dec[[#This Row],[Secteur organisateur]]&\"_\"&T_sept_dec[[#This Row],[Enseignant référent (Nom Prénom)]]))","v":"FDL_SOIXANTEQUINZE"},{"$f":"1/COUNTIF(T_sept_dec[CléRéseau-Rize horsmed],T_sept_dec[[#This Row],[CléRéseau-Rize horsmed]])","v":0.2},{"$f":"IF(COUNTIF(RIZE,T_sept_dec[[#This Row],[Secteur organisateur]]),\"Rize_\"&T_sept_dec[[#This Row],[Enseignant référent (Nom Prénom)]],\"\")","v":""},{"$f":"1/COUNTIF(T_sept_dec[CléRize],T_sept_dec[[#This Row],[CléRize]])","v":9.8039215686274508E-3},{"$f":"IF(COUNTIF(Total,T_sept_dec[[#This Row],[Secteur organisateur]]),\"Total_\"&T_sept_dec[[#This Row],[Enseignant référent (Nom Prénom)]],\"\")","v":"Total_SOIXANTEQUINZE"},{"$f":"1/COUNTIF(T_sept_dec[cléTotal],T_sept_dec[[#This Row],[cléTotal]])","v":0.2}]
["2017-12-07","RIZE MED",null,"Collège Jean Jaurès","5°","SOIXANTESEIZE",24,"In situ","Visite couplée",null,null,{"$f":"IF(COUNTIF(Maternelle,E110)=1,listes!$T$1,IF(COUNTIF(Elémentaire,E110)=1,listes!$U$1,IF(COUNTIF(Collège,E110)=1,listes!$V$1,IF(COUNTIF(Lycée,E110)=1,listes!$W$1,\"\"))))","v":"Collège"},{"$f":"VLOOKUP(T_sept_dec[[#This Row],[Etablissement scolaire]],Regroupements!$T:$U,2,FALSE)","v":"Ferrandière-Maisons Neuves"},"RIZE",{"$f":"T_sept_dec[[#This Row],[Etablissement accueillant]]&\"-\"&T_sept_dec[[#This Row],[Enseignant référent (Nom Prénom)]]","v":"RIZE-SOIXANTESEIZE"},{"$f":"1/COUNTIF(T_sept_dec[CléEtablissement],T_sept_dec[[#This Row],[CléEtablissement]])","v":0.5},{"$f":"IF(COUNTIF(Réseau,T_sept_dec[[#This Row],[Secteur organisateur]]),\"Réseau_\"&T_sept_dec[[#This Row],[Enseignant référent (Nom Prénom)]], IF(COUNTIF(Rizehorsmed,T_sept_dec[[#This Row],[Secteur organisateur]]),\"Rizehorsmed_\"&T_sept_dec[[#This Row],[Enseignant référent (Nom Prénom)]], T_sept_dec[[#This Row],[Secteur organisateur]]&\"_\"&T_sept_dec[[#This Row],[Enseignant référent (Nom Prénom)]]))","v":"Réseau_SOIXANTESEIZE"},{"$f":"1/COUNTIF(T_sept_dec[CléRéseau-Rize horsmed],T_sept_dec[[#This Row],[CléRéseau-Rize horsmed]])","v":0.5},{"$f":"IF(COUNTIF(RIZE,T_sept_dec[[#This Row],[Secteur organisateur]]),\"Rize_\"&T_sept_dec[[#This Row],[Enseignant référent (Nom Prénom)]],\"\")","v":"Rize_SOIXANTESEIZE"},{"$f":"1/COUNTIF(T_sept_dec[CléRize],T_sept_dec[[#This Row],[CléRize]])","v":0.5},{"$f":"IF(COUNTIF(Total,T_sept_dec[[#This Row],[Secteur organisateur]]),\"Total_\"&T_sept_dec[[#This Row],[Enseignant référent (Nom Prénom)]],\"\")","v":"Total_SOIXANTESEIZE"},{"$f":"1/COUNTIF(T_sept_dec[cléTotal],T_sept_dec[[#This Row],[cléTotal]])","v":0.5}]
["2017-12-14","RIZE MED",null,"Collège Jean Jaurès","5°","SOIXANTESEIZE",24,"In situ","Visite couplée",null,null,{"$f":"IF(COUNTIF(Maternelle,E111)=1,listes!$T$1,IF(COUNTIF(Elémentaire,E111)=1,listes!$U$1,IF(COUNTIF(Collège,E111)=1,listes!$V$1,IF(COUNTIF(Lycée,E111)=1,listes!$W$1,\"\"))))","v":"Collège"},{"$f":"VLOOKUP(T_sept_dec[[#This Row],[Etablissement scolaire]],Regroupements!$T:$U,2,FALSE)","v":"Ferrandière-Maisons Neuves"},"RIZE",{"$f":"T_sept_dec[[#This Row],[Etablissement accueillant]]&\"-\"&T_sept_dec[[#This Row],[Enseignant référent (Nom Prénom)]]","v":"RIZE-SOIXANTESEIZE"},{"$f":"1/COUNTIF(T_sept_dec[CléEtablissement],T_sept_dec[[#This Row],[CléEtablissement]])","v":0.5},{"$f":"IF(COUNTIF(Réseau,T_sept_dec[[#This Row],[Secteur organisateur]]),\"Réseau_\"&T_sept_dec[[#This Row],[Enseignant référent (Nom Prénom)]], IF(COUNTIF(Rizehorsmed,T_sept_dec[[#This Row],[Secteur organisateur]]),\"Rizehorsmed_\"&T_sept_dec[[#This Row],[Enseignant référent (Nom Prénom)]], T_sept_dec[[#This Row],[Secteur organisateur]]&\"_\"&T_sept_dec[[#This Row],[Enseignant référent (Nom Prénom)]]))","v":"Réseau_SOIXANTESEIZE"},{"$f":"1/COUNTIF(T_sept_dec[CléRéseau-Rize horsmed],T_sept_dec[[#This Row],[CléRéseau-Rize horsmed]])","v":0.5},{"$f":"IF(COUNTIF(RIZE,T_sept_dec[[#This Row],[Secteur organisateur]]),\"Rize_\"&T_sept_dec[[#This Row],[Enseignant référent (Nom Prénom)]],\"\")","v":"Rize_SOIXANTESEIZE"},{"$f":"1/COUNTIF(T_sept_dec[CléRize],T_sept_dec[[#This Row],[CléRize]])","v":0.5},{"$f":"IF(COUNTIF(Total,T_sept_dec[[#This Row],[Secteur organisateur]]),\"Total_\"&T_sept_dec[[#This Row],[Enseignant référent (Nom Prénom)]],\"\")","v":"Total_SOIXANTESEIZE"},{"$f":"1/COUNTIF(T_sept_dec[cléTotal],T_sept_dec[[#This Row],[cléTotal]])","v":0.5}]
["2017-10-03","RIZE VALO",null,"Antonin Perrin","cm1","SOIXANTESEPT",24,"Hors les murs","Exploration Gratte-Ciel",null,null,{"$f":"IF(COUNTIF(Maternelle,E112)=1,listes!$T$1,IF(COUNTIF(Elémentaire,E112)=1,listes!$U$1,IF(COUNTIF(Collège,E112)=1,listes!$V$1,IF(COUNTIF(Lycée,E112)=1,listes!$W$1,\"\"))))","v":"Elémentaire"},{"$f":"VLOOKUP(T_sept_dec[[#This Row],[Etablissement scolaire]],Regroupements!$T:$U,2,FALSE)","v":"Ferrandière-Maisons Neuves"},"RIZE",{"$f":"T_sept_dec[[#This Row],[Etablissement accueillant]]&\"-\"&T_sept_dec[[#This Row],[Enseignant référent (Nom Prénom)]]","v":"RIZE-SOIXANTESEPT"},{"$f":"1/COUNTIF(T_sept_dec[CléEtablissement],T_sept_dec[[#This Row],[CléEtablissement]])","v":1},{"$f":"IF(COUNTIF(Réseau,T_sept_dec[[#This Row],[Secteur organisateur]]),\"Réseau_\"&T_sept_dec[[#This Row],[Enseignant référent (Nom Prénom)]], IF(COUNTIF(Rizehorsmed,T_sept_dec[[#This Row],[Secteur organisateur]]),\"Rizehorsmed_\"&T_sept_dec[[#This Row],[Enseignant référent (Nom Prénom)]], T_sept_dec[[#This Row],[Secteur organisateur]]&\"_\"&T_sept_dec[[#This Row],[Enseignant référent (Nom Prénom)]]))","v":"Rizehorsmed_SOIXANTESEPT"},{"$f":"1/COUNTIF(T_sept_dec[CléRéseau-Rize horsmed],T_sept_dec[[#This Row],[CléRéseau-Rize horsmed]])","v":1},{"$f":"IF(COUNTIF(RIZE,T_sept_dec[[#This Row],[Secteur organisateur]]),\"Rize_\"&T_sept_dec[[#This Row],[Enseignant référent (Nom Prénom)]],\"\")","v":"Rize_SOIXANTESEPT"},{"$f":"1/COUNTIF(T_sept_dec[CléRize],T_sept_dec[[#This Row],[CléRize]])","v":1},{"$f":"IF(COUNTIF(Total,T_sept_dec[[#This Row],[Secteur organisateur]]),\"Total_\"&T_sept_dec[[#This Row],[Enseignant référent (Nom Prénom)]],\"\")","v":"Total_SOIXANTESEPT"},{"$f":"1/COUNTIF(T_sept_dec[cléTotal],T_sept_dec[[#This Row],[cléTotal]])","v":1}]
["2017-11-16","RIZE VALO",null,"Jean Moulin","cm2","SOIXANTESIX",27,"In situ","Visite couplée",null,null,{"$f":"IF(COUNTIF(Maternelle,E113)=1,listes!$T$1,IF(COUNTIF(Elémentaire,E113)=1,listes!$U$1,IF(COUNTIF(Collège,E113)=1,listes!$V$1,IF(COUNTIF(Lycée,E113)=1,listes!$W$1,\"\"))))","v":"Elémentaire"},{"$f":"VLOOKUP(T_sept_dec[[#This Row],[Etablissement scolaire]],Regroupements!$T:$U,2,FALSE)","v":"Buers-Croix-Luizet"},"RIZE",{"$f":"T_sept_dec[[#This Row],[Etablissement accueillant]]&\"-\"&T_sept_dec[[#This Row],[Enseignant référent (Nom Prénom)]]","v":"RIZE-SOIXANTESIX"},{"$f":"1/COUNTIF(T_sept_dec[CléEtablissement],T_sept_dec[[#This Row],[CléEtablissement]])","v":0.5},{"$f":"IF(COUNTIF(Réseau,T_sept_dec[[#This Row],[Secteur organisateur]]),\"Réseau_\"&T_sept_dec[[#This Row],[Enseignant référent (Nom Prénom)]], IF(COUNTIF(Rizehorsmed,T_sept_dec[[#This Row],[Secteur organisateur]]),\"Rizehorsmed_\"&T_sept_dec[[#This Row],[Enseignant référent (Nom Prénom)]], T_sept_dec[[#This Row],[Secteur organisateur]]&\"_\"&T_sept_dec[[#This Row],[Enseignant référent (Nom Prénom)]]))","v":"Rizehorsmed_SOIXANTESIX"},{"$f":"1/COUNTIF(T_sept_dec[CléRéseau-Rize horsmed],T_sept_dec[[#This Row],[CléRéseau-Rize horsmed]])","v":0.5},{"$f":"IF(COUNTIF(RIZE,T_sept_dec[[#This Row],[Secteur organisateur]]),\"Rize_\"&T_sept_dec[[#This Row],[Enseignant référent (Nom Prénom)]],\"\")","v":"Rize_SOIXANTESIX"},{"$f":"1/COUNTIF(T_sept_dec[CléRize],T_sept_dec[[#This Row],[CléRize]])","v":0.5},{"$f":"IF(COUNTIF(Total,T_sept_dec[[#This Row],[Secteur organisateur]]),\"Total_\"&T_sept_dec[[#This Row],[Enseignant référent (Nom Prénom)]],\"\")","v":"Total_SOIXANTESIX"},{"$f":"1/COUNTIF(T_sept_dec[cléTotal],T_sept_dec[[#This Row],[cléTotal]])","v":0.5}]
["2017-12-05","RIZE VALO",null,"Jean Moulin","cm2","SOIXANTESIX",27,"Hors les murs","Autre",null,null,{"$f":"IF(COUNTIF(Maternelle,E114)=1,listes!$T$1,IF(COUNTIF(Elémentaire,E114)=1,listes!$U$1,IF(COUNTIF(Collège,E114)=1,listes!$V$1,IF(COUNTIF(Lycée,E114)=1,listes!$W$1,\"\"))))","v":"Elémentaire"},{"$f":"VLOOKUP(T_sept_dec[[#This Row],[Etablissement scolaire]],Regroupements!$T:$U,2,FALSE)","v":"Buers-Croix-Luizet"},"RIZE",{"$f":"T_sept_dec[[#This Row],[Etablissement accueillant]]&\"-\"&T_sept_dec[[#This Row],[Enseignant référent (Nom Prénom)]]","v":"RIZE-SOIXANTESIX"},{"$f":"1/COUNTIF(T_sept_dec[CléEtablissement],T_sept_dec[[#This Row],[CléEtablissement]])","v":0.5},{"$f":"IF(COUNTIF(Réseau,T_sept_dec[[#This Row],[Secteur organisateur]]),\"Réseau_\"&T_sept_dec[[#This Row],[Enseignant référent (Nom Prénom)]], IF(COUNTIF(Rizehorsmed,T_sept_dec[[#This Row],[Secteur organisateur]]),\"Rizehorsmed_\"&T_sept_dec[[#This Row],[Enseignant référent (Nom Prénom)]], T_sept_dec[[#This Row],[Secteur organisateur]]&\"_\"&T_sept_dec[[#This Row],[Enseignant référent (Nom Prénom)]]))","v":"Rizehorsmed_SOIXANTESIX"},{"$f":"1/COUNTIF(T_sept_dec[CléRéseau-Rize horsmed],T_sept_dec[[#This Row],[CléRéseau-Rize horsmed]])","v":0.5},{"$f":"IF(COUNTIF(RIZE,T_sept_dec[[#This Row],[Secteur organisateur]]),\"Rize_\"&T_sept_dec[[#This Row],[Enseignant référent (Nom Prénom)]],\"\")","v":"Rize_SOIXANTESIX"},{"$f":"1/COUNTIF(T_sept_dec[CléRize],T_sept_dec[[#This Row],[CléRize]])","v":0.5},{"$f":"IF(COUNTIF(Total,T_sept_dec[[#This Row],[Secteur organisateur]]),\"Total_\"&T_sept_dec[[#This Row],[Enseignant référent (Nom Prénom)]],\"\")","v":"Total_SOIXANTESIX"},{"$f":"1/COUNTIF(T_sept_dec[cléTotal],T_sept_dec[[#This Row],[cléTotal]])","v":0.5}]
["2017-11-24","MTK",null,"Descartes","ms","SOIXANTETREIZE",24,"In situ","Visite découverte",null,null,{"$f":"IF(COUNTIF(Maternelle,E115)=1,listes!$T$1,IF(COUNTIF(Elémentaire,E115)=1,listes!$U$1,IF(COUNTIF(Collège,E115)=1,listes!$V$1,IF(COUNTIF(Lycée,E115)=1,listes!$W$1,\"\"))))","v":"Maternelle"},{"$f":"VLOOKUP(T_sept_dec[[#This Row],[Etablissement scolaire]],Regroupements!$T:$U,2,FALSE)","v":"Charpennes-Tonkin"},"TONKIN",{"$f":"T_sept_dec[[#This Row],[Etablissement accueillant]]&\"-\"&T_sept_dec[[#This Row],[Enseignant référent (Nom Prénom)]]","v":"TONKIN-SOIXANTETREIZE"},{"$f":"1/COUNTIF(T_sept_dec[CléEtablissement],T_sept_dec[[#This Row],[CléEtablissement]])","v":1},{"$f":"IF(COUNTIF(Réseau,T_sept_dec[[#This Row],[Secteur organisateur]]),\"Réseau_\"&T_sept_dec[[#This Row],[Enseignant référent (Nom Prénom)]], IF(COUNTIF(Rizehorsmed,T_sept_dec[[#This Row],[Secteur organisateur]]),\"Rizehorsmed_\"&T_sept_dec[[#This Row],[Enseignant référent (Nom Prénom)]], T_sept_dec[[#This Row],[Secteur organisateur]]&\"_\"&T_sept_dec[[#This Row],[Enseignant référent (Nom Prénom)]]))","v":"Réseau_SOIXANTETREIZE"},{"$f":"1/COUNTIF(T_sept_dec[CléRéseau-Rize horsmed],T_sept_dec[[#This Row],[CléRéseau-Rize horsmed]])","v":1},{"$f":"IF(COUNTIF(RIZE,T_sept_dec[[#This Row],[Secteur organisateur]]),\"Rize_\"&T_sept_dec[[#This Row],[Enseignant référent (Nom Prénom)]],\"\")","v":""},{"$f":"1/COUNTIF(T_sept_dec[CléRize],T_sept_dec[[#This Row],[CléRize]])","v":9.8039215686274508E-3},{"$f":"IF(COUNTIF(Total,T_sept_dec[[#This Row],[Secteur organisateur]]),\"Total_\"&T_sept_dec[[#This Row],[Enseignant référent (Nom Prénom)]],\"\")","v":"Total_SOIXANTETREIZE"},{"$f":"1/COUNTIF(T_sept_dec[cléTotal],T_sept_dec[[#This Row],[cléTotal]])","v":1}]
["2017-10-10","MLIS J",null,"René Pellet (déficients visuels)","cp/ce1","SOIXANTETROIS",7,"In situ","Visite à la carte",null,null,{"$f":"IF(COUNTIF(Maternelle,E116)=1,listes!$T$1,IF(COUNTIF(Elémentaire,E116)=1,listes!$U$1,IF(COUNTIF(Collège,E116)=1,listes!$V$1,IF(COUNTIF(Lycée,E116)=1,listes!$W$1,\"\"))))","v":"Elémentaire"},{"$f":"VLOOKUP(T_sept_dec[[#This Row],[Etablissement scolaire]],Regroupements!$T:$U,2,FALSE)","v":"Perralière-Grandclément"},"MLIS",{"$f":"T_sept_dec[[#This Row],[Etablissement accueillant]]&\"-\"&T_sept_dec[[#This Row],[Enseignant référent (Nom Prénom)]]","v":"MLIS-SOIXANTETROIS"},{"$f":"1/COUNTIF(T_sept_dec[CléEtablissement],T_sept_dec[[#This Row],[CléEtablissement]])","v":0.5},{"$f":"IF(COUNTIF(Réseau,T_sept_dec[[#This Row],[Secteur organisateur]]),\"Réseau_\"&T_sept_dec[[#This Row],[Enseignant référent (Nom Prénom)]], IF(COUNTIF(Rizehorsmed,T_sept_dec[[#This Row],[Secteur organisateur]]),\"Rizehorsmed_\"&T_sept_dec[[#This Row],[Enseignant référent (Nom Prénom)]], T_sept_dec[[#This Row],[Secteur organisateur]]&\"_\"&T_sept_dec[[#This Row],[Enseignant référent (Nom Prénom)]]))","v":"Réseau_SOIXANTETROIS"},{"$f":"1/COUNTIF(T_sept_dec[CléRéseau-Rize horsmed],T_sept_dec[[#This Row],[CléRéseau-Rize horsmed]])","v":0.5},{"$f":"IF(COUNTIF(RIZE,T_sept_dec[[#This Row],[Secteur organisateur]]),\"Rize_\"&T_sept_dec[[#This Row],[Enseignant référent (Nom Prénom)]],\"\")","v":""},{"$f":"1/COUNTIF(T_sept_dec[CléRize],T_sept_dec[[#This Row],[CléRize]])","v":9.8039215686274508E-3},{"$f":"IF(COUNTIF(Total,T_sept_dec[[#This Row],[Secteur organisateur]]),\"Total_\"&T_sept_dec[[#This Row],[Enseignant référent (Nom Prénom)]],\"\")","v":"Total_SOIXANTETROIS"},{"$f":"1/COUNTIF(T_sept_dec[cléTotal],T_sept_dec[[#This Row],[cléTotal]])","v":0.5}]
["2017-11-14","MLIS J",null,"René Pellet (déficients visuels)","cp/ce1","SOIXANTETROIS",7,"In situ","Visite découverte",null,null,{"$f":"IF(COUNTIF(Maternelle,E117)=1,listes!$T$1,IF(COUNTIF(Elémentaire,E117)=1,listes!$U$1,IF(COUNTIF(Collège,E117)=1,listes!$V$1,IF(COUNTIF(Lycée,E117)=1,listes!$W$1,\"\"))))","v":"Elémentaire"},{"$f":"VLOOKUP(T_sept_dec[[#This Row],[Etablissement scolaire]],Regroupements!$T:$U,2,FALSE)","v":"Perralière-Grandclément"},"MLIS",{"$f":"T_sept_dec[[#This Row],[Etablissement accueillant]]&\"-\"&T_sept_dec[[#This Row],[Enseignant référent (Nom Prénom)]]","v":"MLIS-SOIXANTETROIS"},{"$f":"1/COUNTIF(T_sept_dec[CléEtablissement],T_sept_dec[[#This Row],[CléEtablissement]])","v":0.5},{"$f":"IF(COUNTIF(Réseau,T_sept_dec[[#This Row],[Secteur organisateur]]),\"Réseau_\"&T_sept_dec[[#This Row],[Enseignant référent (Nom Prénom)]], IF(COUNTIF(Rizehorsmed,T_sept_dec[[#This Row],[Secteur organisateur]]),\"Rizehorsmed_\"&T_sept_dec[[#This Row],[Enseignant référent (Nom Prénom)]], T_sept_dec[[#This Row],[Secteur organisateur]]&\"_\"&T_sept_dec[[#This Row],[Enseignant référent (Nom Prénom)]]))","v":"Réseau_SOIXANTETROIS"},{"$f":"1/COUNTIF(T_sept_dec[CléRéseau-Rize horsmed],T_sept_dec[[#This Row],[CléRéseau-Rize horsmed]])","v":0.5},{"$f":"IF(COUNTIF(RIZE,T_sept_dec[[#This Row],[Secteur organisateur]]),\"Rize_\"&T_sept_dec[[#This Row],[Enseignant référent (Nom Prénom)]],\"\")","v":""},{"$f":"1/COUNTIF(T_sept_dec[CléRize],T_sept_dec[[#This Row],[CléRize]])","v":9.8039215686274508E-3},{"$f":"IF(COUNTIF(Total,T_sept_dec[[#This Row],[Secteur organisateur]]),\"Total_\"&T_sept_dec[[#This Row],[Enseignant référent (Nom Prénom)]],\"\")","v":"Total_SOIXANTETROIS"},{"$f":"1/COUNTIF(T_sept_dec[cléTotal],T_sept_dec[[#This Row],[cléTotal]])","v":0.5}]
["2017-10-20","RIZE VALO",null,"Berthelot","cm2","SOIXANTEUN",25,"In situ","Ateliers",null,null,{"$f":"IF(COUNTIF(Maternelle,E118)=1,listes!$T$1,IF(COUNTIF(Elémentaire,E118)=1,listes!$U$1,IF(COUNTIF(Collège,E118)=1,listes!$V$1,IF(COUNTIF(Lycée,E118)=1,listes!$W$1,\"\"))))","v":"Elémentaire"},{"$f":"VLOOKUP(T_sept_dec[[#This Row],[Etablissement scolaire]],Regroupements!$T:$U,2,FALSE)","v":"Perralière-Grandclément"},"RIZE",{"$f":"T_sept_dec[[#This Row],[Etablissement accueillant]]&\"-\"&T_sept_dec[[#This Row],[Enseignant référent (Nom Prénom)]]","v":"RIZE-SOIXANTEUN"},{"$f":"1/COUNTIF(T_sept_dec[CléEtablissement],T_sept_dec[[#This Row],[CléEtablissement]])","v":1},{"$f":"IF(COUNTIF(Réseau,T_sept_dec[[#This Row],[Secteur organisateur]]),\"Réseau_\"&T_sept_dec[[#This Row],[Enseignant référent (Nom Prénom)]], IF(COUNTIF(Rizehorsmed,T_sept_dec[[#This Row],[Secteur organisateur]]),\"Rizehorsmed_\"&T_sept_dec[[#This Row],[Enseignant référent (Nom Prénom)]], T_sept_dec[[#This Row],[Secteur organisateur]]&\"_\"&T_sept_dec[[#This Row],[Enseignant référent (Nom Prénom)]]))","v":"Rizehorsmed_SOIXANTEUN"},{"$f":"1/COUNTIF(T_sept_dec[CléRéseau-Rize horsmed],T_sept_dec[[#This Row],[CléRéseau-Rize horsmed]])","v":1},{"$f":"IF(COUNTIF(RIZE,T_sept_dec[[#This Row],[Secteur organisateur]]),\"Rize_\"&T_sept_dec[[#This Row],[Enseignant référent (Nom Prénom)]],\"\")","v":"Rize_SOIXANTEUN"},{"$f":"1/COUNTIF(T_sept_dec[CléRize],T_sept_dec[[#This Row],[CléRize]])","v":1},{"$f":"IF(COUNTIF(Total,T_sept_dec[[#This Row],[Secteur organisateur]]),\"Total_\"&T_sept_dec[[#This Row],[Enseignant référent (Nom Prénom)]],\"\")","v":"Total_SOIXANTEUN"},{"$f":"1/COUNTIF(T_sept_dec[cléTotal],T_sept_dec[[#This Row],[cléTotal]])","v":1}]
["2017-10-13","MLIS J",null,"Albert Camus","ce2","TREIZE",22,"In situ","Conte",null,null,{"$f":"IF(COUNTIF(Maternelle,E119)=1,listes!$T$1,IF(COUNTIF(Elémentaire,E119)=1,listes!$U$1,IF(COUNTIF(Collège,E119)=1,listes!$V$1,IF(COUNTIF(Lycée,E119)=1,listes!$W$1,\"\"))))","v":"Elémentaire"},{"$f":"VLOOKUP(T_sept_dec[[#This Row],[Etablissement scolaire]],Regroupements!$T:$U,2,FALSE)","v":"Cyprian-les-Brosses"},"MLIS",{"$f":"T_sept_dec[[#This Row],[Etablissement accueillant]]&\"-\"&T_sept_dec[[#This Row],[Enseignant référent (Nom Prénom)]]","v":"MLIS-TREIZE"},{"$f":"1/COUNTIF(T_sept_dec[CléEtablissement],T_sept_dec[[#This Row],[CléEtablissement]])","v":1},{"$f":"IF(COUNTIF(Réseau,T_sept_dec[[#This Row],[Secteur organisateur]]),\"Réseau_\"&T_sept_dec[[#This Row],[Enseignant référent (Nom Prénom)]], IF(COUNTIF(Rizehorsmed,T_sept_dec[[#This Row],[Secteur organisateur]]),\"Rizehorsmed_\"&T_sept_dec[[#This Row],[Enseignant référent (Nom Prénom)]], T_sept_dec[[#This Row],[Secteur organisateur]]&\"_\"&T_sept_dec[[#This Row],[Enseignant référent (Nom Prénom)]]))","v":"Réseau_TREIZE"},{"$f":"1/COUNTIF(T_sept_dec[CléRéseau-Rize horsmed],T_sept_dec[[#This Row],[CléRéseau-Rize horsmed]])","v":1},{"$f":"IF(COUNTIF(RIZE,T_sept_dec[[#This Row],[Secteur organisateur]]),\"Rize_\"&T_sept_dec[[#This Row],[Enseignant référent (Nom Prénom)]],\"\")","v":""},{"$f":"1/COUNTIF(T_sept_dec[CléRize],T_sept_dec[[#This Row],[CléRize]])","v":9.8039215686274508E-3},{"$f":"IF(COUNTIF(Total,T_sept_dec[[#This Row],[Secteur organisateur]]),\"Total_\"&T_sept_dec[[#This Row],[Enseignant référent (Nom Prénom)]],\"\")","v":"Total_TREIZE"},{"$f":"1/COUNTIF(T_sept_dec[cléTotal],T_sept_dec[[#This Row],[cléTotal]])","v":1}]
["2017-12-01","MTK",null,"Tonkin/Nigritelle","cp","TRENSEPT",26,"In situ","Visite découverte",null,null,{"$f":"IF(COUNTIF(Maternelle,E120)=1,listes!$T$1,IF(COUNTIF(Elémentaire,E120)=1,listes!$U$1,IF(COUNTIF(Collège,E120)=1,listes!$V$1,IF(COUNTIF(Lycée,E120)=1,listes!$W$1,\"\"))))","v":"Elémentaire"},{"$f":"VLOOKUP(T_sept_dec[[#This Row],[Etablissement scolaire]],Regroupements!$T:$U,2,FALSE)","v":"Charpennes-Tonkin"},"TONKIN",{"$f":"T_sept_dec[[#This Row],[Etablissement accueillant]]&\"-\"&T_sept_dec[[#This Row],[Enseignant référent (Nom Prénom)]]","v":"TONKIN-TRENSEPT"},{"$f":"1/COUNTIF(T_sept_dec[CléEtablissement],T_sept_dec[[#This Row],[CléEtablissement]])","v":1},{"$f":"IF(COUNTIF(Réseau,T_sept_dec[[#This Row],[Secteur organisateur]]),\"Réseau_\"&T_sept_dec[[#This Row],[Enseignant référent (Nom Prénom)]], IF(COUNTIF(Rizehorsmed,T_sept_dec[[#This Row],[Secteur organisateur]]),\"Rizehorsmed_\"&T_sept_dec[[#This Row],[Enseignant référent (Nom Prénom)]], T_sept_dec[[#This Row],[Secteur organisateur]]&\"_\"&T_sept_dec[[#This Row],[Enseignant référent (Nom Prénom)]]))","v":"Réseau_TRENSEPT"},{"$f":"1/COUNTIF(T_sept_dec[CléRéseau-Rize horsmed],T_sept_dec[[#This Row],[CléRéseau-Rize horsmed]])","v":1},{"$f":"IF(COUNTIF(RIZE,T_sept_dec[[#This Row],[Secteur organisateur]]),\"Rize_\"&T_sept_dec[[#This Row],[Enseignant référent (Nom Prénom)]],\"\")","v":""},{"$f":"1/COUNTIF(T_sept_dec[CléRize],T_sept_dec[[#This Row],[CléRize]])","v":9.8039215686274508E-3},{"$f":"IF(COUNTIF(Total,T_sept_dec[[#This Row],[Secteur organisateur]]),\"Total_\"&T_sept_dec[[#This Row],[Enseignant référent (Nom Prénom)]],\"\")","v":"Total_TRENSEPT"},{"$f":"1/COUNTIF(T_sept_dec[cléTotal],T_sept_dec[[#This Row],[cléTotal]])","v":1}]
["2017-12-08","RIZE MED",null,"Antonin Perrin","ce2","TRENTE",26,"In situ","Visite découverte",null,null,{"$f":"IF(COUNTIF(Maternelle,E121)=1,listes!$T$1,IF(COUNTIF(Elémentaire,E121)=1,listes!$U$1,IF(COUNTIF(Collège,E121)=1,listes!$V$1,IF(COUNTIF(Lycée,E121)=1,listes!$W$1,\"\"))))","v":"Elémentaire"},{"$f":"VLOOKUP(T_sept_dec[[#This Row],[Etablissement scolaire]],Regroupements!$T:$U,2,FALSE)","v":"Ferrandière-Maisons Neuves"},"RIZE",{"$f":"T_sept_dec[[#This Row],[Etablissement accueillant]]&\"-\"&T_sept_dec[[#This Row],[Enseignant référent (Nom Prénom)]]","v":"RIZE-TRENTE"},{"$f":"1/COUNTIF(T_sept_dec[CléEtablissement],T_sept_dec[[#This Row],[CléEtablissement]])","v":1},{"$f":"IF(COUNTIF(Réseau,T_sept_dec[[#This Row],[Secteur organisateur]]),\"Réseau_\"&T_sept_dec[[#This Row],[Enseignant référent (Nom Prénom)]], IF(COUNTIF(Rizehorsmed,T_sept_dec[[#This Row],[Secteur organisateur]]),\"Rizehorsmed_\"&T_sept_dec[[#This Row],[Enseignant référent (Nom Prénom)]], T_sept_dec[[#This Row],[Secteur organisateur]]&\"_\"&T_sept_dec[[#This Row],[Enseignant référent (Nom Prénom)]]))","v":"Réseau_TRENTE"},{"$f":"1/COUNTIF(T_sept_dec[CléRéseau-Rize horsmed],T_sept_dec[[#This Row],[CléRéseau-Rize horsmed]])","v":1},{"$f":"IF(COUNTIF(RIZE,T_sept_dec[[#This Row],[Secteur organisateur]]),\"Rize_\"&T_sept_dec[[#This Row],[Enseignant référent (Nom Prénom)]],\"\")","v":"Rize_TRENTE"},{"$f":"1/COUNTIF(T_sept_dec[CléRize],T_sept_dec[[#This Row],[CléRize]])","v":1},{"$f":"IF(COUNTIF(Total,T_sept_dec[[#This Row],[Secteur organisateur]]),\"Total_\"&T_sept_dec[[#This Row],[Enseignant référent (Nom Prénom)]],\"\")","v":"Total_TRENTE"},{"$f":"1/COUNTIF(T_sept_dec[cléTotal],T_sept_dec[[#This Row],[cléTotal]])","v":1}]
["2017-09-29","MLIS J",null,"Jean Zay","cp","TRENTECINQ",25,"In situ","Visite découverte",null,null,{"$f":"IF(COUNTIF(Maternelle,E122)=1,listes!$T$1,IF(COUNTIF(Elémentaire,E122)=1,listes!$U$1,IF(COUNTIF(Collège,E122)=1,listes!$V$1,IF(COUNTIF(Lycée,E122)=1,listes!$W$1,\"\"))))","v":"Elémentaire"},{"$f":"VLOOKUP(T_sept_dec[[#This Row],[Etablissement scolaire]],Regroupements!$T:$U,2,FALSE)","v":"Gratte-ciel-Dedieu-Charmettes"},"MLIS",{"$f":"T_sept_dec[[#This Row],[Etablissement accueillant]]&\"-\"&T_sept_dec[[#This Row],[Enseignant référent (Nom Prénom)]]","v":"MLIS-TRENTECINQ"},{"$f":"1/COUNTIF(T_sept_dec[CléEtablissement],T_sept_dec[[#This Row],[CléEtablissement]])","v":1},{"$f":"IF(COUNTIF(Réseau,T_sept_dec[[#This Row],[Secteur organisateur]]),\"Réseau_\"&T_sept_dec[[#This Row],[Enseignant référent (Nom Prénom)]], IF(COUNTIF(Rizehorsmed,T_sept_dec[[#This Row],[Secteur organisateur]]),\"Rizehorsmed_\"&T_sept_dec[[#This Row],[Enseignant référent (Nom Prénom)]], T_sept_dec[[#This Row],[Secteur organisateur]]&\"_\"&T_sept_dec[[#This Row],[Enseignant référent (Nom Prénom)]]))","v":"Réseau_TRENTECINQ"},{"$f":"1/COUNTIF(T_sept_dec[CléRéseau-Rize horsmed],T_sept_dec[[#This Row],[CléRéseau-Rize horsmed]])","v":1},{"$f":"IF(COUNTIF(RIZE,T_sept_dec[[#This Row],[Secteur organisateur]]),\"Rize_\"&T_sept_dec[[#This Row],[Enseignant référent (Nom Prénom)]],\"\")","v":""},{"$f":"1/COUNTIF(T_sept_dec[CléRize],T_sept_dec[[#This Row],[CléRize]])","v":9.8039215686274508E-3},{"$f":"IF(COUNTIF(Total,T_sept_dec[[#This Row],[Secteur organisateur]]),\"Total_\"&T_sept_dec[[#This Row],[Enseignant référent (Nom Prénom)]],\"\")","v":"Total_TRENTECINQ"},{"$f":"1/COUNTIF(T_sept_dec[cléTotal],T_sept_dec[[#This Row],[cléTotal]])","v":1}]
["2017-09-29","RIZE VALO",null,"Hors Villeurbanne","3°","TRENTEDEUX",24,"In situ","Exposition",null,null,{"$f":"IF(COUNTIF(Maternelle,E123)=1,listes!$T$1,IF(COUNTIF(Elémentaire,E123)=1,listes!$U$1,IF(COUNTIF(Collège,E123)=1,listes!$V$1,IF(COUNTIF(Lycée,E123)=1,listes!$W$1,\"\"))))","v":"Collège"},{"$f":"VLOOKUP(T_sept_dec[[#This Row],[Etablissement scolaire]],Regroupements!$T:$U,2,FALSE)","v":"Hors Villeurbanne"},"RIZE",{"$f":"T_sept_dec[[#This Row],[Etablissement accueillant]]&\"-\"&T_sept_dec[[#This Row],[Enseignant référent (Nom Prénom)]]","v":"RIZE-TRENTEDEUX"},{"$f":"1/COUNTIF(T_sept_dec[CléEtablissement],T_sept_dec[[#This Row],[CléEtablissement]])","v":1},{"$f":"IF(COUNTIF(Réseau,T_sept_dec[[#This Row],[Secteur organisateur]]),\"Réseau_\"&T_sept_dec[[#This Row],[Enseignant référent (Nom Prénom)]], IF(COUNTIF(Rizehorsmed,T_sept_dec[[#This Row],[Secteur organisateur]]),\"Rizehorsmed_\"&T_sept_dec[[#This Row],[Enseignant référent (Nom Prénom)]], T_sept_dec[[#This Row],[Secteur organisateur]]&\"_\"&T_sept_dec[[#This Row],[Enseignant référent (Nom Prénom)]]))","v":"Rizehorsmed_TRENTEDEUX"},{"$f":"1/COUNTIF(T_sept_dec[CléRéseau-Rize horsmed],T_sept_dec[[#This Row],[CléRéseau-Rize horsmed]])","v":1},{"$f":"IF(COUNTIF(RIZE,T_sept_dec[[#This Row],[Secteur organisateur]]),\"Rize_\"&T_sept_dec[[#This Row],[Enseignant référent (Nom Prénom)]],\"\")","v":"Rize_TRENTEDEUX"},{"$f":"1/COUNTIF(T_sept_dec[CléRize],T_sept_dec[[#This Row],[CléRize]])","v":1},{"$f":"IF(COUNTIF(Total,T_sept_dec[[#This Row],[Secteur organisateur]]),\"Total_\"&T_sept_dec[[#This Row],[Enseignant référent (Nom Prénom)]],\"\")","v":"Total_TRENTEDEUX"},{"$f":"1/COUNTIF(T_sept_dec[cléTotal],T_sept_dec[[#This Row],[cléTotal]])","v":1}]
["2017-09-26","RIZE VALO",null,"Hors Villeurbanne","3°","TRENTEETUN",24,"In situ","Exposition",null,null,{"$f":"IF(COUNTIF(Maternelle,E124)=1,listes!$T$1,IF(COUNTIF(Elémentaire,E124)=1,listes!$U$1,IF(COUNTIF(Collège,E124)=1,listes!$V$1,IF(COUNTIF(Lycée,E124)=1,listes!$W$1,\"\"))))","v":"Collège"},{"$f":"VLOOKUP(T_sept_dec[[#This Row],[Etablissement scolaire]],Regroupements!$T:$U,2,FALSE)","v":"Hors Villeurbanne"},"RIZE",{"$f":"T_sept_dec[[#This Row],[Etablissement accueillant]]&\"-\"&T_sept_dec[[#This Row],[Enseignant référent (Nom Prénom)]]","v":"RIZE-TRENTEETUN"},{"$f":"1/COUNTIF(T_sept_dec[CléEtablissement],T_sept_dec[[#This Row],[CléEtablissement]])","v":1},{"$f":"IF(COUNTIF(Réseau,T_sept_dec[[#This Row],[Secteur organisateur]]),\"Réseau_\"&T_sept_dec[[#This Row],[Enseignant référent (Nom Prénom)]], IF(COUNTIF(Rizehorsmed,T_sept_dec[[#This Row],[Secteur organisateur]]),\"Rizehorsmed_\"&T_sept_dec[[#This Row],[Enseignant référent (Nom Prénom)]], T_sept_dec[[#This Row],[Secteur organisateur]]&\"_\"&T_sept_dec[[#This Row],[Enseignant référent (Nom Prénom)]]))","v":"Rizehorsmed_TRENTEETUN"},{"$f":"1/COUNTIF(T_sept_dec[CléRéseau-Rize horsmed],T_sept_dec[[#This Row],[CléRéseau-Rize horsmed]])","v":1},{"$f":"IF(COUNTIF(RIZE,T_sept_dec[[#This Row],[Secteur organisateur]]),\"Rize_\"&T_sept_dec[[#This Row],[Enseignant référent (Nom Prénom)]],\"\")","v":"Rize_TRENTEETUN"},{"$f":"1/COUNTIF(T_sept_dec[CléRize],T_sept_dec[[#This Row],[CléRize]])","v":1},{"$f":"IF(COUNTIF(Total,T_sept_dec[[#This Row],[Secteur organisateur]]),\"Total_\"&T_sept_dec[[#This Row],[Enseignant référent (Nom Prénom)]],\"\")","v":"Total_TRENTEETUN"},{"$f":"1/COUNTIF(T_sept_dec[cléTotal],T_sept_dec[[#This Row],[cléTotal]])","v":1}]
["2017-12-06","PAC-BUS",null,"Jules Guesde","ms","TRENTEHUIT",26,"Hors les murs","Résidence FDL",null,null,{"$f":"IF(COUNTIF(Maternelle,E125)=1,listes!$T$1,IF(COUNTIF(Elémentaire,E125)=1,listes!$U$1,IF(COUNTIF(Collège,E125)=1,listes!$V$1,IF(COUNTIF(Lycée,E125)=1,listes!$W$1,\"\"))))","v":"Maternelle"},{"$f":"VLOOKUP(T_sept_dec[[#This Row],[Etablissement scolaire]],Regroupements!$T:$U,2,FALSE)","v":"Cyprian-les-Brosses"},"PAC-BUS",{"$f":"T_sept_dec[[#This Row],[Etablissement accueillant]]&\"-\"&T_sept_dec[[#This Row],[Enseignant référent (Nom Prénom)]]","v":"PAC-BUS-TRENTEHUIT"},{"$f":"1/COUNTIF(T_sept_dec[CléEtablissement],T_sept_dec[[#This Row],[CléEtablissement]])","v":1},{"$f":"IF(COUNTIF(Réseau,T_sept_dec[[#This Row],[Secteur organisateur]]),\"Réseau_\"&T_sept_dec[[#This Row],[Enseignant référent (Nom Prénom)]], IF(COUNTIF(Rizehorsmed,T_sept_dec[[#This Row],[Secteur organisateur]]),\"Rizehorsmed_\"&T_sept_dec[[#This Row],[Enseignant référent (Nom Prénom)]], T_sept_dec[[#This Row],[Secteur organisateur]]&\"_\"&T_sept_dec[[#This Row],[Enseignant référent (Nom Prénom)]]))","v":"Réseau_TRENTEHUIT"},{"$f":"1/COUNTIF(T_sept_dec[CléRéseau-Rize horsmed],T_sept_dec[[#This Row],[CléRéseau-Rize horsmed]])","v":1},{"$f":"IF(COUNTIF(RIZE,T_sept_dec[[#This Row],[Secteur organisateur]]),\"Rize_\"&T_sept_dec[[#This Row],[Enseignant référent (Nom Prénom)]],\"\")","v":""},{"$f":"1/COUNTIF(T_sept_dec[CléRize],T_sept_dec[[#This Row],[CléRize]])","v":9.8039215686274508E-3},{"$f":"IF(COUNTIF(Total,T_sept_dec[[#This Row],[Secteur organisateur]]),\"Total_\"&T_sept_dec[[#This Row],[Enseignant référent (Nom Prénom)]],\"\")","v":"Total_TRENTEHUIT"},{"$f":"1/COUNTIF(T_sept_dec[cléTotal],T_sept_dec[[#This Row],[cléTotal]])","v":1}]
["2017-10-05","MLIS J",null,"Jules Ferry","cp","TRENTENEUF",25,"In situ","Visite découverte",null,null,{"$f":"IF(COUNTIF(Maternelle,E126)=1,listes!$T$1,IF(COUNTIF(Elémentaire,E126)=1,listes!$U$1,IF(COUNTIF(Collège,E126)=1,listes!$V$1,IF(COUNTIF(Lycée,E126)=1,listes!$W$1,\"\"))))","v":"Elémentaire"},{"$f":"VLOOKUP(T_sept_dec[[#This Row],[Etablissement scolaire]],Regroupements!$T:$U,2,FALSE)","v":"Cusset-Bonnevay"},"MLIS",{"$f":"T_sept_dec[[#This Row],[Etablissement accueillant]]&\"-\"&T_sept_dec[[#This Row],[Enseignant référent (Nom Prénom)]]","v":"MLIS-TRENTENEUF"},{"$f":"1/COUNTIF(T_sept_dec[CléEtablissement],T_sept_dec[[#This Row],[CléEtablissement]])","v":1},{"$f":"IF(COUNTIF(Réseau,T_sept_dec[[#This Row],[Secteur organisateur]]),\"Réseau_\"&T_sept_dec[[#This Row],[Enseignant référent (Nom Prénom)]], IF(COUNTIF(Rizehorsmed,T_sept_dec[[#This Row],[Secteur organisateur]]),\"Rizehorsmed_\"&T_sept_dec[[#This Row],[Enseignant référent (Nom Prénom)]], T_sept_dec[[#This Row],[Secteur organisateur]]&\"_\"&T_sept_dec[[#This Row],[Enseignant référent (Nom Prénom)]]))","v":"Réseau_TRENTENEUF"},{"$f":"1/COUNTIF(T_sept_dec[CléRéseau-Rize horsmed],T_sept_dec[[#This Row],[CléRéseau-Rize horsmed]])","v":1},{"$f":"IF(COUNTIF(RIZE,T_sept_dec[[#This Row],[Secteur organisateur]]),\"Rize_\"&T_sept_dec[[#This Row],[Enseignant référent (Nom Prénom)]],\"\")","v":""},{"$f":"1/COUNTIF(T_sept_dec[CléRize],T_sept_dec[[#This Row],[CléRize]])","v":9.8039215686274508E-3},{"$f":"IF(COUNTIF(Total,T_sept_dec[[#This Row],[Secteur organisateur]]),\"Total_\"&T_sept_dec[[#This Row],[Enseignant référent (Nom Prénom)]],\"\")","v":"Total_TRENTENEUF"},{"$f":"1/COUNTIF(T_sept_dec[cléTotal],T_sept_dec[[#This Row],[cléTotal]])","v":1}]
["2017-12-01","MLIS J",null,"Rosa Parks","ce2","TRENTEQUATRE",26,"In situ","Conte",null,null,{"$f":"IF(COUNTIF(Maternelle,E127)=1,listes!$T$1,IF(COUNTIF(Elémentaire,E127)=1,listes!$U$1,IF(COUNTIF(Collège,E127)=1,listes!$V$1,IF(COUNTIF(Lycée,E127)=1,listes!$W$1,\"\"))))","v":"Elémentaire"},{"$f":"VLOOKUP(T_sept_dec[[#This Row],[Etablissement scolaire]],Regroupements!$T:$U,2,FALSE)","v":"Gratte-ciel-Dedieu-Charmettes"},"MLIS",{"$f":"T_sept_dec[[#This Row],[Etablissement accueillant]]&\"-\"&T_sept_dec[[#This Row],[Enseignant référent (Nom Prénom)]]","v":"MLIS-TRENTEQUATRE"},{"$f":"1/COUNTIF(T_sept_dec[CléEtablissement],T_sept_dec[[#This Row],[CléEtablissement]])","v":1},{"$f":"IF(COUNTIF(Réseau,T_sept_dec[[#This Row],[Secteur organisateur]]),\"Réseau_\"&T_sept_dec[[#This Row],[Enseignant référent (Nom Prénom)]], IF(COUNTIF(Rizehorsmed,T_sept_dec[[#This Row],[Secteur organisateur]]),\"Rizehorsmed_\"&T_sept_dec[[#This Row],[Enseignant référent (Nom Prénom)]], T_sept_dec[[#This Row],[Secteur organisateur]]&\"_\"&T_sept_dec[[#This Row],[Enseignant référent (Nom Prénom)]]))","v":"Réseau_TRENTEQUATRE"},{"$f":"1/COUNTIF(T_sept_dec[CléRéseau-Rize horsmed],T_sept_dec[[#This Row],[CléRéseau-Rize horsmed]])","v":1},{"$f":"IF(COUNTIF(RIZE,T_sept_dec[[#This Row],[Secteur organisateur]]),\"Rize_\"&T_sept_dec[[#This Row],[Enseignant référent (Nom Prénom)]],\"\")","v":""},{"$f":"1/COUNTIF(T_sept_dec[CléRize],T_sept_dec[[#This Row],[CléRize]])","v":9.8039215686274508E-3},{"$f":"IF(COUNTIF(Total,T_sept_dec[[#This Row],[Secteur organisateur]]),\"Total_\"&T_sept_dec[[#This Row],[Enseignant référent (Nom Prénom)]],\"\")","v":"Total_TRENTEQUATRE"},{"$f":"1/COUNTIF(T_sept_dec[cléTotal],T_sept_dec[[#This Row],[cléTotal]])","v":1}]
["2017-11-23","MLIS J",null,"Emile Zola","ULIS (école)","TRENTESIX",8,"In situ","Visite à la carte",null,null,{"$f":"IF(COUNTIF(Maternelle,E128)=1,listes!$T$1,IF(COUNTIF(Elémentaire,E128)=1,listes!$U$1,IF(COUNTIF(Collège,E128)=1,listes!$V$1,IF(COUNTIF(Lycée,E128)=1,listes!$W$1,\"\"))))","v":"Elémentaire"},{"$f":"VLOOKUP(T_sept_dec[[#This Row],[Etablissement scolaire]],Regroupements!$T:$U,2,FALSE)","v":"Gratte-ciel-Dedieu-Charmettes"},"MLIS",{"$f":"T_sept_dec[[#This Row],[Etablissement accueillant]]&\"-\"&T_sept_dec[[#This Row],[Enseignant référent (Nom Prénom)]]","v":"MLIS-TRENTESIX"},{"$f":"1/COUNTIF(T_sept_dec[CléEtablissement],T_sept_dec[[#This Row],[CléEtablissement]])","v":1},{"$f":"IF(COUNTIF(Réseau,T_sept_dec[[#This Row],[Secteur organisateur]]),\"Réseau_\"&T_sept_dec[[#This Row],[Enseignant référent (Nom Prénom)]], IF(COUNTIF(Rizehorsmed,T_sept_dec[[#This Row],[Secteur organisateur]]),\"Rizehorsmed_\"&T_sept_dec[[#This Row],[Enseignant référent (Nom Prénom)]], T_sept_dec[[#This Row],[Secteur organisateur]]&\"_\"&T_sept_dec[[#This Row],[Enseignant référent (Nom Prénom)]]))","v":"Réseau_TRENTESIX"},{"$f":"1/COUNTIF(T_sept_dec[CléRéseau-Rize horsmed],T_sept_dec[[#This Row],[CléRéseau-Rize horsmed]])","v":1},{"$f":"IF(COUNTIF(RIZE,T_sept_dec[[#This Row],[Secteur organisateur]]),\"Rize_\"&T_sept_dec[[#This Row],[Enseignant référent (Nom Prénom)]],\"\")","v":""},{"$f":"1/COUNTIF(T_sept_dec[CléRize],T_sept_dec[[#This Row],[CléRize]])","v":9.8039215686274508E-3},{"$f":"IF(COUNTIF(Total,T_sept_dec[[#This Row],[Secteur organisateur]]),\"Total_\"&T_sept_dec[[#This Row],[Enseignant référent (Nom Prénom)]],\"\")","v":"Total_TRENTESIX"},{"$f":"1/COUNTIF(T_sept_dec[cléTotal],T_sept_dec[[#This Row],[cléTotal]])","v":1}]
["2017-11-21","PAC-BUS",null,"Saint Exupéry","cp","TRENTETROIS",12,"Hors les murs","Visite découverte",null,null,{"$f":"IF(COUNTIF(Maternelle,E129)=1,listes!$T$1,IF(COUNTIF(Elémentaire,E129)=1,listes!$U$1,IF(COUNTIF(Collège,E129)=1,listes!$V$1,IF(COUNTIF(Lycée,E129)=1,listes!$W$1,\"\"))))","v":"Elémentaire"},{"$f":"VLOOKUP(T_sept_dec[[#This Row],[Etablissement scolaire]],Regroupements!$T:$U,2,FALSE)","v":"Saint Jean"},"PAC-BUS",{"$f":"T_sept_dec[[#This Row],[Etablissement accueillant]]&\"-\"&T_sept_dec[[#This Row],[Enseignant référent (Nom Prénom)]]","v":"PAC-BUS-TRENTETROIS"},{"$f":"1/COUNTIF(T_sept_dec[CléEtablissement],T_sept_dec[[#This Row],[CléEtablissement]])","v":1},{"$f":"IF(COUNTIF(Réseau,T_sept_dec[[#This Row],[Secteur organisateur]]),\"Réseau_\"&T_sept_dec[[#This Row],[Enseignant référent (Nom Prénom)]], IF(COUNTIF(Rizehorsmed,T_sept_dec[[#This Row],[Secteur organisateur]]),\"Rizehorsmed_\"&T_sept_dec[[#This Row],[Enseignant référent (Nom Prénom)]], T_sept_dec[[#This Row],[Secteur organisateur]]&\"_\"&T_sept_dec[[#This Row],[Enseignant référent (Nom Prénom)]]))","v":"Réseau_TRENTETROIS"},{"$f":"1/COUNTIF(T_sept_dec[CléRéseau-Rize horsmed],T_sept_dec[[#This Row],[CléRéseau-Rize horsmed]])","v":1},{"$f":"IF(COUNTIF(RIZE,T_sept_dec[[#This Row],[Secteur organisateur]]),\"Rize_\"&T_sept_dec[[#This Row],[Enseignant référent (Nom Prénom)]],\"\")","v":""},{"$f":"1/COUNTIF(T_sept_dec[CléRize],T_sept_dec[[#This Row],[CléRize]])","v":9.8039215686274508E-3},{"$f":"IF(COUNTIF(Total,T_sept_dec[[#This Row],[Secteur organisateur]]),\"Total_\"&T_sept_dec[[#This Row],[Enseignant référent (Nom Prénom)]],\"\")","v":"Total_TRENTETROIS"},{"$f":"1/COUNTIF(T_sept_dec[cléTotal],T_sept_dec[[#This Row],[cléTotal]])","v":1}]
["2017-10-12","MLIS J",null,"Albert Camus","ce2","TROIS",24,"In situ","Conte",null,null,{"$f":"IF(COUNTIF(Maternelle,E130)=1,listes!$T$1,IF(COUNTIF(Elémentaire,E130)=1,listes!$U$1,IF(COUNTIF(Collège,E130)=1,listes!$V$1,IF(COUNTIF(Lycée,E130)=1,listes!$W$1,\"\"))))","v":"Elémentaire"},{"$f":"VLOOKUP(T_sept_dec[[#This Row],[Etablissement scolaire]],Regroupements!$T:$U,2,FALSE)","v":"Cyprian-les-Brosses"},{"$f":"IF(COUNTIF(FDL,B130)=1,\"FDL\",IF(COUNTIF(RIZE,B130)=1,\"RIZE\",IF(COUNTIF(MLIS,B130)=1,\"MLIS\",IF(COUNTIF(PACBUS,B130)=1,\"PAC-BUS\",IF(COUNTIF(Tonkin,B130)=1,\"TONKIN\",\"\")))))","v":"MLIS"},{"$f":"T_sept_dec[[#This Row],[Etablissement accueillant]]&\"-\"&T_sept_dec[[#This Row],[Enseignant référent (Nom Prénom)]]","v":"MLIS-TROIS"},{"$f":"1/COUNTIF(T_sept_dec[CléEtablissement],T_sept_dec[[#This Row],[CléEtablissement]])","v":1},{"$f":"IF(COUNTIF(Réseau,T_sept_dec[[#This Row],[Secteur organisateur]]),\"Réseau_\"&T_sept_dec[[#This Row],[Enseignant référent (Nom Prénom)]], IF(COUNTIF(Rizehorsmed,T_sept_dec[[#This Row],[Secteur organisateur]]),\"Rizehorsmed_\"&T_sept_dec[[#This Row],[Enseignant référent (Nom Prénom)]], T_sept_dec[[#This Row],[Secteur organisateur]]&\"_\"&T_sept_dec[[#This Row],[Enseignant référent (Nom Prénom)]]))","v":"Réseau_TROIS"},{"$f":"1/COUNTIF(T_sept_dec[CléRéseau-Rize horsmed],T_sept_dec[[#This Row],[CléRéseau-Rize horsmed]])","v":1},{"$f":"IF(COUNTIF(RIZE,T_sept_dec[[#This Row],[Secteur organisateur]]),\"Rize_\"&T_sept_dec[[#This Row],[Enseignant référent (Nom Prénom)]],\"\")","v":""},{"$f":"1/COUNTIF(T_sept_dec[CléRize],T_sept_dec[[#This Row],[CléRize]])","v":9.8039215686274508E-3},{"$f":"IF(COUNTIF(Total,T_sept_dec[[#This Row],[Secteur organisateur]]),\"Total_\"&T_sept_dec[[#This Row],[Enseignant référent (Nom Prénom)]],\"\")","v":"Total_TROIS"},{"$f":"1/COUNTIF(T_sept_dec[cléTotal],T_sept_dec[[#This Row],[cléTotal]])","v":1}]
["2017-12-05","PAC-BUS",null,"Jules Guesde","gs","UN",24,"Hors les murs","Résidence FDL",null,null,{"$f":"IF(COUNTIF(Maternelle,E131)=1,listes!$T$1,IF(COUNTIF(Elémentaire,E131)=1,listes!$U$1,IF(COUNTIF(Collège,E131)=1,listes!$V$1,IF(COUNTIF(Lycée,E131)=1,listes!$W$1,\"\"))))","v":"Maternelle"},{"$f":"VLOOKUP(T_sept_dec[[#This Row],[Etablissement scolaire]],Regroupements!$T:$U,2,FALSE)","v":"Cyprian-les-Brosses"},"PAC-BUS",{"$f":"T_sept_dec[[#This Row],[Etablissement accueillant]]&\"-\"&T_sept_dec[[#This Row],[Enseignant référent (Nom Prénom)]]","v":"PAC-BUS-UN"},{"$f":"1/COUNTIF(T_sept_dec[CléEtablissement],T_sept_dec[[#This Row],[CléEtablissement]])","v":1},{"$f":"IF(COUNTIF(Réseau,T_sept_dec[[#This Row],[Secteur organisateur]]),\"Réseau_\"&T_sept_dec[[#This Row],[Enseignant référent (Nom Prénom)]], IF(COUNTIF(Rizehorsmed,T_sept_dec[[#This Row],[Secteur organisateur]]),\"Rizehorsmed_\"&T_sept_dec[[#This Row],[Enseignant référent (Nom Prénom)]], T_sept_dec[[#This Row],[Secteur organisateur]]&\"_\"&T_sept_dec[[#This Row],[Enseignant référent (Nom Prénom)]]))","v":"Réseau_UN"},{"$f":"1/COUNTIF(T_sept_dec[CléRéseau-Rize horsmed],T_sept_dec[[#This Row],[CléRéseau-Rize horsmed]])","v":1},{"$f":"IF(COUNTIF(RIZE,T_sept_dec[[#This Row],[Secteur organisateur]]),\"Rize_\"&T_sept_dec[[#This Row],[Enseignant référent (Nom Prénom)]],\"\")","v":""},{"$f":"1/COUNTIF(T_sept_dec[CléRize],T_sept_dec[[#This Row],[CléRize]])","v":9.8039215686274508E-3},{"$f":"IF(COUNTIF(Total,T_sept_dec[[#This Row],[Secteur organisateur]]),\"Total_\"&T_sept_dec[[#This Row],[Enseignant référent (Nom Prénom)]],\"\")","v":"Total_UN"},{"$f":"1/COUNTIF(T_sept_dec[cléTotal],T_sept_dec[[#This Row],[cléTotal]])","v":1}]
["2017-12-15","MLIS J",null,"Jules Guesde","ce1/ce2","VINGT",26,"In situ","Visite à la carte",null,null,{"$f":"IF(COUNTIF(Maternelle,E132)=1,listes!$T$1,IF(COUNTIF(Elémentaire,E132)=1,listes!$U$1,IF(COUNTIF(Collège,E132)=1,listes!$V$1,IF(COUNTIF(Lycée,E132)=1,listes!$W$1,\"\"))))","v":"Elémentaire"},{"$f":"VLOOKUP(T_sept_dec[[#This Row],[Etablissement scolaire]],Regroupements!$T:$U,2,FALSE)","v":"Cyprian-les-Brosses"},"MLIS",{"$f":"T_sept_dec[[#This Row],[Etablissement accueillant]]&\"-\"&T_sept_dec[[#This Row],[Enseignant référent (Nom Prénom)]]","v":"MLIS-VINGT"},{"$f":"1/COUNTIF(T_sept_dec[CléEtablissement],T_sept_dec[[#This Row],[CléEtablissement]])","v":0.5},{"$f":"IF(COUNTIF(Réseau,T_sept_dec[[#This Row],[Secteur organisateur]]),\"Réseau_\"&T_sept_dec[[#This Row],[Enseignant référent (Nom Prénom)]], IF(COUNTIF(Rizehorsmed,T_sept_dec[[#This Row],[Secteur organisateur]]),\"Rizehorsmed_\"&T_sept_dec[[#This Row],[Enseignant référent (Nom Prénom)]], T_sept_dec[[#This Row],[Secteur organisateur]]&\"_\"&T_sept_dec[[#This Row],[Enseignant référent (Nom Prénom)]]))","v":"Réseau_VINGT"},{"$f":"1/COUNTIF(T_sept_dec[CléRéseau-Rize horsmed],T_sept_dec[[#This Row],[CléRéseau-Rize horsmed]])","v":0.5},{"$f":"IF(COUNTIF(RIZE,T_sept_dec[[#This Row],[Secteur organisateur]]),\"Rize_\"&T_sept_dec[[#This Row],[Enseignant référent (Nom Prénom)]],\"\")","v":""},{"$f":"1/COUNTIF(T_sept_dec[CléRize],T_sept_dec[[#This Row],[CléRize]])","v":9.8039215686274508E-3},{"$f":"IF(COUNTIF(Total,T_sept_dec[[#This Row],[Secteur organisateur]]),\"Total_\"&T_sept_dec[[#This Row],[Enseignant référent (Nom Prénom)]],\"\")","v":"Total_VINGT"},{"$f":"1/COUNTIF(T_sept_dec[cléTotal],T_sept_dec[[#This Row],[cléTotal]])","v":0.33333333333333331}]
["2017-12-15","ARTO",null,"Jules Guesde","ce1/ce2","VINGT",26,"In situ","Et si on parlait d'art ?",null,null,{"$f":"IF(COUNTIF(Maternelle,E133)=1,listes!$T$1,IF(COUNTIF(Elémentaire,E133)=1,listes!$U$1,IF(COUNTIF(Collège,E133)=1,listes!$V$1,IF(COUNTIF(Lycée,E133)=1,listes!$W$1,\"\"))))","v":"Elémentaire"},{"$f":"VLOOKUP(T_sept_dec[[#This Row],[Etablissement scolaire]],Regroupements!$T:$U,2,FALSE)","v":"Cyprian-les-Brosses"},"MLIS",{"$f":"T_sept_dec[[#This Row],[Etablissement accueillant]]&\"-\"&T_sept_dec[[#This Row],[Enseignant référent (Nom Prénom)]]","v":"MLIS-VINGT"},{"$f":"1/COUNTIF(T_sept_dec[CléEtablissement],T_sept_dec[[#This Row],[CléEtablissement]])","v":0.5},{"$f":"IF(COUNTIF(Réseau,T_sept_dec[[#This Row],[Secteur organisateur]]),\"Réseau_\"&T_sept_dec[[#This Row],[Enseignant référent (Nom Prénom)]], IF(COUNTIF(Rizehorsmed,T_sept_dec[[#This Row],[Secteur organisateur]]),\"Rizehorsmed_\"&T_sept_dec[[#This Row],[Enseignant référent (Nom Prénom)]], T_sept_dec[[#This Row],[Secteur organisateur]]&\"_\"&T_sept_dec[[#This Row],[Enseignant référent (Nom Prénom)]]))","v":"Réseau_VINGT"},{"$f":"1/COUNTIF(T_sept_dec[CléRéseau-Rize horsmed],T_sept_dec[[#This Row],[CléRéseau-Rize horsmed]])","v":0.5},{"$f":"IF(COUNTIF(RIZE,T_sept_dec[[#This Row],[Secteur organisateur]]),\"Rize_\"&T_sept_dec[[#This Row],[Enseignant référent (Nom Prénom)]],\"\")","v":""},{"$f":"1/COUNTIF(T_sept_dec[CléRize],T_sept_dec[[#This Row],[CléRize]])","v":9.8039215686274508E-3},{"$f":"IF(COUNTIF(Total,T_sept_dec[[#This Row],[Secteur organisateur]]),\"Total_\"&T_sept_dec[[#This Row],[Enseignant référent (Nom Prénom)]],\"\")","v":"Total_VINGT"},{"$f":"1/COUNTIF(T_sept_dec[cléTotal],T_sept_dec[[#This Row],[cléTotal]])","v":0.33333333333333331}]
["2017-11-24","FDL",null,"Jules Guesde","ce1/ce2","VINGT",25,"In situ","Projet FDL",null,null,{"$f":"IF(COUNTIF(Maternelle,E134)=1,listes!$T$1,IF(COUNTIF(Elémentaire,E134)=1,listes!$U$1,IF(COUNTIF(Collège,E134)=1,listes!$V$1,IF(COUNTIF(Lycée,E134)=1,listes!$W$1,\"\"))))","v":"Elémentaire"},{"$f":"VLOOKUP(T_sept_dec[[#This Row],[Etablissement scolaire]],Regroupements!$T:$U,2,FALSE)","v":"Cyprian-les-Brosses"},"FDL",{"$f":"T_sept_dec[[#This Row],[Etablissement accueillant]]&\"-\"&T_sept_dec[[#This Row],[Enseignant référent (Nom Prénom)]]","v":"FDL-VINGT"},{"$f":"1/COUNTIF(T_sept_dec[CléEtablissement],T_sept_dec[[#This Row],[CléEtablissement]])","v":1},{"$f":"IF(COUNTIF(Réseau,T_sept_dec[[#This Row],[Secteur organisateur]]),\"Réseau_\"&T_sept_dec[[#This Row],[Enseignant référent (Nom Prénom)]], IF(COUNTIF(Rizehorsmed,T_sept_dec[[#This Row],[Secteur organisateur]]),\"Rizehorsmed_\"&T_sept_dec[[#This Row],[Enseignant référent (Nom Prénom)]], T_sept_dec[[#This Row],[Secteur organisateur]]&\"_\"&T_sept_dec[[#This Row],[Enseignant référent (Nom Prénom)]]))","v":"FDL_VINGT"},{"$f":"1/COUNTIF(T_sept_dec[CléRéseau-Rize horsmed],T_sept_dec[[#This Row],[CléRéseau-Rize horsmed]])","v":1},{"$f":"IF(COUNTIF(RIZE,T_sept_dec[[#This Row],[Secteur organisateur]]),\"Rize_\"&T_sept_dec[[#This Row],[Enseignant référent (Nom Prénom)]],\"\")","v":""},{"$f":"1/COUNTIF(T_sept_dec[CléRize],T_sept_dec[[#This Row],[CléRize]])","v":9.8039215686274508E-3},{"$f":"IF(COUNTIF(Total,T_sept_dec[[#This Row],[Secteur organisateur]]),\"Total_\"&T_sept_dec[[#This Row],[Enseignant référent (Nom Prénom)]],\"\")","v":"Total_VINGT"},{"$f":"1/COUNTIF(T_sept_dec[cléTotal],T_sept_dec[[#This Row],[cléTotal]])","v":0.33333333333333331}]
["2017-09-27","RIZE MED",null,"Antonin Perrin","ce1","VINGTCINQ",25,"In situ","Visite couplée",null,null,{"$f":"IF(COUNTIF(Maternelle,E135)=1,listes!$T$1,IF(COUNTIF(Elémentaire,E135)=1,listes!$U$1,IF(COUNTIF(Collège,E135)=1,listes!$V$1,IF(COUNTIF(Lycée,E135)=1,listes!$W$1,\"\"))))","v":"Elémentaire"},{"$f":"VLOOKUP(T_sept_dec[[#This Row],[Etablissement scolaire]],Regroupements!$T:$U,2,FALSE)","v":"Ferrandière-Maisons Neuves"},"RIZE",{"$f":"T_sept_dec[[#This Row],[Etablissement accueillant]]&\"-\"&T_sept_dec[[#This Row],[Enseignant référent (Nom Prénom)]]","v":"RIZE-VINGTCINQ"},{"$f":"1/COUNTIF(T_sept_dec[CléEtablissement],T_sept_dec[[#This Row],[CléEtablissement]])","v":1},{"$f":"IF(COUNTIF(Réseau,T_sept_dec[[#This Row],[Secteur organisateur]]),\"Réseau_\"&T_sept_dec[[#This Row],[Enseignant référent (Nom Prénom)]], IF(COUNTIF(Rizehorsmed,T_sept_dec[[#This Row],[Secteur organisateur]]),\"Rizehorsmed_\"&T_sept_dec[[#This Row],[Enseignant référent (Nom Prénom)]], T_sept_dec[[#This Row],[Secteur organisateur]]&\"_\"&T_sept_dec[[#This Row],[Enseignant référent (Nom Prénom)]]))","v":"Réseau_VINGTCINQ"},{"$f":"1/COUNTIF(T_sept_dec[CléRéseau-Rize horsmed],T_sept_dec[[#This Row],[CléRéseau-Rize horsmed]])","v":1},{"$f":"IF(COUNTIF(RIZE,T_sept_dec[[#This Row],[Secteur organisateur]]),\"Rize_\"&T_sept_dec[[#This Row],[Enseignant référent (Nom Prénom)]],\"\")","v":"Rize_VINGTCINQ"},{"$f":"1/COUNTIF(T_sept_dec[CléRize],T_sept_dec[[#This Row],[CléRize]])","v":1},{"$f":"IF(COUNTIF(Total,T_sept_dec[[#This Row],[Secteur organisateur]]),\"Total_\"&T_sept_dec[[#This Row],[Enseignant référent (Nom Prénom)]],\"\")","v":"Total_VINGTCINQ"},{"$f":"1/COUNTIF(T_sept_dec[cléTotal],T_sept_dec[[#This Row],[cléTotal]])","v":1}]
["2017-11-16","ARTO",null,"Château-Gaillard","cp","VINGTDEUX",23,"In situ","Il était une fois l'art contemporain",null,null,{"$f":"IF(COUNTIF(Maternelle,E136)=1,listes!$T$1,IF(COUNTIF(Elémentaire,E136)=1,listes!$U$1,IF(COUNTIF(Collège,E136)=1,listes!$V$1,IF(COUNTIF(Lycée,E136)=1,listes!$W$1,\"\"))))","v":"Elémentaire"},{"$f":"VLOOKUP(T_sept_dec[[#This Row],[Etablissement scolaire]],Regroupements!$T:$U,2,FALSE)","v":"Buers-Croix-Luizet"},"MLIS",{"$f":"T_sept_dec[[#This Row],[Etablissement accueillant]]&\"-\"&T_sept_dec[[#This Row],[Enseignant référent (Nom Prénom)]]","v":"MLIS-VINGTDEUX"},{"$f":"1/COUNTIF(T_sept_dec[CléEtablissement],T_sept_dec[[#This Row],[CléEtablissement]])","v":1},{"$f":"IF(COUNTIF(Réseau,T_sept_dec[[#This Row],[Secteur organisateur]]),\"Réseau_\"&T_sept_dec[[#This Row],[Enseignant référent (Nom Prénom)]], IF(COUNTIF(Rizehorsmed,T_sept_dec[[#This Row],[Secteur organisateur]]),\"Rizehorsmed_\"&T_sept_dec[[#This Row],[Enseignant référent (Nom Prénom)]], T_sept_dec[[#This Row],[Secteur organisateur]]&\"_\"&T_sept_dec[[#This Row],[Enseignant référent (Nom Prénom)]]))","v":"Réseau_VINGTDEUX"},{"$f":"1/COUNTIF(T_sept_dec[CléRéseau-Rize horsmed],T_sept_dec[[#This Row],[CléRéseau-Rize horsmed]])","v":1},{"$f":"IF(COUNTIF(RIZE,T_sept_dec[[#This Row],[Secteur organisateur]]),\"Rize_\"&T_sept_dec[[#This Row],[Enseignant référent (Nom Prénom)]],\"\")","v":""},{"$f":"1/COUNTIF(T_sept_dec[CléRize],T_sept_dec[[#This Row],[CléRize]])","v":9.8039215686274508E-3},{"$f":"IF(COUNTIF(Total,T_sept_dec[[#This Row],[Secteur organisateur]]),\"Total_\"&T_sept_dec[[#This Row],[Enseignant référent (Nom Prénom)]],\"\")","v":"Total_VINGTDEUX"},{"$f":"1/COUNTIF(T_sept_dec[cléTotal],T_sept_dec[[#This Row],[cléTotal]])","v":1}]
["2017-11-23","ARTO",null,"Léon Jouhaux","ce1/ce2","VINGTETUN",20,"In situ","Et si on parlait d'art ?",null,null,{"$f":"IF(COUNTIF(Maternelle,E137)=1,listes!$T$1,IF(COUNTIF(Elémentaire,E137)=1,listes!$U$1,IF(COUNTIF(Collège,E137)=1,listes!$V$1,IF(COUNTIF(Lycée,E137)=1,listes!$W$1,\"\"))))","v":"Elémentaire"},{"$f":"VLOOKUP(T_sept_dec[[#This Row],[Etablissement scolaire]],Regroupements!$T:$U,2,FALSE)","v":"Gratte-ciel-Dedieu-Charmettes"},"MLIS",{"$f":"T_sept_dec[[#This Row],[Etablissement accueillant]]&\"-\"&T_sept_dec[[#This Row],[Enseignant référent (Nom Prénom)]]","v":"MLIS-VINGTETUN"},{"$f":"1/COUNTIF(T_sept_dec[CléEtablissement],T_sept_dec[[#This Row],[CléEtablissement]])","v":1},{"$f":"IF(COUNTIF(Réseau,T_sept_dec[[#This Row],[Secteur organisateur]]),\"Réseau_\"&T_sept_dec[[#This Row],[Enseignant référent (Nom Prénom)]], IF(COUNTIF(Rizehorsmed,T_sept_dec[[#This Row],[Secteur organisateur]]),\"Rizehorsmed_\"&T_sept_dec[[#This Row],[Enseignant référent (Nom Prénom)]], T_sept_dec[[#This Row],[Secteur organisateur]]&\"_\"&T_sept_dec[[#This Row],[Enseignant référent (Nom Prénom)]]))","v":"Réseau_VINGTETUN"},{"$f":"1/COUNTIF(T_sept_dec[CléRéseau-Rize horsmed],T_sept_dec[[#This Row],[CléRéseau-Rize horsmed]])","v":1},{"$f":"IF(COUNTIF(RIZE,T_sept_dec[[#This Row],[Secteur organisateur]]),\"Rize_\"&T_sept_dec[[#This Row],[Enseignant référent (Nom Prénom)]],\"\")","v":""},{"$f":"1/COUNTIF(T_sept_dec[CléRize],T_sept_dec[[#This Row],[CléRize]])","v":9.8039215686274508E-3},{"$f":"IF(COUNTIF(Total,T_sept_dec[[#This Row],[Secteur organisateur]]),\"Total_\"&T_sept_dec[[#This Row],[Enseignant référent (Nom Prénom)]],\"\")","v":"Total_VINGTETUN"},{"$f":"1/COUNTIF(T_sept_dec[cléTotal],T_sept_dec[[#This Row],[cléTotal]])","v":1}]
["2017-12-06","PAC-BUS",null,"Jules Guesde","gs","VINGTHUIT",26,"Hors les murs","Résidence FDL",null,null,{"$f":"IF(COUNTIF(Maternelle,E138)=1,listes!$T$1,IF(COUNTIF(Elémentaire,E138)=1,listes!$U$1,IF(COUNTIF(Collège,E138)=1,listes!$V$1,IF(COUNTIF(Lycée,E138)=1,listes!$W$1,\"\"))))","v":"Maternelle"},{"$f":"VLOOKUP(T_sept_dec[[#This Row],[Etablissement scolaire]],Regroupements!$T:$U,2,FALSE)","v":"Cyprian-les-Brosses"},"PAC-BUS",{"$f":"T_sept_dec[[#This Row],[Etablissement accueillant]]&\"-\"&T_sept_dec[[#This Row],[Enseignant référent (Nom Prénom)]]","v":"PAC-BUS-VINGTHUIT"},{"$f":"1/COUNTIF(T_sept_dec[CléEtablissement],T_sept_dec[[#This Row],[CléEtablissement]])","v":1},{"$f":"IF(COUNTIF(Réseau,T_sept_dec[[#This Row],[Secteur organisateur]]),\"Réseau_\"&T_sept_dec[[#This Row],[Enseignant référent (Nom Prénom)]], IF(COUNTIF(Rizehorsmed,T_sept_dec[[#This Row],[Secteur organisateur]]),\"Rizehorsmed_\"&T_sept_dec[[#This Row],[Enseignant référent (Nom Prénom)]], T_sept_dec[[#This Row],[Secteur organisateur]]&\"_\"&T_sept_dec[[#This Row],[Enseignant référent (Nom Prénom)]]))","v":"Réseau_VINGTHUIT"},{"$f":"1/COUNTIF(T_sept_dec[CléRéseau-Rize horsmed],T_sept_dec[[#This Row],[CléRéseau-Rize horsmed]])","v":1},{"$f":"IF(COUNTIF(RIZE,T_sept_dec[[#This Row],[Secteur organisateur]]),\"Rize_\"&T_sept_dec[[#This Row],[Enseignant référent (Nom Prénom)]],\"\")","v":""},{"$f":"1/COUNTIF(T_sept_dec[CléRize],T_sept_dec[[#This Row],[CléRize]])","v":9.8039215686274508E-3},{"$f":"IF(COUNTIF(Total,T_sept_dec[[#This Row],[Secteur organisateur]]),\"Total_\"&T_sept_dec[[#This Row],[Enseignant référent (Nom Prénom)]],\"\")","v":"Total_VINGTHUIT"},{"$f":"1/COUNTIF(T_sept_dec[cléTotal],T_sept_dec[[#This Row],[cléTotal]])","v":1}]
["2017-11-28","MTK",null,"Lakanal","ce1","VINGTNEUF",26,"In situ","Première lecture",null,null,{"$f":"IF(COUNTIF(Maternelle,E139)=1,listes!$T$1,IF(COUNTIF(Elémentaire,E139)=1,listes!$U$1,IF(COUNTIF(Collège,E139)=1,listes!$V$1,IF(COUNTIF(Lycée,E139)=1,listes!$W$1,\"\"))))","v":"Elémentaire"},{"$f":"VLOOKUP(T_sept_dec[[#This Row],[Etablissement scolaire]],Regroupements!$T:$U,2,FALSE)","v":"Charpennes-Tonkin"},"TONKIN",{"$f":"T_sept_dec[[#This Row],[Etablissement accueillant]]&\"-\"&T_sept_dec[[#This Row],[Enseignant référent (Nom Prénom)]]","v":"TONKIN-VINGTNEUF"},{"$f":"1/COUNTIF(T_sept_dec[CléEtablissement],T_sept_dec[[#This Row],[CléEtablissement]])","v":1},{"$f":"IF(COUNTIF(Réseau,T_sept_dec[[#This Row],[Secteur organisateur]]),\"Réseau_\"&T_sept_dec[[#This Row],[Enseignant référent (Nom Prénom)]], IF(COUNTIF(Rizehorsmed,T_sept_dec[[#This Row],[Secteur organisateur]]),\"Rizehorsmed_\"&T_sept_dec[[#This Row],[Enseignant référent (Nom Prénom)]], T_sept_dec[[#This Row],[Secteur organisateur]]&\"_\"&T_sept_dec[[#This Row],[Enseignant référent (Nom Prénom)]]))","v":"Réseau_VINGTNEUF"},{"$f":"1/COUNTIF(T_sept_dec[CléRéseau-Rize horsmed],T_sept_dec[[#This Row],[CléRéseau-Rize horsmed]])","v":1},{"$f":"IF(COUNTIF(RIZE,T_sept_dec[[#This Row],[Secteur organisateur]]),\"Rize_\"&T_sept_dec[[#This Row],[Enseignant référent (Nom Prénom)]],\"\")","v":""},{"$f":"1/COUNTIF(T_sept_dec[CléRize],T_sept_dec[[#This Row],[CléRize]])","v":9.8039215686274508E-3},{"$f":"IF(COUNTIF(Total,T_sept_dec[[#This Row],[Secteur organisateur]]),\"Total_\"&T_sept_dec[[#This Row],[Enseignant référent (Nom Prénom)]],\"\")","v":"Total_VINGTNEUF"},{"$f":"1/COUNTIF(T_sept_dec[cléTotal],T_sept_dec[[#This Row],[cléTotal]])","v":1}]
["2017-11-10","ARTO",null,"Ste Thérèse (privé)","ce2","VINGTQUATRE",25,"In situ","Et si on parlait d'art ?",null,null,{"$f":"IF(COUNTIF(Maternelle,E140)=1,listes!$T$1,IF(COUNTIF(Elémentaire,E140)=1,listes!$U$1,IF(COUNTIF(Collège,E140)=1,listes!$V$1,IF(COUNTIF(Lycée,E140)=1,listes!$W$1,\"\"))))","v":"Elémentaire"},{"$f":"VLOOKUP(T_sept_dec[[#This Row],[Etablissement scolaire]],Regroupements!$T:$U,2,FALSE)","v":"Gratte-ciel-Dedieu-Charmettes"},"MLIS",{"$f":"T_sept_dec[[#This Row],[Etablissement accueillant]]&\"-\"&T_sept_dec[[#This Row],[Enseignant référent (Nom Prénom)]]","v":"MLIS-VINGTQUATRE"},{"$f":"1/COUNTIF(T_sept_dec[CléEtablissement],T_sept_dec[[#This Row],[CléEtablissement]])","v":1},{"$f":"IF(COUNTIF(Réseau,T_sept_dec[[#This Row],[Secteur organisateur]]),\"Réseau_\"&T_sept_dec[[#This Row],[Enseignant référent (Nom Prénom)]], IF(COUNTIF(Rizehorsmed,T_sept_dec[[#This Row],[Secteur organisateur]]),\"Rizehorsmed_\"&T_sept_dec[[#This Row],[Enseignant référent (Nom Prénom)]], T_sept_dec[[#This Row],[Secteur organisateur]]&\"_\"&T_sept_dec[[#This Row],[Enseignant référent (Nom Prénom)]]))","v":"Réseau_VINGTQUATRE"},{"$f":"1/COUNTIF(T_sept_dec[CléRéseau-Rize horsmed],T_sept_dec[[#This Row],[CléRéseau-Rize horsmed]])","v":1},{"$f":"IF(COUNTIF(RIZE,T_sept_dec[[#This Row],[Secteur organisateur]]),\"Rize_\"&T_sept_dec[[#This Row],[Enseignant référent (Nom Prénom)]],\"\")","v":""},{"$f":"1/COUNTIF(T_sept_dec[CléRize],T_sept_dec[[#This Row],[CléRize]])","v":9.8039215686274508E-3},{"$f":"IF(COUNTIF(Total,T_sept_dec[[#This Row],[Secteur organisateur]]),\"Total_\"&T_sept_dec[[#This Row],[Enseignant référent (Nom Prénom)]],\"\")","v":"Total_VINGTQUATRE"},{"$f":"1/COUNTIF(T_sept_dec[cléTotal],T_sept_dec[[#This Row],[cléTotal]])","v":1}]
["2017-10-06","RIZE VALO",null,"Antonin Perrin","cm2","VINGTSEPT",18,"Hors les murs","Exploration Gratte-Ciel",null,null,{"$f":"IF(COUNTIF(Maternelle,E141)=1,listes!$T$1,IF(COUNTIF(Elémentaire,E141)=1,listes!$U$1,IF(COUNTIF(Collège,E141)=1,listes!$V$1,IF(COUNTIF(Lycée,E141)=1,listes!$W$1,\"\"))))","v":"Elémentaire"},{"$f":"VLOOKUP(T_sept_dec[[#This Row],[Etablissement scolaire]],Regroupements!$T:$U,2,FALSE)","v":"Ferrandière-Maisons Neuves"},"RIZE",{"$f":"T_sept_dec[[#This Row],[Etablissement accueillant]]&\"-\"&T_sept_dec[[#This Row],[Enseignant référent (Nom Prénom)]]","v":"RIZE-VINGTSEPT"},{"$f":"1/COUNTIF(T_sept_dec[CléEtablissement],T_sept_dec[[#This Row],[CléEtablissement]])","v":1},{"$f":"IF(COUNTIF(Réseau,T_sept_dec[[#This Row],[Secteur organisateur]]),\"Réseau_\"&T_sept_dec[[#This Row],[Enseignant référent (Nom Prénom)]], IF(COUNTIF(Rizehorsmed,T_sept_dec[[#This Row],[Secteur organisateur]]),\"Rizehorsmed_\"&T_sept_dec[[#This Row],[Enseignant référent (Nom Prénom)]], T_sept_dec[[#This Row],[Secteur organisateur]]&\"_\"&T_sept_dec[[#This Row],[Enseignant référent (Nom Prénom)]]))","v":"Rizehorsmed_VINGTSEPT"},{"$f":"1/COUNTIF(T_sept_dec[CléRéseau-Rize horsmed],T_sept_dec[[#This Row],[CléRéseau-Rize horsmed]])","v":1},{"$f":"IF(COUNTIF(RIZE,T_sept_dec[[#This Row],[Secteur organisateur]]),\"Rize_\"&T_sept_dec[[#This Row],[Enseignant référent (Nom Prénom)]],\"\")","v":"Rize_VINGTSEPT"},{"$f":"1/COUNTIF(T_sept_dec[CléRize],T_sept_dec[[#This Row],[CléRize]])","v":1},{"$f":"IF(COUNTIF(Total,T_sept_dec[[#This Row],[Secteur organisateur]]),\"Total_\"&T_sept_dec[[#This Row],[Enseignant référent (Nom Prénom)]],\"\")","v":"Total_VINGTSEPT"},{"$f":"1/COUNTIF(T_sept_dec[cléTotal],T_sept_dec[[#This Row],[cléTotal]])","v":1}]
["2017-11-14","PAC-BUS",null,"Jules Guesde","cp","VINGTSIX",24,"Hors les murs","Visite découverte",null,null,{"$f":"IF(COUNTIF(Maternelle,E142)=1,listes!$T$1,IF(COUNTIF(Elémentaire,E142)=1,listes!$U$1,IF(COUNTIF(Collège,E142)=1,listes!$V$1,IF(COUNTIF(Lycée,E142)=1,listes!$W$1,\"\"))))","v":"Elémentaire"},{"$f":"VLOOKUP(T_sept_dec[[#This Row],[Etablissement scolaire]],Regroupements!$T:$U,2,FALSE)","v":"Cyprian-les-Brosses"},"PAC-BUS",{"$f":"T_sept_dec[[#This Row],[Etablissement accueillant]]&\"-\"&T_sept_dec[[#This Row],[Enseignant référent (Nom Prénom)]]","v":"PAC-BUS-VINGTSIX"},{"$f":"1/COUNTIF(T_sept_dec[CléEtablissement],T_sept_dec[[#This Row],[CléEtablissement]])","v":1},{"$f":"IF(COUNTIF(Réseau,T_sept_dec[[#This Row],[Secteur organisateur]]),\"Réseau_\"&T_sept_dec[[#This Row],[Enseignant référent (Nom Prénom)]], IF(COUNTIF(Rizehorsmed,T_sept_dec[[#This Row],[Secteur organisateur]]),\"Rizehorsmed_\"&T_sept_dec[[#This Row],[Enseignant référent (Nom Prénom)]], T_sept_dec[[#This Row],[Secteur organisateur]]&\"_\"&T_sept_dec[[#This Row],[Enseignant référent (Nom Prénom)]]))","v":"Réseau_VINGTSIX"},{"$f":"1/COUNTIF(T_sept_dec[CléRéseau-Rize horsmed],T_sept_dec[[#This Row],[CléRéseau-Rize horsmed]])","v":1},{"$f":"IF(COUNTIF(RIZE,T_sept_dec[[#This Row],[Secteur organisateur]]),\"Rize_\"&T_sept_dec[[#This Row],[Enseignant référent (Nom Prénom)]],\"\")","v":""},{"$f":"1/COUNTIF(T_sept_dec[CléRize],T_sept_dec[[#This Row],[CléRize]])","v":9.8039215686274508E-3},{"$f":"IF(COUNTIF(Total,T_sept_dec[[#This Row],[Secteur organisateur]]),\"Total_\"&T_sept_dec[[#This Row],[Enseignant référent (Nom Prénom)]],\"\")","v":"Total_VINGTSIX"},{"$f":"1/COUNTIF(T_sept_dec[cléTotal],T_sept_dec[[#This Row],[cléTotal]])","v":1}]
["2017-12-05","PAC-BUS",null,"Jules Guesde","gs","VINGTTROIS",25,"Hors les murs","Résidence FDL",null,null,{"$f":"IF(COUNTIF(Maternelle,E143)=1,listes!$T$1,IF(COUNTIF(Elémentaire,E143)=1,listes!$U$1,IF(COUNTIF(Collège,E143)=1,listes!$V$1,IF(COUNTIF(Lycée,E143)=1,listes!$W$1,\"\"))))","v":"Maternelle"},{"$f":"VLOOKUP(T_sept_dec[[#This Row],[Etablissement scolaire]],Regroupements!$T:$U,2,FALSE)","v":"Cyprian-les-Brosses"},"PAC-BUS",{"$f":"T_sept_dec[[#This Row],[Etablissement accueillant]]&\"-\"&T_sept_dec[[#This Row],[Enseignant référent (Nom Prénom)]]","v":"PAC-BUS-VINGTTROIS"},{"$f":"1/COUNTIF(T_sept_dec[CléEtablissement],T_sept_dec[[#This Row],[CléEtablissement]])","v":1},{"$f":"IF(COUNTIF(Réseau,T_sept_dec[[#This Row],[Secteur organisateur]]),\"Réseau_\"&T_sept_dec[[#This Row],[Enseignant référent (Nom Prénom)]], IF(COUNTIF(Rizehorsmed,T_sept_dec[[#This Row],[Secteur organisateur]]),\"Rizehorsmed_\"&T_sept_dec[[#This Row],[Enseignant référent (Nom Prénom)]], T_sept_dec[[#This Row],[Secteur organisateur]]&\"_\"&T_sept_dec[[#This Row],[Enseignant référent (Nom Prénom)]]))","v":"Réseau_VINGTTROIS"},{"$f":"1/COUNTIF(T_sept_dec[CléRéseau-Rize horsmed],T_sept_dec[[#This Row],[CléRéseau-Rize horsmed]])","v":1},{"$f":"IF(COUNTIF(RIZE,T_sept_dec[[#This Row],[Secteur organisateur]]),\"Rize_\"&T_sept_dec[[#This Row],[Enseignant référent (Nom Prénom)]],\"\")","v":""},{"$f":"1/COUNTIF(T_sept_dec[CléRize],T_sept_dec[[#This Row],[CléRize]])","v":9.8039215686274508E-3},{"$f":"IF(COUNTIF(Total,T_sept_dec[[#This Row],[Secteur organisateur]]),\"Total_\"&T_sept_dec[[#This Row],[Enseignant référent (Nom Prénom)]],\"\")","v":"Total_VINGTTROIS"},{"$f":"1/COUNTIF(T_sept_dec[cléTotal],T_sept_dec[[#This Row],[cléTotal]])","v":1}]
[]
[]
[]
[null,null,null,null,null,null,{"$f":"G53+G77+G100","v":69}]
[]
[]
[null,null,null,null,null,null,{"$f":"28-15","v":13}]
[null,null,null,null,null,null,{"$f":"G147-G150","v":56}]

{"sheet":"tmp","index":2,"n_rows":16,"n_cols":22,"rows_kept":16,"cut":false,"hidden":false,"merged":[]}
["Date venue","Secteur organisateur","Secteur organisateur binôme","Etablissement scolaire","Niveau de classe","Enseignant référent (Nom Prénom)","Nombre enfants","In situ / hors les murs","Type de visite","Commentaires","Appréciation","Groupe niveau","Quartier","Etablissement accueillant","CléEtablissement","cptEtablissement","CléRéseau-Rize horsmed","cptréseau-rizehormed","CléRize","cptrize","cléTotal","cptTotal"]
["2017-12-05","MTK",null,"Lakanal","cp","DIXNEUF",26,"In situ","Visite découverte",null,null,"Elémentaire","Charpennes-Tonkin","TONKIN","TONKIN-DIXNEUF",1,"Réseau_DIXNEUF",1,"",9.8039215686274508E-3,"Total_DIXNEUF",1]
["2017-11-28","MTK",null,"Tonkin/Nigritelle","cp","DIXSEPT",26,"In situ","Première lecture",null,null,"Elémentaire","Charpennes-Tonkin","TONKIN","TONKIN-DIXSEPT",1,"Réseau_DIXSEPT",1,"",9.8039215686274508E-3,"Total_DIXSEPT",1]
["2017-11-09","MTK",null,"Louis Armand","cm1","ONZE",30,"In situ","De la littérature au cinéma",null,null,"Elémentaire","Charpennes-Tonkin","TONKIN","TONKIN-ONZE",1,"Réseau_ONZE",1,"",9.8039215686274508E-3,"Total_ONZE",1]
["2017-11-16","MTK",null,"Saint Exupéry","cm1/cm2","QUARENTEHUIT",23,"In situ","De la littérature au cinéma",null,null,"Elémentaire","Saint Jean","TONKIN","TONKIN-QUARENTEHUIT",1,"Réseau_QUARENTEHUIT",0.5,"",9.8039215686274508E-3,"Total_QUARENTEHUIT",0.5]
["2017-12-05","MTK",null,"Lakanal","cp","QUATREVINGTDIX",24,"In situ","Visite découverte",null,null,"Elémentaire","Charpennes-Tonkin","TONKIN","TONKIN-QUATREVINGTDIX",1,"Réseau_QUATREVINGTDIX",1,"",9.8039215686274508E-3,"Total_QUATREVINGTDIX",1]
["2017-12-21","MTK",null,"Ecole juive de Lyon (privé)","ce1","QUATREVINGTNEUF",29,"In situ","Visite thématique",null,null,"Elémentaire","Gratte-ciel-Dedieu-Charmettes","TONKIN","TONKIN-QUATREVINGTNEUF",1,"Réseau_QUATREVINGTNEUF",1,"",9.8039215686274508E-3,"Total_QUATREVINGTNEUF",1]
["2017-11-24","MTK",null,"Lakanal","cp/ce1","QUATREVINGTSEPT",24,"In situ","Visite à la carte",null,null,"Elémentaire","Charpennes-Tonkin","TONKIN","TONKIN-QUATREVINGTSEPT",1,"Réseau_QUATREVINGTSEPT",1,"",9.8039215686274508E-3,"Total_QUATREVINGTSEPT",1]
["2017-12-12","MTK",null,"Ecole juive de Lyon (privé)","cp","QUINZE",18,"In situ","Visite thématique",null,null,"Elémentaire","Gratte-ciel-Dedieu-Charmettes","TONKIN","TONKIN-QUINZE",1,"Réseau_QUINZE",1,"",9.8039215686274508E-3,"Total_QUINZE",1]
["2017-11-07","MTK",null,"Louis Armand","cm1","SOIXANTEDEUX",30,"In situ","De la littérature au cinéma",null,null,"Elémentaire","Charpennes-Tonkin","TONKIN","TONKIN-SOIXANTEDEUX",1,"Réseau_SOIXANTEDEUX",0.5,"",9.8039215686274508E-3,"Total_SOIXANTEDEUX",0.5]
["2017-12-19","MTK",null,"Tonkin/Nigritelle","ULIS (école)","SOIXANTEDIX",5,"In situ","Visite à la carte",null,null,"Elémentaire","Charpennes-Tonkin","TONKIN","TONKIN-SOIXANTEDIX",1,"Réseau_SOIXANTEDIX",1,"",9.8039215686274508E-3,"Total_SOIXANTEDIX",1]
["2017-12-08","MTK",null,"Lakanal","cm1/cm2","SOIXANTEDIXHUIT",29,"In situ","Visite poésie",null,null,"Elémentaire","Charpennes-Tonkin","TONKIN","TONKIN-SOIXANTEDIXHUIT",1,"Réseau_SOIXANTEDIXHUIT",1,"",9.8039215686274508E-3,"Total_SOIXANTEDIXHUIT",1]
["2017-12-01","MTK",null,"Lakanal","ce2","SOIXANTEQUATRE",28,"In situ","Première lecture",null,null,"Elémentaire","Charpennes-Tonkin","TONKIN","TONKIN-SOIXANTEQUATRE",1,"Réseau_SOIXANTEQUATRE",1,"",9.8039215686274508E-3,"Total_SOIXANTEQUATRE",1]
["2017-11-24","MTK",null,"Descartes","ms","SOIXANTETREIZE",24,"In situ","Visite découverte",null,null,"Maternelle","Charpennes-Tonkin","TONKIN","TONKIN-SOIXANTETREIZE",1,"Réseau_SOIXANTETREIZE",1,"",9.8039215686274508E-3,"Total_SOIXANTETREIZE",1]
["2017-12-01","MTK",null,"Tonkin/Nigritelle","cp","TRENSEPT",26,"In situ","Visite découverte",null,null,"Elémentaire","Charpennes-Tonkin","TONKIN","TONKIN-TRENSEPT",1,"Réseau_TRENSEPT",1,"",9.8039215686274508E-3,"Total_TRENSEPT",1]
["2017-11-28","MTK",null,"Lakanal","ce1","VINGTNEUF",26,"In situ","Première lecture",null,null,"Elémentaire","Charpennes-Tonkin","TONKIN","TONKIN-VINGTNEUF",1,"Réseau_VINGTNEUF",1,"",9.8039215686274508E-3,"Total_VINGTNEUF",1]

{"sheet":"Bilans","index":3,"n_rows":106,"n_cols":28,"rows_kept":106,"cut":false,"hidden":false,"merged":[[27,11,29,11],[30,11,32,11],[33,11,35,11],[36,11,38,11],[39,11,41,11],[100,0,100,1],[43,3,43,4],[71,0,73,0],[89,0,91,0],[44,0,44,7],[43,1,43,2],[62,0,64,0],[65,0,67,0],[58,1,58,2],[58,3,58,4],[60,2,60,4],[60,5,60,7],[93,0,93,3],[46,1,56,1],[59,0,59,21],[60,14,60,18],[105,0,105,1],[68,0,70,0],[77,0,79,0],[80,0,82,0],[83,0,85,0],[86,0,88,0],[74,0,76,0],[104,0,104,1],[95,0,95,1],[96,0,96,1],[97,0,97,1],[101,0,101,1],[102,0,102,1],[98,0,98,1],[103,0,103,1],[99,0,99,1],[11,0,13,0],[14,0,16,0],[17,0,19,0],[27,0,29,0],[30,0,32,0],[20,0,22,0],[39,0,41,0],[60,11,60,13],[60,19,60,21],[60,8,60,10],[33,0,35,0],[36,0,38,0],[46,12,56,12]]}
["Type tableau","pl. Données","pl. Résultats","pl. TitresLig","pl. titresCol","Champ\nLig","Champ\nCol","Champ\nNbEleve","champ \nEnseignant",null,null,"https://www.commentcamarche.net/forum/affich-35499266-calculer-l-occurrence-de-deux-donnees-pas-somme#p35504763"]
[1,{"$f":"T_sept_dec[]","v":"RIZE MED"},{"$f":"C12:G23","v":{"$error":"#VALUE!"}},{"$f":"A12:A23","v":{"$error":"#VALUE!"}},{"$f":"C11:G11","v":"Ecole (Mat+Element)"},"reg_Sect","reg_Niv","Nombre enfants","Enseignant référent (Nom Prénom)"]
[1,{"$f":"T_sept_dec[]","v":"RIZE VALO"},{"$f":"C28:G42","v":{"$error":"#VALUE!"}},{"$f":"A28:A42","v":{"$error":"#VALUE!"}},{"$f":"C27:G27","v":"Ecole (Mat+Element)"},"reg_Sect","reg_Niv","Nombre enfants","Enseignant référent (Nom Prénom)"]
[1,{"$f":"T_sept_dec[]","v":"EMM"},{"$f":"C63:N92","v":{"$error":"#VALUE!"}},{"$f":"$A$63:$A$92","v":{"$error":"#VALUE!"}},{"$f":"C61:N61","v":0},"reg_Quart","reg_Niv","Nombre enfants","Enseignant référent (Nom Prénom)",null,"!!! 2 tableaux juxtaposés pour Bilan par quartier. Attention pl. titresCol ne sont pas sur la même ligne"]
[1,{"$f":"T_sept_dec[]","v":"RIZE MED"},{"$f":"O63:S92","v":{"$error":"#VALUE!"}},{"$f":"$A$63:$A$92","v":{"$error":"#VALUE!"}},{"$f":"O62:S62","v":{"$error":"#VALUE!"}},"reg_Quart","reg_Sect","Nombre enfants","Enseignant référent (Nom Prénom)",null,"!!! 2 tableaux juxtaposés pour Bilan par quartier. Attention pl. titresCol ne sont pas sur la même ligne"]
[]
[]
[]
[null,null,null,null,null,null,null,null,null,null,null,"Modèles à supprimer"]
["Bilan global sur l'année scolaire 2018/2019"]
[null,"Nb de","Maternelle","Elémentaire","Ecole (Mat+Element)","Collège","Lycée","Totaux"," Totaux avec clé",null,null,null,null,null,null,null,null,null,null,null,null,"Nb de","Maternelle","Elémentaire","Ecole (Mat+Element)","Collège","Lycée","Totaux"]
["Réseau des médiathèques","Classes accueillies",9,66,75,5,3,{"$f":"E12+F12+G12","v":83},{"$f":"SUMPRODUCT((LEFT(T_sept_dec[CléRéseau-Rize horsmed],2)=\"Ré\")*T_sept_dec[cptréseau-rizehormed])","v":83.000000000000028},null,null,null,null,null,null,null,null,null,null,null,null,"Classes accueillies",9,58,67,4,1,72]
[null,"Enfants accueillis",225,1501,1726,124,69,{"$f":"E13+F13+G13","v":1919},{"$f":"SUMPRODUCT((LEFT(T_sept_dec[CléRéseau-Rize horsmed],2)=\"Ré\")*T_sept_dec[cptréseau-rizehormed]*T_sept_dec[Nombre enfants])","v":1902.4761904761904},null,null,null,null,null,null,null,null,null,null,null,null,"Enfants accueillis",225,1304,1529,104,28,1661]
[null,"Accueils de classe effectués",9,76,85,16,5,{"$f":"E14+F14+G14","v":106},{"$f":"COUNTIF(Données!B:B,\"ARTO\")+COUNTIF(Données!B:B,\"EMM\")+COUNTIF(Données!B:B,\"MLIS A\")+COUNTIF(Données!B:B,\"MLIS DV\")+COUNTIF(Données!B:B,\"MLIS J\")+COUNTIF(Données!B:B,\"MTK\")+COUNTIF(Données!B:B,\"PAC-BUS\")+COUNTIF(Données!B:B,\"RIZE MED\")","v":106},null,null,null,null,null,null,null,null,null,null,null,null,"Accueils de classe effectués",9,62,71,14,3,88]
["Accueils menés seulement par le Rize (hors médiathèque)","Classes accueillies",null,11,11,3,1,{"$f":"E15+F15+G15","v":15},{"$f":"SUMPRODUCT((LEFT(T_sept_dec[CléRéseau-Rize horsmed],2)=\"Ri\")*T_sept_dec[cptréseau-rizehormed])","v":15},null,null,null,null,null,null,null,null,null,null,null,null,"Classes accueillies",null,11,11,3,1,15]
[null,"Enfants accueillis",null,269,269,76,15,{"$f":"E16+F16+G16","v":360},{"$f":"SUMPRODUCT((LEFT(T_sept_dec[CléRéseau-Rize horsmed],2)=\"Ri\")*T_sept_dec[cptréseau-rizehormed]*T_sept_dec[Nombre enfants])","v":360},null,null,null,null,null,null,null,null,null,null,null,null,"Enfants accueillis",null,269,269,76,15,360]
[null,"Accueils de classe effectués",null,12,12,3,1,{"$f":"E17+F17+G17","v":16},{"$f":"COUNTIF(Données!B:B,\"RIZE ARCHI\")+COUNTIF(Données!B:B,\"RIZE VALO\")","v":16},null,null,null,null,null,null,null,null,null,null,null,null,"Accueils de classe effectués",null,12,12,3,1,16]
["FDL","Classes accueillies",null,8,8,null,null,8,{"$f":"SUMIF(T_sept_dec[Secteur organisateur],\"FDL\",T_sept_dec[cptEtablissement])","v":8},null,null,null,null,null,null,null,null,null,null,null,null,"Classes accueillies",null,null,null,null,null,0]
[null,"Enfants accueillis",null,189,189,null,null,189,{"$f":"SUMPRODUCT((T_sept_dec[Secteur organisateur]=\"FDL\")*T_sept_dec[Nombre enfants]*T_sept_dec[cptEtablissement])","v":189.00000000000003},null,null,null,null,null,null,null,null,null,null,null,null,"Enfants accueillis",null,null,null,null,null,0]
[null,"Accueils de classe effectués",null,20,20,null,null,20,{"$f":"COUNTIF(Données!B:B,\"FDL\")","v":20},null,null,null,null,null,null,null,null,null,null,null,null,"Accueils de classe effectués",null,null,null,null,null,0]
["TOTAL (méd, RIZE, FDL)","Classes accueillies",9,82,91,8,4,{"$f":"E21+F21+G21","v":103},{"$f":"SUMPRODUCT((LEFT(T_sept_dec[cléTotal],2)=\"To\")*T_sept_dec[cptTotal])","v":103.00000000000004},null,null,null,null,null,null,null,null,null,null,null,null,"Classes accueillies",9,69,78,7,2,87]
[null,"Enfants accueillis",225,1886,2111,200,84,{"$f":"E22+F22+G22","v":2395},{"$f":"SUMPRODUCT((LEFT(T_sept_dec[cléTotal],2)=\"To\")*T_sept_dec[cptTotal]*T_sept_dec[Nombre enfants])","v":2377.6428571428573},null,null,null,null,null,null,null,null,null,null,null,null,"Enfants accueillis",225,1573,1798,180,43,2021]
[null,"Accueils de classe effectués",9,108,117,19,6,{"$f":"E23+F23+G23","v":142},{"$f":"I14+I17+I20","v":142},null,null,null,null,null,null,null,null,null,null,null,null,"Accueils de classe effectués",9,108,117,17,4,138]
[]
[]
["Bilan par établissement sur l'année scolaire",null,null,null,null,null,null,null,null,null,null,"Bilan par établissement sur l'année scolaire"]
[null,"Nb de","Maternelle","Elémentaire","Ecole (Mat+Element)","Collège","Lycée","Totaux","Totaux avec clé",null,null,null,"Nb de","Maternelle","Elémentaire","Ecole (Mat+Element)","Collège","Lycée","Totaux","Totaux avec clé"]
["MLIS","Classes accueillies",1,40,41,3,2,{"$f":"E28+F28+G28","v":46},{"$f":"SUMPRODUCT((LEFT(T_sept_dec[CléEtablissement],2)=\"ML\")*T_sept_dec[cptEtablissement])","v":46},null,null,"MLIS","Classes accueillies",1,40,41,3,2,46,46]
[null,"Enfants accueillis",31,892,923,74,41,{"$f":"E29+F29+G29","v":1038},{"$f":"SUMPRODUCT((LEFT(T_sept_dec[CléEtablissement],2)=\"ML\")*T_sept_dec[cptEtablissement]*T_sept_dec[Nombre enfants])","v":1033.5},null,null,null,"Enfants accueillis",31,891,922,71,41,1034,1033.5]
[null,"Accueils de classe effectués",1,47,48,7,2,57,{"$f":"COUNTIF(Données!B:B,\"ARTO\")+COUNTIF(Données!B:B,\"EMM\")+COUNTIF(Données!B:B,\"MLIS A\")+COUNTIF(Données!B:B,\"MLIS DV\")+COUNTIF(Données!B:B,\"MLIS J\")","v":57},null,null,null,"Accueils de classe effectués",1,47,48,7,2,57,0]
["RIZE","Classes accueillies",3,19,22,5,2,29,{"$f":"SUMPRODUCT((LEFT(T_sept_dec[CléEtablissement],2)=\"RI\")*T_sept_dec[cptEtablissement])","v":28.999999999999993},null,null,"RIZE","Classes accueillies",3,19,22,5,2,29,28.999999999999993]
[null,"Enfants accueillis",69,448,517,126,43,{"$f":"E32+F32+G32","v":686},{"$f":"SUMPRODUCT((LEFT(T_sept_dec[CléEtablissement],2)=\"RI\")*T_sept_dec[cptEtablissement]*T_sept_dec[Nombre enfants])","v":675.47619047619048},"devrait être 686 (en prenant l'effectif le plus grand d'une classe venue 3 fois).",null,null,"Enfants accueillis",69,448,517,124,30,671,675.47619047619048]
[null,"Accueils de classe effectués",3,21,24,12,4,40,{"$f":"COUNTIF(Données!B:B,\"RIZE ARCHI\")+COUNTIF(Données!B:B,\"RIZE MED\")+COUNTIF(Données!B:B,\"RIZE VALO\")","v":40},null,null,null,"Accueils de classe effectués",3,21,24,12,4,40,0]
["TONKIN","Classes accueillies",1,14,15,null,null,{"$f":"E34+F34+G34","v":15},{"$f":"SUMIF(T_sept_dec[Secteur organisateur],\"MTK\",T_sept_dec[cptEtablissement])","v":15},null,null,"TONKIN","Classes accueillies",1,14,15,null,null,15,15]
[null,"Enfants accueillis",24,344,368,null,null,{"$f":"E35+F35+G35","v":368},{"$f":"SUMPRODUCT((T_sept_dec[Secteur organisateur]=\"MTK\")*T_sept_dec[Nombre enfants]*T_sept_dec[cptEtablissement])","v":368},null,null,null,"Enfants accueillis",24,346,370,null,null,370,368]
[null,"Accueils de classe effectués",1,14,15,null,null,15,{"$f":"COUNTIF(Données!B:B,\"MTK\")","v":15},null,null,null,"Accueils de classe effectués",1,14,15,null,null,15,0]
["PAC-BUS","Classes accueillies",4,6,10,null,null,10,{"$f":"SUMIF(T_sept_dec[Secteur organisateur],\"PAC-BUS\",T_sept_dec[cptEtablissement])","v":10},null,null,"PAC-BUS","Classes accueillies",4,6,10,null,null,10,10]
[null,"Enfants accueillis",101,138,239,null,null,239,{"$f":"SUMPRODUCT((T_sept_dec[Secteur organisateur]=\"PAC-BUS\")*T_sept_dec[Nombre enfants]*T_sept_dec[cptEtablissement])","v":239},null,null,null,"Enfants accueillis",101,138,239,null,null,239,239]
[null,"Accueils de classe effectués",4,6,10,null,null,10,{"$f":"COUNTIF(Données!B:B,\"PAC-BUS\")","v":10},null,null,null,"Accueils de classe effectués",4,6,10,null,null,10,0]
["FDL","Classes accueillies",null,8,8,null,null,8,{"$f":"SUMIF(T_sept_dec[Secteur organisateur],\"FDL\",T_sept_dec[cptEtablissement])","v":8},null,null,"FDL","Classes accueillies",null,8,8,null,null,8,8]
[null,"Enfants accueillis",null,189,189,null,null,189,{"$f":"SUMPRODUCT((T_sept_dec[Secteur organisateur]=\"FDL\")*T_sept_dec[Nombre enfants]*T_sept_dec[cptEtablissement])","v":189.00000000000003},null,null,null,"Enfants accueillis",null,190,190,null,null,190,189.00000000000003]
[null,"Accueils de classe effectués",null,20,20,null,null,20,{"$f":"COUNTIF(Données!B:B,\"FDL\")","v":20},null,null,null,"Accueils de classe effectués",null,20,20,null,null,20,0]
[]
[]
["Bilan par secteur sur l'année scolaire"]
[null,null,"Maternelle","Elémentaire","Ecole (Mat+Element)","Collège","Lycée","Totaux",null,null,null,null,null,"Maternelle","Elémentaire","Ecole (Mat+Element)","Collège","Lycée","Totaux"]
["MLIS A","Nombre d'accueils de classe effectués",{"$f":"COUNTIFS(Données!B:B,\"MLIS A\",Données!L:L,\"Maternelle\")+COUNTIFS(Données!C:C,\"MLIS A\",Données!L:L,\"Maternelle\")","v":0},{"$f":"COUNTIFS(Données!B:B,\"MLIS A\",Données!L:L,\"Elémentaire\")+COUNTIFS(Données!C:C,\"MLIS A\",Données!L:L,\"Elémentaire\")","v":0},{"$f":"C47+D47","v":0},{"$f":"COUNTIFS(Données!B:B,\"MLIS A\",Données!L:L,\"Collège\")+COUNTIFS(Données!C:C,\"MLIS A\",Données!L:L,\"Collège\")","v":0},{"$f":"COUNTIFS(Données!B:B,\"MLIS A\",Données!L:L,\"Lycée\")+COUNTIFS(Données!C:C,\"MLIS A\",Données!L:L,\"Lycée\")","v":2},{"$f":"E47+F47+G47","v":2},null,null,null,"MLIS A","Nombre d'accueils de classe effectués",0,0,0,0,2,2]
["MLIS DV",null,{"$f":"COUNTIFS(Données!B:B,\"MLIS DV\",Données!L:L,\"Maternelle\")+COUNTIFS(Données!C:C,\"MLIS DV\",Données!L:L,\"Maternelle\")","v":0},{"$f":"COUNTIFS(Données!B:B,\"MLIS DV\",Données!L:L,\"Elémentaire\")+COUNTIFS(Données!C:C,\"MLIS DV\",Données!L:L,\"Elémentaire\")","v":0},{"$f":"C48+D48","v":0},{"$f":"COUNTIFS(Données!B:B,\"MLIS DV\",Données!L:L,\"Collège\")+COUNTIFS(Données!C:C,\"MLIS DV\",Données!L:L,\"Collège\")","v":0},{"$f":"COUNTIFS(Données!B:B,\"MLIS DV\",Données!L:L,\"Lycée\")+COUNTIFS(Données!C:C,\"MLIS DV\",Données!L:L,\"Lycée\")","v":0},{"$f":"E48+F48+G48","v":0},null,null,null,"MLIS DV",null,0,0,0,0,0,0]
["EMM",null,{"$f":"COUNTIFS(Données!B:B,\"EMM\",Données!L:L,\"Maternelle\")+COUNTIFS(Données!C:C,\"EMM\",Données!L:L,\"Maternelle\")","v":0},{"$f":"COUNTIFS(Données!B:B,\"EMM\",Données!L:L,\"Elémentaire\")+COUNTIFS(Données!C:C,\"EMM\",Données!L:L,\"Elémentaire\")","v":9},9,{"$f":"COUNTIFS(Données!B:B,\"EMM\",Données!L:L,\"Collège\")+COUNTIFS(Données!C:C,\"EMM\",Données!L:L,\"Collège\")","v":1},{"$f":"COUNTIFS(Données!B:B,\"EMM\",Données!L:L,\"Lycée\")+COUNTIFS(Données!C:C,\"EMM\",Données!L:L,\"Lycée\")","v":0},10,null,null,null,"EMM",null,0,9,9,1,0,10]
["MLIS J",null,{"$f":"COUNTIFS(Données!B:B,\"MLIS J\",Données!L:L,\"Maternelle\")+COUNTIFS(Données!C:C,\"MLIS J\",Données!L:L,\"Maternelle\")","v":1},{"$f":"COUNTIFS(Données!B:B,\"MLIS J\",Données!L:L,\"Elémentaire\")+COUNTIFS(Données!C:C,\"MLIS J\",Données!L:L,\"Elémentaire\")","v":24},25,{"$f":"COUNTIFS(Données!B:B,\"MLIS J\",Données!L:L,\"Collège\")+COUNTIFS(Données!C:C,\"MLIS J\",Données!L:L,\"Collège\")","v":6},{"$f":"COUNTIFS(Données!B:B,\"MLIS J\",Données!L:L,\"Lycée\")+COUNTIFS(Données!C:C,\"MLIS J\",Données!L:L,\"Lycée\")","v":0},31,null,null,null,"MLIS J",null,1,24,25,6,0,31]
["ARTO",null,{"$f":"COUNTIFS(Données!B:B,\"ARTO\",Données!L:L,\"Maternelle\")+COUNTIFS(Données!C:C,\"ARTO\",Données!L:L,\"Maternelle\")","v":0},{"$f":"COUNTIFS(Données!B:B,\"ARTO\",Données!L:L,\"Elémentaire\")+COUNTIFS(Données!C:C,\"ARTO\",Données!L:L,\"Elémentaire\")","v":14},14,{"$f":"COUNTIFS(Données!B:B,\"ARTO\",Données!L:L,\"Collège\")+COUNTIFS(Données!C:C,\"ARTO\",Données!L:L,\"Collège\")","v":0},{"$f":"COUNTIFS(Données!B:B,\"ARTO\",Données!L:L,\"Lycée\")+COUNTIFS(Données!C:C,\"ARTO\",Données!L:L,\"Lycée\")","v":0},14,null,null,null,"ARTO",null,0,14,14,0,0,14]
["RIZE ARCHI",null,{"$f":"COUNTIFS(Données!B:B,\"RIZE ARCHI\",Données!L:L,\"Maternelle\")+COUNTIFS(Données!C:C,\"RIZE ARCHI\",Données!L:L,\"Maternelle\")","v":0},{"$f":"COUNTIFS(Données!B:B,\"RIZE ARCHI\",Données!L:L,\"Elémentaire\")+COUNTIFS(Données!C:C,\"RIZE ARCHI\",Données!L:L,\"Elémentaire\")","v":0},0,{"$f":"COUNTIFS(Données!B:B,\"RIZE ARCHI\",Données!L:L,\"Collège\")+COUNTIFS(Données!C:C,\"RIZE ARCHI\",Données!L:L,\"Collège\")","v":0},{"$f":"COUNTIFS(Données!B:B,\"RIZE ARCHI\",Données!L:L,\"Lycée\")+COUNTIFS(Données!C:C,\"RIZE ARCHI\",Données!L:L,\"Lycée\")","v":0},0,null,null,null,"RIZE ARCHI",null,0,0,0,0,0,0]
["RIZE MED",null,{"$f":"COUNTIFS(Données!B:B,\"RIZE MED\",Données!L:L,\"Maternelle\")","v":3},{"$f":"COUNTIFS(Données!B:B,\"RIZE MED\",Données!L:L,\"Elémentaire\")","v":9},12,{"$f":"COUNTIFS(Données!B:B,\"RIZE MED\",Données!L:L,\"Collège\")","v":9},{"$f":"COUNTIFS(Données!B:B,\"RIZE MED\",Données!L:L,\"Lycée\")","v":3},24,null,null,null,"RIZE MED",null,3,9,12,9,3,24]
["RIZE VALO",null,{"$f":"COUNTIFS(Données!B:B,\"RIZE VALO\",Données!L:L,\"Maternelle\")+COUNTIFS(Données!C:C,\"RIZE VALO\",Données!L:L,\"Maternelle\")","v":0},{"$f":"COUNTIFS(Données!B:B,\"RIZE VALO\",Données!L:L,\"Elémentaire\")+COUNTIFS(Données!C:C,\"RIZE VALO\",Données!L:L,\"Elémentaire\")","v":12},12,{"$f":"COUNTIFS(Données!B:B,\"RIZE VALO\",Données!L:L,\"Collège\")+COUNTIFS(Données!C:C,\"RIZE VALO\",Données!L:L,\"Collège\")","v":3},{"$f":"COUNTIFS(Données!B:B,\"RIZE VALO\",Données!L:L,\"Lycée\")+COUNTIFS(Données!C:C,\"RIZE VALO\",Données!L:L,\"Lycée\")","v":1},16,null,null,null,"RIZE VALO",null,0,12,12,3,1,16]
["TONKIN",null,{"$f":"COUNTIFS(Données!B:B,\"MTK\",Données!L:L,\"Maternelle\")","v":1},{"$f":"COUNTIFS(Données!B:B,\"MTK\",Données!L:L,\"Elémentaire\")","v":14},15,{"$f":"COUNTIFS(Données!B:B,\"MTK\",Données!L:L,\"Collège\")","v":0},{"$f":"COUNTIFS(Données!B:B,\"MTK\",Données!L:L,\"Lycée\")","v":0},15,null,null,null,"TONKIN",null,1,14,15,0,0,15]
["PAC-BUS",null,{"$f":"COUNTIFS(Données!B:B,\"PAC-BUS\",Données!L:L,\"Maternelle\")","v":4},{"$f":"COUNTIFS(Données!B:B,\"PAC-BUS\",Données!L:L,\"Elémentaire\")","v":6},10,{"$f":"COUNTIFS(Données!B:B,\"PAC-BUS\",Données!L:L,\"Collège\")","v":0},{"$f":"COUNTIFS(Données!B:B,\"PAC-BUS\",Données!L:L,\"Lycée\")","v":0},10,null,null,null,"PAC-BUS",null,4,6,10,0,0,10]
["FDL",null,{"$f":"COUNTIFS(Données!B:B,\"FDL\",Données!L:L,\"Maternelle\")","v":0},{"$f":"COUNTIFS(Données!B:B,\"FDL\",Données!L:L,\"Elémentaire\")","v":20},{"$f":"C57+D57","v":20},{"$f":"COUNTIFS(Données!B:B,\"FDL\",Données!L:L,\"Collège\")","v":0},{"$f":"COUNTIFS(Données!B:B,\"FDL\",Données!L:L,\"Lycée\")","v":0},20,null,null,null,"FDL",null,0,20,20,0,0,20]
[]
[]
["Bilan par quartier sur l'année scolaire"]
[null,null,"Maternelle",null,null,"Elémentaire",null,null,"Collège",null,null,"Lycée",null,null,"Accueillie par",null,null,null,null,"Totaux"]
[null,"Nb de","Nb accueilli","Sur","%","Nb accueilli","Sur","%","Nb accueilli","Sur","%","Nb accueilli","Sur","%","FDL","MLIS","RIZE","PAC-BUS","TONKIN","Total","Sur","%"]
["Buers-Croix-Luizet","Classes accueillies",null,null,null,6,null,null,1,null,null,null,null,null,null,6,1,null,null,{"$f":"C63+F63+I63+L63","v":7},null,{"$f":"T63/U63","v":{"$error":"#DIV/0!"}}]
[null,"Enfants accueillis",null,null,null,134,null,null,29,null,null,null,null,null,null,136,27,null,null,{"$f":"C64+F64+I64+L64","v":163},null,{"$f":"T64/U64","v":{"$error":"#DIV/0!"}}]
[null,"Accueils de classe effectués",null,null,null,7,null,null,3,null,null,null,null,null,null,8,2,null,null,{"$f":"SUM(O65:S65)","v":10},"/","/"]
["Charpennes-Tonkin","Classes accueillies",1,null,null,12,null,null,null,null,null,null,null,null,null,2,null,null,12,{"$f":"C66+F66+I66+L66","v":13},null,{"$error":"#DIV/0!"}]
[null,"Enfants accueillis",24,null,null,304,null,null,null,null,null,null,null,null,null,59,null,null,298,{"$f":"C67+F67+I67+L67","v":328},null,{"$error":"#DIV/0!"}]
[null,"Accueils de classe effectués",1,null,null,13,null,null,null,null,null,null,null,null,null,2,null,null,12,{"$f":"SUM(O68:S68)","v":14},"/","/"]
["Cusset-Bonnevay","Classes accueillies",null,null,null,5,null,null,1,null,null,2,null,null,null,7,1,null,null,{"$f":"C69+F69+I69+L69","v":8},null,{"$error":"#DIV/0!"}]
[null,"Enfants accueillis",null,null,null,106,null,null,20,null,null,26,null,null,null,137,15,null,null,{"$f":"C70+F70+I70+L70","v":152},null,{"$error":"#DIV/0!"}]
[null,"Accueils de classe effectués",null,null,null,5,null,null,2,null,null,2,null,null,null,8,1,null,null,{"$f":"SUM(O71:S71)","v":9},"/","/"]
["Cyprian-les-Brosses","Classes accueillies",4,null,null,20,null,null,null,null,null,null,null,null,8,11,1,7,null,{"$f":"C72+F72+I72+L72","v":24},null,{"$error":"#DIV/0!"}]
[null,"Enfants accueillis",101,null,null,470,null,null,null,null,null,null,null,null,189,257,23,175,null,{"$f":"C73+F73+I73+L73","v":571},null,{"$error":"#DIV/0!"}]
[null,"Accueils de classe effectués",4,null,null,41,null,null,null,null,null,null,null,null,20,17,1,7,null,{"$f":"SUM(O74:S74)","v":45},"/","/"]
["Ferrandière-Maisons Neuves","Classes accueillies",3,null,null,5,null,null,3,null,null,null,null,null,null,null,11,null,null,{"$f":"C75+F75+I75+L75","v":11},null,{"$error":"#DIV/0!"}]
[null,"Enfants accueillis",69,null,null,120,null,null,78,null,null,null,null,null,null,null,267,null,null,{"$f":"C76+F76+I76+L76","v":267},null,{"$error":"#DIV/0!"}]
[null,"Accueils de classe effectués",3,null,null,6,null,null,10,null,null,null,null,null,null,null,19,null,null,{"$f":"SUM(O77:S77)","v":19},"/","/"]
["Gratte-ciel-Dedieu-Charmettes","Classes accueillies",1,null,null,24,null,null,1,null,null,1,null,null,null,16,9,null,2,{"$f":"C78+F78+I78+L78","v":27},null,{"$error":"#DIV/0!"}]
[null,"Enfants accueillis",31,null,null,572,null,null,25,null,null,30,null,null,null,386,225,null,47,{"$f":"C79+F79+I79+L79","v":658},null,{"$error":"#DIV/0!"}]
[null,"Accueils de classe effectués",1,null,null,24,null,null,2,null,null,1,null,null,null,17,9,null,2,{"$f":"SUM(O80:S80)","v":28},"/","/"]
["Perralière-Grandclément","Classes accueillies",null,null,null,6,null,null,null,null,null,1,null,null,null,3,4,null,null,{"$f":"C81+F81+I81+L81","v":7},null,{"$error":"#DIV/0!"}]
[null,"Enfants accueillis",null,null,null,91,null,null,null,null,null,28,null,null,null,38,81,null,null,{"$f":"C82+F82+I82+L82","v":119},null,{"$error":"#DIV/0!"}]
[null,"Accueils de classe effectués",null,null,null,7,null,null,null,null,null,3,null,null,null,4,6,null,null,{"$f":"SUM(O83:S83)","v":10}]
["Saint Jean","Classes accueillies",null,null,null,4,null,null,null,null,null,null,null,null,null,1,null,3,1,{"$f":"C84+F84+I84+L84","v":4},null,{"$error":"#DIV/0!"}]
[null,"Enfants accueillis",null,null,null,89,null,null,null,null,null,null,null,null,null,25,null,64,23,{"$f":"C85+F85+I85+L85","v":89},null,{"$error":"#DIV/0!"}]
[null,"Accueils de classe effectués",null,null,null,5,null,null,null,null,null,null,null,null,null,1,null,3,1,{"$f":"SUM(O86:S86)","v":5},"/","/"]
["Hors Villeurbanne","Classes accueillies",null,null,null,null,null,null,2,null,null,null,null,null,null,null,2,null,null,{"$f":"C87+F87+I87+L87","v":2},null,{"$error":"#DIV/0!"}]
[null,"Enfants accueillis",null,null,null,null,null,null,48,null,null,null,null,null,null,null,48,null,null,{"$f":"C88+F88+I88+L88","v":48},null,{"$error":"#DIV/0!"}]
[null,"Accueils de classe effectués",null,null,null,null,null,null,2,null,null,null,null,null,null,null,2,null,null,{"$f":"SUM(O89:S89)","v":2},"/","/"]
["Totaux","Classes accueillies",9,null,null,82,null,null,8,null,null,4,null,null,8,46,29,10,15,{"$f":"T63+T66+T69+T72+T75+T78+T81+T84+T87","v":103},null,{"$f":"T90/U90","v":{"$error":"#DIV/0!"}}]
[null,"Enfants accueillis",225,null,null,1886,null,null,200,null,null,84,null,null,189,1038,686,239,368,{"$f":"T64+T67+T70+T73+T76+T79+T82+T85+T88","v":2395},null,{"$error":"#DIV/0!"}]
[null,"Accueils de classe effectués",9,null,null,108,null,null,19,null,null,6,null,null,20,57,40,10,15,{"$f":"T65+T68+T71+T74+T77+T80+T83+T86+T89","v":142},"/","/"]
[]
["Nombre d'accueils de classe in situ/hors les murs"]
[null,null,"In situ","Hors les murs"]
["MLIS",null,{"$f":"SUM(C97:C101)","v":57},{"$f":"SUM(D97:D101)","v":0}]
["Secteur jeunesse",null,{"$f":"COUNTIFS(Données!B:B,\"MLIS j\",Données!H:H,\"In situ\")","v":31},{"$f":"COUNTIFS(Données!B:B,\"MLIS j\",Données!H:H,\"Hors les murs\")","v":0}]
["Artothèque",null,{"$f":"COUNTIFS(Données!B:B,\"ARTO\",Données!H:H,\"In situ\")","v":14},{"$f":"COUNTIFS(Données!B:B,\"Arto\",Données!H:H,\"Hors les murs\")","v":0}]
["Discothèque-vidéothèque",null,{"$f":"COUNTIFS(Données!B:B,\"MLIS DV\",Données!H:H,\"In situ\")","v":0},{"$f":"COUNTIFS(Données!B:B,\"MLIS DV\",Données!H:H,\"Hors les murs\")","v":0}]
["Espace multimédia",null,{"$f":"COUNTIFS(Données!B:B,\"EMM\",Données!H:H,\"In situ\")","v":10},{"$f":"COUNTIFS(Données!B:B,\"EMM\",Données!H:H,\"Hors les murs\")","v":0}]
["Secteur adultes",null,{"$f":"COUNTIFS(Données!B:B,\"mlis A\",Données!H:H,\"In situ\")","v":2},{"$f":"COUNTIFS(Données!B:B,\"mlis A\",Données!H:H,\"Hors les murs\")","v":0}]
["TONKIN",null,{"$f":"COUNTIFS(Données!B:B,\"MTK\",Données!H:H,\"In situ\")","v":15},{"$f":"COUNTIFS(Données!B:B,\"MTK\",Données!H:H,\"Hors les murs\")","v":0}]
["Rize",null,{"$f":"COUNTIFS(Données!N:N,\"Rize\",Données!H:H,\"In situ\")","v":29},{"$f":"COUNTIFS(Données!N:N,\"Rize\",Données!H:H,\"Hors les murs\")","v":11}]
["PAC - Bibliobus",null,{"$f":"COUNTIFS(Données!B:B,\"PAC-BUS\",Données!H:H,\"In situ\")","v":0},{"$f":"COUNTIFS(Données!B:B,\"PAC-BUS\",Données!H:H,\"Hors les murs\")","v":10}]
["FDL",null,{"$f":"COUNTIFS(Données!B:B,\"FDL\",Données!H:H,\"In situ\")","v":20},{"$f":"COUNTIFS(Données!B:B,\"FDL\",Données!H:H,\"Hors les murs\")","v":0}]
["Nb d'accueils total",null,{"$f":"C96+C102+C103+C104+C105","v":121},{"$f":"D96+D102+D103+D104+D105","v":21}]

{"sheet":"listes","index":4,"n_rows":52,"n_cols":23,"rows_kept":52,"cut":false,"hidden":false,"merged":[]}
["Niveau classe","Secteur organisateur","Réseau","Rizehorsmed","Type de visite","Etablissement scolaire","In situ / hors les murs","Classe accueillie pour la…fois","Quartiers","Buers-Croix-Luizet","Charpennes-Tonkin","Cusset-Bonnevay","Cyprian-les-Brosses","Ferrandière-Maisons Neuves","Gratte-ciel-Dedieu-Charmettes","Perralière-Grandclément","Saint Jean","Hors Villeurbanne","Niveaux classe","Maternelle","Elémentaire","Collège","Lycée"]
["autres (maternelle)","FDL","ARTO","RIZE ARCHI","Album","Hors Villeurbanne","In situ",1,null,"Collège Jean Macé","Tonkin/Nigritelle","Ernest Renan A","Albert Camus","Antonin Perrin","Anatole France","Berthelot","Saint Exupéry","Hors Villeurbanne",null,"autres (maternelle)","autres (élémentaire)","autres (collège)","autres (lycée)"]
["autres (élémentaire)","ARTO","EMM","RIZE VALO","Autour de la musique","Albert Camus","Hors les murs",2,null,"Croix-Luizet","Descartes","Ernest Renan B","Jules Guesde","Jean Jaurès (primaire)","Edouard Herriot","Louis Pasteur","Collège Jean-Vilar",null,null,"tps","cp","6°","2°"]
["autres (collège)","EMM","MLIS A",null,"Autour du cinéma","Anatole France",null,3,null,"Jean Moulin","François Truffaut","Jules Ferry","Simone Veil","Collège Jean Jaurès","Emile Zola","René Pellet (déficients visuels)","Collège Simone Lagrange",null,null,"ps","cp/ce1","5°","2° pro"]
["autres (lycée)","MLIS A","MLIS DV",null,"Arrêt Bibliobus","Antonin Perrin",null,4,null,"Château-Gaillard","Lakanal","Lazare Goujon","Collège Lamartine","Collège Louis Jouvet","Jacques Prévert","La Nativité (privé)",null,null,null,"ps/ms","ce1","4°","1°"]
["tps","MLIS DV","MLIS J",null,"Ateliers","Berthelot",null,5,null,null,"Louis Armand","Lycée Frédéric Faÿs","Lycée Alfred de Musset",null,"Jean Zay","Immaculée conception (privé)",null,null,null,"ps/gs","ce1/ce2","3°","1° pro"]
["ps","MLIS J","MTK",null,"Autre","Beth Menahem (privé)",null,6,null,null,"Mère Teresa (privé)","Beth Menahem (privé)",null,null,"Léon Jouhaux","Lycée Marie Curie",null,null,null,"ms","ce2","ULIS (collège)","Tle"]
["ps/ms","MTK","PAC-BUS",null,"Coder avec Scratch","Château-Gaillard",null,7,null,null,"Ecole Horizons (privé)","Collège des Iris",null,null,"Rosa Parks",null,null,null,null,"ms/gs","ce2/cm1",null,"Tle pro"]
["ps/gs","PAC-BUS","RIZE MED",null,"Conte","Croix-Luizet",null,8,null,null,"Collège du Tonkin",null,null,null,"Ste Thérèse (privé)",null,null,null,null,"gs","cm1",null,"ULIS (lycée)"]
["ms","RIZE ARCHI",null,null,"De la littérature au cinéma","Descartes",null,9,null,null,null,null,null,null,"Ecole juive de Lyon (privé)",null,null,null,null,null,"cm1/cm2"]
["ms/gs","RIZE MED",null,null,"Diptyque","Ecole Horizons (privé)",null,10,null,null,null,null,null,null,"Collège des Gratte-Ciel (Môrice Leroux)",null,null,null,null,null,"cm2"]
["gs","RIZE VALO",null,null,"Double jeu","Ecole juive de Lyon (privé)",null,11,null,null,null,null,null,null,"Lycée Pierre Brossolette",null,null,null,null,null,"ULIS (école)"]
["cp",null,null,null,"Et si on parlait d'art ?","Edouard Herriot",null,12,null,null,null,null,null,null,"Lycée Magenta"]
["cp/ce1",null,null,null,"Exploration Gratte-Ciel","Emile Zola",null,13,null,null,null,null,null,null,"Montessori (privé)"]
["ce1",null,null,null,"Exploration sensorielle","Ernest Renan A",null,14]
["ce1/ce2",null,null,null,"Exploration urbaine","Ernest Renan B",null,15]
["ce2",null,null,null,"Exposition","François Truffaut",null,16]
["ce2/cm1",null,null,null,"Il était une fois l'art contemporain","Immaculée conception (privé)"]
["cm1",null,null,null,"Image & son,  passages","Jacques Prévert"]
["cm1/cm2",null,null,null,"La maison des livres","Jean Jaurès (primaire)"]
["cm2",null,null,null,"Première lecture","Jean Moulin"]
["ULIS (école)",null,null,null,"Projet FDL","Jean Zay"]
["UP2A (élémentaire)",null,null,null,"Recherche documentaire","Jules Ferry"]
["6°",null,null,null,"Recherche multimédias","Jules Guesde"]
["5°",null,null,null,"Résidence FDL","La Nativité (privé)"]
["4°",null,null,null,"Spectacle","Lakanal"]
["3°",null,null,null,"Stop motion","Lazare Goujon"]
["ULIS (collège)",null,null,null,"Tapis à conter","Léon Jouhaux"]
["UP2A (collège)",null,null,null,"Visite à la carte","Louis Armand"]
["2°",null,null,null,"Visite découverte","Louis Pasteur"]
["2° pro",null,null,null,"Visite thématique","Mère Teresa (privé)"]
["1°",null,null,null,"Visite couplée","Montessori (privé)"]
["1° pro",null,null,null,"Visite médiathèque","René Pellet (déficients visuels)"]
["Tle",null,null,null,"Visite poésie","Rosa Parks"]
["Tle pro",null,null,null,null,"Saint Exupéry"]
["ULIS (lycée)",null,null,null,null,"Simone Veil"]
[null,null,null,null,null,"Ste Thérèse (privé)"]
[null,null,null,null,null,"Tonkin/Nigritelle"]
[null,null,null,null,null,"Collège des Gratte-Ciel (Môrice Leroux)"]
[null,null,null,null,null,"Collège des Iris"]
[null,null,null,null,null,"Collège du Tonkin"]
[null,null,null,null,null,"Collège Jean Jaurès"]
[null,null,null,null,null,"Collège Jean Macé"]
[null,null,null,null,null,"Collège Jean-Vilar"]
[null,null,null,null,null,"Collège Lamartine"]
[null,null,null,null,null,"Collège Louis Jouvet"]
[null,null,null,null,null,"Collège Simone Lagrange"]
[null,null,null,null,null,"Lycée Alfred de Musset"]
[null,null,null,null,null,"Lycée Frédéric Faÿs"]
[null,null,null,null,null,"Lycée Marie Curie"]
[null,null,null,null,null,"Lycée Pierre Brossolette"]
[null,null,null,null,null,"Lycée Magenta"]

{"sheet":"Regroupements","index":5,"n_rows":54,"n_cols":21,"rows_kept":54,"cut":false,"hidden":false,"merged":[]}
["nom regroupement","reg_Sect",null,null,null,null,null,null,null,null,null,null,"reg_Niv",null,null,null,null,null,null,"reg_Quart"]
[]
[null,"Secteur organisateur","Réseau des médiathèques","Accueils menés seulement par le Rize (hors médiathèque)","FDL","MLIS","RIZE","TONKIN","PAC-BUS","FDL",null,null,"Niveau de classe","Maternelle","Elémentaire","Ecole (Mat+Element)","Collège","Lycée",null,"Etablissement scolaire","Quartier"]
[null,"FDL",null,null,"x",null,null,null,null,"x",null,null,"autres (maternelle)","x",null,"x",null,null,null,"Hors Villeurbanne","Hors Villeurbanne"]
[null,"ARTO","x",null,null,"x",null,null,null,null,null,null,"autres (élémentaire)",null,"x","x",null,null,null,"Albert Camus","Cyprian-les-Brosses"]
[null,"EMM","x",null,null,"x",null,null,null,null,null,null,"autres (collège)",null,null,null,"x",null,null,"Anatole France","Gratte-ciel-Dedieu-Charmettes"]
[null,"MLIS A","x",null,null,"x",null,null,null,null,null,null,"autres (lycée)",null,null,null,null,"x",null,"Antonin Perrin","Ferrandière-Maisons Neuves"]
[null,"MLIS DV","x",null,null,"x",null,null,null,null,null,null,"tps","x",null,"x",null,null,null,"Berthelot","Perralière-Grandclément"]
[null,"MLIS J","x",null,null,"x",null,null,null,null,null,null,"ps","x",null,"x",null,null,null,"Beth Menahem (privé)","Cusset-Bonnevay"]
[null,"MTK","x",null,null,null,null,"x",null,null,null,null,"ps/ms","x",null,"x",null,null,null,"Château-Gaillard","Buers-Croix-Luizet"]
[null,"PAC-BUS","x",null,null,null,null,null,"x",null,null,null,"ps/gs","x",null,"x",null,null,null,"Croix-Luizet","Buers-Croix-Luizet"]
[null,"RIZE ARCHI",null,"x",null,null,"x",null,null,null,null,null,"ms","x",null,"x",null,null,null,"Descartes","Charpennes-Tonkin"]
[null,"RIZE MED","x",null,null,null,"x",null,null,null,null,null,"ms/gs","x",null,"x",null,null,null,"Ecole Horizons (privé)","Charpennes-Tonkin"]
[null,"RIZE VALO",null,"x",null,null,"x",null,null,null,null,null,"gs","x",null,"x",null,null,null,"Ecole juive de Lyon (privé)","Gratte-ciel-Dedieu-Charmettes"]
[null,null,null,null,null,null,null,null,null,null,null,null,"cp",null,"x","x",null,null,null,"Edouard Herriot","Gratte-ciel-Dedieu-Charmettes"]
[null,null,null,null,null,null,null,null,null,null,null,null,"cp/ce1",null,"x","x",null,null,null,"Emile Zola","Gratte-ciel-Dedieu-Charmettes"]
[null,null,null,null,null,null,null,null,null,null,null,null,"ce1",null,"x","x",null,null,null,"Ernest Renan A","Cusset-Bonnevay"]
[null,null,null,null,null,null,null,null,null,null,null,null,"ce1/ce2",null,"x","x",null,null,null,"Ernest Renan B","Cusset-Bonnevay"]
[null,null,null,null,null,null,null,null,null,null,null,null,"ce2",null,"x","x",null,null,null,"François Truffaut","Charpennes-Tonkin"]
[null,null,null,null,null,null,null,null,null,null,null,null,"ce2/cm1",null,"x","x",null,null,null,"Immaculée conception (privé)","Perralière-Grandclément"]
[null,null,null,null,null,null,null,null,null,null,null,null,"cm1",null,"x","x",null,null,null,"Jacques Prévert","Gratte-ciel-Dedieu-Charmettes"]
[null,null,null,null,null,null,null,null,null,null,null,null,"cm1/cm2",null,"x","x",null,null,null,"Jean Jaurès (primaire)","Ferrandière-Maisons Neuves"]
[null,null,null,null,null,null,null,null,null,null,null,null,"cm2",null,"x","x",null,null,null,"Jean Moulin","Buers-Croix-Luizet"]
[null,null,null,null,null,null,null,null,null,null,null,null,"ULIS (école)",null,"x","x",null,null,null,"Jean Zay","Gratte-ciel-Dedieu-Charmettes"]
[null,null,null,null,null,null,null,null,null,null,null,null,"UP2A (élémentaire)",null,"x","x",null,null,null,"Jules Ferry","Cusset-Bonnevay"]
[null,null,null,null,null,null,null,null,null,null,null,null,"6°",null,null,null,"x",null,null,"Jules Guesde","Cyprian-les-Brosses"]
[null,null,null,null,null,null,null,null,null,null,null,null,"5°",null,null,null,"x",null,null,"La Nativité (privé)","Perralière-Grandclément"]
[null,null,null,null,null,null,null,null,null,null,null,null,"4°",null,null,null,"x",null,null,"Lakanal","Charpennes-Tonkin"]
[null,null,null,null,null,null,null,null,null,null,null,null,"3°",null,null,null,"x",null,null,"Lazare Goujon","Cusset-Bonnevay"]
[null,null,null,null,null,null,null,null,null,null,null,null,"ULIS (collège)",null,null,null,"x",null,null,"Léon Jouhaux","Gratte-ciel-Dedieu-Charmettes"]
[null,null,null,null,null,null,null,null,null,null,null,null,"UP2A (collège)",null,null,null,"x",null,null,"Louis Armand","Charpennes-Tonkin"]
[null,null,null,null,null,null,null,null,null,null,null,null,"2°",null,null,null,null,"x",null,"Louis Pasteur","Perralière-Grandclément"]
[null,null,null,null,null,null,null,null,null,null,null,null,"2° pro",null,null,null,null,"x",null,"Mère Teresa (privé)","Charpennes-Tonkin"]
[null,null,null,null,null,null,null,null,null,null,null,null,"1°",null,null,null,null,"x",null,"Montessori (privé)","Gratte-ciel-Dedieu-Charmettes"]
[null,null,null,null,null,null,null,null,null,null,null,null,"1° pro",null,null,null,null,"x",null,"René Pellet (déficients visuels)","Perralière-Grandclément"]
[null,null,null,null,null,null,null,null,null,null,null,null,"Tle",null,null,null,null,"x",null,"Rosa Parks","Gratte-ciel-Dedieu-Charmettes"]
[null,null,null,null,null,null,null,null,null,null,null,null,"Tle pro",null,null,null,null,"x",null,"Saint Exupéry","Saint Jean"]
[null,null,null,null,null,null,null,null,null,null,null,null,"ULIS (lycée)",null,null,null,null,"x",null,"Simone Veil","Cyprian-les-Brosses"]
[null,null,null,null,null,null,null,null,null,null,null,null,null,null,null,null,null,null,null,"Ste Thérèse (privé)","Gratte-ciel-Dedieu-Charmettes"]
[null,null,null,null,null,null,null,null,null,null,null,null,null,null,null,null,null,null,null,"Tonkin/Nigritelle","Charpennes-Tonkin"]
[null,null,null,null,null,null,null,null,null,null,null,null,null,null,null,null,null,null,null,"Collège des Gratte-Ciel (Môrice Leroux)","Gratte-ciel-Dedieu-Charmettes"]
[null,null,null,null,null,null,null,null,null,null,null,null,null,null,null,null,null,null,null,"Collège des Iris","Cusset-Bonnevay"]
[null,null,null,null,null,null,null,null,null,null,null,null,null,null,null,null,null,null,null,"Collège du Tonkin","Charpennes-Tonkin"]
[null,null,null,null,null,null,null,null,null,null,null,null,null,null,null,null,null,null,null,"Collège Jean Jaurès","Ferrandière-Maisons Neuves"]
[null,null,null,null,null,null,null,null,null,null,null,null,null,null,null,null,null,null,null,"Collège Jean Macé","Buers-Croix-Luizet"]
[null,null,null,null,null,null,null,null,null,null,null,null,null,null,null,null,null,null,null,"Collège Jean-Vilar","Saint Jean"]
[null,null,null,null,null,null,null,null,null,null,null,null,null,null,null,null,null,null,null,"Collège Lamartine","Cyprian-les-Brosses"]
[null,null,null,null,null,null,null,null,null,null,null,null,null,null,null,null,null,null,null,"Collège Louis Jouvet","Ferrandière-Maisons Neuves"]
[null,null,null,null,null,null,null,null,null,null,null,null,null,null,null,null,null,null,null,"Collège Simone Lagrange","Saint Jean"]
[null,null,null,null,null,null,null,null,null,null,null,null,null,null,null,null,null,null,null,"Lycée Alfred de Musset","Cyprian-les-Brosses"]
[null,null,null,null,null,null,null,null,null,null,null,null,null,null,null,null,null,null,null,"Lycée Frédéric Faÿs","Cusset-Bonnevay"]
[null,null,null,null,null,null,null,null,null,null,null,null,null,null,null,null,null,null,null,"Lycée Marie Curie","Perralière-Grandclément"]
[null,null,null,null,null,null,null,null,null,null,null,null,null,null,null,null,null,null,null,"Lycée Pierre Brossolette","Gratte-ciel-Dedieu-Charmettes"]
[null,null,null,null,null,null,null,null,null,null,null,null,null,null,null,null,null,null,null,"Lycée Magenta","Gratte-ciel-Dedieu-Charmettes"]